Workbook

Sheet nyers_adat
A1: Területi egység neve | B1: Területi egység szintje | C1: Év | D1: Lakosság | E1: Belgyógyászat | F1: Sebészet | G1: Baleseti sebészet | H1: Szülészet és nőgyógyászat | I1: Csecsemő- és gyermek-gyógyászat | J1: Fül-orr-gégészet | K1: Szemészet | L1: Bőrgyógyászat és nemibeteg-ellátás | M1: Neurológia | N1: Ortopédia | O1: Urológia | P1: Onkológia | Q1: Fogászat | R1: Reumatológia | S1: Aneszteziológiai és intenzív betegellátás | T1: Pszichiátria | U1: Nukleáris medicina (izotóp-diagnosztika és -terápia) | V1: Fizioterápia | W1: Patológia és kórszövettan | X1: Ultrahang-diagnosztika és -terápia | Y1: Tomográfia | Z1: Röntgen-diagnosztika és -terápia | AA1: Laboratóriumi diagnosztika | AB1: Sürgősségi betegellátás, oxyológia | AC1: Kardiológia | AD1: Orvosi rehabilitáció | AE1: Tüdő-gyógyászat
A2: Budapest + Pest | B2: főváros, régió + megye, régió | C2: 2015 | D2: ='[1]22.1.2.1'!Q68 -> 2983733 | E2: 1450020 | F2: 1082978 | G2: 507859 | H2: 1067648 | I2: 580747 | J2: 877184 | K2: 932252 | L2: 777293 | M2: 458157 | N2: 450467 | O2: 592805 | P2: 364592 | Q2: 2277599 | R2: 1193040 | S2: 115044 | T2: 840021 | U2: 75220 | V2: 2377062 | W2: 377570 | X2: 631520 | Y2: 266503 | Z2: 1301912 | AA2: 5634850 | AB2: 236332 | AC2: 854074 | AD2: 187816 | AE2: 850059
A3: Közép-Magyarország | B3: nagyrégió | C3: 2015 | D3: ='[1]22.1.2.1'!Q69 -> 2983733 | E3: 1450020 | F3: 1082978 | G3: 507859 | H3: 1067648 | I3: 580747 | J3: 877184 | K3: 932252 | L3: 777293 | M3: 458157 | N3: 450467 | O3: 592805 | P3: 364592 | Q3: 2277599 | R3: 1193040 | S3: 115044 | T3: 840021 | U3: 75220 | V3: 2377062 | W3: 377570 | X3: 631520 | Y3: 266503 | Z3: 1301912 | AA3: 5634850 | AB3: 236332 | AC3: 854074 | AD3: 187816 | AE3: 850059
A4: Fejér | B4: megye | C4: 2015 | D4: ='[1]22.1.2.1'!Q70 -> 417651 | E4: 132981 | F4: 85280 | G4: 66207 | H4: 114687 | I4: 55903 | J4: 87168 | K4: 82020 | L4: 48480 | M4: 42849 | N4: 38893 | O4: 39824 | P4: 23715 | Q4: 305841 | R4: 91512 | S4: 15595 | T4: 59382 | U4: 2780 | V4: 283759 | W4: 38200 | X4: 93170 | Y4: 27226 | Z4: 171945 | AA4: 491099 | AB4: 76534 | AC4: 56241 | AD4: 3949 | AE4: 75649
A5: Komárom-Esztergom | B5: megye | C5: 2015 | D5: ='[1]22.1.2.1'!Q71 -> 299110 | E5: 94376 | F5: 77843 | G5: 40451 | H5: 83260 | I5: 32636 | J5: 52187 | K5: 59931 | L5: 57522 | M5: 34038 | N5: 18170 | O5: 39174 | P5: 13464 | Q5: 174687 | R5: 83211 | S5: 6408 | T5: 52397 | U5: 6872 | V5: 279466 | W5: 25865 | X5: 50900 | Y5: 12958 | Z5: 116594 | AA5: 285110 | AB5: 21054 | AC5: 33780 | AD5: 2696 | AE5: 55034
A6: Veszprém | B6: megye | C6: 2015 | D6: ='[1]22.1.2.1'!Q72 -> 346647 | E6: 98344 | F6: 75133 | G6: 76607 | H6: 86158 | I6: 33382 | J6: 70424 | K6: 73805 | L6: 41633 | M6: 35646 | N6: 12264 | O6: 43937 | P6: 19842 | Q6: 234783 | R6: 100689 | S6: 13310 | T6: 73811 | U6: 3849 | V6: 249122 | W6: 28687 | X6: 63837 | Y6: 26772 | Z6: 116375 | AA6: 303367 | AB6: 27950 | AC6: 49327 | AD6: 33310 | AE6: 80698
A7: Közép-Dunántúl | B7: régió | C7: 2015 | D7: ='[1]22.1.2.1'!Q73 -> 1063408 | E7: 325701 | F7: 238256 | G7: 183265 | H7: 284105 | I7: 121921 | J7: 209779 | K7: 215756 | L7: 147635 | M7: 112533 | N7: 69327 | O7: 122935 | P7: 57021 | Q7: 715311 | R7: 275412 | S7: 35313 | T7: 185590 | U7: 13501 | V7: 812347 | W7: 92752 | X7: 207907 | Y7: 66956 | Z7: 404914 | AA7: 1079576 | AB7: 125538 | AC7: 139348 | AD7: 39955 | AE7: 211381
A8: Győr-Moson-Sopron | B8: megye | C8: 2015 | D8: ='[1]22.1.2.1'!Q74 -> 452638 | E8: 108316 | F8: 96452 | G8: 89881 | H8: 112753 | I8: 50444 | J8: 65810 | K8: 74184 | L8: 44490 | M8: 40197 | N8: 30036 | O8: 63061 | P8: 35983 | Q8: 246390 | R8: 69679 | S8: 11609 | T8: 79205 | U8: 3790 | V8: 279066 | W8: 81727 | X8: 77344 | Y8: 38245 | Z8: 174996 | AA8: 426304 | AB8: 73743 | AC8: 49229 | AD8: 6377 | AE8: 66126
A9: Vas | B9: megye | C9: 2015 | D9: ='[1]22.1.2.1'!Q75 -> 253997 | E9: 73943 | F9: 52107 | G9: 23755 | H9: 62474 | I9: 19633 | J9: 41129 | K9: 48222 | L9: 29887 | M9: 25530 | N9: 10810 | O9: 30609 | P9: 28277 | Q9: 132193 | R9: 76423 | S9: 5745 | T9: 31074 | U9: 1191 | V9: 126238 | W9: 25108 | X9: 21640 | Y9: 19200 | Z9: 74795 | AA9: 300301 | AB9: 30228 | AC9: 14480 | AD9: 12554 | AE9: 43117
A10: Zala | B10: megye | C10: 2015 | D10: ='[1]22.1.2.1'!Q76 -> 277290 | E10: 87999 | F10: 44303 | G10: 64629 | H10: 65648 | I10: 26406 | J10: 49058 | K10: 59198 | L10: 35181 | M10: 35667 | N10: 31790 | O10: 35801 | P10: 22759 | Q10: 174779 | R10: 89866 | S10: 7460 | T10: 34944 | U10: 2405 | V10: 315907 | W10: 26873 | X10: 51036 | Y10: 22958 | Z10: 91342 | AA10: 373036 | AB10: 28105 | AC10: 42109 | AD10: 13119 | AE10: 58002
A11: Nyugat-Dunántúl | B11: régió | C11: 2015 | D11: ='[1]22.1.2.1'!Q77 -> 983925 | E11: 270258 | F11: 192862 | G11: 178265 | H11: 240875 | I11: 96483 | J11: 155997 | K11: 181604 | L11: 109558 | M11: 101394 | N11: 72636 | O11: 129471 | P11: 87019 | Q11: 553362 | R11: 235968 | S11: 24814 | T11: 145223 | U11: 7386 | V11: 721211 | W11: 133708 | X11: 150020 | Y11: 80403 | Z11: 341133 | AA11: 1099641 | AB11: 132076 | AC11: 105818 | AD11: 32050 | AE11: 167245
A12: Baranya | B12: megye | C12: 2015 | D12: ='[1]22.1.2.1'!Q78 -> 371110 | E12: 160025 | F12: 111824 | G12: 62087 | H12: 125519 | I12: 101520 | J12: 83457 | K12: 94033 | L12: 85978 | M12: 50578 | N12: 32810 | O12: 69853 | P12: 66574 | Q12: 359612 | R12: 103940 | S12: 10800 | T12: 112949 | U12: 4063 | V12: 236184 | W12: 51310 | X12: 108305 | Y12: 36562 | Z12: 148242 | AA12: 687087 | AB12: 31761 | AC12: 109661 | AD12: 9974 | AE12: 99943
A13: Somogy | B13: megye | C13: 2015 | D13: ='[1]22.1.2.1'!Q79 -> 312084 | E13: 106200 | F13: 107711 | G13: 31306 | H13: 81172 | I13: 36626 | J13: 56729 | K13: 65106 | L13: 56850 | M13: 38855 | N13: 31714 | O13: 29444 | P13: 39154 | Q13: 190734 | R13: 55227 | S13: 7410 | T13: 70725 | U13: 2013 | V13: 165211 | W13: 27390 | X13: 68371 | Y13: 34015 | Z13: 109454 | AA13: 426173 | AB13: 54368 | AC13: 44316 | AD13: 2148 | AE13: 59292
A14: Tolna | B14: megye | C14: 2015 | D14: ='[1]22.1.2.1'!Q80 -> 225936 | E14: 86968 | F14: 45793 | G14: 42564 | H14: 70262 | I14: 40972 | J14: 46804 | K14: 44509 | L14: 33118 | M14: 28551 | N14: 23432 | O14: 25477 | P14: 18628 | Q14: 145730 | R14: 41591 | S14: 8150 | T14: 36388 | U14: 3476 | V14: 105977 | W14: 20601 | X14: 35961 | Y14: 11709 | Z14: 76679 | AA14: 275892 | AB14: 18344 | AC14: 40315 | AD14: 3570 | AE14: 42310
A15: Dél-Dunántúl | B15: régió | C15: 2015 | D15: ='[1]22.1.2.1'!Q81 -> 909130 | E15: 353193 | F15: 265328 | G15: 135957 | H15: 276953 | I15: 179118 | J15: 186990 | K15: 203648 | L15: 175946 | M15: 117984 | N15: 87956 | O15: 124774 | P15: 124356 | Q15: 696076 | R15: 200758 | S15: 26360 | T15: 220062 | U15: 9552 | V15: 507372 | W15: 99301 | X15: 212637 | Y15: 82286 | Z15: 334375 | AA15: 1389152 | AB15: 104473 | AC15: 194292 | AD15: 15692 | AE15: 201545
A16: Dunántúl | B16: nagyrégió | C16: 2015 | D16: ='[1]22.1.2.1'!Q82 -> 2956463 | E16: 949152 | F16: 696446 | G16: 497487 | H16: 801933 | I16: 397522 | J16: 552766 | K16: 601008 | L16: 433139 | M16: 331911 | N16: 229919 | O16: 377180 | P16: 268396 | Q16: 1964749 | R16: 712138 | S16: 86487 | T16: 550875 | U16: 30439 | V16: 2040930 | W16: 325761 | X16: 570564 | Y16: 229645 | Z16: 1080422 | AA16: 3568369 | AB16: 362087 | AC16: 439458 | AD16: 87697 | AE16: 580171
A17: Borsod-Abaúj-Zemplén | B17: megye | C17: 2015 | D17: ='[1]22.1.2.1'!Q83 -> 667594 | E17: 247805 | F17: 176648 | G17: 94757 | H17: 195881 | I17: 98004 | J17: 113578 | K17: 152256 | L17: 104569 | M17: 101590 | N17: 45932 | O17: 69339 | P17: 56758 | Q17: 464136 | R17: 121199 | S17: 22541 | T17: 99978 | U17: 4295 | V17: 614190 | W17: 62958 | X17: 198499 | Y17: 51217 | Z17: 241376 | AA17: 760183 | AB17: 35201 | AC17: 84607 | AD17: 28948 | AE17: 211607
A18: Heves | B18: megye | C18: 2015 | D18: ='[1]22.1.2.1'!Q84 -> 301296 | E18: 110610 | F18: 70096 | G18: 41270 | H18: 98686 | I18: 18981 | J18: 39567 | K18: 52583 | L18: 25887 | M18: 32746 | N18: 28058 | O18: 27403 | P18: 21926 | Q18: 215834 | R18: 75068 | S18: 12404 | T18: 65328 | U18: 2436 | V18: 111782 | W18: 29343 | X18: 48316 | Y18: 20890 | Z18: 102091 | AA18: 364410 | AB18: 54935 | AC18: 34544 | AD18: 8495 | AE18: 81680
A19: Nógrád | B19: megye | C19: 2015 | D19: ='[1]22.1.2.1'!Q85 -> 195923 | E19: 62658 | F19: 37874 | G19: 26038 | H19: 41260 | I19: 20056 | J19: 25725 | K19: 35778 | L19: 27374 | M19: 24814 | N19: 11700 | O19: 11751 | P19: 8069 | Q19: 135021 | R19: 38747 | S19: 3667 | T19: 40476 | U19: 1562 | V19: 107851 | W19: 15388 | X19: 34425 | Y19: 8860 | Z19: 62613 | AA19: 177633 | AB19: 30887 | AC19: 15189 | AD19: 1431 | AE19: 35962
A20: Észak-Magyarország | B20: régió | C20: 2015 | D20: ='[1]22.1.2.1'!Q86 -> 1164813 | E20: 421073 | F20: 284618 | G20: 162065 | H20: 335827 | I20: 137041 | J20: 178870 | K20: 240617 | L20: 157830 | M20: 159150 | N20: 85690 | O20: 108493 | P20: 86753 | Q20: 814991 | R20: 235014 | S20: 38612 | T20: 205782 | U20: 8293 | V20: 833823 | W20: 107689 | X20: 281240 | Y20: 80967 | Z20: 406080 | AA20: 1302226 | AB20: 121023 | AC20: 134340 | AD20: 38874 | AE20: 329249
A21: Hajdú-Bihar | B21: megye | C21: 2015 | D21: ='[1]22.1.2.1'!Q87 -> 537268 | E21: 333594 | F21: 163233 | G21: 107348 | H21: 207814 | I21: 85353 | J21: 131279 | K21: 140787 | L21: 85197 | M21: 90628 | N21: 57811 | O21: 75103 | P21: 91697 | Q21: 470855 | R21: 145526 | S21: 25954 | T21: 112430 | U21: 7842 | V21: 415602 | W21: 63248 | X21: 186788 | Y21: 48905 | Z21: 258037 | AA21: 992020 | AB21: 63666 | AC21: 97846 | AD21: 58235 | AE21: 129635
A22: Jász-Nagykun-Szolnok | B22: megye | C22: 2015 | D22: ='[1]22.1.2.1'!Q88 -> 379897 | E22: 145437 | F22: 73756 | G22: 57864 | H22: 86719 | I22: 26645 | J22: 70072 | K22: 47058 | L22: 57558 | M22: 28071 | N22: 17693 | O22: 54129 | P22: 22841 | Q22: 264627 | R22: 172112 | S22: 6942 | T22: 57517 | U22: 256 | V22: 227791 | W22: 26368 | X22: 65651 | Y22: 28485 | Z22: 134369 | AA22: 543464 | AB22: 57508 | AC22: 43308 | AD22: 9824 | AE22: 128675
A23: Szabolcs-Szatmár-Bereg | B23: megye | C23: 2015 | D23: ='[1]22.1.2.1'!Q89 -> 562357 | E23: 233215 | F23: 73136 | G23: 110579 | H23: 123665 | I23: 80688 | J23: 107775 | K23: 96157 | L23: 68317 | M23: 66950 | N23: 41092 | O23: 56038 | P23: 33228 | Q23: 395971 | R23: 132875 | S23: 17179 | T23: 82955 | U23: 7482 | V23: 225453 | W23: 56250 | X23: 115132 | Y23: 41122 | Z23: 218076 | AA23: 739801 | AB23: 66745 | AC23: 53170 | AD23: 22722 | AE23: 176945
A24: Észak-Alföld | B24: régió | C24: 2015 | D24: ='[1]22.1.2.1'!Q90 -> 1479522 | E24: 712246 | F24: 310125 | G24: 275791 | H24: 418198 | I24: 192686 | J24: 309126 | K24: 284002 | L24: 211072 | M24: 185649 | N24: 116596 | O24: 185270 | P24: 147766 | Q24: 1131453 | R24: 450513 | S24: 50075 | T24: 252902 | U24: 15580 | V24: 868846 | W24: 145866 | X24: 367571 | Y24: 118512 | Z24: 610482 | AA24: 2275285 | AB24: 187919 | AC24: 194324 | AD24: 90781 | AE24: 435255
A25: Bács-Kiskun | B25: megye | C25: 2015 | D25: ='[1]22.1.2.1'!Q91 -> 513687 | E25: 199932 | F25: 87898 | G25: 115084 | H25: 131674 | I25: 31937 | J25: 81334 | K25: 92386 | L25: 102500 | M25: 57213 | N25: 26655 | O25: 61988 | P25: 53327 | Q25: 346617 | R25: 92963 | S25: 16615 | T25: 100312 | U25: 55330 | V25: 360500 | W25: 48335 | X25: 91348 | Y25: 27082 | Z25: 212488 | AA25: 697361 | AB25: 78426 | AC25: 69972 | AD25: 1730 | AE25: 83061
A26: Békés | B26: megye | C26: 2015 | D26: ='[1]22.1.2.1'!Q92 -> 351148 | E26: 117889 | F26: 70237 | G26: 40217 | H26: 87865 | I26: 39538 | J26: 94312 | K26: 64490 | L26: 61569 | M26: 44059 | N26: 27678 | O26: 45821 | P26: 36208 | Q26: 219060 | R26: 76811 | S26: 8143 | T26: 79406 | U26: 4968 | V26: 214407 | W26: 33430 | X26: 86121 | Y26: 28926 | Z26: 136995 | AA26: 458144 | AB26: 59832 | AC26: 63679 | AD26: 3737 | AE26: 72987
A27: Csongrád-Csanád | B27: megye | C27: 2015 | D27: ='[1]22.1.2.1'!Q93 -> 406205 | E27: 240477 | F27: 125930 | G27: 70504 | H27: 162956 | I27: 104407 | J27: 85582 | K27: 106357 | L27: 98464 | M27: 61317 | N27: 42872 | O27: 68526 | P27: 41517 | Q27: 310787 | R27: 76104 | S27: 13284 | T27: 119245 | U27: 20422 | V27: 329304 | W27: 57737 | X27: 104089 | Y27: 41087 | Z27: 153045 | AA27: 861467 | AB27: 64666 | AC27: 77967 | AD27: 9207 | AE27: 70503
A28: Dél-Alföld | B28: régió | C28: 2015 | D28: ='[1]22.1.2.1'!Q94 -> 1271040 | E28: 558298 | F28: 284065 | G28: 225805 | H28: 382495 | I28: 175882 | J28: 261228 | K28: 263233 | L28: 262533 | M28: 162589 | N28: 97205 | O28: 176335 | P28: 131052 | Q28: 876464 | R28: 245878 | S28: 38042 | T28: 298963 | U28: 80720 | V28: 904211 | W28: 139502 | X28: 281558 | Y28: 97095 | Z28: 502528 | AA28: 2016972 | AB28: 202924 | AC28: 211618 | AD28: 14674 | AE28: 226551
A29: Alföld és Észak | B29: nagyrégió | C29: 2015 | D29: ='[1]22.1.2.1'!Q95 -> 3915375 | E29: 1691617 | F29: 878808 | G29: 663661 | H29: 1136520 | I29: 505609 | J29: 749224 | K29: 787852 | L29: 631435 | M29: 507388 | N29: 299491 | O29: 470098 | P29: 365571 | Q29: 2822908 | R29: 931405 | S29: 126729 | T29: 757647 | U29: 104593 | V29: 2606880 | W29: 393057 | X29: 930369 | Y29: 296574 | Z29: 1519090 | AA29: 5594483 | AB29: 511866 | AC29: 540282 | AD29: 144329 | AE29: 991055
A30: Ország összesen | B30: ország | C30: 2015 | D30: ='[1]22.1.2.1'!Q96 -> 9855571 | E30: 4090789 | F30: 2658232 | G30: 1669007 | H30: 3006101 | I30: 1483878 | J30: 2179174 | K30: 2321112 | L30: 1841867 | M30: 1297456 | N30: 979877 | O30: 1440083 | P30: 998559 | Q30: 7065256 | R30: 2836583 | S30: 328260 | T30: 2148543 | U30: 210252 | V30: 7024872 | W30: 1096388 | X30: 2132453 | Y30: 792722 | Z30: 3901424 | AA30: 14797702 | AB30: 1110285 | AC30: 1833814 | AD30: 419842 | AE30: 2421285
A31: Budapest + Pest | B31: főváros, régió + megye, régió | C31: 2016 | D31: ='[1]22.1.2.1'!R68 -> 2993948 | E31: 1492872 | F31: 1061669 | G31: 519520 | H31: 1018324 | I31: 581849 | J31: 844068 | K31: 936613 | L31: 745468 | M31: 643647 | N31: 442220 | O31: 582792 | P31: 371283 | Q31: 2293688 | R31: 1197409 | S31: 120298 | T31: 625312 | U31: 62113 | V31: 2363371 | W31: 341609 | X31: 630254 | Y31: 321862 | Z31: 1308547 | AA31: 5705918 | AB31: 242463 | AC31: 852069 | AD31: 184267 | AE31: 825711
A32: Közép-Magyarország | B32: nagyrégió | C32: 2016 | D32: ='[1]22.1.2.1'!R69 -> 2993948 | E32: 1492872 | F32: 1061669 | G32: 519520 | H32: 1018324 | I32: 581849 | J32: 844068 | K32: 936613 | L32: 745468 | M32: 643647 | N32: 442220 | O32: 582792 | P32: 371283 | Q32: 2293688 | R32: 1197409 | S32: 120298 | T32: 625312 | U32: 62113 | V32: 2363371 | W32: 341609 | X32: 630254 | Y32: 321862 | Z32: 1308547 | AA32: 5705918 | AB32: 242463 | AC32: 852069 | AD32: 184267 | AE32: 825711
A33: Fejér | B33: megye | C33: 2016 | D33: ='[1]22.1.2.1'!R70 -> 418487 | E33: 135514 | F33: 85134 | G33: 65867 | H33: 115269 | I33: 57205 | J33: 84538 | K33: 81335 | L33: 47494 | M33: 57952 | N33: 39243 | O33: 40240 | P33: 24612 | Q33: 295049 | R33: 91838 | S33: 16175 | T33: 42200 | U33: 2740 | V33: 288343 | W33: 38062 | X33: 95763 | Y33: 27554 | Z33: 172007 | AA33: 498008 | AB33: 78634 | AC33: 53240 | AD33: 3519 | AE33: 85538
A34: Komárom-Esztergom | B34: megye | C34: 2016 | D34: ='[1]22.1.2.1'!R71 -> 297914 | E34: 91308 | F34: 73768 | G34: 30486 | H34: 77016 | I34: 33496 | J34: 50832 | K34: 59640 | L34: 56197 | M34: 47560 | N34: 17734 | O34: 39307 | P34: 13778 | Q34: 148205 | R34: 81626 | S34: 6432 | T34: 36066 | U34: 7326 | V34: 296193 | W34: 23198 | X34: 55345 | Y34: 17393 | Z34: 112721 | AA34: 280969 | AB34: 32724 | AC34: 34475 | AD34: 2188 | AE34: 59325
A35: Veszprém | B35: megye | C35: 2016 | D35: ='[1]22.1.2.1'!R72 -> 344302 | E35: 97684 | F35: 78407 | G35: 79018 | H35: 85665 | I35: 33108 | J35: 68454 | K35: 70392 | L35: 40545 | M35: 59879 | N35: 12063 | O35: 45731 | P35: 24465 | Q35: 188106 | R35: 88503 | S35: 13147 | T35: 44497 | U35: 3862 | V35: 242148 | W35: 28718 | X35: 64681 | Y35: 29427 | Z35: 117527 | AA35: 252054 | AB35: 27771 | AC35: 51235 | AD35: 31846 | AE35: 74194
A36: Közép-Dunántúl | B36: régió | C36: 2016 | D36: ='[1]22.1.2.1'!R73 -> 1060703 | E36: 324506 | F36: 237309 | G36: 175371 | H36: 277950 | I36: 123809 | J36: 203824 | K36: 211367 | L36: 144236 | M36: 165391 | N36: 69040 | O36: 125278 | P36: 62855 | Q36: 631360 | R36: 261967 | S36: 35754 | T36: 122763 | U36: 13928 | V36: 826684 | W36: 89978 | X36: 215789 | Y36: 74374 | Z36: 402255 | AA36: 1031031 | AB36: 139129 | AC36: 138950 | AD36: 37553 | AE36: 219057
A37: Győr-Moson-Sopron | B37: megye | C37: 2016 | D37: ='[1]22.1.2.1'!R74 -> 455217 | E37: 112083 | F37: 100416 | G37: 97865 | H37: 119220 | I37: 49132 | J37: 67015 | K37: 74109 | L37: 45115 | M37: 58751 | N37: 31526 | O37: 66913 | P37: 41260 | Q37: 234209 | R37: 71212 | S37: 12539 | T37: 61173 | U37: 3089 | V37: 280851 | W37: 76730 | X37: 79749 | Y37: 22562 | Z37: 169525 | AA37: 447330 | AB37: 81307 | AC37: 50939 | AD37: 7565 | AE37: 68201
A38: Vas | B38: megye | C38: 2016 | D38: ='[1]22.1.2.1'!R75 -> 253689 | E38: 77670 | F38: 51913 | G38: 26578 | H38: 64317 | I38: 24063 | J38: 35514 | K38: 50189 | L38: 32086 | M38: 35267 | N38: 9890 | O38: 32466 | P38: 30892 | Q38: 129091 | R38: 75179 | S38: 6521 | T38: 17118 | U38: 1321 | V38: 142758 | W38: 25456 | X38: 22980 | Y38: 20090 | Z38: 79655 | AA38: 311797 | AB38: 33355 | AC38: 14744 | AD38: 12509 | AE38: 41292
A39: Zala | B39: megye | C39: 2016 | D39: ='[1]22.1.2.1'!R76 -> 275027 | E39: 90746 | F39: 44306 | G39: 67074 | H39: 68937 | I39: 24390 | J39: 48485 | K39: 60051 | L39: 31451 | M39: 45293 | N39: 30560 | O39: 37379 | P39: 23428 | Q39: 178184 | R39: 93943 | S39: 8449 | T39: 24994 | U39: 2340 | V39: 332078 | W39: 27148 | X39: 51239 | Y39: 23829 | Z39: 91990 | AA39: 369809 | AB39: 29141 | AC39: 42798 | AD39: 12829 | AE39: 56398
A40: Nyugat-Dunántúl | B40: régió | C40: 2016 | D40: ='[1]22.1.2.1'!R77 -> 983933 | E40: 280499 | F40: 196635 | G40: 191517 | H40: 252474 | I40: 97585 | J40: 151014 | K40: 184349 | L40: 108652 | M40: 139311 | N40: 71976 | O40: 136758 | P40: 95580 | Q40: 541484 | R40: 240334 | S40: 27509 | T40: 103285 | U40: 6750 | V40: 755687 | W40: 129334 | X40: 153968 | Y40: 66481 | Z40: 341170 | AA40: 1128936 | AB40: 143803 | AC40: 108481 | AD40: 32903 | AE40: 165891
A41: Baranya | B41: megye | C41: 2016 | D41: ='[1]22.1.2.1'!R78 -> 368135 | E41: 161856 | F41: 112643 | G41: 54552 | H41: 123489 | I41: 92175 | J41: 82919 | K41: 87913 | L41: 79846 | M41: 76434 | N41: 34540 | O41: 69355 | P41: 62579 | Q41: 372420 | R41: 106655 | S41: 12782 | T41: 84848 | U41: 3569 | V41: 225033 | W41: 50315 | X41: 107643 | Y41: 37857 | Z41: 140409 | AA41: 700716 | AB41: 49256 | AC41: 107571 | AD41: 7831 | AE41: 97171
A42: Somogy | B42: megye | C42: 2016 | D42: ='[1]22.1.2.1'!R79 -> 309115 | E42: 107084 | F42: 114275 | G42: 31251 | H42: 80148 | I42: 36037 | J42: 54310 | K42: 63989 | L42: 52349 | M42: 60255 | N42: 33008 | O42: 29111 | P42: 40455 | Q42: 189939 | R42: 56509 | S42: 7349 | T42: 37945 | U42: 1795 | V42: 174824 | W42: 26580 | X42: 68265 | Y42: 34622 | Z42: 109985 | AA42: 438297 | AB42: 55856 | AC42: 45292 | AD42: 2104 | AE42: 58845
A43: Tolna | B43: megye | C43: 2016 | D43: ='[1]22.1.2.1'!R80 -> 223618 | E43: 84027 | F43: 42965 | G43: 45033 | H43: 69491 | I43: 40123 | J43: 43881 | K43: 45162 | L43: 35043 | M43: 41142 | N43: 22812 | O43: 24755 | P43: 18509 | Q43: 135295 | R43: 38519 | S43: 8085 | T43: 20056 | U43: 3427 | V43: 104060 | W43: 20961 | X43: 35877 | Y43: 12235 | Z43: 73233 | AA43: 269391 | AB43: 19738 | AC43: 40403 | AD43: 3706 | AE43: 44790
A44: Dél-Dunántúl | B44: régió | C44: 2016 | D44: ='[1]22.1.2.1'!R81 -> 900868 | E44: 352967 | F44: 269883 | G44: 130836 | H44: 273128 | I44: 168335 | J44: 181110 | K44: 197064 | L44: 167238 | M44: 177831 | N44: 90360 | O44: 123221 | P44: 121543 | Q44: 697654 | R44: 201683 | S44: 28216 | T44: 142849 | U44: 8791 | V44: 503917 | W44: 97856 | X44: 211785 | Y44: 84714 | Z44: 323627 | AA44: 1408404 | AB44: 124850 | AC44: 193266 | AD44: 13641 | AE44: 200806
A45: Dunántúl | B45: nagyrégió | C45: 2016 | D45: ='[1]22.1.2.1'!R82 -> 2945504 | E45: 957972 | F45: 703827 | G45: 497724 | H45: 803552 | I45: 389729 | J45: 535948 | K45: 592780 | L45: 420126 | M45: 482533 | N45: 231376 | O45: 385257 | P45: 279978 | Q45: 1870498 | R45: 703984 | S45: 91479 | T45: 368897 | U45: 29469 | V45: 2086288 | W45: 317168 | X45: 581542 | Y45: 225569 | Z45: 1067052 | AA45: 3568371 | AB45: 407782 | AC45: 440697 | AD45: 84097 | AE45: 585754
A46: Borsod-Abaúj-Zemplén | B46: megye | C46: 2016 | D46: ='[1]22.1.2.1'!R83 -> 660549 | E46: 238690 | F46: 174094 | G46: 102912 | H46: 190927 | I46: 102354 | J46: 109315 | K46: 146778 | L46: 104016 | M46: 116985 | N46: 46920 | O46: 69920 | P46: 60249 | Q46: 446273 | R46: 126510 | S46: 23462 | T46: 80544 | U46: 4557 | V46: 636714 | W46: 62556 | X46: 196185 | Y46: 71496 | Z46: 248569 | AA46: 728738 | AB46: 37204 | AC46: 83151 | AD46: 28868 | AE46: 206098
A47: Heves | B47: megye | C47: 2016 | D47: ='[1]22.1.2.1'!R84 -> 299219 | E47: 102738 | F47: 69265 | G47: 36741 | H47: 97131 | I47: 19505 | J47: 37837 | K47: 51049 | L47: 27203 | M47: 61696 | N47: 28233 | O47: 28199 | P47: 19765 | Q47: 206574 | R47: 72627 | S47: 12849 | T47: 37591 | U47: 2403 | V47: 122041 | W47: 28080 | X47: 52333 | Y47: 23544 | Z47: 110774 | AA47: 419037 | AB47: 73282 | AC47: 33386 | AD47: 6574 | AE47: 70369
A48: Nógrád | B48: megye | C48: 2016 | D48: ='[1]22.1.2.1'!R85 -> 193946 | E48: 65759 | F48: 38262 | G48: 27088 | H48: 41161 | I48: 20194 | J48: 25618 | K48: 35060 | L48: 27423 | M48: 44764 | N48: 11315 | O48: 12340 | P48: 7991 | Q48: 119203 | R48: 38074 | S48: 3898 | T48: 19585 | U48: 1523 | V48: 105607 | W48: 15938 | X48: 38362 | Y48: 15238 | Z48: 61203 | AA48: 182116 | AB48: 31366 | AC48: 15514 | AD48: 1550 | AE48: 36132
A49: Észak-Magyarország | B49: régió | C49: 2016 | D49: ='[1]22.1.2.1'!R86 -> 1153714 | E49: 407187 | F49: 281621 | G49: 166741 | H49: 329219 | I49: 142053 | J49: 172770 | K49: 232887 | L49: 158642 | M49: 223445 | N49: 86468 | O49: 110459 | P49: 88005 | Q49: 772050 | R49: 237211 | S49: 40209 | T49: 137720 | U49: 8483 | V49: 864362 | W49: 106574 | X49: 286880 | Y49: 110278 | Z49: 420546 | AA49: 1329891 | AB49: 141852 | AC49: 132051 | AD49: 36992 | AE49: 312599
A50: Hajdú-Bihar | B50: megye | C50: 2016 | D50: ='[1]22.1.2.1'!R87 -> 534974 | E50: 330647 | F50: 158915 | G50: 110664 | H50: 210037 | I50: 77474 | J50: 129337 | K50: 134696 | L50: 80657 | M50: 129497 | N50: 54952 | O50: 72801 | P50: 92099 | Q50: 523550 | R50: 136867 | S50: 26194 | T50: 73372 | U50: 7818 | V50: 405162 | W50: 58608 | X50: 183006 | Y50: 50626 | Z50: 257744 | AA50: 1005658 | AB50: 64985 | AC50: 92493 | AD50: 70501 | AE50: 104992
A51: Jász-Nagykun-Szolnok | B51: megye | C51: 2016 | D51: ='[1]22.1.2.1'!R88 -> 376334 | E51: 146853 | F51: 83878 | G51: 57482 | H51: 91259 | I51: 26062 | J51: 71750 | K51: 48463 | L51: 61427 | M51: 53836 | N51: 20615 | O51: 57219 | P51: 23095 | Q51: 253426 | R51: 180802 | S51: 7161 | T51: 38200 | U51: 2198 | V51: 237860 | W51: 25436 | X51: 67998 | Y51: 6693 | Z51: 146771 | AA51: 503626 | AB51: 60417 | AC51: 49588 | AD51: 9864 | AE51: 130676
A52: Szabolcs-Szatmár-Bereg | B52: megye | C52: 2016 | D52: ='[1]22.1.2.1'!R89 -> 563075 | E52: 231184 | F52: 73047 | G52: 113046 | H52: 121506 | I52: 83004 | J52: 107453 | K52: 94352 | L52: 66230 | M52: 77118 | N52: 41052 | O52: 56516 | P52: 35537 | Q52: 382350 | R52: 142321 | S52: 17776 | T52: 71785 | U52: 7379 | V52: 240208 | W52: 54478 | X52: 115329 | Y52: 42426 | Z52: 216697 | AA52: 776563 | AB52: 65231 | AC52: 57667 | AD52: 24036 | AE52: 171830
A53: Észak-Alföld | B53: régió | C53: 2016 | D53: ='[1]22.1.2.1'!R90 -> 1474383 | E53: 708684 | F53: 315840 | G53: 281192 | H53: 422802 | I53: 186540 | J53: 308540 | K53: 277511 | L53: 208314 | M53: 260451 | N53: 116619 | O53: 186536 | P53: 150731 | Q53: 1159326 | R53: 459990 | S53: 51131 | T53: 183357 | U53: 17395 | V53: 883230 | W53: 138522 | X53: 366333 | Y53: 99745 | Z53: 621212 | AA53: 2285847 | AB53: 190633 | AC53: 199748 | AD53: 104401 | AE53: 407498
A54: Bács-Kiskun | B54: megye | C54: 2016 | D54: ='[1]22.1.2.1'!R91 -> 511419 | E54: 196923 | F54: 89014 | G54: 113581 | H54: 132019 | I54: 31293 | J54: 75659 | K54: 87254 | L54: 103651 | M54: 75486 | N54: 26785 | O54: 62617 | P54: 53698 | Q54: 346455 | R54: 95742 | S54: 15564 | T54: 75307 | U54: 59084 | V54: 360936 | W54: 45625 | X54: 91913 | Y54: 27483 | Z54: 202326 | AA54: 694898 | AB54: 79618 | AC54: 68300 | AD54: 1791 | AE54: 77875
A55: Békés | B55: megye | C55: 2016 | D55: ='[1]22.1.2.1'!R92 -> 347058 | E55: 119986 | F55: 71169 | G55: 43595 | H55: 85542 | I55: 38719 | J55: 93275 | K55: 63664 | L55: 58305 | M55: 61953 | N55: 28058 | O55: 45616 | P55: 38142 | Q55: 219898 | R55: 75499 | S55: 8580 | T55: 60165 | U55: 5095 | V55: 211010 | W55: 32553 | X55: 84970 | Y55: 30794 | Z55: 132411 | AA55: 456874 | AB55: 57051 | AC55: 58113 | AD55: 3664 | AE55: 73000
A56: Csongrád-Csanád | B56: megye | C56: 2016 | D56: ='[1]22.1.2.1'!R93 -> 404459 | E56: 232188 | F56: 132918 | G56: 72691 | H56: 158920 | I56: 101302 | J56: 85409 | K56: 106163 | L56: 101727 | M56: 91716 | N56: 44333 | O56: 71035 | P56: 43974 | Q56: 310744 | R56: 74127 | S56: 13380 | T56: 89308 | U56: 20805 | V56: 329816 | W56: 58818 | X56: 104642 | Y56: 40951 | Z56: 150365 | AA56: 864926 | AB56: 65025 | AC56: 78249 | AD56: 8936 | AE56: 70534
A57: Dél-Alföld | B57: régió | C57: 2016 | D57: ='[1]22.1.2.1'!R94 -> 1262936 | E57: 549097 | F57: 293101 | G57: 229867 | H57: 376481 | I57: 171314 | J57: 254343 | K57: 257081 | L57: 263683 | M57: 229155 | N57: 99176 | O57: 179268 | P57: 135814 | Q57: 877097 | R57: 245368 | S57: 37524 | T57: 224780 | U57: 84984 | V57: 901762 | W57: 136996 | X57: 281525 | Y57: 99228 | Z57: 485102 | AA57: 2016698 | AB57: 201694 | AC57: 204662 | AD57: 14391 | AE57: 221409
A58: Alföld és Észak | B58: nagyrégió | C58: 2016 | D58: ='[1]22.1.2.1'!R95 -> 3891033 | E58: 1664968 | F58: 890562 | G58: 677800 | H58: 1128502 | I58: 499907 | J58: 735653 | K58: 767479 | L58: 630639 | M58: 713051 | N58: 302263 | O58: 476263 | P58: 374550 | Q58: 2808473 | R58: 942569 | S58: 128864 | T58: 545857 | U58: 110862 | V58: 2649354 | W58: 382092 | X58: 934738 | Y58: 309251 | Z58: 1526860 | AA58: 5632436 | AB58: 534179 | AC58: 536461 | AD58: 155784 | AE58: 941506
A59: Ország összesen | B59: ország | C59: 2016 | D59: ='[1]22.1.2.1'!R96 -> 9830485 | E59: 4115812 | F59: 2656058 | G59: 1695044 | H59: 2950378 | I59: 1471485 | J59: 2115669 | K59: 2296872 | L59: 1796233 | M59: 1839231 | N59: 975859 | O59: 1444312 | P59: 1025811 | Q59: 6972659 | R59: 2843962 | S59: 340641 | T59: 1540066 | U59: 202444 | V59: 7099013 | W59: 1040869 | X59: 2146534 | Y59: 856682 | Z59: 3902459 | AA59: 14906725 | AB59: 1184424 | AC59: 1829227 | AD59: 424148 | AE59: 2352971
A60: Budapest + Pest | B60: főváros, régió + megye, régió | C60: 2017 | D60: ='[1]22.1.2.1'!S68 -> 3000076 | E60: 1481359 | F60: 1023214 | G60: 519761 | H60: 959963 | I60: 571529 | J60: 798557 | K60: 900112 | L60: 686087 | M60: 630666 | N60: 426740 | O60: 569878 | P60: 367359 | Q60: 2232882 | R60: 1143643 | S60: 123109 | T60: 605063 | U60: 60389 | V60: 2326016 | W60: 329288 | X60: 605056 | Y60: 328828 | Z60: 1272672 | AA60: 5648495 | AB60: 247626 | AC60: 846907 | AD60: 172075 | AE60: 793310
A61: Közép-Magyarország | B61: nagyrégió | C61: 2017 | D61: ='[1]22.1.2.1'!S69 -> 3000076 | E61: 1481359 | F61: 1023214 | G61: 519761 | H61: 959963 | I61: 571529 | J61: 798557 | K61: 900112 | L61: 686087 | M61: 630666 | N61: 426740 | O61: 569878 | P61: 367359 | Q61: 2232882 | R61: 1143643 | S61: 123109 | T61: 605063 | U61: 60389 | V61: 2326016 | W61: 329288 | X61: 605056 | Y61: 328828 | Z61: 1272672 | AA61: 5648495 | AB61: 247626 | AC61: 846907 | AD61: 172075 | AE61: 793310
A62: Fejér | B62: megye | C62: 2017 | D62: ='[1]22.1.2.1'!S70 -> 416215 | E62: 133856 | F62: 84018 | G62: 65401 | H62: 105294 | I62: 57979 | J62: 84762 | K62: 81329 | L62: 45035 | M62: 57941 | N62: 39372 | O62: 41004 | P62: 23847 | Q62: 286214 | R62: 85028 | S62: 16176 | T62: 46290 | U62: 2739 | V62: 296533 | W62: 36440 | X62: 96407 | Y62: 28766 | Z62: 173664 | AA62: 494353 | AB62: 80455 | AC62: 50660 | AD62: 3015 | AE62: 87171
A63: Komárom-Esztergom | B63: megye | C63: 2017 | D63: ='[1]22.1.2.1'!S71 -> 297381 | E63: 89018 | F63: 71407 | G63: 35502 | H63: 72955 | I63: 34423 | J63: 50416 | K63: 58432 | L63: 52802 | M63: 45404 | N63: 17672 | O63: 39633 | P63: 12575 | Q63: 151030 | R63: 75638 | S63: 6457 | T63: 36550 | U63: 7382 | V63: 288482 | W63: 23269 | X63: 52369 | Y63: 18784 | Z63: 114779 | AA63: 305852 | AB63: 31279 | AC63: 33550 | AD63: 1981 | AE63: 57245
A64: Veszprém | B64: megye | C64: 2017 | D64: ='[1]22.1.2.1'!S72 -> 342501 | E64: 95745 | F64: 77719 | G64: 80611 | H64: 81376 | I64: 33037 | J64: 67930 | K64: 68398 | L64: 38280 | M64: 58153 | N64: 11578 | O64: 46154 | P64: 25064 | Q64: 185608 | R64: 92767 | S64: 12481 | T64: 43182 | U64: 3751 | V64: 250468 | W64: 27166 | X64: 61366 | Y64: 31123 | Z64: 118707 | AA64: 250664 | AB64: 28667 | AC64: 54172 | AD64: 30847 | AE64: 79185
A65: Közép-Dunántúl | B65: régió | C65: 2017 | D65: ='[1]22.1.2.1'!S73 -> 1056097 | E65: 318619 | F65: 233144 | G65: 181514 | H65: 259625 | I65: 125439 | J65: 203108 | K65: 208159 | L65: 136117 | M65: 161498 | N65: 68622 | O65: 126791 | P65: 61486 | Q65: 622852 | R65: 253433 | S65: 35114 | T65: 126022 | U65: 13872 | V65: 835483 | W65: 86875 | X65: 210142 | Y65: 78673 | Z65: 407150 | AA65: 1050869 | AB65: 140401 | AC65: 138382 | AD65: 35843 | AE65: 223601
A66: Győr-Moson-Sopron | B66: megye | C66: 2017 | D66: ='[1]22.1.2.1'!S74 -> 457344 | E66: 116188 | F66: 99820 | G66: 97099 | H66: 117753 | I66: 46088 | J66: 67063 | K66: 72809 | L66: 42814 | M66: 56709 | N66: 30509 | O66: 66639 | P66: 41126 | Q66: 225571 | R66: 68656 | S66: 11979 | T66: 53114 | U66: 3047 | V66: 281797 | W66: 66801 | X66: 78980 | Y66: 23887 | Z66: 165509 | AA66: 438994 | AB66: 82951 | AC66: 49440 | AD66: 7768 | AE66: 69345
A67: Vas | B67: megye | C67: 2017 | D67: ='[1]22.1.2.1'!S75 -> 253109 | E67: 79390 | F67: 54823 | G67: 27904 | H67: 63176 | I67: 23889 | J67: 34908 | K67: 51054 | L67: 30123 | M67: 33571 | N67: 10861 | O67: 32887 | P67: 32280 | Q67: 125167 | R67: 70085 | S67: 5928 | T67: 15954 | U67: 1089 | V67: 138635 | W67: 23769 | X67: 23005 | Y67: 20856 | Z67: 77714 | AA67: 313013 | AB67: 33490 | AC67: 14505 | AD67: 11991 | AE67: 40871
A68: Zala | B68: megye | C68: 2017 | D68: ='[1]22.1.2.1'!S76 -> 272798 | E68: 91249 | F68: 45698 | G68: 66376 | H68: 62892 | I68: 24638 | J68: 46281 | K68: 57912 | L68: 28833 | M68: 44916 | N68: 30424 | O68: 36847 | P68: 23072 | Q68: 172032 | R68: 86086 | S68: 8480 | T68: 27127 | U68: 2192 | V68: 323992 | W68: 25237 | X68: 48992 | Y68: 26012 | Z68: 90770 | AA68: 355299 | AB68: 30103 | AC68: 44246 | AD68: 11150 | AE68: 54885
A69: Nyugat-Dunántúl | B69: régió | C69: 2017 | D69: ='[1]22.1.2.1'!S77 -> 983251 | E69: 286827 | F69: 200341 | G69: 191379 | H69: 243821 | I69: 94615 | J69: 148252 | K69: 181775 | L69: 101770 | M69: 135196 | N69: 71794 | O69: 136373 | P69: 96478 | Q69: 522770 | R69: 224827 | S69: 26387 | T69: 96195 | U69: 6328 | V69: 744424 | W69: 115807 | X69: 150977 | Y69: 70755 | Z69: 333993 | AA69: 1107306 | AB69: 146544 | AC69: 108191 | AD69: 30909 | AE69: 165101
A70: Baranya | B70: megye | C70: 2017 | D70: ='[1]22.1.2.1'!S78 -> 365726 | E70: 162093 | F70: 110294 | G70: 55469 | H70: 118614 | I70: 89594 | J70: 81738 | K70: 82871 | L70: 76662 | M70: 74257 | N70: 34217 | O70: 68026 | P70: 64684 | Q70: 366272 | R70: 100397 | S70: 12550 | T70: 84665 | U70: 3495 | V70: 220819 | W70: 49186 | X70: 107374 | Y70: 40039 | Z70: 140929 | AA70: 696049 | AB70: 52563 | AC70: 104942 | AD70: 8290 | AE70: 88004
A71: Somogy | B71: megye | C71: 2017 | D71: ='[1]22.1.2.1'!S79 -> 306698 | E71: 104042 | F71: 112360 | G71: 30122 | H71: 74541 | I71: 36268 | J71: 51564 | K71: 61277 | L71: 51421 | M71: 59386 | N71: 31339 | O71: 27492 | P71: 41742 | Q71: 185695 | R71: 56522 | S71: 6791 | T71: 36647 | U71: 1688 | V71: 177496 | W71: 25542 | X71: 61616 | Y71: 37492 | Z71: 112477 | AA71: 422431 | AB71: 55631 | AC71: 43924 | AD71: 2096 | AE71: 58027
A72: Tolna | B72: megye | C72: 2017 | D72: ='[1]22.1.2.1'!S80 -> 221799 | E72: 85215 | F72: 36034 | G72: 52075 | H72: 67874 | I72: 38386 | J72: 42101 | K72: 45615 | L72: 36000 | M72: 40025 | N72: 20736 | O72: 24814 | P72: 17553 | Q72: 131932 | R72: 36977 | S72: 8014 | T72: 19385 | U72: 3463 | V72: 94600 | W72: 20144 | X72: 34502 | Y72: 12701 | Z72: 70160 | AA72: 259642 | AB72: 20566 | AC72: 39993 | AD72: 3779 | AE72: 43716
A73: Dél-Dunántúl | B73: régió | C73: 2017 | D73: ='[1]22.1.2.1'!S81 -> 894223 | E73: 351350 | F73: 258688 | G73: 137666 | H73: 261029 | I73: 164248 | J73: 175403 | K73: 189763 | L73: 164083 | M73: 173668 | N73: 86292 | O73: 120332 | P73: 123979 | Q73: 683899 | R73: 193896 | S73: 27355 | T73: 140697 | U73: 8646 | V73: 492915 | W73: 94872 | X73: 203492 | Y73: 90232 | Z73: 323566 | AA73: 1378122 | AB73: 128760 | AC73: 188859 | AD73: 14165 | AE73: 189747
A74: Dunántúl | B74: nagyrégió | C74: 2017 | D74: ='[1]22.1.2.1'!S82 -> 2933571 | E74: 956796 | F74: 692173 | G74: 510559 | H74: 764475 | I74: 384302 | J74: 526763 | K74: 579697 | L74: 401970 | M74: 470362 | N74: 226708 | O74: 383496 | P74: 281943 | Q74: 1829521 | R74: 672156 | S74: 88856 | T74: 362914 | U74: 28846 | V74: 2072822 | W74: 297554 | X74: 564611 | Y74: 239660 | Z74: 1064709 | AA74: 3536297 | AB74: 415705 | AC74: 435432 | AD74: 80917 | AE74: 578449
A75: Borsod-Abaúj-Zemplén | B75: megye | C75: 2017 | D75: ='[1]22.1.2.1'!S83 -> 654402 | E75: 236449 | F75: 170036 | G75: 97025 | H75: 183513 | I75: 99759 | J75: 103028 | K75: 141235 | L75: 92299 | M75: 116093 | N75: 49067 | O75: 65771 | P75: 60097 | Q75: 428537 | R75: 116674 | S75: 23522 | T75: 75434 | U75: 4626 | V75: 608340 | W75: 58395 | X75: 188552 | Y75: 70794 | Z75: 249039 | AA75: 720113 | AB75: 36575 | AC75: 79757 | AD75: 27202 | AE75: 202466
A76: Heves | B76: megye | C76: 2017 | D76: ='[1]22.1.2.1'!S84 -> 296927 | E76: 99750 | F76: 67726 | G76: 36858 | H76: 95428 | I76: 19349 | J76: 35586 | K76: 50626 | L76: 26573 | M76: 59938 | N76: 27864 | O76: 29796 | P76: 19820 | Q76: 202668 | R76: 69300 | S76: 12718 | T76: 36140 | U76: 2383 | V76: 129393 | W76: 27159 | X76: 51963 | Y76: 27826 | Z76: 118896 | AA76: 382168 | AB76: 80977 | AC76: 31281 | AD76: 7159 | AE76: 69343
A77: Nógrád | B77: megye | C77: 2017 | D77: ='[1]22.1.2.1'!S85 -> 192573 | E77: 67655 | F77: 37303 | G77: 27335 | H77: 38935 | I77: 20197 | J77: 24737 | K77: 33450 | L77: 25313 | M77: 44714 | N77: 10509 | O77: 11052 | P77: 7741 | Q77: 110585 | R77: 35185 | S77: 3548 | T77: 16767 | U77: 1609 | V77: 105781 | W77: 14214 | X77: 39486 | Y77: 15106 | Z77: 61264 | AA77: 175342 | AB77: 30518 | AC77: 15314 | AD77: 1643 | AE77: 34367
A78: Észak-Magyarország | B78: régió | C78: 2017 | D78: ='[1]22.1.2.1'!S86 -> 1143902 | E78: 403854 | F78: 275065 | G78: 161218 | H78: 317876 | I78: 139305 | J78: 163351 | K78: 225311 | L78: 144185 | M78: 220745 | N78: 87440 | O78: 106619 | P78: 87658 | Q78: 741790 | R78: 221159 | S78: 39788 | T78: 128341 | U78: 8618 | V78: 843514 | W78: 99768 | X78: 280001 | Y78: 113726 | Z78: 429199 | AA78: 1277623 | AB78: 148070 | AC78: 126352 | AD78: 36004 | AE78: 306176
A79: Hajdú-Bihar | B79: megye | C79: 2017 | D79: ='[1]22.1.2.1'!S87 -> 532399 | E79: 313667 | F79: 144280 | G79: 112872 | H79: 195468 | I79: 79237 | J79: 122579 | K79: 131280 | L79: 76683 | M79: 127286 | N79: 60110 | O79: 70279 | P79: 92112 | Q79: 528646 | R79: 131120 | S79: 25999 | T79: 68353 | U79: 6935 | V79: 383131 | W79: 53254 | X79: 175256 | Y79: 50268 | Z79: 263804 | AA79: 995951 | AB79: 66770 | AC79: 92053 | AD79: 77298 | AE79: 100326
A80: Jász-Nagykun-Szolnok | B80: megye | C80: 2017 | D80: ='[1]22.1.2.1'!S88 -> 373631 | E80: 145616 | F80: 85045 | G80: 62701 | H80: 86876 | I80: 25616 | J80: 73545 | K80: 48747 | L80: 58188 | M80: 53933 | N80: 21092 | O80: 53609 | P80: 24638 | Q80: 239136 | R80: 175626 | S80: 7084 | T80: 38185 | U80: 2151 | V80: 243812 | W80: 23524 | X80: 67167 | Y80: 6934 | Z80: 150551 | AA80: 508403 | AB80: 61179 | AC80: 49522 | AD80: 9376 | AE80: 127257
A81: Szabolcs-Szatmár-Bereg | B81: megye | C81: 2017 | D81: ='[1]22.1.2.1'!S89 -> 562058 | E81: 225341 | F81: 71926 | G81: 113211 | H81: 114712 | I81: 79899 | J81: 103265 | K81: 89210 | L81: 63969 | M81: 74274 | N81: 39273 | O81: 57047 | P81: 36080 | Q81: 368453 | R81: 130531 | S81: 17892 | T81: 69536 | U81: 7186 | V81: 214471 | W81: 51386 | X81: 112663 | Y81: 44499 | Z81: 206027 | AA81: 777557 | AB81: 62516 | AC81: 61290 | AD81: 23580 | AE81: 168761
A82: Észak-Alföld | B82: régió | C82: 2017 | D82: ='[1]22.1.2.1'!S90 -> 1468088 | E82: 684624 | F82: 301251 | G82: 288784 | H82: 397056 | I82: 184752 | J82: 299389 | K82: 269237 | L82: 198840 | M82: 255493 | N82: 120475 | O82: 180935 | P82: 152830 | Q82: 1136235 | R82: 437277 | S82: 50975 | T82: 176074 | U82: 16272 | V82: 841414 | W82: 128164 | X82: 355086 | Y82: 101701 | Z82: 620382 | AA82: 2281911 | AB82: 190465 | AC82: 202865 | AD82: 110254 | AE82: 396344
A83: Bács-Kiskun | B83: megye | C83: 2017 | D83: ='[1]22.1.2.1'!S91 -> 508017 | E83: 193949 | F83: 86479 | G83: 111234 | H83: 128565 | I83: 31873 | J83: 71644 | K83: 84092 | L83: 97164 | M83: 73992 | N83: 25264 | O83: 60448 | P83: 54021 | Q83: 324946 | R83: 89790 | S83: 15782 | T83: 73069 | U83: 43478 | V83: 332604 | W83: 43356 | X83: 90910 | Y83: 27374 | Z83: 201911 | AA83: 675181 | AB83: 77047 | AC83: 64116 | AD83: 1503 | AE83: 77258
A84: Békés | B84: megye | C84: 2017 | D84: ='[1]22.1.2.1'!S92 -> 342438 | E84: 119069 | F84: 73640 | G84: 42079 | H84: 80641 | I84: 36716 | J84: 91140 | K84: 62270 | L84: 57532 | M84: 61809 | N84: 28127 | O84: 44618 | P84: 34493 | Q84: 211782 | R84: 69201 | S84: 8872 | T84: 60444 | U84: 4996 | V84: 202176 | W84: 31920 | X84: 83825 | Y84: 30253 | Z84: 131363 | AA84: 448531 | AB84: 58127 | AC84: 58280 | AD84: 3646 | AE84: 71273
A85: Csongrád-Csanád | B85: megye | C85: 2017 | D85: ='[1]22.1.2.1'!S93 -> 401469 | E85: 233270 | F85: 131637 | G85: 72834 | H85: 158937 | I85: 99856 | J85: 83046 | K85: 102932 | L85: 95313 | M85: 90091 | N85: 43875 | O85: 71366 | P85: 42939 | Q85: 317791 | R85: 72394 | S85: 13805 | T85: 86987 | U85: 20746 | V85: 331429 | W85: 56094 | X85: 100526 | Y85: 45222 | Z85: 143233 | AA85: 845361 | AB85: 66170 | AC85: 75574 | AD85: 9597 | AE85: 69185
A86: Dél-Alföld | B86: régió | C86: 2017 | D86: ='[1]22.1.2.1'!S94 -> 1251924 | E86: 546288 | F86: 291756 | G86: 226147 | H86: 368143 | I86: 168445 | J86: 245830 | K86: 249294 | L86: 250009 | M86: 225892 | N86: 97266 | O86: 176432 | P86: 131453 | Q86: 854519 | R86: 231385 | S86: 38459 | T86: 220500 | U86: 69220 | V86: 866209 | W86: 131370 | X86: 275261 | Y86: 102849 | Z86: 476507 | AA86: 1969073 | AB86: 201344 | AC86: 197970 | AD86: 14746 | AE86: 217716
A87: Alföld és Észak | B87: nagyrégió | C87: 2017 | D87: ='[1]22.1.2.1'!S95 -> 3863914 | E87: 1634766 | F87: 868072 | G87: 676149 | H87: 1083075 | I87: 492502 | J87: 708570 | K87: 743842 | L87: 593034 | M87: 702130 | N87: 305181 | O87: 463986 | P87: 371941 | Q87: 2732544 | R87: 889821 | S87: 129222 | T87: 524915 | U87: 94110 | V87: 2551137 | W87: 359302 | X87: 910348 | Y87: 318276 | Z87: 1526088 | AA87: 5528607 | AB87: 539879 | AC87: 527187 | AD87: 161004 | AE87: 920236
A88: Ország összesen | B88: ország | C88: 2017 | D88: ='[1]22.1.2.1'!S96 -> 9797561 | E88: 4072921 | F88: 2583459 | G88: 1706469 | H88: 2807513 | I88: 1448333 | J88: 2033890 | K88: 2223651 | L88: 1681091 | M88: 1803158 | N88: 958629 | O88: 1417360 | P88: 1021243 | Q88: 6794947 | R88: 2705620 | S88: 341187 | T88: 1492892 | U88: 183345 | V88: 6949975 | W88: 986144 | X88: 2080015 | Y88: 886764 | Z88: 3863469 | AA88: 14713399 | AB88: 1203210 | AC88: 1809526 | AD88: 413996 | AE88: 2291995
A89: Budapest + Pest | B89: főváros, régió + megye, régió | C89: 2018 | D89: ='[1]22.1.2.1'!T68 -> 3011598 | E89: 1468292 | F89: 1027038 | G89: 496683 | H89: 899567 | I89: 553343 | J89: 774382 | K89: 880637 | L89: 656392 | M89: 607487 | N89: 424652 | O89: 548459 | P89: 366004 | Q89: 2185349 | R89: 1033924 | S89: 124998 | T89: 562829 | U89: 55703 | V89: 2311572 | W89: 318882 | X89: 585481 | Y89: 339617 | Z89: 1268967 | AA89: 5604418 | AB89: 262262 | AC89: 903113 | AD89: 166267 | AE89: 767920
A90: Közép-Magyarország | B90: nagyrégió | C90: 2018 | D90: ='[1]22.1.2.1'!T69 -> 3011598 | E90: 1468292 | F90: 1027038 | G90: 496683 | H90: 899567 | I90: 553343 | J90: 774382 | K90: 880637 | L90: 656392 | M90: 607487 | N90: 424652 | O90: 548459 | P90: 366004 | Q90: 2185349 | R90: 1033924 | S90: 124998 | T90: 562829 | U90: 55703 | V90: 2311572 | W90: 318882 | X90: 585481 | Y90: 339617 | Z90: 1268967 | AA90: 5604418 | AB90: 262262 | AC90: 903113 | AD90: 166267 | AE90: 767920
A91: Fejér | B91: megye | C91: 2018 | D91: ='[1]22.1.2.1'!T70 -> 416691 | E91: 129485 | F91: 83663 | G91: 62121 | H91: 99235 | I91: 55110 | J91: 82434 | K91: 82113 | L91: 39999 | M91: 60689 | N91: 38078 | O91: 38917 | P91: 22138 | Q91: 267002 | R91: 79188 | S91: 16437 | T91: 47525 | U91: 2427 | V91: 300030 | W91: 34909 | X91: 94050 | Y91: 28830 | Z91: 175154 | AA91: 487712 | AB91: 82164 | AC91: 49687 | AD91: 2848 | AE91: 81646
A92: Komárom-Esztergom | B92: megye | C92: 2018 | D92: ='[1]22.1.2.1'!T71 -> 297454 | E92: 87342 | F92: 70831 | G92: 38286 | H92: 66442 | I92: 35355 | J92: 46544 | K92: 53923 | L92: 51512 | M92: 42730 | N92: 16540 | O92: 38582 | P92: 11772 | Q92: 145413 | R92: 71804 | S92: 6053 | T92: 36314 | U92: 7684 | V92: 290053 | W92: 21627 | X92: 51602 | Y92: 19416 | Z92: 113560 | AA92: 286167 | AB92: 31590 | AC92: 33449 | AD92: 2083 | AE92: 52097
A93: Veszprém | B93: megye | C93: 2018 | D93: ='[1]22.1.2.1'!T72 -> 341425 | E93: 96954 | F93: 82104 | G93: 76633 | H93: 76614 | I93: 32422 | J93: 65965 | K93: 67186 | L93: 38085 | M93: 61066 | N93: 11493 | O93: 45195 | P93: 24661 | Q93: 177602 | R93: 92374 | S93: 11481 | T93: 42138 | U93: 3624 | V93: 241026 | W93: 25390 | X93: 60766 | Y93: 32689 | Z93: 117284 | AA93: 250008 | AB93: 31158 | AC93: 54300 | AD93: 29788 | AE93: 80125
A94: Közép-Dunántúl | B94: régió | C94: 2018 | D94: ='[1]22.1.2.1'!T73 -> 1055570 | E94: 313781 | F94: 236598 | G94: 177040 | H94: 242291 | I94: 122887 | J94: 194943 | K94: 203222 | L94: 129596 | M94: 164485 | N94: 66111 | O94: 122694 | P94: 58571 | Q94: 590017 | R94: 243366 | S94: 33971 | T94: 125977 | U94: 13735 | V94: 831109 | W94: 81926 | X94: 206418 | Y94: 80935 | Z94: 405998 | AA94: 1023887 | AB94: 144912 | AC94: 137436 | AD94: 34719 | AE94: 213868
A95: Győr-Moson-Sopron | B95: megye | C95: 2018 | D95: ='[1]22.1.2.1'!T74 -> 461518 | E95: 117729 | F95: 101296 | G95: 95042 | H95: 114187 | I95: 43559 | J95: 63620 | K95: 71670 | L95: 44277 | M95: 56140 | N95: 29361 | O95: 67406 | P95: 40845 | Q95: 218935 | R95: 65076 | S95: 12284 | T95: 53216 | U95: 2943 | V95: 283424 | W95: 61990 | X95: 81781 | Y95: 26677 | Z95: 171992 | AA95: 442335 | AB95: 82394 | AC95: 50509 | AD95: 7781 | AE95: 67193
A96: Vas | B96: megye | C96: 2018 | D96: ='[1]22.1.2.1'!T75 -> 253305 | E96: 79467 | F96: 54215 | G96: 30212 | H96: 60311 | I96: 24680 | J96: 34816 | K96: 49240 | L96: 27700 | M96: 32159 | N96: 11499 | O96: 33238 | P96: 33694 | Q96: 119360 | R96: 66277 | S96: 5670 | T96: 15549 | U96: 964 | V96: 143504 | W96: 23415 | X96: 22304 | Y96: 21485 | Z96: 80045 | AA96: 312453 | AB96: 35315 | AC96: 14254 | AD96: 12206 | AE96: 40810
A97: Zala | B97: megye | C97: 2018 | D97: ='[1]22.1.2.1'!T76 -> 270634 | E97: 88406 | F97: 43904 | G97: 61919 | H97: 59094 | I97: 24187 | J97: 45257 | K97: 56202 | L97: 26751 | M97: 42161 | N97: 29425 | O97: 35025 | P97: 21279 | Q97: 160400 | R97: 95508 | S97: 7990 | T97: 25586 | U97: 2075 | V97: 318649 | W97: 24039 | X97: 46870 | Y97: 26684 | Z97: 85503 | AA97: 345287 | AB97: 29700 | AC97: 43425 | AD97: 3899 | AE97: 55279
A98: Nyugat-Dunántúl | B98: régió | C98: 2018 | D98: ='[1]22.1.2.1'!T77 -> 985457 | E98: 285602 | F98: 199415 | G98: 187173 | H98: 233592 | I98: 92426 | J98: 143693 | K98: 177112 | L98: 98728 | M98: 130460 | N98: 70285 | O98: 135669 | P98: 95818 | Q98: 498695 | R98: 226861 | S98: 25944 | T98: 94351 | U98: 5982 | V98: 745577 | W98: 109444 | X98: 150955 | Y98: 74846 | Z98: 337540 | AA98: 1100075 | AB98: 147409 | AC98: 108188 | AD98: 23886 | AE98: 163282
A99: Baranya | B99: megye | C99: 2018 | D99: ='[1]22.1.2.1'!T78 -> 363721 | E99: 163363 | F99: 110643 | G99: 55441 | H99: 107076 | I99: 88158 | J99: 76684 | K99: 82918 | L99: 76811 | M99: 73591 | N99: 34538 | O99: 68270 | P99: 66024 | Q99: 361111 | R99: 94512 | S99: 12212 | T99: 84892 | U99: 3262 | V99: 225819 | W99: 46419 | X99: 101081 | Y99: 40351 | Z99: 140132 | AA99: 698080 | AB99: 54003 | AC99: 97683 | AD99: 8200 | AE99: 86330
A100: Somogy | B100: megye | C100: 2018 | D100: ='[1]22.1.2.1'!T79 -> 303802 | E100: 103631 | F100: 111081 | G100: 30344 | H100: 75713 | I100: 35354 | J100: 48406 | K100: 57370 | L100: 50069 | M100: 59286 | N100: 30849 | O100: 26912 | P100: 40548 | Q100: 180342 | R100: 54840 | S100: 7179 | T100: 35001 | U100: 1509 | V100: 164550 | W100: 25060 | X100: 60954 | Y100: 38475 | Z100: 117128 | AA100: 425906 | AB100: 58188 | AC100: 44306 | AD100: 1881 | AE100: 58971
A101: Tolna | B101: megye | C101: 2018 | D101: ='[1]22.1.2.1'!T80 -> 219317 | E101: 87346 | F101: 37325 | G101: 50100 | H101: 66175 | I101: 35347 | J101: 41009 | K101: 46767 | L101: 32830 | M101: 38187 | N101: 19594 | O101: 23996 | P101: 17162 | Q101: 123194 | R101: 36802 | S101: 8167 | T101: 18793 | U101: 3390 | V101: 93902 | W101: 19426 | X101: 33718 | Y101: 13137 | Z101: 73282 | AA101: 266024 | AB101: 21466 | AC101: 40991 | AD101: 3789 | AE101: 41441
A102: Dél-Dunántúl | B102: régió | C102: 2018 | D102: ='[1]22.1.2.1'!T81 -> 886840 | E102: 354340 | F102: 259049 | G102: 135885 | H102: 248964 | I102: 158859 | J102: 166099 | K102: 187055 | L102: 159710 | M102: 171064 | N102: 84981 | O102: 119178 | P102: 123734 | Q102: 664647 | R102: 186154 | S102: 27558 | T102: 138686 | U102: 8161 | V102: 484271 | W102: 90905 | X102: 195753 | Y102: 91963 | Z102: 330542 | AA102: 1390010 | AB102: 133657 | AC102: 182980 | AD102: 13870 | AE102: 186742
A103: Dunántúl | B103: nagyrégió | C103: 2018 | D103: ='[1]22.1.2.1'!T82 -> 2927867 | E103: 953723 | F103: 695062 | G103: 500098 | H103: 724847 | I103: 374172 | J103: 504735 | K103: 567389 | L103: 388034 | M103: 466009 | N103: 221377 | O103: 377541 | P103: 278123 | Q103: 1753359 | R103: 656381 | S103: 87473 | T103: 359014 | U103: 27878 | V103: 2060957 | W103: 282275 | X103: 553126 | Y103: 247744 | Z103: 1074080 | AA103: 3513972 | AB103: 425978 | AC103: 428604 | AD103: 72475 | AE103: 563892
A104: Borsod-Abaúj-Zemplén | B104: megye | C104: 2018 | D104: ='[1]22.1.2.1'!T83 -> 648216 | E104: 235776 | F104: 166118 | G104: 94156 | H104: 175880 | I104: 96381 | J104: 103004 | K104: 135559 | L104: 82839 | M104: 111846 | N104: 49242 | O104: 66017 | P104: 62573 | Q104: 418257 | R104: 111137 | S104: 23276 | T104: 74333 | U104: 4505 | V104: 593593 | W104: 56819 | X104: 181644 | Y104: 67774 | Z104: 246881 | AA104: 730003 | AB104: 38647 | AC104: 77205 | AD104: 24921 | AE104: 191784
A105: Heves | B105: megye | C105: 2018 | D105: ='[1]22.1.2.1'!T84 -> 295792 | E105: 98551 | F105: 66865 | G105: 33408 | H105: 88362 | I105: 21151 | J105: 35115 | K105: 47609 | L105: 25987 | M105: 59921 | N105: 28375 | O105: 30812 | P105: 20743 | Q105: 201781 | R105: 67645 | S105: 13055 | T105: 35264 | U105: 2026 | V105: 129900 | W105: 25191 | X105: 51174 | Y105: 29546 | Z105: 115911 | AA105: 392899 | AB105: 83629 | AC105: 32537 | AD105: 7711 | AE105: 68893
A106: Nógrád | B106: megye | C106: 2018 | D106: ='[1]22.1.2.1'!T85 -> 190937 | E106: 69052 | F106: 35474 | G106: 27301 | H106: 37478 | I106: 19759 | J106: 24286 | K106: 33271 | L106: 23315 | M106: 45355 | N106: 10325 | O106: 11573 | P106: 7603 | Q106: 104910 | R106: 34182 | S106: 3542 | T106: 14037 | U106: 1545 | V106: 108760 | W106: 13124 | X106: 38525 | Y106: 15177 | Z106: 65352 | AA106: 174146 | AB106: 31311 | AC106: 15241 | AD106: 1522 | AE106: 34402
A107: Észak-Magyarország | B107: régió | C107: 2018 | D107: ='[1]22.1.2.1'!T86 -> 1134945 | E107: 403379 | F107: 268457 | G107: 154865 | H107: 301720 | I107: 137291 | J107: 162405 | K107: 216439 | L107: 132141 | M107: 217122 | N107: 87942 | O107: 108402 | P107: 90919 | Q107: 724948 | R107: 212964 | S107: 39873 | T107: 123634 | U107: 8076 | V107: 832253 | W107: 95134 | X107: 271343 | Y107: 112497 | Z107: 428144 | AA107: 1297048 | AB107: 153587 | AC107: 124983 | AD107: 34154 | AE107: 295079
A108: Hajdú-Bihar | B108: megye | C108: 2018 | D108: ='[1]22.1.2.1'!T87 -> 530464 | E108: 309089 | F108: 142236 | G108: 111726 | H108: 189697 | I108: 76337 | J108: 119760 | K108: 125044 | L108: 72758 | M108: 120194 | N108: 59257 | O108: 68685 | P108: 90694 | Q108: 515143 | R108: 138931 | S108: 26382 | T108: 70188 | U108: 7420 | V108: 385183 | W108: 50180 | X108: 169626 | Y108: 53756 | Z108: 259996 | AA108: 997879 | AB108: 72271 | AC108: 64643 | AD108: 77143 | AE108: 102616
A109: Jász-Nagykun-Szolnok | B109: megye | C109: 2018 | D109: ='[1]22.1.2.1'!T88 -> 371271 | E109: 143457 | F109: 83694 | G109: 61300 | H109: 82272 | I109: 25305 | J109: 68839 | K109: 46755 | L109: 56547 | M109: 50512 | N109: 19389 | O109: 51788 | P109: 25537 | Q109: 228696 | R109: 172171 | S109: 6839 | T109: 38080 | U109: 2277 | V109: 234939 | W109: 21881 | X109: 64296 | Y109: 8298 | Z109: 149088 | AA109: 541956 | AB109: 63533 | AC109: 49353 | AD109: 8835 | AE109: 115245
A110: Szabolcs-Szatmár-Bereg | B110: megye | C110: 2018 | D110: ='[1]22.1.2.1'!T89 -> 558361 | E110: 223428 | F110: 73311 | G110: 110098 | H110: 110099 | I110: 80724 | J110: 97278 | K110: 86989 | L110: 65000 | M110: 73956 | N110: 38252 | O110: 56616 | P110: 36608 | Q110: 351368 | R110: 118269 | S110: 18091 | T110: 66792 | U110: 7088 | V110: 209497 | W110: 49496 | X110: 109487 | Y110: 48369 | Z110: 205512 | AA110: 777165 | AB110: 63396 | AC110: 63408 | AD110: 24976 | AE110: 161236
A111: Észak-Alföld | B111: régió | C111: 2018 | D111: ='[1]22.1.2.1'!T90 -> 1460096 | E111: 675974 | F111: 299241 | G111: 283124 | H111: 382068 | I111: 182366 | J111: 285877 | K111: 258788 | L111: 194305 | M111: 244662 | N111: 116898 | O111: 177089 | P111: 152839 | Q111: 1095207 | R111: 429371 | S111: 51312 | T111: 175060 | U111: 16785 | V111: 829619 | W111: 121557 | X111: 343409 | Y111: 110423 | Z111: 614596 | AA111: 2317000 | AB111: 199200 | AC111: 177404 | AD111: 110954 | AE111: 379097
A112: Bács-Kiskun | B112: megye | C112: 2018 | D112: ='[1]22.1.2.1'!T91 -> 505602 | E112: 181734 | F112: 83579 | G112: 107604 | H112: 120499 | I112: 31700 | J112: 69585 | K112: 78714 | L112: 91476 | M112: 72072 | N112: 24165 | O112: 57033 | P112: 59492 | Q112: 314052 | R112: 83274 | S112: 14889 | T112: 70741 | U112: 55223 | V112: 326412 | W112: 40290 | X112: 88338 | Y112: 28834 | Z112: 200362 | AA112: 602094 | AB112: 80120 | AC112: 61356 | AD112: 1564 | AE112: 79474
A113: Békés | B113: megye | C113: 2018 | D113: ='[1]22.1.2.1'!T92 -> 338025 | E113: 117578 | F113: 74117 | G113: 42066 | H113: 79944 | I113: 35399 | J113: 91248 | K113: 59816 | L113: 51259 | M113: 59812 | N113: 25435 | O113: 45138 | P113: 37136 | Q113: 216801 | R113: 65155 | S113: 9404 | T113: 58903 | U113: 4802 | V113: 198196 | W113: 31116 | X113: 81994 | Y113: 30152 | Z113: 126843 | AA113: 448296 | AB113: 59762 | AC113: 56145 | AD113: 3543 | AE113: 67537
A114: Csongrád-Csanád | B114: megye | C114: 2018 | D114: ='[1]22.1.2.1'!T93 -> 400238 | E114: 228723 | F114: 135052 | G114: 70143 | H114: 151073 | I114: 93076 | J114: 82840 | K114: 100877 | L114: 87678 | M114: 90294 | N114: 41421 | O114: 72106 | P114: 41492 | Q114: 288014 | R114: 69267 | S114: 14283 | T114: 85853 | U114: 19095 | V114: 324014 | W114: 54697 | X114: 100674 | Y114: 47551 | Z114: 143229 | AA114: 819756 | AB114: 67872 | AC114: 74827 | AD114: 9954 | AE114: 68683
A115: Dél-Alföld | B115: régió | C115: 2018 | D115: ='[1]22.1.2.1'!T94 -> 1243865 | E115: 528035 | F115: 292748 | G115: 219813 | H115: 351516 | I115: 160175 | J115: 243673 | K115: 239407 | L115: 230413 | M115: 222178 | N115: 91021 | O115: 174277 | P115: 138120 | Q115: 818867 | R115: 217696 | S115: 38576 | T115: 215497 | U115: 79120 | V115: 848622 | W115: 126103 | X115: 271006 | Y115: 106537 | Z115: 470434 | AA115: 1870146 | AB115: 207754 | AC115: 192328 | AD115: 15061 | AE115: 215694
A116: Alföld és Észak | B116: nagyrégió | C116: 2018 | D116: ='[1]22.1.2.1'!T95 -> 3838906 | E116: 1607388 | F116: 860446 | G116: 657802 | H116: 1035304 | I116: 479832 | J116: 691955 | K116: 714634 | L116: 556859 | M116: 683962 | N116: 295861 | O116: 459768 | P116: 381878 | Q116: 2639022 | R116: 860031 | S116: 129761 | T116: 514191 | U116: 103981 | V116: 2510494 | W116: 342794 | X116: 885758 | Y116: 329457 | Z116: 1513174 | AA116: 5484194 | AB116: 560541 | AC116: 494715 | AD116: 160169 | AE116: 889870
A117: Ország összesen | B117: ország | C117: 2018 | D117: ='[1]22.1.2.1'!T96 -> 9778371 | E117: 4029403 | F117: 2582546 | G117: 1654583 | H117: 2659718 | I117: 1407347 | J117: 1971072 | K117: 2162660 | L117: 1601285 | M117: 1757458 | N117: 941890 | O117: 1385768 | P117: 1026005 | Q117: 6577730 | R117: 2550336 | S117: 342232 | T117: 1436034 | U117: 187562 | V117: 6883023 | W117: 943951 | X117: 2024365 | Y117: 916818 | Z117: 3856221 | AA117: 14602584 | AB117: 1248781 | AC117: 1826432 | AD117: 398911 | AE117: 2221682
A118: Budapest + Pest | B118: főváros, régió + megye, régió | C118: 2019 | D118: ='[1]22.1.2.1'!U68 -> 3031160 | E118: 1445113 | F118: 1016314 | G118: 489287 | H118: 877333 | I118: 548663 | J118: 761157 | K118: 864364 | L118: 638755 | M118: 601560 | N118: 419938 | O118: 537373 | P118: 369662 | Q118: 2134432 | R118: 1002923 | S118: 125933 | T118: 554108 | U118: 51923 | V118: 2342666 | W118: 311437 | X118: 592127 | Y118: 351982 | Z118: 1256714 | AA118: 5647901 | AB118: 256016 | AC118: 957766 | AD118: 163533 | AE118: 771074
A119: Közép-Magyarország | B119: nagyrégió | C119: 2019 | D119: ='[1]22.1.2.1'!U69 -> 3031160 | E119: 1445113 | F119: 1016314 | G119: 489287 | H119: 877333 | I119: 548663 | J119: 761157 | K119: 864364 | L119: 638755 | M119: 601560 | N119: 419938 | O119: 537373 | P119: 369662 | Q119: 2134432 | R119: 1002923 | S119: 125933 | T119: 554108 | U119: 51923 | V119: 2342666 | W119: 311437 | X119: 592127 | Y119: 351982 | Z119: 1256714 | AA119: 5647901 | AB119: 256016 | AC119: 957766 | AD119: 163533 | AE119: 771074
A120: Fejér | B120: megye | C120: 2019 | D120: ='[1]22.1.2.1'!U70 -> 417712 | E120: 128062 | F120: 81549 | G120: 69004 | H120: 96264 | I120: 51340 | J120: 78493 | K120: 80281 | L120: 37283 | M120: 62600 | N120: 38180 | O120: 39873 | P120: 21426 | Q120: 252857 | R120: 78527 | S120: 17586 | T120: 49650 | U120: 2114 | V120: 293581 | W120: 34443 | X120: 87336 | Y120: 29080 | Z120: 173075 | AA120: 490952 | AB120: 75964 | AC120: 50190 | AD120: 3363 | AE120: 69988
A121: Komárom-Esztergom | B121: megye | C121: 2019 | D121: ='[1]22.1.2.1'!U71 -> 299207 | E121: 85485 | F121: 69588 | G121: 39775 | H121: 67211 | I121: 36439 | J121: 48693 | K121: 53035 | L121: 50368 | M121: 42661 | N121: 17099 | O121: 40187 | P121: 12285 | Q121: 135288 | R121: 71833 | S121: 6283 | T121: 37122 | U121: 6468 | V121: 303957 | W121: 21510 | X121: 52407 | Y121: 21113 | Z121: 115982 | AA121: 296260 | AB121: 33243 | AC121: 32012 | AD121: 2053 | AE121: 52010
A122: Veszprém | B122: megye | C122: 2019 | D122: ='[1]22.1.2.1'!U72 -> 341317 | E122: 98881 | F122: 85829 | G122: 69694 | H122: 72413 | I122: 30445 | J122: 66523 | K122: 67354 | L122: 37138 | M122: 62230 | N122: 10969 | O122: 46058 | P122: 25427 | Q122: 174875 | R122: 95283 | S122: 11267 | T122: 40125 | U122: 3702 | V122: 258697 | W122: 25347 | X122: 60289 | Y122: 34104 | Z122: 121472 | AA122: 249660 | AB122: 37950 | AC122: 55790 | AD122: 32419 | AE122: 80763
A123: Közép-Dunántúl | B123: régió | C123: 2019 | D123: ='[1]22.1.2.1'!U73 -> 1058236 | E123: 312428 | F123: 236966 | G123: 178473 | H123: 235888 | I123: 118224 | J123: 193709 | K123: 200670 | L123: 124789 | M123: 167491 | N123: 66248 | O123: 126118 | P123: 59138 | Q123: 563020 | R123: 245643 | S123: 35136 | T123: 126897 | U123: 12284 | V123: 856235 | W123: 81300 | X123: 200032 | Y123: 84297 | Z123: 410529 | AA123: 1036872 | AB123: 147157 | AC123: 137992 | AD123: 37835 | AE123: 202761
A124: Győr-Moson-Sopron | B124: megye | C124: 2019 | D124: ='[1]22.1.2.1'!U74 -> 467144 | E124: 121529 | F124: 101647 | G124: 95002 | H124: 112485 | I124: 44327 | J124: 62586 | K124: 72161 | L124: 42955 | M124: 54747 | N124: 33152 | O124: 68424 | P124: 44180 | Q124: 226769 | R124: 63146 | S124: 11942 | T124: 55284 | U124: 2912 | V124: 274729 | W124: 59578 | X124: 82899 | Y124: 27628 | Z124: 175801 | AA124: 455030 | AB124: 79483 | AC124: 51465 | AD124: 8929 | AE124: 68729
A125: Vas | B125: megye | C125: 2019 | D125: ='[1]22.1.2.1'!U75 -> 253551 | E125: 80820 | F125: 56218 | G125: 35385 | H125: 56753 | I125: 24090 | J125: 32368 | K125: 53233 | L125: 30347 | M125: 29209 | N125: 12053 | O125: 33235 | P125: 36216 | Q125: 117817 | R125: 68043 | S125: 6490 | T125: 13891 | U125: 1156 | V125: 143256 | W125: 22288 | X125: 21855 | Y125: 21526 | Z125: 79639 | AA125: 317207 | AB125: 28172 | AC125: 14097 | AD125: 12504 | AE125: 42628
A126: Zala | B126: megye | C126: 2019 | D126: ='[1]22.1.2.1'!U76 -> 268648 | E126: 87568 | F126: 45432 | G126: 53469 | H126: 58078 | I126: 25652 | J126: 43914 | K126: 53938 | L126: 25807 | M126: 41492 | N126: 28721 | O126: 33823 | P126: 21445 | Q126: 153127 | R126: 94611 | S126: 8338 | T126: 25569 | U126: 1947 | V126: 314772 | W126: 24234 | X126: 47495 | Y126: 27688 | Z126: 87718 | AA126: 343968 | AB126: 39261 | AC126: 46114 | AD126: 3791 | AE126: 54558
A127: Nyugat-Dunántúl | B127: régió | C127: 2019 | D127: ='[1]22.1.2.1'!U77 -> 989343 | E127: 289917 | F127: 203297 | G127: 183856 | H127: 227316 | I127: 94069 | J127: 138868 | K127: 179332 | L127: 99109 | M127: 125448 | N127: 73926 | O127: 135482 | P127: 101841 | Q127: 497713 | R127: 225800 | S127: 26770 | T127: 94744 | U127: 6015 | V127: 732757 | W127: 106100 | X127: 152249 | Y127: 76842 | Z127: 343158 | AA127: 1116205 | AB127: 146916 | AC127: 111676 | AD127: 25224 | AE127: 165915
A128: Baranya | B128: megye | C128: 2019 | D128: ='[1]22.1.2.1'!U78 -> 360704 | E128: 157258 | F128: 114372 | G128: 52019 | H128: 105616 | I128: 86674 | J128: 72058 | K128: 80247 | L128: 76538 | M128: 71449 | N128: 35183 | O128: 67650 | P128: 67740 | Q128: 367820 | R128: 91426 | S128: 11554 | T128: 81395 | U128: 2954 | V128: 229427 | W128: 46442 | X128: 97297 | Y128: 41426 | Z128: 140446 | AA128: 690606 | AB128: 47313 | AC128: 99432 | AD128: 7909 | AE128: 83830
A129: Somogy | B129: megye | C129: 2019 | D129: ='[1]22.1.2.1'!U79 -> 301429 | E129: 104804 | F129: 112399 | G129: 29348 | H129: 77705 | I129: 34485 | J129: 46495 | K129: 57041 | L129: 47334 | M129: 60025 | N129: 30117 | O129: 26287 | P129: 41201 | Q129: 183015 | R129: 54357 | S129: 6520 | T129: 35416 | U129: 1424 | V129: 164129 | W129: 24312 | X129: 59268 | Y129: 37581 | Z129: 111963 | AA129: 425905 | AB129: 50332 | AC129: 45651 | AD129: 1996 | AE129: 55645
A130: Tolna | B130: megye | C130: 2019 | D130: ='[1]22.1.2.1'!U80 -> 217463 | E130: 84754 | F130: 40707 | G130: 58041 | H130: 63924 | I130: 36660 | J130: 40044 | K130: 45963 | L130: 34546 | M130: 38082 | N130: 20542 | O130: 23452 | P130: 17620 | Q130: 120771 | R130: 35231 | S130: 8331 | T130: 18375 | U130: 3221 | V130: 96832 | W130: 20112 | X130: 35345 | Y130: 13083 | Z130: 72813 | AA130: 279017 | AB130: 11435 | AC130: 40310 | AD130: 3859 | AE130: 41806
A131: Dél-Dunántúl | B131: régió | C131: 2019 | D131: ='[1]22.1.2.1'!U81 -> 879596 | E131: 346816 | F131: 267478 | G131: 139408 | H131: 247245 | I131: 157819 | J131: 158597 | K131: 183251 | L131: 158418 | M131: 169556 | N131: 85842 | O131: 117389 | P131: 126561 | Q131: 671606 | R131: 181014 | S131: 26405 | T131: 135186 | U131: 7599 | V131: 490388 | W131: 90866 | X131: 191910 | Y131: 92090 | Z131: 325222 | AA131: 1395528 | AB131: 109080 | AC131: 185393 | AD131: 13764 | AE131: 181281
A132: Dunántúl | B132: nagyrégió | C132: 2019 | D132: ='[1]22.1.2.1'!U82 -> 2927175 | E132: 949161 | F132: 707741 | G132: 501737 | H132: 710449 | I132: 370112 | J132: 491174 | K132: 563253 | L132: 382316 | M132: 462495 | N132: 226016 | O132: 378989 | P132: 287540 | Q132: 1732339 | R132: 652457 | S132: 88311 | T132: 356827 | U132: 25898 | V132: 2079380 | W132: 278266 | X132: 544191 | Y132: 253229 | Z132: 1078909 | AA132: 3548605 | AB132: 403153 | AC132: 435061 | AD132: 76823 | AE132: 549957
A133: Borsod-Abaúj-Zemplén | B133: megye | C133: 2019 | D133: ='[1]22.1.2.1'!U83 -> 642447 | E133: 231746 | F133: 165501 | G133: 93587 | H133: 171543 | I133: 94100 | J133: 105692 | K133: 133203 | L133: 78165 | M133: 104706 | N133: 49382 | O133: 64360 | P133: 64484 | Q133: 418109 | R133: 102853 | S133: 23303 | T133: 73810 | U133: 4463 | V133: 610807 | W133: 56043 | X133: 180407 | Y133: 69431 | Z133: 243730 | AA133: 740205 | AB133: 41236 | AC133: 71308 | AD133: 24380 | AE133: 192601
A134: Heves | B134: megye | C134: 2019 | D134: ='[1]22.1.2.1'!U84 -> 294609 | E134: 94925 | F134: 64266 | G134: 40013 | H134: 87345 | I134: 21126 | J134: 34336 | K134: 45870 | L134: 25306 | M134: 61409 | N134: 28787 | O134: 30841 | P134: 21263 | Q134: 193798 | R134: 66377 | S134: 13367 | T134: 33072 | U134: 2206 | V134: 135032 | W134: 24802 | X134: 52243 | Y134: 30287 | Z134: 117780 | AA134: 397146 | AB134: 76746 | AC134: 32987 | AD134: 7386 | AE134: 64450
A135: Nógrád | B135: megye | C135: 2019 | D135: ='[1]22.1.2.1'!U85 -> 189304 | E135: 68356 | F135: 34827 | G135: 27449 | H135: 37575 | I135: 18873 | J135: 24573 | K135: 33406 | L135: 23145 | M135: 44879 | N135: 10806 | O135: 11720 | P135: 7729 | Q135: 106884 | R135: 32017 | S135: 3671 | T135: 12622 | U135: 1330 | V135: 116490 | W135: 13981 | X135: 37949 | Y135: 16660 | Z135: 64643 | AA135: 176431 | AB135: 31211 | AC135: 16245 | AD135: 1673 | AE135: 35702
A136: Észak-Magyarország | B136: régió | C136: 2019 | D136: ='[1]22.1.2.1'!U86 -> 1126360 | E136: 395027 | F136: 264594 | G136: 161049 | H136: 296463 | I136: 134099 | J136: 164601 | K136: 212479 | L136: 126616 | M136: 210994 | N136: 88975 | O136: 106921 | P136: 93476 | Q136: 718791 | R136: 201247 | S136: 40341 | T136: 119504 | U136: 7999 | V136: 862329 | W136: 94826 | X136: 270599 | Y136: 116378 | Z136: 426153 | AA136: 1313782 | AB136: 149193 | AC136: 120540 | AD136: 33439 | AE136: 292753
A137: Hajdú-Bihar | B137: megye | C137: 2019 | D137: ='[1]22.1.2.1'!U87 -> 527989 | E137: 305432 | F137: 138387 | G137: 113659 | H137: 187987 | I137: 73947 | J137: 116501 | K137: 117165 | L137: 73543 | M137: 117659 | N137: 57435 | O137: 66765 | P137: 89474 | Q137: 497245 | R137: 134005 | S137: 26649 | T137: 69751 | U137: 6860 | V137: 405066 | W137: 50305 | X137: 168199 | Y137: 56194 | Z137: 255189 | AA137: 999179 | AB137: 72499 | AC137: 61037 | AD137: 67568 | AE137: 93931
A138: Jász-Nagykun-Szolnok | B138: megye | C138: 2019 | D138: ='[1]22.1.2.1'!U88 -> 370007 | E138: 142431 | F138: 81009 | G138: 63369 | H138: 79469 | I138: 25385 | J138: 66001 | K138: 46623 | L138: 49699 | M138: 46805 | N138: 17844 | O138: 50835 | P138: 25269 | Q138: 214257 | R138: 169718 | S138: 6962 | T138: 37743 | U138: 2228 | V138: 230081 | W138: 21477 | X138: 62900 | Y138: 8453 | Z138: 148149 | AA138: 530194 | AB138: 61589 | AC138: 47671 | AD138: 8522 | AE138: 108808
A139: Szabolcs-Szatmár-Bereg | B139: megye | C139: 2019 | D139: ='[1]22.1.2.1'!U89 -> 552964 | E139: 223442 | F139: 74874 | G139: 113474 | H139: 110408 | I139: 79200 | J139: 94753 | K139: 84698 | L139: 64111 | M139: 69383 | N139: 38519 | O139: 54513 | P139: 38153 | Q139: 344655 | R139: 110981 | S139: 18495 | T139: 62608 | U139: 6835 | V139: 210618 | W139: 49997 | X139: 109245 | Y139: 53827 | Z139: 207282 | AA139: 792249 | AB139: 86645 | AC139: 64114 | AD139: 25807 | AE139: 156735
A140: Észak-Alföld | B140: régió | C140: 2019 | D140: ='[1]22.1.2.1'!U90 -> 1450960 | E140: 671305 | F140: 294270 | G140: 290502 | H140: 377864 | I140: 178532 | J140: 277255 | K140: 248486 | L140: 187353 | M140: 233847 | N140: 113798 | O140: 172113 | P140: 152896 | Q140: 1056157 | R140: 414704 | S140: 52106 | T140: 170102 | U140: 15923 | V140: 845765 | W140: 121779 | X140: 340344 | Y140: 118474 | Z140: 610620 | AA140: 2321622 | AB140: 220733 | AC140: 172822 | AD140: 101897 | AE140: 359474
A141: Bács-Kiskun | B141: megye | C141: 2019 | D141: ='[1]22.1.2.1'!U91 -> 503825 | E141: 167671 | F141: 81593 | G141: 114552 | H141: 117246 | I141: 32555 | J141: 68080 | K141: 81057 | L141: 89287 | M141: 72291 | N141: 24400 | O141: 55368 | P141: 59860 | Q141: 310148 | R141: 79318 | S141: 14134 | T141: 70352 | U141: 65516 | V141: 327227 | W141: 40334 | X141: 90529 | Y141: 31532 | Z141: 203865 | AA141: 662729 | AB141: 79780 | AC141: 61571 | AD141: 1801 | AE141: 74256
A142: Békés | B142: megye | C142: 2019 | D142: ='[1]22.1.2.1'!U92 -> 334264 | E142: 116666 | F142: 74458 | G142: 41628 | H142: 76251 | I142: 34650 | J142: 88233 | K142: 56139 | L142: 45195 | M142: 60503 | N142: 24094 | O142: 44692 | P142: 34366 | Q142: 211847 | R142: 64517 | S142: 9838 | T142: 59357 | U142: 4407 | V142: 196580 | W142: 29567 | X142: 82035 | Y142: 31220 | Z142: 125902 | AA142: 451132 | AB142: 59921 | AC142: 54148 | AD142: 3604 | AE142: 69761
A143: Csongrád-Csanád | B143: megye | C143: 2019 | D143: ='[1]22.1.2.1'!U93 -> 399012 | E143: 225378 | F143: 136354 | G143: 67014 | H143: 149619 | I143: 88557 | J143: 80066 | K143: 100583 | L143: 82192 | M143: 87792 | N143: 42037 | O143: 73727 | P143: 44239 | Q143: 290950 | R143: 70508 | S143: 14620 | T143: 82471 | U143: 21419 | V143: 327038 | W143: 52891 | X143: 99718 | Y143: 46215 | Z143: 142080 | AA143: 841738 | AB143: 63124 | AC143: 73825 | AD143: 10733 | AE143: 68151
A144: Dél-Alföld | B144: régió | C144: 2019 | D144: ='[1]22.1.2.1'!U94 -> 1237101 | E144: 509715 | F144: 292405 | G144: 223194 | H144: 343116 | I144: 155762 | J144: 236379 | K144: 237779 | L144: 216674 | M144: 220586 | N144: 90531 | O144: 173787 | P144: 138465 | Q144: 812945 | R144: 214343 | S144: 38592 | T144: 212180 | U144: 91342 | V144: 850845 | W144: 122792 | X144: 272282 | Y144: 108967 | Z144: 471847 | AA144: 1955599 | AB144: 202825 | AC144: 189544 | AD144: 16138 | AE144: 212168
A145: Alföld és Észak | B145: nagyrégió | C145: 2019 | D145: ='[1]22.1.2.1'!U95 -> 3814421 | E145: 1576047 | F145: 851269 | G145: 674745 | H145: 1017443 | I145: 468393 | J145: 678235 | K145: 698744 | L145: 530643 | M145: 665427 | N145: 293304 | O145: 452821 | P145: 384837 | Q145: 2587893 | R145: 830294 | S145: 131039 | T145: 501786 | U145: 115264 | V145: 2558939 | W145: 339397 | X145: 883225 | Y145: 343819 | Z145: 1508620 | AA145: 5591003 | AB145: 572751 | AC145: 482906 | AD145: 151474 | AE145: 864395
A146: Ország összesen | B146: ország | C146: 2019 | D146: ='[1]22.1.2.1'!U96 -> 9772756 | E146: 3970321 | F146: 2575324 | G146: 1665769 | H146: 2605225 | I146: 1387168 | J146: 1930566 | K146: 2126361 | L146: 1551714 | M146: 1729482 | N146: 939258 | O146: 1369183 | P146: 1042039 | Q146: 6454664 | R146: 2485674 | S146: 345283 | T146: 1412721 | U146: 193085 | V146: 6980985 | W146: 929100 | X146: 2019543 | Y146: 949030 | Z146: 3844243 | AA146: 14787509 | AB146: 1231920 | AC146: 1875733 | AD146: 391830 | AE146: 2185426
A147: Budapest + Pest | B147: főváros, régió + megye, régió | C147: 2020 | D147: ='[1]22.1.2.1'!V68 -> 3047318 | E147: 1165026 | F147: 760304 | G147: 378183 | H147: 719846 | I147: 402617 | J147: 521877 | K147: 644655 | L147: 471262 | M147: 506622 | N147: 289674 | O147: 430077 | P147: 308098 | Q147: 1344698 | R147: 684956 | S147: 91727 | T147: 546682 | U147: 35145 | V147: 1441705 | W147: 239375 | X147: 438236 | Y147: 294916 | Z147: 907531 | AA147: 4557628 | AB147: 231622 | AC147: 743306 | AD147: 101714 | AE147: 602318
A148: Közép-Magyarország | B148: nagyrégió | C148: 2020 | D148: ='[1]22.1.2.1'!V69 -> 3047318 | E148: 1165026 | F148: 760304 | G148: 378183 | H148: 719846 | I148: 402617 | J148: 521877 | K148: 644655 | L148: 471262 | M148: 506622 | N148: 289674 | O148: 430077 | P148: 308098 | Q148: 1344698 | R148: 684956 | S148: 91727 | T148: 546682 | U148: 35145 | V148: 1441705 | W148: 239375 | X148: 438236 | Y148: 294916 | Z148: 907531 | AA148: 4557628 | AB148: 231622 | AC148: 743306 | AD148: 101714 | AE148: 602318
A149: Fejér | B149: megye | C149: 2020 | D149: ='[1]22.1.2.1'!V70 -> 418603 | E149: 97490 | F149: 60692 | G149: 58295 | H149: 78658 | I149: 34356 | J149: 57043 | K149: 60465 | L149: 25855 | M149: 51821 | N149: 25304 | O149: 31147 | P149: 20598 | Q149: 148357 | R149: 53556 | S149: 12321 | T149: 47899 | U149: 1593 | V149: 188572 | W149: 25782 | X149: 67840 | Y149: 25526 | Z149: 131868 | AA149: 366796 | AB149: 60542 | AC149: 32046 | AD149: 2176 | AE149: 52460
A150: Komárom-Esztergom | B150: megye | C150: 2020 | D150: ='[1]22.1.2.1'!V71 -> 300995 | E150: 66667 | F150: 51522 | G150: 30754 | H150: 54204 | I150: 23330 | J150: 37272 | K150: 41453 | L150: 32039 | M150: 35408 | N150: 12178 | O150: 30857 | P150: 11110 | Q150: 78020 | R150: 47894 | S150: 4329 | T150: 36593 | U150: 5481 | V150: 185173 | W150: 15236 | X150: 39041 | Y150: 18192 | Z150: 82587 | AA150: 226672 | AB150: 30086 | AC150: 22714 | AD150: 1776 | AE150: 38821
A151: Veszprém | B151: megye | C151: 2020 | D151: ='[1]22.1.2.1'!V72 -> 341157 | E151: 81469 | F151: 64507 | G151: 48917 | H151: 55069 | I151: 21206 | J151: 46448 | K151: 45927 | L151: 27759 | M151: 53550 | N151: 7019 | O151: 34166 | P151: 25545 | Q151: 107788 | R151: 68150 | S151: 4611 | T151: 37858 | U151: 2957 | V151: 146057 | W151: 19469 | X151: 46526 | Y151: 28651 | Z151: 88853 | AA151: 190969 | AB151: 38091 | AC151: 42966 | AD151: 21196 | AE151: 45855
A152: Közép-Dunántúl | B152: régió | C152: 2020 | D152: ='[1]22.1.2.1'!V73 -> 1060755 | E152: 245626 | F152: 176721 | G152: 137966 | H152: 187931 | I152: 78892 | J152: 140763 | K152: 147845 | L152: 85653 | M152: 140779 | N152: 44501 | O152: 96170 | P152: 57253 | Q152: 334165 | R152: 169600 | S152: 21261 | T152: 122350 | U152: 10031 | V152: 519802 | W152: 60487 | X152: 153407 | Y152: 72369 | Z152: 303308 | AA152: 784437 | AB152: 128719 | AC152: 97726 | AD152: 25148 | AE152: 137136
A153: Győr-Moson-Sopron | B153: megye | C153: 2020 | D153: ='[1]22.1.2.1'!V74 -> 473141 | E153: 96393 | F153: 74406 | G153: 75184 | H153: 99322 | I153: 29908 | J153: 42927 | K153: 49736 | L153: 28973 | M153: 44750 | N153: 21360 | O153: 53968 | P153: 38254 | Q153: 132758 | R153: 47967 | S153: 8250 | T153: 50450 | U153: 2375 | V153: 160444 | W153: 43895 | X153: 63741 | Y153: 23820 | Z153: 126679 | AA153: 350131 | AB153: 65811 | AC153: 39932 | AD153: 6337 | AE153: 51606
A154: Vas | B154: megye | C154: 2020 | D154: ='[1]22.1.2.1'!V75 -> 254137 | E154: 66305 | F154: 43239 | G154: 27471 | H154: 49046 | I154: 17624 | J154: 21768 | K154: 41423 | L154: 20076 | M154: 23062 | N154: 8617 | O154: 24643 | P154: 31273 | Q154: 79179 | R154: 43760 | S154: 3758 | T154: 12338 | U154: 917 | V154: 86008 | W154: 15964 | X154: 14382 | Y154: 17193 | Z154: 57173 | AA154: 242538 | AB154: 22825 | AC154: 11171 | AD154: 7867 | AE154: 32895
A155: Zala | B155: megye | C155: 2020 | D155: ='[1]22.1.2.1'!V76 -> 267271 | E155: 64918 | F155: 31633 | G155: 37415 | H155: 49509 | I155: 18519 | J155: 27501 | K155: 38301 | L155: 14547 | M155: 33051 | N155: 16846 | O155: 26155 | P155: 20921 | Q155: 84853 | R155: 59680 | S155: 5092 | T155: 24371 | U155: 1450 | V155: 182081 | W155: 16727 | X155: 36424 | Y155: 24393 | Z155: 66865 | AA155: 260235 | AB155: 38308 | AC155: 32909 | AD155: 2165 | AE155: 40198
A156: Nyugat-Dunántúl | B156: régió | C156: 2020 | D156: ='[1]22.1.2.1'!V77 -> 994549 | E156: 227616 | F156: 149278 | G156: 140070 | H156: 197877 | I156: 66051 | J156: 92196 | K156: 129460 | L156: 63596 | M156: 100863 | N156: 46823 | O156: 104766 | P156: 90448 | Q156: 296790 | R156: 151407 | S156: 17100 | T156: 87159 | U156: 4742 | V156: 428533 | W156: 76586 | X156: 114547 | Y156: 65406 | Z156: 250717 | AA156: 852904 | AB156: 126944 | AC156: 84012 | AD156: 16369 | AE156: 124699
A157: Baranya | B157: megye | C157: 2020 | D157: ='[1]22.1.2.1'!V78 -> 359109 | E157: 113911 | F157: 84724 | G157: 37596 | H157: 87066 | I157: 60668 | J157: 45991 | K157: 57668 | L157: 51943 | M157: 58113 | N157: 25145 | O157: 53282 | P157: 61273 | Q157: 233957 | R157: 65257 | S157: 8370 | T157: 77523 | U157: 2052 | V157: 142570 | W157: 32210 | X157: 68245 | Y157: 34939 | Z157: 101539 | AA157: 528737 | AB157: 44792 | AC157: 72440 | AD157: 5754 | AE157: 58950
A158: Somogy | B158: megye | C158: 2020 | D158: ='[1]22.1.2.1'!V79 -> 299950 | E158: 84499 | F158: 86100 | G158: 22987 | H158: 67496 | I158: 25613 | J158: 30880 | K158: 45212 | L158: 34610 | M158: 58459 | N158: 21565 | O158: 21117 | P158: 40267 | Q158: 109219 | R158: 40109 | S158: 4385 | T158: 28772 | U158: 1140 | V158: 100947 | W158: 18610 | X158: 46670 | Y158: 34422 | Z158: 81351 | AA158: 332301 | AB158: 43820 | AC158: 34107 | AD158: 1419 | AE158: 43536
A159: Tolna | B159: megye | C159: 2020 | D159: ='[1]22.1.2.1'!V80 -> 215514 | E159: 69349 | F159: 30053 | G159: 46226 | H159: 48896 | I159: 25625 | J159: 25651 | K159: 33877 | L159: 24356 | M159: 32613 | N159: 14994 | O159: 17781 | P159: 16226 | Q159: 73393 | R159: 24536 | S159: 5570 | T159: 17670 | U159: 1714 | V159: 54505 | W159: 12249 | X159: 25834 | Y159: 10733 | Z159: 51823 | AA159: 208384 | AB159: 11058 | AC159: 30570 | AD159: 2251 | AE159: 32436
A160: Dél-Dunántúl | B160: régió | C160: 2020 | D160: ='[1]22.1.2.1'!V81 -> 874573 | E160: 267759 | F160: 200877 | G160: 106809 | H160: 203458 | I160: 111906 | J160: 102522 | K160: 136757 | L160: 110909 | M160: 149185 | N160: 61704 | O160: 92180 | P160: 117766 | Q160: 416569 | R160: 129902 | S160: 18325 | T160: 123965 | U160: 4906 | V160: 298022 | W160: 63069 | X160: 140749 | Y160: 80094 | Z160: 234713 | AA160: 1069422 | AB160: 99670 | AC160: 137117 | AD160: 9424 | AE160: 134922
A161: Dunántúl | B161: nagyrégió | C161: 2020 | D161: ='[1]22.1.2.1'!V82 -> 2929877 | E161: 741001 | F161: 526876 | G161: 384845 | H161: 589266 | I161: 256849 | J161: 335481 | K161: 414062 | L161: 260158 | M161: 390827 | N161: 153028 | O161: 293116 | P161: 265467 | Q161: 1047524 | R161: 450909 | S161: 56686 | T161: 333474 | U161: 19679 | V161: 1246357 | W161: 200142 | X161: 408703 | Y161: 217869 | Z161: 788738 | AA161: 2706763 | AB161: 355333 | AC161: 318855 | AD161: 50941 | AE161: 396757
A162: Borsod-Abaúj-Zemplén | B162: megye | C162: 2020 | D162: ='[1]22.1.2.1'!V83 -> 637064 | E162: 177645 | F162: 120409 | G162: 75184 | H162: 149215 | I162: 65119 | J162: 67791 | K162: 95901 | L162: 57943 | M162: 83133 | N162: 34331 | O162: 52164 | P162: 58199 | Q162: 269478 | R162: 73056 | S162: 15921 | T162: 65444 | U162: 3613 | V162: 378012 | W162: 41902 | X162: 137597 | Y162: 61969 | Z162: 185039 | AA162: 584006 | AB162: 43120 | AC162: 57724 | AD162: 18918 | AE162: 141611
A163: Heves | B163: megye | C163: 2020 | D163: ='[1]22.1.2.1'!V84 -> 293421 | E163: 76459 | F163: 46252 | G163: 27439 | H163: 72573 | I163: 14853 | J163: 22604 | K163: 33952 | L163: 15064 | M163: 52045 | N163: 20071 | O163: 21071 | P163: 16721 | Q163: 117384 | R163: 42041 | S163: 8884 | T163: 31089 | U163: 1648 | V163: 79012 | W163: 17047 | X163: 35387 | Y163: 25899 | Z163: 87210 | AA163: 339864 | AB163: 70149 | AC163: 29139 | AD163: 5195 | AE163: 48192
A164: Nógrád | B164: megye | C164: 2020 | D164: ='[1]22.1.2.1'!V85 -> 188092 | E164: 51024 | F164: 26433 | G164: 23004 | H164: 31910 | I164: 11496 | J164: 16804 | K164: 23311 | L164: 16090 | M164: 37743 | N164: 7057 | O164: 9606 | P164: 6558 | Q164: 64386 | R164: 20160 | S164: 2304 | T164: 11801 | U164: 904 | V164: 64570 | W164: 10465 | X164: 27612 | Y164: 14043 | Z164: 48055 | AA164: 130799 | AB164: 28835 | AC164: 10846 | AD164: 1091 | AE164: 23848
A165: Észak-Magyarország | B165: régió | C165: 2020 | D165: ='[1]22.1.2.1'!V86 -> 1118577 | E165: 305128 | F165: 193094 | G165: 125627 | H165: 253698 | I165: 91468 | J165: 107199 | K165: 153164 | L165: 89097 | M165: 172921 | N165: 61459 | O165: 82841 | P165: 81478 | Q165: 451248 | R165: 135257 | S165: 27109 | T165: 108334 | U165: 6165 | V165: 521594 | W165: 69414 | X165: 200596 | Y165: 101911 | Z165: 320304 | AA165: 1054669 | AB165: 142104 | AC165: 97709 | AD165: 25204 | AE165: 213651
A166: Hajdú-Bihar | B166: megye | C166: 2020 | D166: ='[1]22.1.2.1'!V87 -> 526727 | E166: 227607 | F166: 99950 | G166: 86222 | H166: 140879 | I166: 51508 | J166: 79593 | K166: 87601 | L166: 50949 | M166: 96769 | N166: 38420 | O166: 47360 | P166: 78842 | Q166: 304111 | R166: 96986 | S166: 19347 | T166: 61719 | U166: 5820 | V166: 274801 | W166: 36369 | X166: 119982 | Y166: 46714 | Z166: 185284 | AA166: 784338 | AB166: 68289 | AC166: 45607 | AD166: 44413 | AE166: 66061
A167: Jász-Nagykun-Szolnok | B167: megye | C167: 2020 | D167: ='[1]22.1.2.1'!V88 -> 366905 | E167: 109106 | F167: 58336 | G167: 47318 | H167: 64921 | I167: 18623 | J167: 43862 | K167: 34135 | L167: 33988 | M167: 38233 | N167: 12613 | O167: 38693 | P167: 20990 | Q167: 134617 | R167: 117816 | S167: 5200 | T167: 36106 | U167: 1745 | V167: 157505 | W167: 15789 | X167: 45644 | Y167: 7237 | Z167: 103791 | AA167: 385739 | AB167: 53649 | AC167: 34721 | AD167: 7027 | AE167: 68406
A168: Szabolcs-Szatmár-Bereg | B168: megye | C168: 2020 | D168: ='[1]22.1.2.1'!V89 -> 549028 | E168: 159066 | F168: 56425 | G168: 87481 | H168: 90718 | I168: 45316 | J168: 65375 | K168: 62041 | L168: 40478 | M168: 51930 | N168: 28324 | O168: 37933 | P168: 34609 | Q168: 212945 | R168: 67536 | S168: 12886 | T168: 55134 | U168: 4804 | V168: 133722 | W168: 34954 | X168: 79745 | Y168: 41079 | Z168: 149638 | AA168: 605051 | AB168: 69497 | AC168: 43217 | AD168: 16442 | AE168: 108512
A169: Észak-Alföld | B169: régió | C169: 2020 | D169: ='[1]22.1.2.1'!V90 -> 1442660 | E169: 495779 | F169: 214711 | G169: 221021 | H169: 296518 | I169: 115447 | J169: 188830 | K169: 183777 | L169: 125415 | M169: 186932 | N169: 79357 | O169: 123986 | P169: 134441 | Q169: 651673 | R169: 282338 | S169: 37433 | T169: 152959 | U169: 12369 | V169: 566028 | W169: 87112 | X169: 245371 | Y169: 95030 | Z169: 438713 | AA169: 1775128 | AB169: 191435 | AC169: 123545 | AD169: 67882 | AE169: 242979
A170: Bács-Kiskun | B170: megye | C170: 2020 | D170: ='[1]22.1.2.1'!V91 -> 502220 | E170: 127530 | F170: 62321 | G170: 86633 | H170: 99068 | I170: 22517 | J170: 44681 | K170: 57894 | L170: 56938 | M170: 58594 | N170: 16170 | O170: 43092 | P170: 54162 | Q170: 195474 | R170: 50563 | S170: 8940 | T170: 61686 | U170: 49415 | V170: 160052 | W170: 27878 | X170: 65313 | Y170: 28510 | Z170: 146500 | AA170: 515974 | AB170: 76341 | AC170: 42339 | AD170: 1223 | AE170: 55500
A171: Békés | B171: megye | C171: 2020 | D171: ='[1]22.1.2.1'!V92 -> 330542 | E171: 95145 | F171: 58479 | G171: 31196 | H171: 65699 | I171: 25103 | J171: 59439 | K171: 44339 | L171: 30833 | M171: 52450 | N171: 20245 | O171: 35852 | P171: 29412 | Q171: 137166 | R171: 46619 | S171: 7177 | T171: 58548 | U171: 3652 | V171: 126286 | W171: 23684 | X171: 64993 | Y171: 27952 | Z171: 95754 | AA171: 357736 | AB171: 52566 | AC171: 40780 | AD171: 3275 | AE171: 55693
A172: Csongrád-Csanád | B172: megye | C172: 2020 | D172: ='[1]22.1.2.1'!V93 -> 398332 | E172: 182376 | F172: 108170 | G172: 47801 | H172: 127217 | I172: 64897 | J172: 50826 | K172: 73260 | L172: 59290 | M172: 75845 | N172: 29163 | O172: 56677 | P172: 50568 | Q172: 183293 | R172: 49068 | S172: 10840 | T172: 77118 | U172: 11684 | V172: 185653 | W172: 38431 | X172: 73279 | Y172: 37471 | Z172: 97829 | AA172: 657435 | AB172: 62343 | AC172: 57979 | AD172: 6033 | AE172: 43918
A173: Dél-Alföld | B173: régió | C173: 2020 | D173: ='[1]22.1.2.1'!V94 -> 1231094 | E173: 405051 | F173: 228970 | G173: 165630 | H173: 291984 | I173: 112517 | J173: 154946 | K173: 175493 | L173: 147061 | M173: 186889 | N173: 65578 | O173: 135621 | P173: 134142 | Q173: 515933 | R173: 146250 | S173: 26957 | T173: 197352 | U173: 64751 | V173: 471991 | W173: 89993 | X173: 203585 | Y173: 93933 | Z173: 340083 | AA173: 1531145 | AB173: 191250 | AC173: 141098 | AD173: 10531 | AE173: 155111
A174: Alföld és Észak | B174: nagyrégió | C174: 2020 | D174: ='[1]22.1.2.1'!V95 -> 3792331 | E174: 1205958 | F174: 636775 | G174: 512278 | H174: 842200 | I174: 319432 | J174: 450975 | K174: 512434 | L174: 361573 | M174: 546742 | N174: 206394 | O174: 342448 | P174: 350061 | Q174: 1618854 | R174: 563845 | S174: 91499 | T174: 458645 | U174: 83285 | V174: 1559613 | W174: 246519 | X174: 649552 | Y174: 290874 | Z174: 1099100 | AA174: 4360942 | AB174: 524789 | AC174: 362352 | AD174: 103617 | AE174: 611741
A175: Ország összesen | B175: ország | C175: 2020 | D175: ='[1]22.1.2.1'!V96 -> 9769526 | E175: 3111985 | F175: 1923955 | G175: 1275306 | H175: 2151312 | I175: 978898 | J175: 1308333 | K175: 1571151 | L175: 1092993 | M175: 1444191 | N175: 649096 | O175: 1065641 | P175: 923626 | Q175: 4011076 | R175: 1699710 | S175: 239912 | T175: 1338801 | U175: 138109 | V175: 4247675 | W175: 686036 | X175: 1496491 | Y175: 803659 | Z175: 2795369 | AA175: 11625333 | AB175: 1111744 | AC175: 1424513 | AD175: 256272 | AE175: 1610816

Sheet ab_számláló
A1: előző vége: | B1: 1
A2: 6960 | B2: 2 | D2: 6960
B3: 3 | D3: 6264
B4: 4 | D4: =D2-D3 -> 696
B5: 5 | D5: =+D2+D4 -> 7656
B6: 6
B7: 7
B8: 8
B9: 9
B10: 10
B11: 11
B12: 12
B13: 13
B14: 14
B15: 15
B16: 16
B17: 17
B18: 18
B19: 19
B20: 20
B21: 21
B22: 22
B23: 23
B24: 24
B25: 25
B26: 26
B27: 27
B28: 28
B29: 29
B30: 30
B31: 31
B32: 32
B33: 33
B34: 34
B35: 35
B36: 36
B37: 37
B38: 38
B39: 39
B40: 40
B41: 41
B42: 42
B43: 43
B44: 44
B45: 45
B46: 46
B47: 47
B48: 48
B49: 49
B50: 50
B51: 51
B52: 52
B53: 53
B54: 54
B55: 55
B56: 56
B57: 57
B58: 58
B59: 59
B60: 60
B61: 61
B62: 62
B63: 63
B64: 64
B65: 65
B66: 66
B67: 67
B68: 68
B69: 69
B70: 70
B71: 71
B72: 72
B73: 73
B74: 74
B75: 75
B76: 76
B77: 77
B78: 78
B79: 79
B80: 80
B81: 81
B82: 82
B83: 83
B84: 84
B85: 85
B86: 86
B87: 87
B88: 88
B89: 89
B90: 90
B91: 91
B92: 92
B93: 93
B94: 94
B95: 95
B96: 96
B97: 97
B98: 98
B99: 99
B100: 100
B101: 101
B102: 102
B103: 103
B104: 104
B105: 105
B106: 106
B107: 107
B108: 108
B109: 109
B110: 110
B111: 111
B112: 112
B113: 113
B114: 114
B115: 115
B116: 116
B117: 117
B118: 118
B119: 119
B120: 120
B121: 121
B122: 122
B123: 123
B124: 124
B125: 125
B126: 126
B127: 127
B128: 128
B129: 129
B130: 130
B131: 131
B132: 132
B133: 133
B134: 134
B135: 135
B136: 136
B137: 137
B138: 138
B139: 139
B140: 140
B141: 141
B142: 142
B143: 143
B144: 144
B145: 145
B146: 146
B147: 147
B148: 148
B149: 149
B150: 150
B151: 151
B152: 152
B153: 153
B154: 154
B155: 155
B156: 156
B157: 157
B158: 158
B159: 159
B160: 160
B161: 161
B162: 162
B163: 163
B164: 164
B165: 165
B166: 166
B167: 167
B168: 168
B169: 169
B170: 170
B171: 171
B172: 172
B173: 173
B174: 174
B175: 175
B176: 176
B177: 177
B178: 178
B179: 179
B180: 180
B181: 181
B182: 182
B183: 183
B184: 184
B185: 185
B186: 186
B187: 187
B188: 188
B189: 189
B190: 190
B191: 191
B192: 192
B193: 193
B194: 194
B195: 195
B196: 196
B197: 197
B198: 198
B199: 199
B200: 200
... 496 more rows

Sheet ab
A1: Id | B1: Objektum | C1: Év | D1: Attribútum | E1: Típus | F1: Érték | G1: Mértékegység | H1: Típus2 | I1: Típus3
A2: =ab_számláló!$A$2+ab_számláló!B1 -> 6961 | B2: Budapest + Pest | C2: 2015 | D2: ='2015_régi'!$AE$1 -> Tüdő-gyógyászat | E2: Tény | F2: ='2015'!AC194 -> 1028490 | G2: Pontszám | H2: Direkt | I2: Y-transz1
A3: =ab_számláló!$A$2+ab_számláló!B2 -> 6962 | B3: Közép-Magyarország | C3: 2015 | D3: ='2015_régi'!$AE$1 -> Tüdő-gyógyászat | E3: Tény | F3: ='2015'!AC195 -> 1028490 | G3: Pontszám | H3: Direkt | I3: Y-transz1
A4: =ab_számláló!$A$2+ab_számláló!B3 -> 6963 | B4: Fejér | C4: 2015 | D4: ='2015_régi'!$AE$1 -> Tüdő-gyógyászat | E4: Tény | F4: ='2015'!AC196 -> 1018113 | G4: Pontszám | H4: Direkt | I4: Y-transz1
A5: =ab_számláló!$A$2+ab_számláló!B4 -> 6964 | B5: Komárom-Esztergom | C5: 2015 | D5: ='2015_régi'!$AE$1 -> Tüdő-gyógyászat | E5: Tény | F5: ='2015'!AC197 -> 1018399 | G5: Pontszám | H5: Direkt | I5: Y-transz1
A6: =ab_számláló!$A$2+ab_számláló!B5 -> 6965 | B6: Veszprém | C6: 2015 | D6: ='2015_régi'!$AE$1 -> Tüdő-gyógyászat | E6: Tény | F6: ='2015'!AC198 -> 1023280 | G6: Pontszám | H6: Direkt | I6: Y-transz1
A7: =ab_számláló!$A$2+ab_számláló!B6 -> 6966 | B7: Közép-Dunántúl | C7: 2015 | D7: ='2015_régi'!$AE$1 -> Tüdő-gyógyászat | E7: Tény | F7: ='2015'!AC199 -> 1019878 | G7: Pontszám | H7: Direkt | I7: Y-transz1
A8: =ab_számláló!$A$2+ab_számláló!B7 -> 6967 | B8: Győr-Moson-Sopron | C8: 2015 | D8: ='2015_régi'!$AE$1 -> Tüdő-gyógyászat | E8: Tény | F8: ='2015'!AC200 -> 1014609 | G8: Pontszám | H8: Direkt | I8: Y-transz1
A9: =ab_számláló!$A$2+ab_számláló!B8 -> 6968 | B9: Vas | C9: 2015 | D9: ='2015_régi'!$AE$1 -> Tüdő-gyógyászat | E9: Tény | F9: ='2015'!AC201 -> 1016975 | G9: Pontszám | H9: Direkt | I9: Y-transz1
A10: =ab_számláló!$A$2+ab_számláló!B9 -> 6969 | B10: Zala | C10: 2015 | D10: ='2015_régi'!$AE$1 -> Tüdő-gyógyászat | E10: Tény | F10: ='2015'!AC202 -> 1020917 | G10: Pontszám | H10: Direkt | I10: Y-transz1
A11: =ab_számláló!$A$2+ab_számláló!B10 -> 6970 | B11: Nyugat-Dunántúl | C11: 2015 | D11: ='2015_régi'!$AE$1 -> Tüdő-gyógyászat | E11: Tény | F11: ='2015'!AC203 -> 1016998 | G11: Pontszám | H11: Direkt | I11: Y-transz1
A12: =ab_számláló!$A$2+ab_számláló!B11 -> 6971 | B12: Baranya | C12: 2015 | D12: ='2015_régi'!$AE$1 -> Tüdő-gyógyászat | E12: Tény | F12: ='2015'!AC204 -> 1026931 | G12: Pontszám | H12: Direkt | I12: Y-transz1
A13: =ab_számláló!$A$2+ab_számláló!B12 -> 6972 | B13: Somogy | C13: 2015 | D13: ='2015_régi'!$AE$1 -> Tüdő-gyógyászat | E13: Tény | F13: ='2015'!AC205 -> 1018999 | G13: Pontszám | H13: Direkt | I13: Y-transz1
A14: =ab_számláló!$A$2+ab_számláló!B13 -> 6973 | B14: Tolna | C14: 2015 | D14: ='2015_régi'!$AE$1 -> Tüdő-gyógyászat | E14: Tény | F14: ='2015'!AC206 -> 1018727 | G14: Pontszám | H14: Direkt | I14: Y-transz1
A15: =ab_számláló!$A$2+ab_számláló!B14 -> 6974 | B15: Dél-Dunántúl | C15: 2015 | D15: ='2015_régi'!$AE$1 -> Tüdő-gyógyászat | E15: Tény | F15: ='2015'!AC207 -> 1022169 | G15: Pontszám | H15: Direkt | I15: Y-transz1
A16: =ab_számláló!$A$2+ab_számláló!B15 -> 6975 | B16: Dunántúl | C16: 2015 | D16: ='2015_régi'!$AE$1 -> Tüdő-gyógyászat | E16: Tény | F16: ='2015'!AC208 -> 1019624 | G16: Pontszám | H16: Direkt | I16: Y-transz1
A17: =ab_számláló!$A$2+ab_számláló!B16 -> 6976 | B17: Borsod-Abaúj-Zemplén | C17: 2015 | D17: ='2015_régi'!$AE$1 -> Tüdő-gyógyászat | E17: Tény | F17: ='2015'!AC209 -> 1031697 | G17: Pontszám | H17: Direkt | I17: Y-transz1
A18: =ab_számláló!$A$2+ab_számláló!B17 -> 6977 | B18: Heves | C18: 2015 | D18: ='2015_régi'!$AE$1 -> Tüdő-gyógyászat | E18: Tény | F18: ='2015'!AC210 -> 1027110 | G18: Pontszám | H18: Direkt | I18: Y-transz1
A19: =ab_számláló!$A$2+ab_számláló!B18 -> 6978 | B19: Nógrád | C19: 2015 | D19: ='2015_régi'!$AE$1 -> Tüdő-gyógyászat | E19: Tény | F19: ='2015'!AC211 -> 1018355 | G19: Pontszám | H19: Direkt | I19: Y-transz1
A20: =ab_számláló!$A$2+ab_számláló!B19 -> 6979 | B20: Észak-Magyarország | C20: 2015 | D20: ='2015_régi'!$AE$1 -> Tüdő-gyógyászat | E20: Tény | F20: ='2015'!AC212 -> 1028266 | G20: Pontszám | H20: Direkt | I20: Y-transz1
A21: =ab_számláló!$A$2+ab_számláló!B20 -> 6980 | B21: Hajdú-Bihar | C21: 2015 | D21: ='2015_régi'!$AE$1 -> Tüdő-gyógyászat | E21: Tény | F21: ='2015'!AC213 -> 1024129 | G21: Pontszám | H21: Direkt | I21: Y-transz1
A22: =ab_számláló!$A$2+ab_számláló!B21 -> 6981 | B22: Jász-Nagykun-Szolnok | C22: 2015 | D22: ='2015_régi'!$AE$1 -> Tüdő-gyógyászat | E22: Tény | F22: ='2015'!AC214 -> 1033871 | G22: Pontszám | H22: Direkt | I22: Y-transz1
A23: =ab_számláló!$A$2+ab_számláló!B22 -> 6982 | B23: Szabolcs-Szatmár-Bereg | C23: 2015 | D23: ='2015_régi'!$AE$1 -> Tüdő-gyógyászat | E23: Tény | F23: ='2015'!AC215 -> 1031465 | G23: Pontszám | H23: Direkt | I23: Y-transz1
A24: =ab_számláló!$A$2+ab_számláló!B23 -> 6983 | B24: Észak-Alföld | C24: 2015 | D24: ='2015_régi'!$AE$1 -> Tüdő-gyógyászat | E24: Tény | F24: ='2015'!AC216 -> 1029419 | G24: Pontszám | H24: Direkt | I24: Y-transz1
A25: =ab_számláló!$A$2+ab_számláló!B24 -> 6984 | B25: Bács-Kiskun | C25: 2015 | D25: ='2015_régi'!$AE$1 -> Tüdő-gyógyászat | E25: Tény | F25: ='2015'!AC217 -> 1016170 | G25: Pontszám | H25: Direkt | I25: Y-transz1
A26: =ab_számláló!$A$2+ab_számláló!B25 -> 6985 | B26: Békés | C26: 2015 | D26: ='2015_régi'!$AE$1 -> Tüdő-gyógyászat | E26: Tény | F26: ='2015'!AC218 -> 1020785 | G26: Pontszám | H26: Direkt | I26: Y-transz1
A27: =ab_számláló!$A$2+ab_számláló!B26 -> 6986 | B27: Csongrád-Csanád | C27: 2015 | D27: ='2015_régi'!$AE$1 -> Tüdő-gyógyászat | E27: Tény | F27: ='2015'!AC219 -> 1017357 | G27: Pontszám | H27: Direkt | I27: Y-transz1
A28: =ab_számláló!$A$2+ab_számláló!B27 -> 6987 | B28: Dél-Alföld | C28: 2015 | D28: ='2015_régi'!$AE$1 -> Tüdő-gyógyászat | E28: Tény | F28: ='2015'!AC220 -> 1017824 | G28: Pontszám | H28: Direkt | I28: Y-transz1
A29: =ab_számláló!$A$2+ab_számláló!B28 -> 6988 | B29: Alföld és Észak | C29: 2015 | D29: ='2015_régi'!$AE$1 -> Tüdő-gyógyászat | E29: Tény | F29: ='2015'!AC221 -> 1025312 | G29: Pontszám | H29: Direkt | I29: Y-transz1
A30: =ab_számláló!$A$2+ab_számláló!B29 -> 6989 | B30: Ország összesen | C30: 2015 | D30: ='2015_régi'!$AE$1 -> Tüdő-gyógyászat | E30: Tény | F30: ='2015'!AC222 -> 1024568 | G30: Pontszám | H30: Direkt | I30: Y-transz1
A31: =ab_számláló!$A$2+ab_számláló!B30 -> 6990 | B31: Budapest + Pest | C31: 2015 | D31: ='2015_régi'!$AE$1 -> Tüdő-gyógyászat | E31: Becslés | F31: ='2015'!AB194 -> 1028482.2 | G31: Pontszám | H31: Direkt | I31: Y-transz1
A32: =ab_számláló!$A$2+ab_számláló!B31 -> 6991 | B32: Közép-Magyarország | C32: 2015 | D32: ='2015_régi'!$AE$1 -> Tüdő-gyógyászat | E32: Becslés | F32: ='2015'!AB195 -> 1028482.2 | G32: Pontszám | H32: Direkt | I32: Y-transz1
A33: =ab_számláló!$A$2+ab_számláló!B32 -> 6992 | B33: Fejér | C33: 2015 | D33: ='2015_régi'!$AE$1 -> Tüdő-gyógyászat | E33: Becslés | F33: ='2015'!AB196 -> 1018106.7 | G33: Pontszám | H33: Direkt | I33: Y-transz1
A34: =ab_számláló!$A$2+ab_számláló!B33 -> 6993 | B34: Komárom-Esztergom | C34: 2015 | D34: ='2015_régi'!$AE$1 -> Tüdő-gyógyászat | E34: Becslés | F34: ='2015'!AB197 -> 1018392.7 | G34: Pontszám | H34: Direkt | I34: Y-transz1
A35: =ab_számláló!$A$2+ab_számláló!B34 -> 6994 | B35: Veszprém | C35: 2015 | D35: ='2015_régi'!$AE$1 -> Tüdő-gyógyászat | E35: Becslés | F35: ='2015'!AB198 -> 1023273.7 | G35: Pontszám | H35: Direkt | I35: Y-transz1
A36: =ab_számláló!$A$2+ab_számláló!B35 -> 6995 | B36: Közép-Dunántúl | C36: 2015 | D36: ='2015_régi'!$AE$1 -> Tüdő-gyógyászat | E36: Becslés | F36: ='2015'!AB199 -> 1019871.7 | G36: Pontszám | H36: Direkt | I36: Y-transz1
A37: =ab_számláló!$A$2+ab_számláló!B36 -> 6996 | B37: Győr-Moson-Sopron | C37: 2015 | D37: ='2015_régi'!$AE$1 -> Tüdő-gyógyászat | E37: Becslés | F37: ='2015'!AB200 -> 1014602.8 | G37: Pontszám | H37: Direkt | I37: Y-transz1
A38: =ab_számláló!$A$2+ab_számláló!B37 -> 6997 | B38: Vas | C38: 2015 | D38: ='2015_régi'!$AE$1 -> Tüdő-gyógyászat | E38: Becslés | F38: ='2015'!AB201 -> 1016968.7 | G38: Pontszám | H38: Direkt | I38: Y-transz1
A39: =ab_számláló!$A$2+ab_számláló!B38 -> 6998 | B39: Zala | C39: 2015 | D39: ='2015_régi'!$AE$1 -> Tüdő-gyógyászat | E39: Becslés | F39: ='2015'!AB202 -> 1022565.2 | G39: Pontszám | H39: Direkt | I39: Y-transz1
A40: =ab_számláló!$A$2+ab_számláló!B39 -> 6999 | B40: Nyugat-Dunántúl | C40: 2015 | D40: ='2015_régi'!$AE$1 -> Tüdő-gyógyászat | E40: Becslés | F40: ='2015'!AB203 -> 1016991.7 | G40: Pontszám | H40: Direkt | I40: Y-transz1
A41: =ab_számláló!$A$2+ab_számláló!B40 -> 7000 | B41: Baranya | C41: 2015 | D41: ='2015_régi'!$AE$1 -> Tüdő-gyógyászat | E41: Becslés | F41: ='2015'!AB204 -> 1026922.7 | G41: Pontszám | H41: Direkt | I41: Y-transz1
A42: =ab_számláló!$A$2+ab_számláló!B41 -> 7001 | B42: Somogy | C42: 2015 | D42: ='2015_régi'!$AE$1 -> Tüdő-gyógyászat | E42: Becslés | F42: ='2015'!AB205 -> 1018992.7 | G42: Pontszám | H42: Direkt | I42: Y-transz1
A43: =ab_számláló!$A$2+ab_számláló!B42 -> 7002 | B43: Tolna | C43: 2015 | D43: ='2015_régi'!$AE$1 -> Tüdő-gyógyászat | E43: Becslés | F43: ='2015'!AB206 -> 1017020.7 | G43: Pontszám | H43: Direkt | I43: Y-transz1
A44: =ab_számláló!$A$2+ab_számláló!B43 -> 7003 | B44: Dél-Dunántúl | C44: 2015 | D44: ='2015_régi'!$AE$1 -> Tüdő-gyógyászat | E44: Becslés | F44: ='2015'!AB207 -> 1020847.2 | G44: Pontszám | H44: Direkt | I44: Y-transz1
A45: =ab_számláló!$A$2+ab_számláló!B44 -> 7004 | B45: Dunántúl | C45: 2015 | D45: ='2015_régi'!$AE$1 -> Tüdő-gyógyászat | E45: Becslés | F45: ='2015'!AB208 -> 1019617.2 | G45: Pontszám | H45: Direkt | I45: Y-transz1
A46: =ab_számláló!$A$2+ab_számláló!B45 -> 7005 | B46: Borsod-Abaúj-Zemplén | C46: 2015 | D46: ='2015_régi'!$AE$1 -> Tüdő-gyógyászat | E46: Becslés | F46: ='2015'!AB209 -> 1030746.7 | G46: Pontszám | H46: Direkt | I46: Y-transz1
A47: =ab_számláló!$A$2+ab_számláló!B46 -> 7006 | B47: Heves | C47: 2015 | D47: ='2015_régi'!$AE$1 -> Tüdő-gyógyászat | E47: Becslés | F47: ='2015'!AB210 -> 1027103.7 | G47: Pontszám | H47: Direkt | I47: Y-transz1
A48: =ab_számláló!$A$2+ab_számláló!B47 -> 7007 | B48: Nógrád | C48: 2015 | D48: ='2015_régi'!$AE$1 -> Tüdő-gyógyászat | E48: Becslés | F48: ='2015'!AB211 -> 1018348.2 | G48: Pontszám | H48: Direkt | I48: Y-transz1
A49: =ab_számláló!$A$2+ab_számláló!B48 -> 7008 | B49: Észak-Magyarország | C49: 2015 | D49: ='2015_régi'!$AE$1 -> Tüdő-gyógyászat | E49: Becslés | F49: ='2015'!AB212 -> 1026191.2 | G49: Pontszám | H49: Direkt | I49: Y-transz1
A50: =ab_számláló!$A$2+ab_számláló!B49 -> 7009 | B50: Hajdú-Bihar | C50: 2015 | D50: ='2015_régi'!$AE$1 -> Tüdő-gyógyászat | E50: Becslés | F50: ='2015'!AB213 -> 1028977.7 | G50: Pontszám | H50: Direkt | I50: Y-transz1
A51: =ab_számláló!$A$2+ab_számláló!B50 -> 7010 | B51: Jász-Nagykun-Szolnok | C51: 2015 | D51: ='2015_régi'!$AE$1 -> Tüdő-gyógyászat | E51: Becslés | F51: ='2015'!AB214 -> 1033864.6 | G51: Pontszám | H51: Direkt | I51: Y-transz1
A52: =ab_számláló!$A$2+ab_számláló!B51 -> 7011 | B52: Szabolcs-Szatmár-Bereg | C52: 2015 | D52: ='2015_régi'!$AE$1 -> Tüdő-gyógyászat | E52: Becslés | F52: ='2015'!AB215 -> 1028382.2 | G52: Pontszám | H52: Direkt | I52: Y-transz1
A53: =ab_számláló!$A$2+ab_számláló!B52 -> 7012 | B53: Észak-Alföld | C53: 2015 | D53: ='2015_régi'!$AE$1 -> Tüdő-gyógyászat | E53: Becslés | F53: ='2015'!AB216 -> 1029412.7 | G53: Pontszám | H53: Direkt | I53: Y-transz1
A54: =ab_számláló!$A$2+ab_számláló!B53 -> 7013 | B54: Bács-Kiskun | C54: 2015 | D54: ='2015_régi'!$AE$1 -> Tüdő-gyógyászat | E54: Becslés | F54: ='2015'!AB217 -> 1016163.7 | G54: Pontszám | H54: Direkt | I54: Y-transz1
A55: =ab_számláló!$A$2+ab_számláló!B54 -> 7014 | B55: Békés | C55: 2015 | D55: ='2015_régi'!$AE$1 -> Tüdő-gyógyászat | E55: Becslés | F55: ='2015'!AB218 -> 1020778.2 | G55: Pontszám | H55: Direkt | I55: Y-transz1
A56: =ab_számláló!$A$2+ab_számláló!B55 -> 7015 | B56: Csongrád-Csanád | C56: 2015 | D56: ='2015_régi'!$AE$1 -> Tüdő-gyógyászat | E56: Becslés | F56: ='2015'!AB219 -> 1019433.2 | G56: Pontszám | H56: Direkt | I56: Y-transz1
A57: =ab_számláló!$A$2+ab_számláló!B56 -> 7016 | B57: Dél-Alföld | C57: 2015 | D57: ='2015_régi'!$AE$1 -> Tüdő-gyógyászat | E57: Becslés | F57: ='2015'!AB220 -> 1017817.7 | G57: Pontszám | H57: Direkt | I57: Y-transz1
A58: =ab_számláló!$A$2+ab_számláló!B57 -> 7017 | B58: Alföld és Észak | C58: 2015 | D58: ='2015_régi'!$AE$1 -> Tüdő-gyógyászat | E58: Becslés | F58: ='2015'!AB221 -> 1026007.2 | G58: Pontszám | H58: Direkt | I58: Y-transz1
A59: =ab_számláló!$A$2+ab_számláló!B58 -> 7018 | B59: Ország összesen | C59: 2015 | D59: ='2015_régi'!$AE$1 -> Tüdő-gyógyászat | E59: Becslés | F59: ='2015'!AB222 -> 1024561.7 | G59: Pontszám | H59: Direkt | I59: Y-transz1
A60: =ab_számláló!$A$2+ab_számláló!B59 -> 7019 | B60: Budapest + Pest | C60: 2015 | D60: ='2015_régi'!$AE$1 -> Tüdő-gyógyászat | E60: Delta | F60: ='2015'!AD194 -> 7.8 | G60: Pontszám | H60: Direkt | I60: Y-transz1
A61: =ab_számláló!$A$2+ab_számláló!B60 -> 7020 | B61: Közép-Magyarország | C61: 2015 | D61: ='2015_régi'!$AE$1 -> Tüdő-gyógyászat | E61: Delta | F61: ='2015'!AD195 -> 7.8 | G61: Pontszám | H61: Direkt | I61: Y-transz1
A62: =ab_számláló!$A$2+ab_számláló!B61 -> 7021 | B62: Fejér | C62: 2015 | D62: ='2015_régi'!$AE$1 -> Tüdő-gyógyászat | E62: Delta | F62: ='2015'!AD196 -> 6.3 | G62: Pontszám | H62: Direkt | I62: Y-transz1
A63: =ab_számláló!$A$2+ab_számláló!B62 -> 7022 | B63: Komárom-Esztergom | C63: 2015 | D63: ='2015_régi'!$AE$1 -> Tüdő-gyógyászat | E63: Delta | F63: ='2015'!AD197 -> 6.3 | G63: Pontszám | H63: Direkt | I63: Y-transz1
A64: =ab_számláló!$A$2+ab_számláló!B63 -> 7023 | B64: Veszprém | C64: 2015 | D64: ='2015_régi'!$AE$1 -> Tüdő-gyógyászat | E64: Delta | F64: ='2015'!AD198 -> 6.3 | G64: Pontszám | H64: Direkt | I64: Y-transz1
A65: =ab_számláló!$A$2+ab_számláló!B64 -> 7024 | B65: Közép-Dunántúl | C65: 2015 | D65: ='2015_régi'!$AE$1 -> Tüdő-gyógyászat | E65: Delta | F65: ='2015'!AD199 -> 6.3 | G65: Pontszám | H65: Direkt | I65: Y-transz1
A66: =ab_számláló!$A$2+ab_számláló!B65 -> 7025 | B66: Győr-Moson-Sopron | C66: 2015 | D66: ='2015_régi'!$AE$1 -> Tüdő-gyógyászat | E66: Delta | F66: ='2015'!AD200 -> 6.2 | G66: Pontszám | H66: Direkt | I66: Y-transz1
A67: =ab_számláló!$A$2+ab_számláló!B66 -> 7026 | B67: Vas | C67: 2015 | D67: ='2015_régi'!$AE$1 -> Tüdő-gyógyászat | E67: Delta | F67: ='2015'!AD201 -> 6.3 | G67: Pontszám | H67: Direkt | I67: Y-transz1
A68: =ab_számláló!$A$2+ab_számláló!B67 -> 7027 | B68: Zala | C68: 2015 | D68: ='2015_régi'!$AE$1 -> Tüdő-gyógyászat | E68: Delta | F68: ='2015'!AD202 -> -1648.2 | G68: Pontszám | H68: Direkt | I68: Y-transz1
A69: =ab_számláló!$A$2+ab_számláló!B68 -> 7028 | B69: Nyugat-Dunántúl | C69: 2015 | D69: ='2015_régi'!$AE$1 -> Tüdő-gyógyászat | E69: Delta | F69: ='2015'!AD203 -> 6.3 | G69: Pontszám | H69: Direkt | I69: Y-transz1
A70: =ab_számláló!$A$2+ab_számláló!B69 -> 7029 | B70: Baranya | C70: 2015 | D70: ='2015_régi'!$AE$1 -> Tüdő-gyógyászat | E70: Delta | F70: ='2015'!AD204 -> 8.3 | G70: Pontszám | H70: Direkt | I70: Y-transz1
A71: =ab_számláló!$A$2+ab_számláló!B70 -> 7030 | B71: Somogy | C71: 2015 | D71: ='2015_régi'!$AE$1 -> Tüdő-gyógyászat | E71: Delta | F71: ='2015'!AD205 -> 6.3 | G71: Pontszám | H71: Direkt | I71: Y-transz1
A72: =ab_számláló!$A$2+ab_számláló!B71 -> 7031 | B72: Tolna | C72: 2015 | D72: ='2015_régi'!$AE$1 -> Tüdő-gyógyászat | E72: Delta | F72: ='2015'!AD206 -> 1706.3 | G72: Pontszám | H72: Direkt | I72: Y-transz1
A73: =ab_számláló!$A$2+ab_számláló!B72 -> 7032 | B73: Dél-Dunántúl | C73: 2015 | D73: ='2015_régi'!$AE$1 -> Tüdő-gyógyászat | E73: Delta | F73: ='2015'!AD207 -> 1321.8 | G73: Pontszám | H73: Direkt | I73: Y-transz1
A74: =ab_számláló!$A$2+ab_számláló!B73 -> 7033 | B74: Dunántúl | C74: 2015 | D74: ='2015_régi'!$AE$1 -> Tüdő-gyógyászat | E74: Delta | F74: ='2015'!AD208 -> 6.8 | G74: Pontszám | H74: Direkt | I74: Y-transz1
A75: =ab_számláló!$A$2+ab_számláló!B74 -> 7034 | B75: Borsod-Abaúj-Zemplén | C75: 2015 | D75: ='2015_régi'!$AE$1 -> Tüdő-gyógyászat | E75: Delta | F75: ='2015'!AD209 -> 950.3 | G75: Pontszám | H75: Direkt | I75: Y-transz1
A76: =ab_számláló!$A$2+ab_számláló!B75 -> 7035 | B76: Heves | C76: 2015 | D76: ='2015_régi'!$AE$1 -> Tüdő-gyógyászat | E76: Delta | F76: ='2015'!AD210 -> 6.3 | G76: Pontszám | H76: Direkt | I76: Y-transz1
A77: =ab_számláló!$A$2+ab_számláló!B76 -> 7036 | B77: Nógrád | C77: 2015 | D77: ='2015_régi'!$AE$1 -> Tüdő-gyógyászat | E77: Delta | F77: ='2015'!AD211 -> 6.8 | G77: Pontszám | H77: Direkt | I77: Y-transz1
A78: =ab_számláló!$A$2+ab_számláló!B77 -> 7037 | B78: Észak-Magyarország | C78: 2015 | D78: ='2015_régi'!$AE$1 -> Tüdő-gyógyászat | E78: Delta | F78: ='2015'!AD212 -> 2074.8 | G78: Pontszám | H78: Direkt | I78: Y-transz1
A79: =ab_számláló!$A$2+ab_számláló!B78 -> 7038 | B79: Hajdú-Bihar | C79: 2015 | D79: ='2015_régi'!$AE$1 -> Tüdő-gyógyászat | E79: Delta | F79: ='2015'!AD213 -> -4848.7 | G79: Pontszám | H79: Direkt | I79: Y-transz1
A80: =ab_számláló!$A$2+ab_számláló!B79 -> 7039 | B80: Jász-Nagykun-Szolnok | C80: 2015 | D80: ='2015_régi'!$AE$1 -> Tüdő-gyógyászat | E80: Delta | F80: ='2015'!AD214 -> 6.4 | G80: Pontszám | H80: Direkt | I80: Y-transz1
A81: =ab_számláló!$A$2+ab_számláló!B80 -> 7040 | B81: Szabolcs-Szatmár-Bereg | C81: 2015 | D81: ='2015_régi'!$AE$1 -> Tüdő-gyógyászat | E81: Delta | F81: ='2015'!AD215 -> 3082.8 | G81: Pontszám | H81: Direkt | I81: Y-transz1
A82: =ab_számláló!$A$2+ab_számláló!B81 -> 7041 | B82: Észak-Alföld | C82: 2015 | D82: ='2015_régi'!$AE$1 -> Tüdő-gyógyászat | E82: Delta | F82: ='2015'!AD216 -> 6.3 | G82: Pontszám | H82: Direkt | I82: Y-transz1
A83: =ab_számláló!$A$2+ab_számláló!B82 -> 7042 | B83: Bács-Kiskun | C83: 2015 | D83: ='2015_régi'!$AE$1 -> Tüdő-gyógyászat | E83: Delta | F83: ='2015'!AD217 -> 6.3 | G83: Pontszám | H83: Direkt | I83: Y-transz1
A84: =ab_számláló!$A$2+ab_számláló!B83 -> 7043 | B84: Békés | C84: 2015 | D84: ='2015_régi'!$AE$1 -> Tüdő-gyógyászat | E84: Delta | F84: ='2015'!AD218 -> 6.8 | G84: Pontszám | H84: Direkt | I84: Y-transz1
A85: =ab_számláló!$A$2+ab_számláló!B84 -> 7044 | B85: Csongrád-Csanád | C85: 2015 | D85: ='2015_régi'!$AE$1 -> Tüdő-gyógyászat | E85: Delta | F85: ='2015'!AD219 -> -2076.2 | G85: Pontszám | H85: Direkt | I85: Y-transz1
A86: =ab_számláló!$A$2+ab_számláló!B85 -> 7045 | B86: Dél-Alföld | C86: 2015 | D86: ='2015_régi'!$AE$1 -> Tüdő-gyógyászat | E86: Delta | F86: ='2015'!AD220 -> 6.3 | G86: Pontszám | H86: Direkt | I86: Y-transz1
A87: =ab_számláló!$A$2+ab_számláló!B86 -> 7046 | B87: Alföld és Észak | C87: 2015 | D87: ='2015_régi'!$AE$1 -> Tüdő-gyógyászat | E87: Delta | F87: ='2015'!AD221 -> -695.2 | G87: Pontszám | H87: Direkt | I87: Y-transz1
A88: =ab_számláló!$A$2+ab_számláló!B87 -> 7047 | B88: Ország összesen | C88: 2015 | D88: ='2015_régi'!$AE$1 -> Tüdő-gyógyászat | E88: Delta | F88: ='2015'!AD222 -> 6.3 | G88: Pontszám | H88: Direkt | I88: Y-transz1
A89: =ab_számláló!$A$2+ab_számláló!B88 -> 7048 | B89: Budapest + Pest | C89: 2015 | D89: ='2015_régi'!$AE$1 -> Tüdő-gyógyászat | E89: Delta/Tény | F89: ='2015'!AE194 -> 0 | G89: % | H89: Direkt | I89: Y-transz1
A90: =ab_számláló!$A$2+ab_számláló!B89 -> 7049 | B90: Közép-Magyarország | C90: 2015 | D90: ='2015_régi'!$AE$1 -> Tüdő-gyógyászat | E90: Delta/Tény | F90: ='2015'!AE195 -> 0 | G90: % | H90: Direkt | I90: Y-transz1
A91: =ab_számláló!$A$2+ab_számláló!B90 -> 7050 | B91: Fejér | C91: 2015 | D91: ='2015_régi'!$AE$1 -> Tüdő-gyógyászat | E91: Delta/Tény | F91: ='2015'!AE196 -> 0 | G91: % | H91: Direkt | I91: Y-transz1
A92: =ab_számláló!$A$2+ab_számláló!B91 -> 7051 | B92: Komárom-Esztergom | C92: 2015 | D92: ='2015_régi'!$AE$1 -> Tüdő-gyógyászat | E92: Delta/Tény | F92: ='2015'!AE197 -> 0 | G92: % | H92: Direkt | I92: Y-transz1
A93: =ab_számláló!$A$2+ab_számláló!B92 -> 7052 | B93: Veszprém | C93: 2015 | D93: ='2015_régi'!$AE$1 -> Tüdő-gyógyászat | E93: Delta/Tény | F93: ='2015'!AE198 -> 0 | G93: % | H93: Direkt | I93: Y-transz1
A94: =ab_számláló!$A$2+ab_számláló!B93 -> 7053 | B94: Közép-Dunántúl | C94: 2015 | D94: ='2015_régi'!$AE$1 -> Tüdő-gyógyászat | E94: Delta/Tény | F94: ='2015'!AE199 -> 0 | G94: % | H94: Direkt | I94: Y-transz1
A95: =ab_számláló!$A$2+ab_számláló!B94 -> 7054 | B95: Győr-Moson-Sopron | C95: 2015 | D95: ='2015_régi'!$AE$1 -> Tüdő-gyógyászat | E95: Delta/Tény | F95: ='2015'!AE200 -> 0 | G95: % | H95: Direkt | I95: Y-transz1
A96: =ab_számláló!$A$2+ab_számláló!B95 -> 7055 | B96: Vas | C96: 2015 | D96: ='2015_régi'!$AE$1 -> Tüdő-gyógyászat | E96: Delta/Tény | F96: ='2015'!AE201 -> 0 | G96: % | H96: Direkt | I96: Y-transz1
A97: =ab_számláló!$A$2+ab_számláló!B96 -> 7056 | B97: Zala | C97: 2015 | D97: ='2015_régi'!$AE$1 -> Tüdő-gyógyászat | E97: Delta/Tény | F97: ='2015'!AE202 -> -0.16 | G97: % | H97: Direkt | I97: Y-transz1
A98: =ab_számláló!$A$2+ab_számláló!B97 -> 7057 | B98: Nyugat-Dunántúl | C98: 2015 | D98: ='2015_régi'!$AE$1 -> Tüdő-gyógyászat | E98: Delta/Tény | F98: ='2015'!AE203 -> 0 | G98: % | H98: Direkt | I98: Y-transz1
A99: =ab_számláló!$A$2+ab_számláló!B98 -> 7058 | B99: Baranya | C99: 2015 | D99: ='2015_régi'!$AE$1 -> Tüdő-gyógyászat | E99: Delta/Tény | F99: ='2015'!AE204 -> 0 | G99: % | H99: Direkt | I99: Y-transz1
A100: =ab_számláló!$A$2+ab_számláló!B99 -> 7059 | B100: Somogy | C100: 2015 | D100: ='2015_régi'!$AE$1 -> Tüdő-gyógyászat | E100: Delta/Tény | F100: ='2015'!AE205 -> 0 | G100: % | H100: Direkt | I100: Y-transz1
A101: =ab_számláló!$A$2+ab_számláló!B100 -> 7060 | B101: Tolna | C101: 2015 | D101: ='2015_régi'!$AE$1 -> Tüdő-gyógyászat | E101: Delta/Tény | F101: ='2015'!AE206 -> 0.17 | G101: % | H101: Direkt | I101: Y-transz1
A102: =ab_számláló!$A$2+ab_számláló!B101 -> 7061 | B102: Dél-Dunántúl | C102: 2015 | D102: ='2015_régi'!$AE$1 -> Tüdő-gyógyászat | E102: Delta/Tény | F102: ='2015'!AE207 -> 0.13 | G102: % | H102: Direkt | I102: Y-transz1
A103: =ab_számláló!$A$2+ab_számláló!B102 -> 7062 | B103: Dunántúl | C103: 2015 | D103: ='2015_régi'!$AE$1 -> Tüdő-gyógyászat | E103: Delta/Tény | F103: ='2015'!AE208 -> 0 | G103: % | H103: Direkt | I103: Y-transz1
A104: =ab_számláló!$A$2+ab_számláló!B103 -> 7063 | B104: Borsod-Abaúj-Zemplén | C104: 2015 | D104: ='2015_régi'!$AE$1 -> Tüdő-gyógyászat | E104: Delta/Tény | F104: ='2015'!AE209 -> 0.09 | G104: % | H104: Direkt | I104: Y-transz1
A105: =ab_számláló!$A$2+ab_számláló!B104 -> 7064 | B105: Heves | C105: 2015 | D105: ='2015_régi'!$AE$1 -> Tüdő-gyógyászat | E105: Delta/Tény | F105: ='2015'!AE210 -> 0 | G105: % | H105: Direkt | I105: Y-transz1
A106: =ab_számláló!$A$2+ab_számláló!B105 -> 7065 | B106: Nógrád | C106: 2015 | D106: ='2015_régi'!$AE$1 -> Tüdő-gyógyászat | E106: Delta/Tény | F106: ='2015'!AE211 -> 0 | G106: % | H106: Direkt | I106: Y-transz1
A107: =ab_számláló!$A$2+ab_számláló!B106 -> 7066 | B107: Észak-Magyarország | C107: 2015 | D107: ='2015_régi'!$AE$1 -> Tüdő-gyógyászat | E107: Delta/Tény | F107: ='2015'!AE212 -> 0.2 | G107: % | H107: Direkt | I107: Y-transz1
A108: =ab_számláló!$A$2+ab_számláló!B107 -> 7067 | B108: Hajdú-Bihar | C108: 2015 | D108: ='2015_régi'!$AE$1 -> Tüdő-gyógyászat | E108: Delta/Tény | F108: ='2015'!AE213 -> -0.47 | G108: % | H108: Direkt | I108: Y-transz1
A109: =ab_számláló!$A$2+ab_számláló!B108 -> 7068 | B109: Jász-Nagykun-Szolnok | C109: 2015 | D109: ='2015_régi'!$AE$1 -> Tüdő-gyógyászat | E109: Delta/Tény | F109: ='2015'!AE214 -> 0 | G109: % | H109: Direkt | I109: Y-transz1
A110: =ab_számláló!$A$2+ab_számláló!B109 -> 7069 | B110: Szabolcs-Szatmár-Bereg | C110: 2015 | D110: ='2015_régi'!$AE$1 -> Tüdő-gyógyászat | E110: Delta/Tény | F110: ='2015'!AE215 -> 0.3 | G110: % | H110: Direkt | I110: Y-transz1
A111: =ab_számláló!$A$2+ab_számláló!B110 -> 7070 | B111: Észak-Alföld | C111: 2015 | D111: ='2015_régi'!$AE$1 -> Tüdő-gyógyászat | E111: Delta/Tény | F111: ='2015'!AE216 -> 0 | G111: % | H111: Direkt | I111: Y-transz1
A112: =ab_számláló!$A$2+ab_számláló!B111 -> 7071 | B112: Bács-Kiskun | C112: 2015 | D112: ='2015_régi'!$AE$1 -> Tüdő-gyógyászat | E112: Delta/Tény | F112: ='2015'!AE217 -> 0 | G112: % | H112: Direkt | I112: Y-transz1
A113: =ab_számláló!$A$2+ab_számláló!B112 -> 7072 | B113: Békés | C113: 2015 | D113: ='2015_régi'!$AE$1 -> Tüdő-gyógyászat | E113: Delta/Tény | F113: ='2015'!AE218 -> 0 | G113: % | H113: Direkt | I113: Y-transz1
A114: =ab_számláló!$A$2+ab_számláló!B113 -> 7073 | B114: Csongrád-Csanád | C114: 2015 | D114: ='2015_régi'!$AE$1 -> Tüdő-gyógyászat | E114: Delta/Tény | F114: ='2015'!AE219 -> -0.2 | G114: % | H114: Direkt | I114: Y-transz1
A115: =ab_számláló!$A$2+ab_számláló!B114 -> 7074 | B115: Dél-Alföld | C115: 2015 | D115: ='2015_régi'!$AE$1 -> Tüdő-gyógyászat | E115: Delta/Tény | F115: ='2015'!AE220 -> 0 | G115: % | H115: Direkt | I115: Y-transz1
A116: =ab_számláló!$A$2+ab_számláló!B115 -> 7075 | B116: Alföld és Észak | C116: 2015 | D116: ='2015_régi'!$AE$1 -> Tüdő-gyógyászat | E116: Delta/Tény | F116: ='2015'!AE221 -> -0.07 | G116: % | H116: Direkt | I116: Y-transz1
A117: =ab_számláló!$A$2+ab_számláló!B116 -> 7076 | B117: Ország összesen | C117: 2015 | D117: ='2015_régi'!$AE$1 -> Tüdő-gyógyászat | E117: Delta/Tény | F117: ='2015'!AE222 -> 0 | G117: % | H117: Direkt | I117: Y-transz1
A118: =ab_számláló!$A$2+ab_számláló!B117 -> 7077 | B118: Budapest + Pest | C118: 2016 | D118: ='2015_régi'!$AE$1 -> Tüdő-gyógyászat | E118: Tény | F118: ='2016'!AC194 -> 1027579 | G118: Pontszám | H118: Direkt | I118: Y-transz1
A119: =ab_számláló!$A$2+ab_számláló!B118 -> 7078 | B119: Közép-Magyarország | C119: 2016 | D119: ='2015_régi'!$AE$1 -> Tüdő-gyógyászat | E119: Tény | F119: ='2016'!AC195 -> 1027579 | G119: Pontszám | H119: Direkt | I119: Y-transz1
A120: =ab_számláló!$A$2+ab_számláló!B119 -> 7079 | B120: Fejér | C120: 2016 | D120: ='2015_régi'!$AE$1 -> Tüdő-gyógyászat | E120: Tény | F120: ='2016'!AC196 -> 1020440 | G120: Pontszám | H120: Direkt | I120: Y-transz1
A121: =ab_számláló!$A$2+ab_számláló!B120 -> 7080 | B121: Komárom-Esztergom | C121: 2016 | D121: ='2015_régi'!$AE$1 -> Tüdő-gyógyászat | E121: Tény | F121: ='2016'!AC197 -> 1019913 | G121: Pontszám | H121: Direkt | I121: Y-transz1
A122: =ab_számláló!$A$2+ab_számláló!B121 -> 7081 | B122: Veszprém | C122: 2016 | D122: ='2015_régi'!$AE$1 -> Tüdő-gyógyászat | E122: Tény | F122: ='2016'!AC198 -> 1021549 | G122: Pontszám | H122: Direkt | I122: Y-transz1
A123: =ab_számláló!$A$2+ab_számláló!B122 -> 7082 | B123: Közép-Dunántúl | C123: 2016 | D123: ='2015_régi'!$AE$1 -> Tüdő-gyógyászat | E123: Tény | F123: ='2016'!AC199 -> 1020652 | G123: Pontszám | H123: Direkt | I123: Y-transz1
A124: =ab_számláló!$A$2+ab_számláló!B123 -> 7083 | B124: Győr-Moson-Sopron | C124: 2016 | D124: ='2015_régi'!$AE$1 -> Tüdő-gyógyászat | E124: Tény | F124: ='2016'!AC200 -> 1014982 | G124: Pontszám | H124: Direkt | I124: Y-transz1
A125: =ab_számláló!$A$2+ab_számláló!B124 -> 7084 | B125: Vas | C125: 2016 | D125: ='2015_régi'!$AE$1 -> Tüdő-gyógyászat | E125: Tény | F125: ='2016'!AC201 -> 1016277 | G125: Pontszám | H125: Direkt | I125: Y-transz1
A126: =ab_számláló!$A$2+ab_számláló!B125 -> 7085 | B126: Zala | C126: 2016 | D126: ='2015_régi'!$AE$1 -> Tüdő-gyógyászat | E126: Tény | F126: ='2016'!AC202 -> 1020506 | G126: Pontszám | H126: Direkt | I126: Y-transz1
A127: =ab_számláló!$A$2+ab_számláló!B126 -> 7086 | B127: Nyugat-Dunántúl | C127: 2016 | D127: ='2015_régi'!$AE$1 -> Tüdő-gyógyászat | E127: Tény | F127: ='2016'!AC203 -> 1016860 | G127: Pontszám | H127: Direkt | I127: Y-transz1
A128: =ab_számláló!$A$2+ab_számláló!B127 -> 7087 | B128: Baranya | C128: 2016 | D128: ='2015_régi'!$AE$1 -> Tüdő-gyógyászat | E128: Tény | F128: ='2016'!AC204 -> 1026395 | G128: Pontszám | H128: Direkt | I128: Y-transz1
A129: =ab_számláló!$A$2+ab_számláló!B128 -> 7088 | B129: Somogy | C129: 2016 | D129: ='2015_régi'!$AE$1 -> Tüdő-gyógyászat | E129: Tény | F129: ='2016'!AC205 -> 1019037 | G129: Pontszám | H129: Direkt | I129: Y-transz1
A130: =ab_számláló!$A$2+ab_számláló!B129 -> 7089 | B130: Tolna | C130: 2016 | D130: ='2015_régi'!$AE$1 -> Tüdő-gyógyászat | E130: Tény | F130: ='2016'!AC206 -> 1020030 | G130: Pontszám | H130: Direkt | I130: Y-transz1
A131: =ab_számláló!$A$2+ab_számláló!B130 -> 7090 | B131: Dél-Dunántúl | C131: 2016 | D131: ='2015_régi'!$AE$1 -> Tüdő-gyógyászat | E131: Tény | F131: ='2016'!AC207 -> 1022290 | G131: Pontszám | H131: Direkt | I131: Y-transz1
A132: =ab_számláló!$A$2+ab_számláló!B131 -> 7091 | B132: Dunántúl | C132: 2016 | D132: ='2015_régi'!$AE$1 -> Tüdő-gyógyászat | E132: Tény | F132: ='2016'!AC208 -> 1019886 | G132: Pontszám | H132: Direkt | I132: Y-transz1
A133: =ab_számláló!$A$2+ab_számláló!B132 -> 7092 | B133: Borsod-Abaúj-Zemplén | C133: 2016 | D133: ='2015_régi'!$AE$1 -> Tüdő-gyógyászat | E133: Tény | F133: ='2016'!AC209 -> 1031201 | G133: Pontszám | H133: Direkt | I133: Y-transz1
A134: =ab_számláló!$A$2+ab_számláló!B133 -> 7093 | B134: Heves | C134: 2016 | D134: ='2015_régi'!$AE$1 -> Tüdő-gyógyászat | E134: Tény | F134: ='2016'!AC210 -> 1023518 | G134: Pontszám | H134: Direkt | I134: Y-transz1
A135: =ab_számláló!$A$2+ab_számláló!B134 -> 7094 | B135: Nógrád | C135: 2016 | D135: ='2015_régi'!$AE$1 -> Tüdő-gyógyászat | E135: Tény | F135: ='2016'!AC211 -> 1018630 | G135: Pontszám | H135: Direkt | I135: Y-transz1
A136: =ab_számláló!$A$2+ab_számláló!B135 -> 7095 | B136: Észak-Magyarország | C136: 2016 | D136: ='2015_régi'!$AE$1 -> Tüdő-gyógyászat | E136: Tény | F136: ='2016'!AC212 -> 1027095 | G136: Pontszám | H136: Direkt | I136: Y-transz1
A137: =ab_számláló!$A$2+ab_számláló!B136 -> 7096 | B137: Hajdú-Bihar | C137: 2016 | D137: ='2015_régi'!$AE$1 -> Tüdő-gyógyászat | E137: Tény | F137: ='2016'!AC213 -> 1019626 | G137: Pontszám | H137: Direkt | I137: Y-transz1
A138: =ab_számláló!$A$2+ab_számláló!B137 -> 7097 | B138: Jász-Nagykun-Szolnok | C138: 2016 | D138: ='2015_régi'!$AE$1 -> Tüdő-gyógyászat | E138: Tény | F138: ='2016'!AC214 -> 1034723 | G138: Pontszám | H138: Direkt | I138: Y-transz1
A139: =ab_számláló!$A$2+ab_számláló!B138 -> 7098 | B139: Szabolcs-Szatmár-Bereg | C139: 2016 | D139: ='2015_régi'!$AE$1 -> Tüdő-gyógyászat | E139: Tény | F139: ='2016'!AC215 -> 1030516 | G139: Pontszám | H139: Direkt | I139: Y-transz1
A140: =ab_számláló!$A$2+ab_számláló!B139 -> 7099 | B140: Észak-Alföld | C140: 2016 | D140: ='2015_régi'!$AE$1 -> Tüdő-gyógyászat | E140: Tény | F140: ='2016'!AC216 -> 1027639 | G140: Pontszám | H140: Direkt | I140: Y-transz1
A141: =ab_számláló!$A$2+ab_számláló!B140 -> 7100 | B141: Bács-Kiskun | C141: 2016 | D141: ='2015_régi'!$AE$1 -> Tüdő-gyógyászat | E141: Tény | F141: ='2016'!AC217 -> 1015227 | G141: Pontszám | H141: Direkt | I141: Y-transz1
A142: =ab_számláló!$A$2+ab_számláló!B141 -> 7101 | B142: Békés | C142: 2016 | D142: ='2015_régi'!$AE$1 -> Tüdő-gyógyászat | E142: Tény | F142: ='2016'!AC218 -> 1021034 | G142: Pontszám | H142: Direkt | I142: Y-transz1
A143: =ab_számláló!$A$2+ab_számláló!B142 -> 7102 | B143: Csongrád-Csanád | C143: 2016 | D143: ='2015_régi'!$AE$1 -> Tüdő-gyógyászat | E143: Tény | F143: ='2016'!AC219 -> 1017439 | G143: Pontszám | H143: Direkt | I143: Y-transz1
A144: =ab_számláló!$A$2+ab_számláló!B143 -> 7103 | B144: Dél-Alföld | C144: 2016 | D144: ='2015_régi'!$AE$1 -> Tüdő-gyógyászat | E144: Tény | F144: ='2016'!AC220 -> 1017531 | G144: Pontszám | H144: Direkt | I144: Y-transz1
A145: =ab_számláló!$A$2+ab_számláló!B144 -> 7104 | B145: Alföld és Észak | C145: 2016 | D145: ='2015_régi'!$AE$1 -> Tüdő-gyógyászat | E145: Tény | F145: ='2016'!AC221 -> 1024197 | G145: Pontszám | H145: Direkt | I145: Y-transz1
A146: =ab_számláló!$A$2+ab_számláló!B145 -> 7105 | B146: Ország összesen | C146: 2016 | D146: ='2015_régi'!$AE$1 -> Tüdő-gyógyászat | E146: Tény | F146: ='2016'!AC222 -> 1023935 | G146: Pontszám | H146: Direkt | I146: Y-transz1
A147: =ab_számláló!$A$2+ab_számláló!B146 -> 7106 | B147: Budapest + Pest | C147: 2016 | D147: ='2015_régi'!$AE$1 -> Tüdő-gyógyászat | E147: Becslés | F147: ='2016'!AB194 -> 1027578.9 | G147: Pontszám | H147: Direkt | I147: Y-transz1
A148: =ab_számláló!$A$2+ab_számláló!B147 -> 7107 | B148: Közép-Magyarország | C148: 2016 | D148: ='2015_régi'!$AE$1 -> Tüdő-gyógyászat | E148: Becslés | F148: ='2016'!AB195 -> 1027578.9 | G148: Pontszám | H148: Direkt | I148: Y-transz1
A149: =ab_számláló!$A$2+ab_számláló!B148 -> 7108 | B149: Fejér | C149: 2016 | D149: ='2015_régi'!$AE$1 -> Tüdő-gyógyászat | E149: Becslés | F149: ='2016'!AB196 -> 1020439.4 | G149: Pontszám | H149: Direkt | I149: Y-transz1
A150: =ab_számláló!$A$2+ab_számláló!B149 -> 7109 | B150: Komárom-Esztergom | C150: 2016 | D150: ='2015_régi'!$AE$1 -> Tüdő-gyógyászat | E150: Becslés | F150: ='2016'!AB197 -> 1019912.9 | G150: Pontszám | H150: Direkt | I150: Y-transz1
A151: =ab_számláló!$A$2+ab_számláló!B150 -> 7110 | B151: Veszprém | C151: 2016 | D151: ='2015_régi'!$AE$1 -> Tüdő-gyógyászat | E151: Becslés | F151: ='2016'!AB198 -> 1021548.4 | G151: Pontszám | H151: Direkt | I151: Y-transz1
A152: =ab_számláló!$A$2+ab_számláló!B151 -> 7111 | B152: Közép-Dunántúl | C152: 2016 | D152: ='2015_régi'!$AE$1 -> Tüdő-gyógyászat | E152: Becslés | F152: ='2016'!AB199 -> 1020651.9 | G152: Pontszám | H152: Direkt | I152: Y-transz1
A153: =ab_számláló!$A$2+ab_számláló!B152 -> 7112 | B153: Győr-Moson-Sopron | C153: 2016 | D153: ='2015_régi'!$AE$1 -> Tüdő-gyógyászat | E153: Becslés | F153: ='2016'!AB200 -> 1014981.9 | G153: Pontszám | H153: Direkt | I153: Y-transz1
A154: =ab_számláló!$A$2+ab_számláló!B153 -> 7113 | B154: Vas | C154: 2016 | D154: ='2015_régi'!$AE$1 -> Tüdő-gyógyászat | E154: Becslés | F154: ='2016'!AB201 -> 1016276.9 | G154: Pontszám | H154: Direkt | I154: Y-transz1
A155: =ab_számláló!$A$2+ab_számláló!B154 -> 7114 | B155: Zala | C155: 2016 | D155: ='2015_régi'!$AE$1 -> Tüdő-gyógyászat | E155: Becslés | F155: ='2016'!AB202 -> 1020505.9 | G155: Pontszám | H155: Direkt | I155: Y-transz1
A156: =ab_számláló!$A$2+ab_számláló!B155 -> 7115 | B156: Nyugat-Dunántúl | C156: 2016 | D156: ='2015_régi'!$AE$1 -> Tüdő-gyógyászat | E156: Becslés | F156: ='2016'!AB203 -> 1016860.4 | G156: Pontszám | H156: Direkt | I156: Y-transz1
A157: =ab_számláló!$A$2+ab_számláló!B156 -> 7116 | B157: Baranya | C157: 2016 | D157: ='2015_régi'!$AE$1 -> Tüdő-gyógyászat | E157: Becslés | F157: ='2016'!AB204 -> 1026394.9 | G157: Pontszám | H157: Direkt | I157: Y-transz1
A158: =ab_számláló!$A$2+ab_számláló!B157 -> 7117 | B158: Somogy | C158: 2016 | D158: ='2015_régi'!$AE$1 -> Tüdő-gyógyászat | E158: Becslés | F158: ='2016'!AB205 -> 1019036.9 | G158: Pontszám | H158: Direkt | I158: Y-transz1
A159: =ab_számláló!$A$2+ab_számláló!B158 -> 7118 | B159: Tolna | C159: 2016 | D159: ='2015_régi'!$AE$1 -> Tüdő-gyógyászat | E159: Becslés | F159: ='2016'!AB206 -> 1018604.9 | G159: Pontszám | H159: Direkt | I159: Y-transz1
A160: =ab_számláló!$A$2+ab_számláló!B159 -> 7119 | B160: Dél-Dunántúl | C160: 2016 | D160: ='2015_régi'!$AE$1 -> Tüdő-gyógyászat | E160: Becslés | F160: ='2016'!AB207 -> 1022289.9 | G160: Pontszám | H160: Direkt | I160: Y-transz1
A161: =ab_számláló!$A$2+ab_számláló!B160 -> 7120 | B161: Dunántúl | C161: 2016 | D161: ='2015_régi'!$AE$1 -> Tüdő-gyógyászat | E161: Becslés | F161: ='2016'!AB208 -> 1019885.9 | G161: Pontszám | H161: Direkt | I161: Y-transz1
A162: =ab_számláló!$A$2+ab_számláló!B161 -> 7121 | B162: Borsod-Abaúj-Zemplén | C162: 2016 | D162: ='2015_régi'!$AE$1 -> Tüdő-gyógyászat | E162: Becslés | F162: ='2016'!AB209 -> 1031200.9 | G162: Pontszám | H162: Direkt | I162: Y-transz1
A163: =ab_számláló!$A$2+ab_számláló!B162 -> 7122 | B163: Heves | C163: 2016 | D163: ='2015_régi'!$AE$1 -> Tüdő-gyógyászat | E163: Becslés | F163: ='2016'!AB210 -> 1023519.4 | G163: Pontszám | H163: Direkt | I163: Y-transz1
A164: =ab_számláló!$A$2+ab_számláló!B163 -> 7123 | B164: Nógrád | C164: 2016 | D164: ='2015_régi'!$AE$1 -> Tüdő-gyógyászat | E164: Becslés | F164: ='2016'!AB211 -> 1018629.9 | G164: Pontszám | H164: Direkt | I164: Y-transz1
A165: =ab_számláló!$A$2+ab_számláló!B164 -> 7124 | B165: Észak-Magyarország | C165: 2016 | D165: ='2015_régi'!$AE$1 -> Tüdő-gyógyászat | E165: Becslés | F165: ='2016'!AB212 -> 1027094.9 | G165: Pontszám | H165: Direkt | I165: Y-transz1
A166: =ab_számláló!$A$2+ab_számláló!B165 -> 7125 | B166: Hajdú-Bihar | C166: 2016 | D166: ='2015_régi'!$AE$1 -> Tüdő-gyógyászat | E166: Becslés | F166: ='2016'!AB213 -> 1021051.4 | G166: Pontszám | H166: Direkt | I166: Y-transz1
A167: =ab_számláló!$A$2+ab_számláló!B166 -> 7126 | B167: Jász-Nagykun-Szolnok | C167: 2016 | D167: ='2015_régi'!$AE$1 -> Tüdő-gyógyászat | E167: Becslés | F167: ='2016'!AB214 -> 1034723.4 | G167: Pontszám | H167: Direkt | I167: Y-transz1
A168: =ab_számláló!$A$2+ab_számláló!B167 -> 7127 | B168: Szabolcs-Szatmár-Bereg | C168: 2016 | D168: ='2015_régi'!$AE$1 -> Tüdő-gyógyászat | E168: Becslés | F168: ='2016'!AB215 -> 1030515.9 | G168: Pontszám | H168: Direkt | I168: Y-transz1
A169: =ab_számláló!$A$2+ab_számláló!B168 -> 7128 | B169: Észak-Alföld | C169: 2016 | D169: ='2015_régi'!$AE$1 -> Tüdő-gyógyászat | E169: Becslés | F169: ='2016'!AB216 -> 1027639.4 | G169: Pontszám | H169: Direkt | I169: Y-transz1
A170: =ab_számláló!$A$2+ab_számláló!B169 -> 7129 | B170: Bács-Kiskun | C170: 2016 | D170: ='2015_régi'!$AE$1 -> Tüdő-gyógyászat | E170: Becslés | F170: ='2016'!AB217 -> 1015226.9 | G170: Pontszám | H170: Direkt | I170: Y-transz1
A171: =ab_számláló!$A$2+ab_számláló!B170 -> 7130 | B171: Békés | C171: 2016 | D171: ='2015_régi'!$AE$1 -> Tüdő-gyógyászat | E171: Becslés | F171: ='2016'!AB218 -> 1021033.9 | G171: Pontszám | H171: Direkt | I171: Y-transz1
A172: =ab_számláló!$A$2+ab_számláló!B171 -> 7131 | B172: Csongrád-Csanád | C172: 2016 | D172: ='2015_régi'!$AE$1 -> Tüdő-gyógyászat | E172: Becslés | F172: ='2016'!AB219 -> 1017439.4 | G172: Pontszám | H172: Direkt | I172: Y-transz1
A173: =ab_számláló!$A$2+ab_számláló!B172 -> 7132 | B173: Dél-Alföld | C173: 2016 | D173: ='2015_régi'!$AE$1 -> Tüdő-gyógyászat | E173: Becslés | F173: ='2016'!AB220 -> 1017531.4 | G173: Pontszám | H173: Direkt | I173: Y-transz1
A174: =ab_számláló!$A$2+ab_számláló!B173 -> 7133 | B174: Alföld és Észak | C174: 2016 | D174: ='2015_régi'!$AE$1 -> Tüdő-gyógyászat | E174: Becslés | F174: ='2016'!AB221 -> 1024196.9 | G174: Pontszám | H174: Direkt | I174: Y-transz1
A175: =ab_számláló!$A$2+ab_számláló!B174 -> 7134 | B175: Ország összesen | C175: 2016 | D175: ='2015_régi'!$AE$1 -> Tüdő-gyógyászat | E175: Becslés | F175: ='2016'!AB222 -> 1023934.9 | G175: Pontszám | H175: Direkt | I175: Y-transz1
A176: =ab_számláló!$A$2+ab_számláló!B175 -> 7135 | B176: Budapest + Pest | C176: 2016 | D176: ='2015_régi'!$AE$1 -> Tüdő-gyógyászat | E176: Delta | F176: ='2016'!AD194 -> 0.1 | G176: Pontszám | H176: Direkt | I176: Y-transz1
A177: =ab_számláló!$A$2+ab_számláló!B176 -> 7136 | B177: Közép-Magyarország | C177: 2016 | D177: ='2015_régi'!$AE$1 -> Tüdő-gyógyászat | E177: Delta | F177: ='2016'!AD195 -> 0.1 | G177: Pontszám | H177: Direkt | I177: Y-transz1
A178: =ab_számláló!$A$2+ab_számláló!B177 -> 7137 | B178: Fejér | C178: 2016 | D178: ='2015_régi'!$AE$1 -> Tüdő-gyógyászat | E178: Delta | F178: ='2016'!AD196 -> 0.6 | G178: Pontszám | H178: Direkt | I178: Y-transz1
A179: =ab_számláló!$A$2+ab_számláló!B178 -> 7138 | B179: Komárom-Esztergom | C179: 2016 | D179: ='2015_régi'!$AE$1 -> Tüdő-gyógyászat | E179: Delta | F179: ='2016'!AD197 -> 0.1 | G179: Pontszám | H179: Direkt | I179: Y-transz1
A180: =ab_számláló!$A$2+ab_számláló!B179 -> 7139 | B180: Veszprém | C180: 2016 | D180: ='2015_régi'!$AE$1 -> Tüdő-gyógyászat | E180: Delta | F180: ='2016'!AD198 -> 0.6 | G180: Pontszám | H180: Direkt | I180: Y-transz1
A181: =ab_számláló!$A$2+ab_számláló!B180 -> 7140 | B181: Közép-Dunántúl | C181: 2016 | D181: ='2015_régi'!$AE$1 -> Tüdő-gyógyászat | E181: Delta | F181: ='2016'!AD199 -> 0.1 | G181: Pontszám | H181: Direkt | I181: Y-transz1
A182: =ab_számláló!$A$2+ab_számláló!B181 -> 7141 | B182: Győr-Moson-Sopron | C182: 2016 | D182: ='2015_régi'!$AE$1 -> Tüdő-gyógyászat | E182: Delta | F182: ='2016'!AD200 -> 0.1 | G182: Pontszám | H182: Direkt | I182: Y-transz1
A183: =ab_számláló!$A$2+ab_számláló!B182 -> 7142 | B183: Vas | C183: 2016 | D183: ='2015_régi'!$AE$1 -> Tüdő-gyógyászat | E183: Delta | F183: ='2016'!AD201 -> 0.1 | G183: Pontszám | H183: Direkt | I183: Y-transz1
A184: =ab_számláló!$A$2+ab_számláló!B183 -> 7143 | B184: Zala | C184: 2016 | D184: ='2015_régi'!$AE$1 -> Tüdő-gyógyászat | E184: Delta | F184: ='2016'!AD202 -> 0.1 | G184: Pontszám | H184: Direkt | I184: Y-transz1
A185: =ab_számláló!$A$2+ab_számláló!B184 -> 7144 | B185: Nyugat-Dunántúl | C185: 2016 | D185: ='2015_régi'!$AE$1 -> Tüdő-gyógyászat | E185: Delta | F185: ='2016'!AD203 -> -0.4 | G185: Pontszám | H185: Direkt | I185: Y-transz1
A186: =ab_számláló!$A$2+ab_számláló!B185 -> 7145 | B186: Baranya | C186: 2016 | D186: ='2015_régi'!$AE$1 -> Tüdő-gyógyászat | E186: Delta | F186: ='2016'!AD204 -> 0.1 | G186: Pontszám | H186: Direkt | I186: Y-transz1
A187: =ab_számláló!$A$2+ab_számláló!B186 -> 7146 | B187: Somogy | C187: 2016 | D187: ='2015_régi'!$AE$1 -> Tüdő-gyógyászat | E187: Delta | F187: ='2016'!AD205 -> 0.1 | G187: Pontszám | H187: Direkt | I187: Y-transz1
A188: =ab_számláló!$A$2+ab_számláló!B187 -> 7147 | B188: Tolna | C188: 2016 | D188: ='2015_régi'!$AE$1 -> Tüdő-gyógyászat | E188: Delta | F188: ='2016'!AD206 -> 1425.1 | G188: Pontszám | H188: Direkt | I188: Y-transz1
A189: =ab_számláló!$A$2+ab_számláló!B188 -> 7148 | B189: Dél-Dunántúl | C189: 2016 | D189: ='2015_régi'!$AE$1 -> Tüdő-gyógyászat | E189: Delta | F189: ='2016'!AD207 -> 0.1 | G189: Pontszám | H189: Direkt | I189: Y-transz1
A190: =ab_számláló!$A$2+ab_számláló!B189 -> 7149 | B190: Dunántúl | C190: 2016 | D190: ='2015_régi'!$AE$1 -> Tüdő-gyógyászat | E190: Delta | F190: ='2016'!AD208 -> 0.1 | G190: Pontszám | H190: Direkt | I190: Y-transz1
A191: =ab_számláló!$A$2+ab_számláló!B190 -> 7150 | B191: Borsod-Abaúj-Zemplén | C191: 2016 | D191: ='2015_régi'!$AE$1 -> Tüdő-gyógyászat | E191: Delta | F191: ='2016'!AD209 -> 0.1 | G191: Pontszám | H191: Direkt | I191: Y-transz1
A192: =ab_számláló!$A$2+ab_számláló!B191 -> 7151 | B192: Heves | C192: 2016 | D192: ='2015_régi'!$AE$1 -> Tüdő-gyógyászat | E192: Delta | F192: ='2016'!AD210 -> -1.4 | G192: Pontszám | H192: Direkt | I192: Y-transz1
A193: =ab_számláló!$A$2+ab_számláló!B192 -> 7152 | B193: Nógrád | C193: 2016 | D193: ='2015_régi'!$AE$1 -> Tüdő-gyógyászat | E193: Delta | F193: ='2016'!AD211 -> 0.1 | G193: Pontszám | H193: Direkt | I193: Y-transz1
A194: =ab_számláló!$A$2+ab_számláló!B193 -> 7153 | B194: Észak-Magyarország | C194: 2016 | D194: ='2015_régi'!$AE$1 -> Tüdő-gyógyászat | E194: Delta | F194: ='2016'!AD212 -> 0.1 | G194: Pontszám | H194: Direkt | I194: Y-transz1
A195: =ab_számláló!$A$2+ab_számláló!B194 -> 7154 | B195: Hajdú-Bihar | C195: 2016 | D195: ='2015_régi'!$AE$1 -> Tüdő-gyógyászat | E195: Delta | F195: ='2016'!AD213 -> -1425.4 | G195: Pontszám | H195: Direkt | I195: Y-transz1
A196: =ab_számláló!$A$2+ab_számláló!B195 -> 7155 | B196: Jász-Nagykun-Szolnok | C196: 2016 | D196: ='2015_régi'!$AE$1 -> Tüdő-gyógyászat | E196: Delta | F196: ='2016'!AD214 -> -0.4 | G196: Pontszám | H196: Direkt | I196: Y-transz1
A197: =ab_számláló!$A$2+ab_számláló!B196 -> 7156 | B197: Szabolcs-Szatmár-Bereg | C197: 2016 | D197: ='2015_régi'!$AE$1 -> Tüdő-gyógyászat | E197: Delta | F197: ='2016'!AD215 -> 0.1 | G197: Pontszám | H197: Direkt | I197: Y-transz1
A198: =ab_számláló!$A$2+ab_számláló!B197 -> 7157 | B198: Észak-Alföld | C198: 2016 | D198: ='2015_régi'!$AE$1 -> Tüdő-gyógyászat | E198: Delta | F198: ='2016'!AD216 -> -0.4 | G198: Pontszám | H198: Direkt | I198: Y-transz1
A199: =ab_számláló!$A$2+ab_számláló!B198 -> 7158 | B199: Bács-Kiskun | C199: 2016 | D199: ='2015_régi'!$AE$1 -> Tüdő-gyógyászat | E199: Delta | F199: ='2016'!AD217 -> 0.1 | G199: Pontszám | H199: Direkt | I199: Y-transz1
A200: =ab_számláló!$A$2+ab_számláló!B199 -> 7159 | B200: Békés | C200: 2016 | D200: ='2015_régi'!$AE$1 -> Tüdő-gyógyászat | E200: Delta | F200: ='2016'!AD218 -> 0.1 | G200: Pontszám | H200: Direkt | I200: Y-transz1
... 497 more rows

Sheet 2015_régi
A1: =nyers_adat!A1 -> Területi egység neve | B1: =nyers_adat!B1 -> Területi egység szintje | C1: =nyers_adat!C1 -> Év | D1: =nyers_adat!D1 -> Lakosság | E1: =nyers_adat!E1 -> Belgyógyászat | F1: =nyers_adat!F1 -> Sebészet | G1: =nyers_adat!G1 -> Baleseti sebészet | H1: =nyers_adat!H1 -> Szülészet és nőgyógyászat | I1: =nyers_adat!I1 -> Csecsemő- és gyermek-gyógyászat | J1: =nyers_adat!J1 -> Fül-orr-gégészet | K1: =nyers_adat!K1 -> Szemészet | L1: =nyers_adat!L1 -> Bőrgyógyászat és nemibeteg-ellátás | M1: =nyers_adat!M1 -> Neurológia | N1: =nyers_adat!N1 -> Ortopédia | O1: =nyers_adat!O1 -> Urológia | P1: =nyers_adat!P1 -> Onkológia | Q1: =nyers_adat!Q1 -> Fogászat | R1: =nyers_adat!R1 -> Reumatológia | S1: =nyers_adat!S1 -> Aneszteziológiai és intenzív betegellátás | T1: =nyers_adat!T1 -> Pszichiátria | U1: =nyers_adat!U1 -> Nukleáris medicina (izotóp-diagnosztika és -terápia) | V1: =nyers_adat!V1 -> Fizioterápia | W1: =nyers_adat!W1 -> Patológia és kórszövettan | X1: =nyers_adat!X1 -> Ultrahang-diagnosztika és -terápia | Y1: =nyers_adat!Y1 -> Tomográfia | Z1: =nyers_adat!Z1 -> Röntgen-diagnosztika és -terápia | AA1: =nyers_adat!AA1 -> Laboratóriumi diagnosztika | AB1: =nyers_adat!AB1 -> Sürgősségi betegellátás, oxyológia | AC1: =nyers_adat!AC1 -> Kardiológia | AD1: =nyers_adat!AD1 -> Orvosi rehabilitáció | AE1: =nyers_adat!AE1 -> Tüdő-gyógyászat
A2: =nyers_adat!A2 -> Budapest + Pest | B2: =nyers_adat!B2 -> főváros, régió + megye, régió | C2: =nyers_adat!C2 -> 2015 | D2: =nyers_adat!D2 -> 2983733 | E2: =nyers_adat!E2 -> 1450020 | F2: =nyers_adat!F2 -> 1082978 | G2: =nyers_adat!G2 -> 507859 | H2: =nyers_adat!H2 -> 1067648 | I2: =nyers_adat!I2 -> 580747 | J2: =nyers_adat!J2 -> 877184 | K2: =nyers_adat!K2 -> 932252 | L2: =nyers_adat!L2 -> 777293 | M2: =nyers_adat!M2 -> 458157 | N2: =nyers_adat!N2 -> 450467 | O2: =nyers_adat!O2 -> 592805 | P2: =nyers_adat!P2 -> 364592 | Q2: =nyers_adat!Q2 -> 2277599 | R2: =nyers_adat!R2 -> 1193040 | S2: =nyers_adat!S2 -> 115044 | T2: =nyers_adat!T2 -> 840021 | U2: =nyers_adat!U2 -> 75220 | V2: =nyers_adat!V2 -> 2377062 | W2: =nyers_adat!W2 -> 377570 | X2: =nyers_adat!X2 -> 631520 | Y2: =nyers_adat!Y2 -> 266503 | Z2: =nyers_adat!Z2 -> 1301912 | AA2: =nyers_adat!AA2 -> 5634850 | AB2: =nyers_adat!AB2 -> 236332 | AC2: =nyers_adat!AC2 -> 854074 | AD2: =nyers_adat!AD2 -> 187816 | AE2: =nyers_adat!AE2 -> 850059
A3: =nyers_adat!A3 -> Közép-Magyarország | B3: =nyers_adat!B3 -> nagyrégió | C3: =nyers_adat!C3 -> 2015 | D3: =nyers_adat!D3 -> 2983733 | E3: =nyers_adat!E3 -> 1450020 | F3: =nyers_adat!F3 -> 1082978 | G3: =nyers_adat!G3 -> 507859 | H3: =nyers_adat!H3 -> 1067648 | I3: =nyers_adat!I3 -> 580747 | J3: =nyers_adat!J3 -> 877184 | K3: =nyers_adat!K3 -> 932252 | L3: =nyers_adat!L3 -> 777293 | M3: =nyers_adat!M3 -> 458157 | N3: =nyers_adat!N3 -> 450467 | O3: =nyers_adat!O3 -> 592805 | P3: =nyers_adat!P3 -> 364592 | Q3: =nyers_adat!Q3 -> 2277599 | R3: =nyers_adat!R3 -> 1193040 | S3: =nyers_adat!S3 -> 115044 | T3: =nyers_adat!T3 -> 840021 | U3: =nyers_adat!U3 -> 75220 | V3: =nyers_adat!V3 -> 2377062 | W3: =nyers_adat!W3 -> 377570 | X3: =nyers_adat!X3 -> 631520 | Y3: =nyers_adat!Y3 -> 266503 | Z3: =nyers_adat!Z3 -> 1301912 | AA3: =nyers_adat!AA3 -> 5634850 | AB3: =nyers_adat!AB3 -> 236332 | AC3: =nyers_adat!AC3 -> 854074 | AD3: =nyers_adat!AD3 -> 187816 | AE3: =nyers_adat!AE3 -> 850059
A4: =nyers_adat!A4 -> Fejér | B4: =nyers_adat!B4 -> megye | C4: =nyers_adat!C4 -> 2015 | D4: =nyers_adat!D4 -> 417651 | E4: =nyers_adat!E4 -> 132981 | F4: =nyers_adat!F4 -> 85280 | G4: =nyers_adat!G4 -> 66207 | H4: =nyers_adat!H4 -> 114687 | I4: =nyers_adat!I4 -> 55903 | J4: =nyers_adat!J4 -> 87168 | K4: =nyers_adat!K4 -> 82020 | L4: =nyers_adat!L4 -> 48480 | M4: =nyers_adat!M4 -> 42849 | N4: =nyers_adat!N4 -> 38893 | O4: =nyers_adat!O4 -> 39824 | P4: =nyers_adat!P4 -> 23715 | Q4: =nyers_adat!Q4 -> 305841 | R4: =nyers_adat!R4 -> 91512 | S4: =nyers_adat!S4 -> 15595 | T4: =nyers_adat!T4 -> 59382 | U4: =nyers_adat!U4 -> 2780 | V4: =nyers_adat!V4 -> 283759 | W4: =nyers_adat!W4 -> 38200 | X4: =nyers_adat!X4 -> 93170 | Y4: =nyers_adat!Y4 -> 27226 | Z4: =nyers_adat!Z4 -> 171945 | AA4: =nyers_adat!AA4 -> 491099 | AB4: =nyers_adat!AB4 -> 76534 | AC4: =nyers_adat!AC4 -> 56241 | AD4: =nyers_adat!AD4 -> 3949 | AE4: =nyers_adat!AE4 -> 75649
A5: =nyers_adat!A5 -> Komárom-Esztergom | B5: =nyers_adat!B5 -> megye | C5: =nyers_adat!C5 -> 2015 | D5: =nyers_adat!D5 -> 299110 | E5: =nyers_adat!E5 -> 94376 | F5: =nyers_adat!F5 -> 77843 | G5: =nyers_adat!G5 -> 40451 | H5: =nyers_adat!H5 -> 83260 | I5: =nyers_adat!I5 -> 32636 | J5: =nyers_adat!J5 -> 52187 | K5: =nyers_adat!K5 -> 59931 | L5: =nyers_adat!L5 -> 57522 | M5: =nyers_adat!M5 -> 34038 | N5: =nyers_adat!N5 -> 18170 | O5: =nyers_adat!O5 -> 39174 | P5: =nyers_adat!P5 -> 13464 | Q5: =nyers_adat!Q5 -> 174687 | R5: =nyers_adat!R5 -> 83211 | S5: =nyers_adat!S5 -> 6408 | T5: =nyers_adat!T5 -> 52397 | U5: =nyers_adat!U5 -> 6872 | V5: =nyers_adat!V5 -> 279466 | W5: =nyers_adat!W5 -> 25865 | X5: =nyers_adat!X5 -> 50900 | Y5: =nyers_adat!Y5 -> 12958 | Z5: =nyers_adat!Z5 -> 116594 | AA5: =nyers_adat!AA5 -> 285110 | AB5: =nyers_adat!AB5 -> 21054 | AC5: =nyers_adat!AC5 -> 33780 | AD5: =nyers_adat!AD5 -> 2696 | AE5: =nyers_adat!AE5 -> 55034
A6: =nyers_adat!A6 -> Veszprém | B6: =nyers_adat!B6 -> megye | C6: =nyers_adat!C6 -> 2015 | D6: =nyers_adat!D6 -> 346647 | E6: =nyers_adat!E6 -> 98344 | F6: =nyers_adat!F6 -> 75133 | G6: =nyers_adat!G6 -> 76607 | H6: =nyers_adat!H6 -> 86158 | I6: =nyers_adat!I6 -> 33382 | J6: =nyers_adat!J6 -> 70424 | K6: =nyers_adat!K6 -> 73805 | L6: =nyers_adat!L6 -> 41633 | M6: =nyers_adat!M6 -> 35646 | N6: =nyers_adat!N6 -> 12264 | O6: =nyers_adat!O6 -> 43937 | P6: =nyers_adat!P6 -> 19842 | Q6: =nyers_adat!Q6 -> 234783 | R6: =nyers_adat!R6 -> 100689 | S6: =nyers_adat!S6 -> 13310 | T6: =nyers_adat!T6 -> 73811 | U6: =nyers_adat!U6 -> 3849 | V6: =nyers_adat!V6 -> 249122 | W6: =nyers_adat!W6 -> 28687 | X6: =nyers_adat!X6 -> 63837 | Y6: =nyers_adat!Y6 -> 26772 | Z6: =nyers_adat!Z6 -> 116375 | AA6: =nyers_adat!AA6 -> 303367 | AB6: =nyers_adat!AB6 -> 27950 | AC6: =nyers_adat!AC6 -> 49327 | AD6: =nyers_adat!AD6 -> 33310 | AE6: =nyers_adat!AE6 -> 80698
A7: =nyers_adat!A7 -> Közép-Dunántúl | B7: =nyers_adat!B7 -> régió | C7: =nyers_adat!C7 -> 2015 | D7: =nyers_adat!D7 -> 1063408 | E7: =nyers_adat!E7 -> 325701 | F7: =nyers_adat!F7 -> 238256 | G7: =nyers_adat!G7 -> 183265 | H7: =nyers_adat!H7 -> 284105 | I7: =nyers_adat!I7 -> 121921 | J7: =nyers_adat!J7 -> 209779 | K7: =nyers_adat!K7 -> 215756 | L7: =nyers_adat!L7 -> 147635 | M7: =nyers_adat!M7 -> 112533 | N7: =nyers_adat!N7 -> 69327 | O7: =nyers_adat!O7 -> 122935 | P7: =nyers_adat!P7 -> 57021 | Q7: =nyers_adat!Q7 -> 715311 | R7: =nyers_adat!R7 -> 275412 | S7: =nyers_adat!S7 -> 35313 | T7: =nyers_adat!T7 -> 185590 | U7: =nyers_adat!U7 -> 13501 | V7: =nyers_adat!V7 -> 812347 | W7: =nyers_adat!W7 -> 92752 | X7: =nyers_adat!X7 -> 207907 | Y7: =nyers_adat!Y7 -> 66956 | Z7: =nyers_adat!Z7 -> 404914 | AA7: =nyers_adat!AA7 -> 1079576 | AB7: =nyers_adat!AB7 -> 125538 | AC7: =nyers_adat!AC7 -> 139348 | AD7: =nyers_adat!AD7 -> 39955 | AE7: =nyers_adat!AE7 -> 211381
A8: =nyers_adat!A8 -> Győr-Moson-Sopron | B8: =nyers_adat!B8 -> megye | C8: =nyers_adat!C8 -> 2015 | D8: =nyers_adat!D8 -> 452638 | E8: =nyers_adat!E8 -> 108316 | F8: =nyers_adat!F8 -> 96452 | G8: =nyers_adat!G8 -> 89881 | H8: =nyers_adat!H8 -> 112753 | I8: =nyers_adat!I8 -> 50444 | J8: =nyers_adat!J8 -> 65810 | K8: =nyers_adat!K8 -> 74184 | L8: =nyers_adat!L8 -> 44490 | M8: =nyers_adat!M8 -> 40197 | N8: =nyers_adat!N8 -> 30036 | O8: =nyers_adat!O8 -> 63061 | P8: =nyers_adat!P8 -> 35983 | Q8: =nyers_adat!Q8 -> 246390 | R8: =nyers_adat!R8 -> 69679 | S8: =nyers_adat!S8 -> 11609 | T8: =nyers_adat!T8 -> 79205 | U8: =nyers_adat!U8 -> 3790 | V8: =nyers_adat!V8 -> 279066 | W8: =nyers_adat!W8 -> 81727 | X8: =nyers_adat!X8 -> 77344 | Y8: =nyers_adat!Y8 -> 38245 | Z8: =nyers_adat!Z8 -> 174996 | AA8: =nyers_adat!AA8 -> 426304 | AB8: =nyers_adat!AB8 -> 73743 | AC8: =nyers_adat!AC8 -> 49229 | AD8: =nyers_adat!AD8 -> 6377 | AE8: =nyers_adat!AE8 -> 66126
A9: =nyers_adat!A9 -> Vas | B9: =nyers_adat!B9 -> megye | C9: =nyers_adat!C9 -> 2015 | D9: =nyers_adat!D9 -> 253997 | E9: =nyers_adat!E9 -> 73943 | F9: =nyers_adat!F9 -> 52107 | G9: =nyers_adat!G9 -> 23755 | H9: =nyers_adat!H9 -> 62474 | I9: =nyers_adat!I9 -> 19633 | J9: =nyers_adat!J9 -> 41129 | K9: =nyers_adat!K9 -> 48222 | L9: =nyers_adat!L9 -> 29887 | M9: =nyers_adat!M9 -> 25530 | N9: =nyers_adat!N9 -> 10810 | O9: =nyers_adat!O9 -> 30609 | P9: =nyers_adat!P9 -> 28277 | Q9: =nyers_adat!Q9 -> 132193 | R9: =nyers_adat!R9 -> 76423 | S9: =nyers_adat!S9 -> 5745 | T9: =nyers_adat!T9 -> 31074 | U9: =nyers_adat!U9 -> 1191 | V9: =nyers_adat!V9 -> 126238 | W9: =nyers_adat!W9 -> 25108 | X9: =nyers_adat!X9 -> 21640 | Y9: =nyers_adat!Y9 -> 19200 | Z9: =nyers_adat!Z9 -> 74795 | AA9: =nyers_adat!AA9 -> 300301 | AB9: =nyers_adat!AB9 -> 30228 | AC9: =nyers_adat!AC9 -> 14480 | AD9: =nyers_adat!AD9 -> 12554 | AE9: =nyers_adat!AE9 -> 43117
A10: =nyers_adat!A10 -> Zala | B10: =nyers_adat!B10 -> megye | C10: =nyers_adat!C10 -> 2015 | D10: =nyers_adat!D10 -> 277290 | E10: =nyers_adat!E10 -> 87999 | F10: =nyers_adat!F10 -> 44303 | G10: =nyers_adat!G10 -> 64629 | H10: =nyers_adat!H10 -> 65648 | I10: =nyers_adat!I10 -> 26406 | J10: =nyers_adat!J10 -> 49058 | K10: =nyers_adat!K10 -> 59198 | L10: =nyers_adat!L10 -> 35181 | M10: =nyers_adat!M10 -> 35667 | N10: =nyers_adat!N10 -> 31790 | O10: =nyers_adat!O10 -> 35801 | P10: =nyers_adat!P10 -> 22759 | Q10: =nyers_adat!Q10 -> 174779 | R10: =nyers_adat!R10 -> 89866 | S10: =nyers_adat!S10 -> 7460 | T10: =nyers_adat!T10 -> 34944 | U10: =nyers_adat!U10 -> 2405 | V10: =nyers_adat!V10 -> 315907 | W10: =nyers_adat!W10 -> 26873 | X10: =nyers_adat!X10 -> 51036 | Y10: =nyers_adat!Y10 -> 22958 | Z10: =nyers_adat!Z10 -> 91342 | AA10: =nyers_adat!AA10 -> 373036 | AB10: =nyers_adat!AB10 -> 28105 | AC10: =nyers_adat!AC10 -> 42109 | AD10: =nyers_adat!AD10 -> 13119 | AE10: =nyers_adat!AE10 -> 58002
A11: =nyers_adat!A11 -> Nyugat-Dunántúl | B11: =nyers_adat!B11 -> régió | C11: =nyers_adat!C11 -> 2015 | D11: =nyers_adat!D11 -> 983925 | E11: =nyers_adat!E11 -> 270258 | F11: =nyers_adat!F11 -> 192862 | G11: =nyers_adat!G11 -> 178265 | H11: =nyers_adat!H11 -> 240875 | I11: =nyers_adat!I11 -> 96483 | J11: =nyers_adat!J11 -> 155997 | K11: =nyers_adat!K11 -> 181604 | L11: =nyers_adat!L11 -> 109558 | M11: =nyers_adat!M11 -> 101394 | N11: =nyers_adat!N11 -> 72636 | O11: =nyers_adat!O11 -> 129471 | P11: =nyers_adat!P11 -> 87019 | Q11: =nyers_adat!Q11 -> 553362 | R11: =nyers_adat!R11 -> 235968 | S11: =nyers_adat!S11 -> 24814 | T11: =nyers_adat!T11 -> 145223 | U11: =nyers_adat!U11 -> 7386 | V11: =nyers_adat!V11 -> 721211 | W11: =nyers_adat!W11 -> 133708 | X11: =nyers_adat!X11 -> 150020 | Y11: =nyers_adat!Y11 -> 80403 | Z11: =nyers_adat!Z11 -> 341133 | AA11: =nyers_adat!AA11 -> 1099641 | AB11: =nyers_adat!AB11 -> 132076 | AC11: =nyers_adat!AC11 -> 105818 | AD11: =nyers_adat!AD11 -> 32050 | AE11: =nyers_adat!AE11 -> 167245
A12: =nyers_adat!A12 -> Baranya | B12: =nyers_adat!B12 -> megye | C12: =nyers_adat!C12 -> 2015 | D12: =nyers_adat!D12 -> 371110 | E12: =nyers_adat!E12 -> 160025 | F12: =nyers_adat!F12 -> 111824 | G12: =nyers_adat!G12 -> 62087 | H12: =nyers_adat!H12 -> 125519 | I12: =nyers_adat!I12 -> 101520 | J12: =nyers_adat!J12 -> 83457 | K12: =nyers_adat!K12 -> 94033 | L12: =nyers_adat!L12 -> 85978 | M12: =nyers_adat!M12 -> 50578 | N12: =nyers_adat!N12 -> 32810 | O12: =nyers_adat!O12 -> 69853 | P12: =nyers_adat!P12 -> 66574 | Q12: =nyers_adat!Q12 -> 359612 | R12: =nyers_adat!R12 -> 103940 | S12: =nyers_adat!S12 -> 10800 | T12: =nyers_adat!T12 -> 112949 | U12: =nyers_adat!U12 -> 4063 | V12: =nyers_adat!V12 -> 236184 | W12: =nyers_adat!W12 -> 51310 | X12: =nyers_adat!X12 -> 108305 | Y12: =nyers_adat!Y12 -> 36562 | Z12: =nyers_adat!Z12 -> 148242 | AA12: =nyers_adat!AA12 -> 687087 | AB12: =nyers_adat!AB12 -> 31761 | AC12: =nyers_adat!AC12 -> 109661 | AD12: =nyers_adat!AD12 -> 9974 | AE12: =nyers_adat!AE12 -> 99943
A13: =nyers_adat!A13 -> Somogy | B13: =nyers_adat!B13 -> megye | C13: =nyers_adat!C13 -> 2015 | D13: =nyers_adat!D13 -> 312084 | E13: =nyers_adat!E13 -> 106200 | F13: =nyers_adat!F13 -> 107711 | G13: =nyers_adat!G13 -> 31306 | H13: =nyers_adat!H13 -> 81172 | I13: =nyers_adat!I13 -> 36626 | J13: =nyers_adat!J13 -> 56729 | K13: =nyers_adat!K13 -> 65106 | L13: =nyers_adat!L13 -> 56850 | M13: =nyers_adat!M13 -> 38855 | N13: =nyers_adat!N13 -> 31714 | O13: =nyers_adat!O13 -> 29444 | P13: =nyers_adat!P13 -> 39154 | Q13: =nyers_adat!Q13 -> 190734 | R13: =nyers_adat!R13 -> 55227 | S13: =nyers_adat!S13 -> 7410 | T13: =nyers_adat!T13 -> 70725 | U13: =nyers_adat!U13 -> 2013 | V13: =nyers_adat!V13 -> 165211 | W13: =nyers_adat!W13 -> 27390 | X13: =nyers_adat!X13 -> 68371 | Y13: =nyers_adat!Y13 -> 34015 | Z13: =nyers_adat!Z13 -> 109454 | AA13: =nyers_adat!AA13 -> 426173 | AB13: =nyers_adat!AB13 -> 54368 | AC13: =nyers_adat!AC13 -> 44316 | AD13: =nyers_adat!AD13 -> 2148 | AE13: =nyers_adat!AE13 -> 59292
A14: =nyers_adat!A14 -> Tolna | B14: =nyers_adat!B14 -> megye | C14: =nyers_adat!C14 -> 2015 | D14: =nyers_adat!D14 -> 225936 | E14: =nyers_adat!E14 -> 86968 | F14: =nyers_adat!F14 -> 45793 | G14: =nyers_adat!G14 -> 42564 | H14: =nyers_adat!H14 -> 70262 | I14: =nyers_adat!I14 -> 40972 | J14: =nyers_adat!J14 -> 46804 | K14: =nyers_adat!K14 -> 44509 | L14: =nyers_adat!L14 -> 33118 | M14: =nyers_adat!M14 -> 28551 | N14: =nyers_adat!N14 -> 23432 | O14: =nyers_adat!O14 -> 25477 | P14: =nyers_adat!P14 -> 18628 | Q14: =nyers_adat!Q14 -> 145730 | R14: =nyers_adat!R14 -> 41591 | S14: =nyers_adat!S14 -> 8150 | T14: =nyers_adat!T14 -> 36388 | U14: =nyers_adat!U14 -> 3476 | V14: =nyers_adat!V14 -> 105977 | W14: =nyers_adat!W14 -> 20601 | X14: =nyers_adat!X14 -> 35961 | Y14: =nyers_adat!Y14 -> 11709 | Z14: =nyers_adat!Z14 -> 76679 | AA14: =nyers_adat!AA14 -> 275892 | AB14: =nyers_adat!AB14 -> 18344 | AC14: =nyers_adat!AC14 -> 40315 | AD14: =nyers_adat!AD14 -> 3570 | AE14: =nyers_adat!AE14 -> 42310
A15: =nyers_adat!A15 -> Dél-Dunántúl | B15: =nyers_adat!B15 -> régió | C15: =nyers_adat!C15 -> 2015 | D15: =nyers_adat!D15 -> 909130 | E15: =nyers_adat!E15 -> 353193 | F15: =nyers_adat!F15 -> 265328 | G15: =nyers_adat!G15 -> 135957 | H15: =nyers_adat!H15 -> 276953 | I15: =nyers_adat!I15 -> 179118 | J15: =nyers_adat!J15 -> 186990 | K15: =nyers_adat!K15 -> 203648 | L15: =nyers_adat!L15 -> 175946 | M15: =nyers_adat!M15 -> 117984 | N15: =nyers_adat!N15 -> 87956 | O15: =nyers_adat!O15 -> 124774 | P15: =nyers_adat!P15 -> 124356 | Q15: =nyers_adat!Q15 -> 696076 | R15: =nyers_adat!R15 -> 200758 | S15: =nyers_adat!S15 -> 26360 | T15: =nyers_adat!T15 -> 220062 | U15: =nyers_adat!U15 -> 9552 | V15: =nyers_adat!V15 -> 507372 | W15: =nyers_adat!W15 -> 99301 | X15: =nyers_adat!X15 -> 212637 | Y15: =nyers_adat!Y15 -> 82286 | Z15: =nyers_adat!Z15 -> 334375 | AA15: =nyers_adat!AA15 -> 1389152 | AB15: =nyers_adat!AB15 -> 104473 | AC15: =nyers_adat!AC15 -> 194292 | AD15: =nyers_adat!AD15 -> 15692 | AE15: =nyers_adat!AE15 -> 201545
A16: =nyers_adat!A16 -> Dunántúl | B16: =nyers_adat!B16 -> nagyrégió | C16: =nyers_adat!C16 -> 2015 | D16: =nyers_adat!D16 -> 2956463 | E16: =nyers_adat!E16 -> 949152 | F16: =nyers_adat!F16 -> 696446 | G16: =nyers_adat!G16 -> 497487 | H16: =nyers_adat!H16 -> 801933 | I16: =nyers_adat!I16 -> 397522 | J16: =nyers_adat!J16 -> 552766 | K16: =nyers_adat!K16 -> 601008 | L16: =nyers_adat!L16 -> 433139 | M16: =nyers_adat!M16 -> 331911 | N16: =nyers_adat!N16 -> 229919 | O16: =nyers_adat!O16 -> 377180 | P16: =nyers_adat!P16 -> 268396 | Q16: =nyers_adat!Q16 -> 1964749 | R16: =nyers_adat!R16 -> 712138 | S16: =nyers_adat!S16 -> 86487 | T16: =nyers_adat!T16 -> 550875 | U16: =nyers_adat!U16 -> 30439 | V16: =nyers_adat!V16 -> 2040930 | W16: =nyers_adat!W16 -> 325761 | X16: =nyers_adat!X16 -> 570564 | Y16: =nyers_adat!Y16 -> 229645 | Z16: =nyers_adat!Z16 -> 1080422 | AA16: =nyers_adat!AA16 -> 3568369 | AB16: =nyers_adat!AB16 -> 362087 | AC16: =nyers_adat!AC16 -> 439458 | AD16: =nyers_adat!AD16 -> 87697 | AE16: =nyers_adat!AE16 -> 580171
A17: =nyers_adat!A17 -> Borsod-Abaúj-Zemplén | B17: =nyers_adat!B17 -> megye | C17: =nyers_adat!C17 -> 2015 | D17: =nyers_adat!D17 -> 667594 | E17: =nyers_adat!E17 -> 247805 | F17: =nyers_adat!F17 -> 176648 | G17: =nyers_adat!G17 -> 94757 | H17: =nyers_adat!H17 -> 195881 | I17: =nyers_adat!I17 -> 98004 | J17: =nyers_adat!J17 -> 113578 | K17: =nyers_adat!K17 -> 152256 | L17: =nyers_adat!L17 -> 104569 | M17: =nyers_adat!M17 -> 101590 | N17: =nyers_adat!N17 -> 45932 | O17: =nyers_adat!O17 -> 69339 | P17: =nyers_adat!P17 -> 56758 | Q17: =nyers_adat!Q17 -> 464136 | R17: =nyers_adat!R17 -> 121199 | S17: =nyers_adat!S17 -> 22541 | T17: =nyers_adat!T17 -> 99978 | U17: =nyers_adat!U17 -> 4295 | V17: =nyers_adat!V17 -> 614190 | W17: =nyers_adat!W17 -> 62958 | X17: =nyers_adat!X17 -> 198499 | Y17: =nyers_adat!Y17 -> 51217 | Z17: =nyers_adat!Z17 -> 241376 | AA17: =nyers_adat!AA17 -> 760183 | AB17: =nyers_adat!AB17 -> 35201 | AC17: =nyers_adat!AC17 -> 84607 | AD17: =nyers_adat!AD17 -> 28948 | AE17: =nyers_adat!AE17 -> 211607
A18: =nyers_adat!A18 -> Heves | B18: =nyers_adat!B18 -> megye | C18: =nyers_adat!C18 -> 2015 | D18: =nyers_adat!D18 -> 301296 | E18: =nyers_adat!E18 -> 110610 | F18: =nyers_adat!F18 -> 70096 | G18: =nyers_adat!G18 -> 41270 | H18: =nyers_adat!H18 -> 98686 | I18: =nyers_adat!I18 -> 18981 | J18: =nyers_adat!J18 -> 39567 | K18: =nyers_adat!K18 -> 52583 | L18: =nyers_adat!L18 -> 25887 | M18: =nyers_adat!M18 -> 32746 | N18: =nyers_adat!N18 -> 28058 | O18: =nyers_adat!O18 -> 27403 | P18: =nyers_adat!P18 -> 21926 | Q18: =nyers_adat!Q18 -> 215834 | R18: =nyers_adat!R18 -> 75068 | S18: =nyers_adat!S18 -> 12404 | T18: =nyers_adat!T18 -> 65328 | U18: =nyers_adat!U18 -> 2436 | V18: =nyers_adat!V18 -> 111782 | W18: =nyers_adat!W18 -> 29343 | X18: =nyers_adat!X18 -> 48316 | Y18: =nyers_adat!Y18 -> 20890 | Z18: =nyers_adat!Z18 -> 102091 | AA18: =nyers_adat!AA18 -> 364410 | AB18: =nyers_adat!AB18 -> 54935 | AC18: =nyers_adat!AC18 -> 34544 | AD18: =nyers_adat!AD18 -> 8495 | AE18: =nyers_adat!AE18 -> 81680
A19: =nyers_adat!A19 -> Nógrád | B19: =nyers_adat!B19 -> megye | C19: =nyers_adat!C19 -> 2015 | D19: =nyers_adat!D19 -> 195923 | E19: =nyers_adat!E19 -> 62658 | F19: =nyers_adat!F19 -> 37874 | G19: =nyers_adat!G19 -> 26038 | H19: =nyers_adat!H19 -> 41260 | I19: =nyers_adat!I19 -> 20056 | J19: =nyers_adat!J19 -> 25725 | K19: =nyers_adat!K19 -> 35778 | L19: =nyers_adat!L19 -> 27374 | M19: =nyers_adat!M19 -> 24814 | N19: =nyers_adat!N19 -> 11700 | O19: =nyers_adat!O19 -> 11751 | P19: =nyers_adat!P19 -> 8069 | Q19: =nyers_adat!Q19 -> 135021 | R19: =nyers_adat!R19 -> 38747 | S19: =nyers_adat!S19 -> 3667 | T19: =nyers_adat!T19 -> 40476 | U19: =nyers_adat!U19 -> 1562 | V19: =nyers_adat!V19 -> 107851 | W19: =nyers_adat!W19 -> 15388 | X19: =nyers_adat!X19 -> 34425 | Y19: =nyers_adat!Y19 -> 8860 | Z19: =nyers_adat!Z19 -> 62613 | AA19: =nyers_adat!AA19 -> 177633 | AB19: =nyers_adat!AB19 -> 30887 | AC19: =nyers_adat!AC19 -> 15189 | AD19: =nyers_adat!AD19 -> 1431 | AE19: =nyers_adat!AE19 -> 35962
A20: =nyers_adat!A20 -> Észak-Magyarország | B20: =nyers_adat!B20 -> régió | C20: =nyers_adat!C20 -> 2015 | D20: =nyers_adat!D20 -> 1164813 | E20: =nyers_adat!E20 -> 421073 | F20: =nyers_adat!F20 -> 284618 | G20: =nyers_adat!G20 -> 162065 | H20: =nyers_adat!H20 -> 335827 | I20: =nyers_adat!I20 -> 137041 | J20: =nyers_adat!J20 -> 178870 | K20: =nyers_adat!K20 -> 240617 | L20: =nyers_adat!L20 -> 157830 | M20: =nyers_adat!M20 -> 159150 | N20: =nyers_adat!N20 -> 85690 | O20: =nyers_adat!O20 -> 108493 | P20: =nyers_adat!P20 -> 86753 | Q20: =nyers_adat!Q20 -> 814991 | R20: =nyers_adat!R20 -> 235014 | S20: =nyers_adat!S20 -> 38612 | T20: =nyers_adat!T20 -> 205782 | U20: =nyers_adat!U20 -> 8293 | V20: =nyers_adat!V20 -> 833823 | W20: =nyers_adat!W20 -> 107689 | X20: =nyers_adat!X20 -> 281240 | Y20: =nyers_adat!Y20 -> 80967 | Z20: =nyers_adat!Z20 -> 406080 | AA20: =nyers_adat!AA20 -> 1302226 | AB20: =nyers_adat!AB20 -> 121023 | AC20: =nyers_adat!AC20 -> 134340 | AD20: =nyers_adat!AD20 -> 38874 | AE20: =nyers_adat!AE20 -> 329249
A21: =nyers_adat!A21 -> Hajdú-Bihar | B21: =nyers_adat!B21 -> megye | C21: =nyers_adat!C21 -> 2015 | D21: =nyers_adat!D21 -> 537268 | E21: =nyers_adat!E21 -> 333594 | F21: =nyers_adat!F21 -> 163233 | G21: =nyers_adat!G21 -> 107348 | H21: =nyers_adat!H21 -> 207814 | I21: =nyers_adat!I21 -> 85353 | J21: =nyers_adat!J21 -> 131279 | K21: =nyers_adat!K21 -> 140787 | L21: =nyers_adat!L21 -> 85197 | M21: =nyers_adat!M21 -> 90628 | N21: =nyers_adat!N21 -> 57811 | O21: =nyers_adat!O21 -> 75103 | P21: =nyers_adat!P21 -> 91697 | Q21: =nyers_adat!Q21 -> 470855 | R21: =nyers_adat!R21 -> 145526 | S21: =nyers_adat!S21 -> 25954 | T21: =nyers_adat!T21 -> 112430 | U21: =nyers_adat!U21 -> 7842 | V21: =nyers_adat!V21 -> 415602 | W21: =nyers_adat!W21 -> 63248 | X21: =nyers_adat!X21 -> 186788 | Y21: =nyers_adat!Y21 -> 48905 | Z21: =nyers_adat!Z21 -> 258037 | AA21: =nyers_adat!AA21 -> 992020 | AB21: =nyers_adat!AB21 -> 63666 | AC21: =nyers_adat!AC21 -> 97846 | AD21: =nyers_adat!AD21 -> 58235 | AE21: =nyers_adat!AE21 -> 129635
A22: =nyers_adat!A22 -> Jász-Nagykun-Szolnok | B22: =nyers_adat!B22 -> megye | C22: =nyers_adat!C22 -> 2015 | D22: =nyers_adat!D22 -> 379897 | E22: =nyers_adat!E22 -> 145437 | F22: =nyers_adat!F22 -> 73756 | G22: =nyers_adat!G22 -> 57864 | H22: =nyers_adat!H22 -> 86719 | I22: =nyers_adat!I22 -> 26645 | J22: =nyers_adat!J22 -> 70072 | K22: =nyers_adat!K22 -> 47058 | L22: =nyers_adat!L22 -> 57558 | M22: =nyers_adat!M22 -> 28071 | N22: =nyers_adat!N22 -> 17693 | O22: =nyers_adat!O22 -> 54129 | P22: =nyers_adat!P22 -> 22841 | Q22: =nyers_adat!Q22 -> 264627 | R22: =nyers_adat!R22 -> 172112 | S22: =nyers_adat!S22 -> 6942 | T22: =nyers_adat!T22 -> 57517 | U22: =nyers_adat!U22 -> 256 | V22: =nyers_adat!V22 -> 227791 | W22: =nyers_adat!W22 -> 26368 | X22: =nyers_adat!X22 -> 65651 | Y22: =nyers_adat!Y22 -> 28485 | Z22: =nyers_adat!Z22 -> 134369 | AA22: =nyers_adat!AA22 -> 543464 | AB22: =nyers_adat!AB22 -> 57508 | AC22: =nyers_adat!AC22 -> 43308 | AD22: =nyers_adat!AD22 -> 9824 | AE22: =nyers_adat!AE22 -> 128675
A23: =nyers_adat!A23 -> Szabolcs-Szatmár-Bereg | B23: =nyers_adat!B23 -> megye | C23: =nyers_adat!C23 -> 2015 | D23: =nyers_adat!D23 -> 562357 | E23: =nyers_adat!E23 -> 233215 | F23: =nyers_adat!F23 -> 73136 | G23: =nyers_adat!G23 -> 110579 | H23: =nyers_adat!H23 -> 123665 | I23: =nyers_adat!I23 -> 80688 | J23: =nyers_adat!J23 -> 107775 | K23: =nyers_adat!K23 -> 96157 | L23: =nyers_adat!L23 -> 68317 | M23: =nyers_adat!M23 -> 66950 | N23: =nyers_adat!N23 -> 41092 | O23: =nyers_adat!O23 -> 56038 | P23: =nyers_adat!P23 -> 33228 | Q23: =nyers_adat!Q23 -> 395971 | R23: =nyers_adat!R23 -> 132875 | S23: =nyers_adat!S23 -> 17179 | T23: =nyers_adat!T23 -> 82955 | U23: =nyers_adat!U23 -> 7482 | V23: =nyers_adat!V23 -> 225453 | W23: =nyers_adat!W23 -> 56250 | X23: =nyers_adat!X23 -> 115132 | Y23: =nyers_adat!Y23 -> 41122 | Z23: =nyers_adat!Z23 -> 218076 | AA23: =nyers_adat!AA23 -> 739801 | AB23: =nyers_adat!AB23 -> 66745 | AC23: =nyers_adat!AC23 -> 53170 | AD23: =nyers_adat!AD23 -> 22722 | AE23: =nyers_adat!AE23 -> 176945
A24: =nyers_adat!A24 -> Észak-Alföld | B24: =nyers_adat!B24 -> régió | C24: =nyers_adat!C24 -> 2015 | D24: =nyers_adat!D24 -> 1479522 | E24: =nyers_adat!E24 -> 712246 | F24: =nyers_adat!F24 -> 310125 | G24: =nyers_adat!G24 -> 275791 | H24: =nyers_adat!H24 -> 418198 | I24: =nyers_adat!I24 -> 192686 | J24: =nyers_adat!J24 -> 309126 | K24: =nyers_adat!K24 -> 284002 | L24: =nyers_adat!L24 -> 211072 | M24: =nyers_adat!M24 -> 185649 | N24: =nyers_adat!N24 -> 116596 | O24: =nyers_adat!O24 -> 185270 | P24: =nyers_adat!P24 -> 147766 | Q24: =nyers_adat!Q24 -> 1131453 | R24: =nyers_adat!R24 -> 450513 | S24: =nyers_adat!S24 -> 50075 | T24: =nyers_adat!T24 -> 252902 | U24: =nyers_adat!U24 -> 15580 | V24: =nyers_adat!V24 -> 868846 | W24: =nyers_adat!W24 -> 145866 | X24: =nyers_adat!X24 -> 367571 | Y24: =nyers_adat!Y24 -> 118512 | Z24: =nyers_adat!Z24 -> 610482 | AA24: =nyers_adat!AA24 -> 2275285 | AB24: =nyers_adat!AB24 -> 187919 | AC24: =nyers_adat!AC24 -> 194324 | AD24: =nyers_adat!AD24 -> 90781 | AE24: =nyers_adat!AE24 -> 435255
A25: =nyers_adat!A25 -> Bács-Kiskun | B25: =nyers_adat!B25 -> megye | C25: =nyers_adat!C25 -> 2015 | D25: =nyers_adat!D25 -> 513687 | E25: =nyers_adat!E25 -> 199932 | F25: =nyers_adat!F25 -> 87898 | G25: =nyers_adat!G25 -> 115084 | H25: =nyers_adat!H25 -> 131674 | I25: =nyers_adat!I25 -> 31937 | J25: =nyers_adat!J25 -> 81334 | K25: =nyers_adat!K25 -> 92386 | L25: =nyers_adat!L25 -> 102500 | M25: =nyers_adat!M25 -> 57213 | N25: =nyers_adat!N25 -> 26655 | O25: =nyers_adat!O25 -> 61988 | P25: =nyers_adat!P25 -> 53327 | Q25: =nyers_adat!Q25 -> 346617 | R25: =nyers_adat!R25 -> 92963 | S25: =nyers_adat!S25 -> 16615 | T25: =nyers_adat!T25 -> 100312 | U25: =nyers_adat!U25 -> 55330 | V25: =nyers_adat!V25 -> 360500 | W25: =nyers_adat!W25 -> 48335 | X25: =nyers_adat!X25 -> 91348 | Y25: =nyers_adat!Y25 -> 27082 | Z25: =nyers_adat!Z25 -> 212488 | AA25: =nyers_adat!AA25 -> 697361 | AB25: =nyers_adat!AB25 -> 78426 | AC25: =nyers_adat!AC25 -> 69972 | AD25: =nyers_adat!AD25 -> 1730 | AE25: =nyers_adat!AE25 -> 83061
A26: =nyers_adat!A26 -> Békés | B26: =nyers_adat!B26 -> megye | C26: =nyers_adat!C26 -> 2015 | D26: =nyers_adat!D26 -> 351148 | E26: =nyers_adat!E26 -> 117889 | F26: =nyers_adat!F26 -> 70237 | G26: =nyers_adat!G26 -> 40217 | H26: =nyers_adat!H26 -> 87865 | I26: =nyers_adat!I26 -> 39538 | J26: =nyers_adat!J26 -> 94312 | K26: =nyers_adat!K26 -> 64490 | L26: =nyers_adat!L26 -> 61569 | M26: =nyers_adat!M26 -> 44059 | N26: =nyers_adat!N26 -> 27678 | O26: =nyers_adat!O26 -> 45821 | P26: =nyers_adat!P26 -> 36208 | Q26: =nyers_adat!Q26 -> 219060 | R26: =nyers_adat!R26 -> 76811 | S26: =nyers_adat!S26 -> 8143 | T26: =nyers_adat!T26 -> 79406 | U26: =nyers_adat!U26 -> 4968 | V26: =nyers_adat!V26 -> 214407 | W26: =nyers_adat!W26 -> 33430 | X26: =nyers_adat!X26 -> 86121 | Y26: =nyers_adat!Y26 -> 28926 | Z26: =nyers_adat!Z26 -> 136995 | AA26: =nyers_adat!AA26 -> 458144 | AB26: =nyers_adat!AB26 -> 59832 | AC26: =nyers_adat!AC26 -> 63679 | AD26: =nyers_adat!AD26 -> 3737 | AE26: =nyers_adat!AE26 -> 72987
A27: =nyers_adat!A27 -> Csongrád-Csanád | B27: =nyers_adat!B27 -> megye | C27: =nyers_adat!C27 -> 2015 | D27: =nyers_adat!D27 -> 406205 | E27: =nyers_adat!E27 -> 240477 | F27: =nyers_adat!F27 -> 125930 | G27: =nyers_adat!G27 -> 70504 | H27: =nyers_adat!H27 -> 162956 | I27: =nyers_adat!I27 -> 104407 | J27: =nyers_adat!J27 -> 85582 | K27: =nyers_adat!K27 -> 106357 | L27: =nyers_adat!L27 -> 98464 | M27: =nyers_adat!M27 -> 61317 | N27: =nyers_adat!N27 -> 42872 | O27: =nyers_adat!O27 -> 68526 | P27: =nyers_adat!P27 -> 41517 | Q27: =nyers_adat!Q27 -> 310787 | R27: =nyers_adat!R27 -> 76104 | S27: =nyers_adat!S27 -> 13284 | T27: =nyers_adat!T27 -> 119245 | U27: =nyers_adat!U27 -> 20422 | V27: =nyers_adat!V27 -> 329304 | W27: =nyers_adat!W27 -> 57737 | X27: =nyers_adat!X27 -> 104089 | Y27: =nyers_adat!Y27 -> 41087 | Z27: =nyers_adat!Z27 -> 153045 | AA27: =nyers_adat!AA27 -> 861467 | AB27: =nyers_adat!AB27 -> 64666 | AC27: =nyers_adat!AC27 -> 77967 | AD27: =nyers_adat!AD27 -> 9207 | AE27: =nyers_adat!AE27 -> 70503
A28: =nyers_adat!A28 -> Dél-Alföld | B28: =nyers_adat!B28 -> régió | C28: =nyers_adat!C28 -> 2015 | D28: =nyers_adat!D28 -> 1271040 | E28: =nyers_adat!E28 -> 558298 | F28: =nyers_adat!F28 -> 284065 | G28: =nyers_adat!G28 -> 225805 | H28: =nyers_adat!H28 -> 382495 | I28: =nyers_adat!I28 -> 175882 | J28: =nyers_adat!J28 -> 261228 | K28: =nyers_adat!K28 -> 263233 | L28: =nyers_adat!L28 -> 262533 | M28: =nyers_adat!M28 -> 162589 | N28: =nyers_adat!N28 -> 97205 | O28: =nyers_adat!O28 -> 176335 | P28: =nyers_adat!P28 -> 131052 | Q28: =nyers_adat!Q28 -> 876464 | R28: =nyers_adat!R28 -> 245878 | S28: =nyers_adat!S28 -> 38042 | T28: =nyers_adat!T28 -> 298963 | U28: =nyers_adat!U28 -> 80720 | V28: =nyers_adat!V28 -> 904211 | W28: =nyers_adat!W28 -> 139502 | X28: =nyers_adat!X28 -> 281558 | Y28: =nyers_adat!Y28 -> 97095 | Z28: =nyers_adat!Z28 -> 502528 | AA28: =nyers_adat!AA28 -> 2016972 | AB28: =nyers_adat!AB28 -> 202924 | AC28: =nyers_adat!AC28 -> 211618 | AD28: =nyers_adat!AD28 -> 14674 | AE28: =nyers_adat!AE28 -> 226551
A29: =nyers_adat!A29 -> Alföld és Észak | B29: =nyers_adat!B29 -> nagyrégió | C29: =nyers_adat!C29 -> 2015 | D29: =nyers_adat!D29 -> 3915375 | E29: =nyers_adat!E29 -> 1691617 | F29: =nyers_adat!F29 -> 878808 | G29: =nyers_adat!G29 -> 663661 | H29: =nyers_adat!H29 -> 1136520 | I29: =nyers_adat!I29 -> 505609 | J29: =nyers_adat!J29 -> 749224 | K29: =nyers_adat!K29 -> 787852 | L29: =nyers_adat!L29 -> 631435 | M29: =nyers_adat!M29 -> 507388 | N29: =nyers_adat!N29 -> 299491 | O29: =nyers_adat!O29 -> 470098 | P29: =nyers_adat!P29 -> 365571 | Q29: =nyers_adat!Q29 -> 2822908 | R29: =nyers_adat!R29 -> 931405 | S29: =nyers_adat!S29 -> 126729 | T29: =nyers_adat!T29 -> 757647 | U29: =nyers_adat!U29 -> 104593 | V29: =nyers_adat!V29 -> 2606880 | W29: =nyers_adat!W29 -> 393057 | X29: =nyers_adat!X29 -> 930369 | Y29: =nyers_adat!Y29 -> 296574 | Z29: =nyers_adat!Z29 -> 1519090 | AA29: =nyers_adat!AA29 -> 5594483 | AB29: =nyers_adat!AB29 -> 511866 | AC29: =nyers_adat!AC29 -> 540282 | AD29: =nyers_adat!AD29 -> 144329 | AE29: =nyers_adat!AE29 -> 991055
A30: =nyers_adat!A30 -> Ország összesen | B30: =nyers_adat!B30 -> ország | C30: =nyers_adat!C30 -> 2015 | D30: =nyers_adat!D30 -> 9855571 | E30: =nyers_adat!E30 -> 4090789 | F30: =nyers_adat!F30 -> 2658232 | G30: =nyers_adat!G30 -> 1669007 | H30: =nyers_adat!H30 -> 3006101 | I30: =nyers_adat!I30 -> 1483878 | J30: =nyers_adat!J30 -> 2179174 | K30: =nyers_adat!K30 -> 2321112 | L30: =nyers_adat!L30 -> 1841867 | M30: =nyers_adat!M30 -> 1297456 | N30: =nyers_adat!N30 -> 979877 | O30: =nyers_adat!O30 -> 1440083 | P30: =nyers_adat!P30 -> 998559 | Q30: =nyers_adat!Q30 -> 7065256 | R30: =nyers_adat!R30 -> 2836583 | S30: =nyers_adat!S30 -> 328260 | T30: =nyers_adat!T30 -> 2148543 | U30: =nyers_adat!U30 -> 210252 | V30: =nyers_adat!V30 -> 7024872 | W30: =nyers_adat!W30 -> 1096388 | X30: =nyers_adat!X30 -> 2132453 | Y30: =nyers_adat!Y30 -> 792722 | Z30: =nyers_adat!Z30 -> 3901424 | AA30: =nyers_adat!AA30 -> 14797702 | AB30: =nyers_adat!AB30 -> 1110285 | AC30: =nyers_adat!AC30 -> 1833814 | AD30: =nyers_adat!AD30 -> 419842 | AE30: =nyers_adat!AE30 -> 2421285
E32: =E2/$D2 -> 0.4859751191 | F32: =F2/$D2 -> 0.3629607609 | G32: 0.1702092647 | H32: 0.3578229017 | I32: =I2/$D2 -> 0.194637724 | J32: 0.2939887718 | K32: 0.3124448468 | L32: 0.26051024 | M32: 0.153551608 | N32: 0.1509742996 | O32: 0.1986789703 | P32: 0.1221932391 | Q32: 0.7633387438 | R32: 0.3998481097 | S32: 0.03855706928 | T32: 0.2815335689 | U32: 0.02521003052 | V32: 0.7966738311 | W32: 0.126542824 | X32: 0.211654327 | Y32: 0.08931864882 | Z32: =Z2/$D2 -> 0.4363366293 | AA32: 1.888523537 | AB32: 0.07920681911 | AC32: 0.2862434407 | AD32: =AD2/$D2 -> 0.06294665106 | AE32: =AE2/$D2 -> 0.2848978109
E33: =E3/$D3 -> 0.4859751191 | F33: 0.3629607609 | G33: 0.1702092647 | H33: 0.3578229017 | I33: 0.194637724 | J33: =J3/$D3 -> 0.2939887718 | K33: 0.3124448468 | L33: 0.26051024 | M33: 0.153551608 | N33: 0.1509742996 | O33: 0.1986789703 | P33: 0.1221932391 | Q33: 0.7633387438 | R33: 0.3998481097 | S33: 0.03855706928 | T33: 0.2815335689 | U33: 0.02521003052 | V33: 0.7966738311 | W33: 0.126542824 | X33: 0.211654327 | Y33: 0.08931864882 | Z33: 0.4363366293 | AA33: 1.888523537 | AB33: 0.07920681911 | AC33: 0.2862434407 | AD33: 0.06294665106 | AE33: 0.2848978109
E34: =E4/$D4 -> 0.3184022066 | F34: 0.2041896224 | G34: 0.1585223069 | H34: 0.2746000848 | I34: 0.1338509904 | J34: 0.2087101432 | K34: 0.1963840623 | L34: 0.1160777779 | M34: 0.102595229 | N34: 0.09312320574 | O34: 0.09535233963 | P34: 0.05678185854 | Q34: 0.7322884418 | R34: 0.2191111718 | S34: 0.03733978848 | T34: 0.1421809118 | U34: 0.006656275215 | V34: 0.6794165464 | W34: 0.09146392562 | X34: 0.2230809935 | Y34: 0.06518839893 | Z34: 0.4116954108 | AA34: 1.175859749 | AB34: 0.1832486933 | AC34: 0.1346602786 | AD34: 0.009455262887 | AE34: 0.1811296992
E35: =E5/$D5 -> 0.3155227174 | F35: 0.2602487379 | G35: 0.1352378724 | H35: 0.2783591321 | I35: 0.1091103607 | J35: 0.1744742737 | K35: 0.2003644144 | L35: 0.1923105212 | M35: 0.1137975995 | N35: 0.06074688242 | O35: 0.13096854 | P35: 0.04501354017 | Q35: 0.5840226004 | R35: 0.2781953128 | S35: 0.02142355655 | T35: 0.1751763565 | U35: 0.02297482532 | V35: 0.9343251647 | W35: 0.08647320384 | X35: 0.1701715088 | Y35: 0.04332185484 | Z35: 0.3898030825 | AA35: 0.9531944769 | AB35: 0.07038882017 | AC35: 0.1129350406 | AD35: 0.009013406439 | AE35: 0.1839925111
E36: =E6/$D6 -> 0.2837007099 | F36: 0.2167421036 | G36: 0.2209942679 | H36: 0.2485467926 | I36: 0.09629969392 | J36: 0.2031576791 | K36: 0.2129111171 | L36: 0.1201020058 | M36: 0.1028308337 | N36: 0.03537893015 | O36: 0.1267485367 | P36: 0.05723978572 | Q36: 0.6772970774 | R36: 0.2904655168 | S36: 0.03839640903 | T36: 0.2129284257 | U36: 0.01110351453 | V36: 0.7186619241 | W36: 0.08275565633 | X36: 0.1841556396 | Y36: 0.07723130447 | Z36: 0.3357161608 | AA36: 0.8751467631 | AB36: =AB6/$D6 -> 0.08062957418 | AC36: 0.1422974957 | AD36: 0.09609198983 | AE36: 0.232795899
E37: =E7/$D7 -> 0.306280374 | F37: 0.2240494711 | G37: 0.1723374283 | H37: 0.2671646254 | I37: 0.1146511969 | J37: 0.1972704738 | K37: 0.2028910823 | L37: 0.1388319441 | M37: 0.1058229767 | N37: 0.06519322781 | O37: 0.115604735 | P37: 0.05362099965 | Q37: 0.6726590359 | R37: 0.2589899643 | S37: 0.03320738606 | T37: 0.1745237952 | U37: 0.0126959737 | V37: 0.7639090547 | W37: 0.08722146157 | X37: 0.1955100958 | Y37: 0.06296360381 | Z37: 0.3807701277 | AA37: 1.015203948 | AB37: 0.1180525255 | AC37: 0.1310390744 | AD37: 0.03757259678 | AE37: 0.1987769511
E38: =E8/$D8 -> 0.239299396 | F38: 0.213088605 | G38: 0.1985714854 | H38: 0.2491019313 | I38: 0.1114444656 | J38: 0.1453921235 | K38: 0.1638925587 | L38: 0.09829046611 | M38: 0.08880606577 | N38: 0.0663576633 | O38: 0.1393188376 | P38: 0.07949619784 | Q38: 0.5443422779 | R38: 0.1539397929 | S38: =S8/$D8 -> 0.02564742686 | T38: 0.1749853083 | U38: 0.008373137032 | V38: 0.6165324166 | W38: 0.1805570898 | X38: 0.170873855 | Y38: 0.08449356881 | Z38: 0.3866135852 | AA38: 0.9418210579 | AB38: 0.1629182702 | AC38: 0.1087602013 | AD38: 0.01408852107 | AE38: 0.1460902531
E39: =E9/$D9 -> 0.2911176116 | F39: 0.2051480923 | G39: 0.09352472667 | H39: 0.245963535 | I39: 0.07729618854 | J39: 0.1619271094 | K39: 0.1898526361 | L39: 0.1176667441 | M39: 0.1005129982 | N39: 0.04255955779 | O39: 0.1205092974 | P39: 0.1113280866 | Q39: 0.5204510289 | R39: 0.3008815065 | S39: 0.02261837738 | T39: 0.1223400276 | U39: 0.00468903176 | V39: 0.4970058701 | W39: 0.09885156124 | X39: 0.08519785667 | Y39: 0.07559144399 | Z39: 0.294471982 | AA39: 1.182301366 | AB39: 0.1190092796 | AC39: 0.05700854735 | AD39: 0.04942578062 | AE39: 0.1697539735
E40: =E10/$D10 -> 0.317353673 | F40: 0.1597713585 | G40: 0.2330736774 | H40: 0.2367485304 | I40: 0.09522882181 | J40: 0.1769194706 | K40: 0.2134876844 | L40: 0.1268743914 | M40: 0.1286270691 | N40: 0.1146453172 | O40: 0.1291103177 | P40: 0.08207652638 | Q40: 0.6303112265 | R40: 0.3240866962 | S40: 0.02690324209 | T40: 0.1260196906 | U40: 0.008673230192 | V40: 1.139265751 | W40: 0.09691297919 | X40: 0.1840527967 | Y40: 0.08279418659 | Z40: 0.3294096433 | AA40: 1.345291933 | AB40: 0.1013559811 | AC40: 0.1518590645 | AD40: 0.04731147896 | AE40: 0.2091745104
E41: =E11/$D11 -> 0.2746733745 | F41: 0.1960129075 | G41: 0.1811774271 | H41: 0.244810326 | I41: 0.0980593033 | J41: 0.1585456209 | K41: 0.1845709785 | L41: 0.1113479178 | M41: 0.1030505374 | N41: 0.0738226999 | O41: 0.131586249 | P41: 0.088440684 | Q41: 0.5624026222 | R41: =R11/$D11 -> 0.2398231573 | S41: 0.02521940189 | T41: 0.1475955993 | U41: 0.007506669716 | V41: 0.7329938766 | W41: 0.1358924715 | X41: 0.1524709709 | Y41: 0.08171659425 | Z41: 0.3467063038 | AA41: 1.117606525 | AB41: 0.1342338085 | AC41: 0.1075468151 | AD41: =AD11/$D11 -> 0.03257362096 | AE41: 0.1699773865
E42: =E12/$D12 -> 0.4312063809 | F42: 0.3013230579 | G42: 0.1673008003 | H42: 0.338225863 | I42: 0.2735577053 | J42: 0.224884805 | K42: 0.253383094 | L42: 0.2316779392 | M42: 0.136288432 | N42: 0.08841044434 | O42: 0.1882272103 | P42: 0.1793915551 | Q42: 0.9690172725 | R42: 0.2800786829 | S42: 0.02910188354 | T42: 0.3043545041 | U42: 0.01094823637 | V42: 0.6364258576 | W42: 0.138260893 | X42: 0.2918406941 | Y42: 0.09852065425 | Z42: 0.399455687 | AA42: 1.851437579 | AB42: 0.08558378917 | AC42: 0.2954945973 | AD42: 0.02687612837 | AE42: 0.2693082913
E43: =E13/$D13 -> 0.340292998 | F43: 0.3451346432 | G43: 0.1003127363 | H43: 0.2600966406 | I43: 0.1173594289 | J43: 0.1817747786 | K43: 0.2086169108 | L43: 0.1821624947 | M43: 0.1245017367 | N43: 0.1016200766 | O43: 0.09434639392 | P43: 0.1254598121 | Q43: 0.6111623794 | R43: 0.1769619718 | S43: 0.02374360749 | T43: 0.2266216788 | U43: 0.006450186488 | V43: 0.5293799105 | W43: 0.08776483255 | X43: 0.2190788377 | Y43: 0.1089930916 | Z43: 0.350719678 | AA43: 1.365571449 | AB43: 0.1742095077 | AC43: 0.1420002307 | AD43: 0.006882762333 | AE43: 0.1899873111
E44: =E14/$D14 -> 0.3849231641 | F44: 0.2026812903 | G44: 0.1883896325 | H44: 0.310981871 | I44: 0.1813433893 | J44: 0.2071560088 | K44: 0.196998265 | L44: 0.1465813328 | M44: 0.1263676439 | N44: 0.1037107854 | O44: 0.1127620211 | P44: 0.0824481269 | Q44: 0.6450056653 | R44: 0.1840831032 | S44: 0.03607216203 | T44: 0.1610544579 | U44: 0.01538488776 | V44: 0.4690576092 | W44: 0.09118068834 | X44: 0.1591645422 | Y44: 0.05182441045 | Z44: 0.3393837193 | AA44: 1.221106862 | AB44: 0.08119113377 | AC44: 0.1784354862 | AD44: 0.01580093478 | AE44: 0.1872654203
E45: =E15/$D15 -> 0.3884955947 | F45: 0.2918482505 | G45: 0.1495462695 | H45: 0.3046352007 | I45: 0.1970213281 | J45: 0.2056801558 | K45: 0.2240031679 | L45: 0.1935322781 | M45: 0.1297768196 | N45: =N15/$D15 -> 0.09674743986 | O45: 0.1372454984 | P45: 0.1367857182 | Q45: 0.765650677 | R45: 0.2208243046 | S45: 0.02899475323 | T45: 0.2420577915 | U45: 0.01050674821 | V45: 0.5580852023 | W45: 0.1092264033 | X45: 0.2338906427 | Y45: 0.09051070804 | Z45: 0.3677966847 | AA45: 1.528001496 | AB45: 0.1149153586 | AC45: 0.2137120104 | AD45: 0.0172604578 | AE45: 0.2216899673
E46: =E16/$D16 -> 0.3210430843 | F46: 0.2355672978 | G46: 0.1682710049 | H46: 0.2712474332 | I46: 0.134458642 | J46: 0.1869686852 | K46: 0.2032861565 | L46: 0.1465058078 | M46: 0.1122662452 | N46: 0.07776826566 | O46: 0.1275781229 | P46: 0.09078280364 | Q46: 0.6645606591 | R46: 0.2408749915 | S46: 0.02925353708 | T46: 0.1863290696 | U46: 0.01029574867 | V46: 0.690328274 | W46: 0.1101860568 | X46: 0.1929887166 | Y46: 0.07767558735 | Z46: 0.3654441135 | AA46: 1.206972318 | AB46: 0.1224730362 | AC46: 0.1486431591 | AD46: 0.02966280992 | AE46: 0.1962382076
E47: =E17/$D17 -> 0.3711911731 | F47: 0.2646039359 | G47: 0.1419380642 | H47: 0.293413362 | I47: 0.1468017987 | J47: 0.1701303487 | K47: 0.2280667591 | L47: 0.1566356199 | M47: 0.1521733269 | N47: 0.06880229601 | O47: 0.1038640251 | P47: 0.08501873893 | Q47: 0.6952369254 | R47: 0.1815459696 | S47: 0.03376453353 | T47: 0.1497586857 | U47: 0.006433550931 | V47: 0.9200052727 | W47: 0.0943058206 | X47: 0.2973349071 | Y47: 0.07671878417 | Z47: 0.3615610686 | AA47: 1.138690581 | AB47: 0.05272815514 | AC47: 0.1267342127 | AD47: 0.0433616839 | AE47: 0.3169695953
E48: =E18/$D18 -> 0.3671140672 | F48: 0.2326482927 | G48: 0.1369749349 | H48: 0.3275383676 | I48: 0.06299784929 | J48: 0.131322686 | K48: 0.1745227285 | L48: 0.08591883065 | M48: 0.1086838192 | N48: 0.09312436939 | O48: 0.09095042749 | P48: 0.07277229037 | Q48: 0.7163520259 | R48: 0.2491503372 | S48: 0.04116881738 | T48: 0.2168233232 | U48: 0.008085072487 | V48: 0.3710039297 | W48: 0.09738927832 | X48: 0.1603605756 | Y48: 0.06933381127 | Z48: 0.3388395465 | AA48: 1.209475068 | AB48: 0.1823290054 | AC48: 0.1146513727 | AD48: 0.02819486485 | AE48: 0.271095534
E49: =E19/$D19 -> 0.3198093128 | F49: 0.1933106373 | G49: 0.1328991492 | H49: 0.210592937 | I49: 0.1023667461 | J49: 0.1313015828 | K49: 0.182612557 | L49: 0.1397181546 | M49: 0.1266517969 | N49: 0.05971733793 | O49: 0.05997764428 | P49: 0.04118454699 | Q49: 0.6891533919 | R49: 0.1977664695 | S49: 0.0187165366 | T49: 0.206591365 | U49: 0.007972519816 | V49: 0.5504764627 | W49: 0.0785410595 | X49: 0.1757067828 | Y49: 0.04522184736 | Z49: 0.3195796308 | AA49: 0.9066469991 | AB49: 0.1576486681 | AC49: 0.07752535435 | AD49: 0.007303889793 | AE49: 0.1835517014
E50: =E20/$D20 -> 0.3614940767 | F50: 0.2443465174 | G50: 0.1391339211 | H50: 0.2883097974 | I50: 0.1176506444 | J50: 0.1535611296 | K50: 0.2065713552 | L50: 0.1354981443 | M50: 0.1366313734 | N50: 0.07356545643 | O50: 0.09314198932 | P50: 0.07447804927 | Q50: 0.6996753985 | R50: 0.2017611411 | S50: 0.0331486685 | T50: 0.1766652673 | U50: 0.007119597738 | V50: 0.7158428005 | W50: 0.09245174977 | X50: 0.2414464811 | Y50: 0.06951072833 | Z50: 0.3486224828 | AA50: 1.117970009 | AB50: 0.1038990808 | AC50: 0.1153318172 | AD50: 0.03337359731 | AE50: 0.282662539
E51: =E21/$D21 -> 0.6209080012 | F51: 0.3038204397 | G51: 0.19980345 | H51: 0.3867976503 | I51: 0.1588648496 | J51: 0.2443454663 | K51: 0.2620424071 | L51: 0.1585744917 | M51: 0.1686830409 | N51: 0.1076017928 | O51: 0.1397868475 | P51: 0.1706727369 | Q51: 0.8763875757 | R51: 0.2708629585 | S51: 0.04830736243 | T51: 0.2092624165 | U51: 0.01459606751 | V51: 0.7735469077 | W51: 0.1177215096 | X51: 0.347662619 | Y51: 0.09102533559 | Z51: 0.4802761378 | AA51: 1.846415569 | AB51: 0.1184995198 | AC51: 0.1821176768 | AD51: 0.1083909706 | AE51: 0.2412855409
E52: =E22/$D22 -> 0.3828327152 | F52: 0.194147361 | G52: 0.1523149696 | H52: 0.2282697679 | I52: 0.07013743199 | J52: 0.1844499957 | K52: 0.1238704175 | L52: 0.1515094881 | M52: 0.073891081 | N52: 0.04657315009 | O52: 0.1424833573 | P52: 0.06012419156 | Q52: 0.6965756508 | R52: 0.4530491159 | S52: 0.0182733741 | T52: 0.1514015641 | U52: 0.0006738668639 | V52: 0.5996125266 | W52: 0.06940828698 | X52: 0.1728126308 | Y52: 0.07498085007 | Z52: 0.3536985025 | AA52: 1.430556177 | AB52: 0.1513778735 | AC52: 0.1139993209 | AD52: 0.0258596409 | AE52: 0.3387102294
E53: =E23/$D23 -> 0.4147098729 | F53: 0.1300526178 | G53: 0.1966348778 | H53: 0.2199047936 | I53: 0.1434818096 | J53: 0.1916487214 | K53: 0.170989247 | L53: 0.1214833282 | M53: 0.119052488 | N53: 0.07307102072 | O53: 0.09964844396 | P53: 0.05908702123 | Q53: 0.7041274493 | R53: 0.2362822904 | S53: 0.03054821048 | T53: 0.1475130567 | U53: 0.01330471569 | V53: 0.4009072529 | W53: 0.1000254287 | X53: 0.2047311583 | Y53: 0.07312436762 | Z53: 0.3877892513 | AA53: 1.315536216 | AB53: 0.1186879509 | AC53: 0.09454848077 | AD53: 0.0404049385 | AE53: 0.3146488796
E54: =E24/$D24 -> 0.4814027774 | F54: 0.2096116178 | G54: 0.1864054742 | H54: 0.282657507 | I54: 0.1302353057 | J54: 0.2089363997 | K54: 0.1919552396 | L54: 0.1426622923 | M54: 0.1254790399 | N54: 0.07880653346 | O54: 0.125222876 | P54: 0.09987414854 | Q54: 0.7647422614 | R54: 0.3044990206 | S54: 0.03384539061 | T54: 0.1709349371 | U54: 0.01053042807 | V54: 0.5872477733 | W54: 0.09858995 | X54: 0.2484390229 | Y54: 0.08010154631 | Z54: 0.4126211033 | AA54: 1.537851414 | AB54: 0.1270133192 | AC54: 0.1313424201 | AD54: 0.0613583306 | AE54: 0.2941862304
E55: =E25/$D25 -> 0.3892097717 | F55: 0.1711119806 | G55: 0.2240352588 | H55: 0.25633119 | I55: 0.06217210091 | J55: 0.1583337713 | K55: 0.1798488184 | L55: 0.1995378509 | M55: 0.1113771616 | N55: 0.05188957478 | O55: 0.1206727054 | P55: 0.1038122436 | Q55: 0.6747630366 | R55: 0.1809720705 | S55: 0.03234459895 | T55: 0.1952784478 | U55: 0.1077115053 | V55: 0.7017892218 | W55: 0.09409426363 | X55: 0.1778281327 | Y55: 0.05272082027 | Z55: 0.4136526718 | AA55: 1.357560148 | AB55: 0.1526727365 | AC55: 0.1362152439 | AD55: 0.003367809581 | AE55: 0.1616957408
E56: =E26/$D26 -> 0.3357245378 | F56: 0.2000210737 | G56: 0.1145300557 | H56: 0.2502221286 | I56: 0.1125963981 | J56: 0.2685819085 | K56: 0.1836547553 | L56: 0.1753363254 | M56: 0.1254713112 | N56: 0.07882146559 | O56: 0.1304891385 | P56: 0.1031132172 | Q56: 0.6238395207 | R56: 0.2187425245 | S56: 0.02318965223 | T56: 0.2261325709 | U56: 0.01414788067 | V56: 0.6105886976 | W56: 0.09520202308 | X56: 0.2452555618 | Y56: 0.08237552257 | Z56: 0.3901346441 | AA56: 1.30470343 | AB56: 0.1703896932 | AC56: 0.1813451878 | AD56: 0.01064223632 | AE56: 0.2078525294
E57: =E27/$D27 -> 0.592008961 | F57: 0.3100158787 | G57: 0.1735675336 | H57: 0.4011668985 | I57: 0.2570303172 | J57: 0.2106867222 | K57: 0.261830849 | L57: 0.2423997735 | M57: 0.1509508746 | N57: 0.1055427678 | O57: 0.1686980712 | P57: 0.1022070137 | Q57: 0.7650989033 | R57: 0.1873536761 | S57: 0.03270269938 | T57: 0.2935586711 | U57: 0.0502751074 | V57: 0.8106842604 | W57: 0.1421375906 | X57: 0.2562474613 | Y57: 0.1011484349 | Z57: 0.3767678881 | AA57: 2.12076907 | AB57: 0.1591954801 | AC57: 0.1919400303 | AD57: 0.0226658953 | AE57: 0.1735650718
E58: =E28/$D28 -> 0.4392450277 | F58: 0.2234902127 | G58: 0.1776537324 | H58: 0.3009307339 | I58: 0.1383764476 | J58: 0.2055230363 | K58: 0.2071004846 | L58: 0.2065497545 | M58: 0.1279180828 | N58: 0.07647674345 | O58: 0.1387328487 | P58: 0.1031061178 | Q58: 0.6895644512 | R58: 0.1934463117 | S58: 0.02992982125 | T58: 0.235211323 | U58: 0.06350704935 | V58: 0.711394606 | W58: 0.109754217 | X58: 0.2215178122 | Y58: 0.07639020015 | Z58: 0.395367573 | AA58: 1.586867447 | AB58: 0.1596519386 | AC58: 0.1664920065 | AD58: 0.01154487664 | AE58: 0.1782406533
E59: =E29/$D29 -> 0.4320446956 | F59: 0.2244505316 | G59: 0.1695012611 | H59: 0.2902710468 | I59: 0.1291342464 | J59: 0.1913543403 | K59: 0.2012200619 | L59: 0.1612706318 | M59: 0.129588609 | N59: 0.07649101299 | O59: 0.1200646171 | P59: 0.09336806819 | Q59: 0.7209802382 | R59: 0.237883983 | S59: 0.03236701465 | T59: 0.1935056029 | U59: 0.02671340548 | V59: 0.6658059573 | W59: 0.1003880854 | X59: 0.2376193851 | Y59: 0.07574600134 | Z59: 0.387980717 | AA59: 1.428849855 | AB59: =AB29/$D29 -> 0.1307323053 | AC59: 0.1379898477 | AD59: 0.0368621141 | AE59: 0.2531187945
E60: =E30/$D30 -> 0.4150737689 | F60: 0.2697187205 | G60: 0.1693465554 | H60: 0.305015407 | I60: 0.1505623571 | J60: 0.2211108824 | K60: 0.2355126862 | L60: 0.186885874 | M60: 0.1316469639 | N60: 0.09942366607 | O60: 0.1461186774 | P60: 0.1013192437 | Q60: 0.7168794177 | R60: 0.2878151859 | S60: 0.0333070504 | T60: 0.218002894 | U60: 0.02133331493 | V60: 0.7127818368 | W60: 0.1112455077 | X60: 0.2163703148 | Y60: 0.08043389876 | Z60: 0.395859763 | AA60: 1.501455573 | AB60: 0.1126555732 | AC60: 0.1860687727 | AD60: 0.04259945974 | AE60: =AE30/$D30 -> 0.2456767852
D61: irány | E61: 0 | F61: 0 | G61: 0 | H61: 0 | I61: 0 | J61: 0 | K61: 0 | L61: 0 | M61: 0 | N61: 0 | O61: 0 | P61: 0 | Q61: 0 | R61: 0 | S61: 0 | T61: 0 | U61: 0 | V61: 0 | W61: 0 | X61: 0 | Y61: 0 | Z61: 0 | AA61: 0 | AB61: 0 | AC61: 0 | AD61: 0
AE62: y | AF62: 100000 | AG62: új:
E63: =RANK(E32,E$32:E$60,E$61) -> 3 | F63: =RANK(F32,F$32:F$60,F$61) -> 1 | G63: 13 | H63: 3 | I63: 4 | J63: 1 | K63: 1 | L63: 1 | M63: 2 | N63: 1 | O63: 1 | P63: 5 | Q63: 6 | R63: 2 | S63: 3 | T63: 3 | U63: 5 | V63: 5 | W63: 5 | X63: 14 | Y63: 6 | Z63: 2 | AA63: 2 | AB63: 26 | AC63: =RANK(AC32,AC$32:AC$60,AC$61) -> 2 | AD63: =RANK(AD32,AD$32:AD$60,AD$61) -> 3 | AE63: =(AE32*$AF$62)+$AF$63 -> 1028489.781 | AF63: 1000000 | AG63: ='2015'!AE63 -> 1028489.781
E64: =RANK(E33,E$32:E$60,E$61) -> 3 | F64: 1 | G64: 13 | H64: 3 | I64: 4 | J64: 1 | K64: 1 | L64: 1 | M64: 2 | N64: 1 | O64: 1 | P64: 5 | Q64: 6 | R64: 2 | S64: 3 | T64: 3 | U64: 5 | V64: 5 | W64: 5 | X64: 14 | Y64: 6 | Z64: 2 | AA64: 2 | AB64: 26 | AC64: 2 | AD64: 3 | AE64: =(AE33*$AF$62)+$AF$63 -> 1028489.781 | AG64: ='2015'!AE64 -> 1028489.781
E65: =RANK(E34,E$32:E$60,E$61) -> 22 | F65: =RANK(F34,F$32:F$60,F$61) -> 21 | G65: 19 | H65: 16 | I65: 13 | J65: 9 | K65: 19 | L65: 26 | M65: 26 | N65: 11 | O65: 25 | P65: 26 | Q65: 8 | R65: 19 | S65: 6 | T65: 27 | U65: 25 | V65: 16 | W65: 22 | X65: 10 | Y65: 24 | Z65: 6 | AA65: 21 | AB65: 1 | AC65: =RANK(AC34,AC$32:AC$60,AC$61) -> 17 | AD65: 25 | AE65: =(AE34*$AF$62)+$AF$63 -> 1018112.97 | AG65: ='2015'!AE65 -> 1018112.97
E66: =RANK(E35,E$32:E$60,E$61) -> 24 | F66: 10 | G66: 25 | H66: 15 | I66: 21 | J66: 21 | K66: 17 | L66: 8 | M66: 19 | N66: 24 | O66: 12 | P66: 28 | Q66: 26 | R66: 10 | S66: 27 | T66: 18 | U66: 7 | V66: 2 | W66: 26 | X66: 25 | Y66: 29 | Z66: 11 | AA66: 26 | AB66: 28 | AC66: =RANK(AC35,AC$32:AC$60,AC$61) -> 24 | AD66: =RANK(AD35,AD$32:AD$60,AD$61) -> 26 | AE66: 1018399.251 | AG66: ='2015'!AE66 -> 1018399.251
E67: =RANK(E36,E$32:E$60,E$61) -> 27 | F67: 17 | G67: 3 | H67: 23 | I67: 24 | J67: 13 | K67: 10 | L67: 24 | M67: 25 | N67: 29 | O67: 16 | P67: 25 | Q67: 18 | R67: 7 | S67: 5 | T67: 11 | U67: 14 | V67: 10 | W67: 27 | X67: 19 | Y67: 15 | Z67: 26 | AA67: 29 | AB67: 25 | AC67: 13 | AD67: 2 | AE67: 1023279.59 | AG67: ='2015'!AE67 -> 1023279.59
E68: =RANK(E37,E$32:E$60,E$61) -> 25 | F68: 15 | G68: 12 | H68: 18 | I68: 18 | J68: 14 | K68: 15 | L68: 20 | M68: 23 | N68: 23 | O68: 21 | P68: 27 | Q68: 20 | R68: 12 | S68: 11 | T68: 20 | U68: 13 | V68: 8 | W68: 25 | X68: 17 | Y68: 25 | Z68: 15 | AA68: 25 | AB68: 18 | AC68: 19 | AD68: 11 | AE68: 1019877.695 | AG68: ='2015'!AE68 -> 1019877.695
E69: =RANK(E38,E$32:E$60,E$61) -> 29 | F69: 18 | G69: 5 | H69: 22 | I69: 20 | J69: 27 | K69: 28 | L69: 28 | M69: 28 | N69: 22 | O69: 8 | P69: 20 | Q69: =RANK(Q38,Q$32:Q$60,Q$61) -> 28 | R69: 29 | S69: 22 | T69: 19 | U69: 20 | V69: 19 | W69: 1 | X69: 24 | Y69: 8 | Z69: 14 | AA69: 27 | AB69: 5 | AC69: 25 | AD69: 22 | AE69: 1014609.025 | AG69: ='2015'!AE69 -> 1014609.025
E70: =RANK(E39,E$32:E$60,E$61) -> 26 | F70: 20 | G70: 29 | H70: 24 | I70: 26 | J70: 23 | K70: 21 | L70: 25 | M70: 27 | N70: 28 | O70: 19 | P70: 7 | Q70: 29 | R70: 6 | S70: 26 | T70: 29 | U70: 28 | V70: 26 | W70: 14 | X70: 29 | Y70: 19 | Z70: 29 | AA70: 20 | AB70: 15 | AC70: 29 | AD70: 6 | AE70: 1016975.397 | AG70: ='2015'!AE70 -> 1016975.397
E71: =RANK(E40,E$32:E$60,E$61) -> 23 | F71: 28 | G71: 1 | H71: 26 | I71: 25 | J71: 20 | K71: 9 | L71: 22 | M71: 11 | N71: 3 | O71: 14 | P71: 19 | Q71: 23 | R71: 4 | S71: 21 | T71: 28 | U71: 19 | V71: 1 | W71: 17 | X71: 20 | Y71: 9 | Z71: 27 | AA71: 14 | AB71: 22 | AC71: 11 | AD71: 7 | AE71: 1020917.451 | AG71: ='2015'!AE71 -> 1020917.451
E72: =RANK(E41,E$32:E$60,E$61) -> 28 | F72: 24 | G72: 9 | H72: 25 | I72: 23 | J72: 24 | K72: 22 | L72: 27 | M72: 24 | N72: 18 | O72: 11 | P72: 16 | Q72: 27 | R72: 15 | S72: 23 | T72: 25 | U72: 23 | V72: 9 | W72: 4 | X72: 28 | Y72: 11 | Z72: 23 | AA72: 24 | AB72: 11 | AC72: 26 | AD72: 14 | AE72: 1016997.739 | AG72: ='2015'!AE72 -> 1016997.739
E73: =RANK(E42,E$32:E$60,E$61) -> 8 | F73: 6 | G73: 18 | H73: 5 | I73: 1 | J73: 5 | K73: 5 | L73: 4 | M73: 7 | N73: 12 | O73: 3 | P73: =RANK(P42,P$32:P$60,P$61) -> 1 | Q73: 1 | R73: 9 | S73: 19 | T73: 1 | U73: 15 | V73: 18 | W73: 3 | X73: 3 | Y73: 3 | Z73: 7 | AA73: 4 | AB73: 23 | AC73: 1 | AD73: 17 | AE73: 1026930.829 | AG73: ='2015'!AE73 -> 1026930.829
E74: =RANK(E43,E$32:E$60,E$61) -> 18 | F74: 3 | G74: 28 | H74: 19 | I74: 17 | J74: 19 | K74: 11 | L74: 10 | M74: 17 | N74: 7 | O74: 26 | P74: 4 | Q74: 25 | R74: 28 | S74: 24 | T74: 7 | U74: 26 | V74: 25 | W74: 24 | X74: 12 | Y74: 1 | Z74: 21 | AA74: 12 | AB74: 3 | AC74: 14 | AD74: 28 | AE74: 1018998.731 | AG74: ='2015'!AE74 -> 1018998.731
E75: =RANK(E44,E$32:E$60,E$61) -> 13 | F75: 22 | G75: 7 | H75: 7 | I75: 6 | J75: 10 | K75: 18 | L75: 16 | M75: 14 | N75: 6 | O75: 22 | P75: 18 | Q75: 22 | R75: 25 | S75: 7 | T75: 22 | U75: 9 | V75: 27 | W75: 23 | X75: 27 | Y75: 27 | Z75: 24 | AA75: 17 | AB75: 24 | AC75: 9 | AD75: 21 | AE75: 1018726.542 | AG75: ='2015'!AE75 -> 1018726.542
E76: =RANK(E45,E$32:E$60,E$61) -> 12 | F76: 7 | G76: 21 | H76: 9 | I76: 3 | J76: 11 | K76: 8 | L76: 7 | M76: 9 | N76: 9 | O76: 10 | P76: 3 | Q76: 3 | R76: 18 | S76: 20 | T76: 5 | U76: 17 | V76: 23 | W76: 11 | X76: 9 | Y76: 5 | Z76: 17 | AA76: 8 | AB76: 19 | AC76: 4 | AD76: 20 | AE76: 1022168.997 | AG76: ='2015'!AE76 -> 1022168.997
E77: =RANK(E46,E$32:E$60,E$61) -> 20 | F77: 12 | G77: 17 | H77: 17 | I77: 12 | J77: 17 | K77: 14 | L77: 17 | M77: 20 | N77: 15 | O77: 15 | P77: 15 | Q77: 21 | R77: 14 | S77: 18 | T77: 16 | U77: 18 | V77: 15 | W77: 9 | X77: 18 | Y77: 14 | Z77: 18 | AA77: 19 | AB77: 14 | AC77: 12 | AD77: 15 | AE77: 1019623.821 | AG77: ='2015'!AE77 -> 1019623.821
E78: =RANK(E47,E$32:E$60,E$61) -> 15 | F78: 9 | G78: 22 | H78: 11 | I78: 9 | J78: 22 | K78: 7 | L78: 14 | M78: 4 | N78: 21 | O78: 23 | P78: 17 | Q78: 15 | R78: 26 | S78: 9 | T78: 24 | U78: 27 | V78: 3 | W78: 19 | X78: 2 | Y78: 16 | Z78: 19 | AA78: 22 | AB78: 29 | AC78: 20 | AD78: 8 | AE78: 1031696.96 | AG78: ='2015'!AE78 -> 1031696.96
E79: =RANK(E48,E$32:E$60,E$61) -> 16 | F79: 13 | G79: 24 | H79: 6 | I79: 28 | J79: 28 | K79: 26 | L79: 29 | M79: 22 | N79: 10 | O79: 28 | P79: 22 | Q79: 11 | R79: 13 | S79: 2 | T79: 10 | U79: 21 | V79: 29 | W79: 16 | X79: 26 | Y79: 23 | Z79: 25 | AA79: 18 | AB79: 2 | AC79: 22 | AD79: 16 | AE79: 1027109.553 | AG79: ='2015'!AE79 -> 1027109.553
E80: =RANK(E49,E$32:E$60,E$61) -> 21 | F80: 26 | G80: 26 | H80: 29 | I80: 22 | J80: 29 | K80: 24 | L80: 19 | M80: 13 | N80: 25 | O80: 29 | P80: 29 | Q80: 17 | R80: 22 | S80: 28 | T80: 13 | U80: 22 | V80: 24 | W80: 28 | X80: 22 | Y80: 28 | Z80: 28 | AA80: 28 | AB80: 8 | AC80: 28 | AD80: 27 | AE80: 1018355.17 | AG80: ='2015'!AE80 -> 1018355.17
E81: =RANK(E50,E$32:E$60,E$61) -> 17 | F81: 11 | G81: 23 | H81: 13 | I81: 16 | J81: 26 | K81: 13 | L81: 21 | M81: 6 | N81: 19 | O81: 27 | P81: 21 | Q81: 13 | R81: 21 | S81: 12 | T81: 17 | U81: 24 | V81: 11 | W81: 21 | X81: 7 | Y81: 22 | Z81: 22 | AA81: 23 | AB81: 21 | AC81: 21 | AD81: 13 | AE81: 1028266.254 | AG81: ='2015'!AE81 -> 1028266.254
E82: =RANK(E51,E$32:E$60,E$61) -> 1 | F82: 5 | G82: 4 | H82: 2 | I82: 7 | J82: 4 | K82: 3 | L82: 13 | M82: 1 | N82: 4 | O82: 7 | P82: 2 | Q82: 2 | R82: 11 | S82: 1 | T82: 12 | U82: 10 | V82: 7 | W82: 7 | X82: 1 | Y82: 4 | Z82: 1 | AA82: 5 | AB82: 17 | AC82: 7 | AD82: 1 | AE82: 1024128.554 | AG82: ='2015'!AE82 -> 1024128.554
E83: =RANK(E52,E$32:E$60,E$61) -> 14 | F83: 25 | G83: 20 | H83: 27 | I83: 27 | J83: 18 | K83: 29 | L83: 15 | M83: 29 | N83: 27 | O83: 6 | P83: 23 | Q83: 14 | R83: 1 | S83: 29 | T83: 23 | U83: 29 | V83: 21 | W83: 29 | X83: 23 | Y83: 20 | Z83: 20 | AA83: 10 | AB83: 10 | AC83: 23 | AD83: 18 | AE83: 1033871.023 | AG83: ='2015'!AE83 -> 1033871.023
E84: =RANK(E53,E$32:E$60,E$61) -> 10 | F84: 29 | G84: 6 | H84: 28 | I84: 10 | J84: 15 | K84: 27 | L84: 23 | M84: 18 | N84: 20 | O84: 24 | P84: 24 | Q84: 12 | R84: 17 | S84: 16 | T84: 26 | U84: 12 | V84: 28 | W84: 13 | X84: 16 | Y84: 21 | Z84: 13 | AA84: 15 | AB84: 16 | AC84: 27 | AD84: 10 | AE84: 1031464.888 | AG84: ='2015'!AE84 -> 1031464.888
E85: =RANK(E54,E$32:E$60,E$61) -> 5 | F85: 19 | G85: 8 | H85: 14 | I85: 14 | J85: 8 | K85: 20 | L85: 18 | M85: 15 | N85: 14 | O85: 17 | P85: 13 | Q85: 5 | R85: 5 | S85: 8 | T85: 21 | U85: 16 | V85: 22 | W85: 15 | X85: 5 | Y85: 13 | Z85: 5 | AA85: 7 | AB85: 13 | AC85: 18 | AD85: 5 | AE85: 1029418.623 | AG85: ='2015'!AE85 -> 1029418.623
E86: =RANK(E55,E$32:E$60,E$61) -> 11 | F86: 27 | G86: 2 | H86: 20 | I86: 29 | J86: 25 | K86: 25 | L86: 6 | M86: 21 | N86: 26 | O86: 18 | P86: 8 | Q86: 19 | R86: 27 | S86: 15 | T86: 14 | U86: 1 | V86: 14 | W86: 20 | X86: 21 | Y86: 26 | Z86: 4 | AA86: 13 | AB86: 9 | AC86: 16 | AD86: 29 | AE86: 1016169.574 | AG86: ='2015'!AE86 -> 1016169.574
E87: =RANK(E56,E$32:E$60,E$61) -> 19 | F87: 23 | G87: 27 | H87: 21 | I87: 19 | J87: 3 | K87: 23 | L87: 11 | M87: 16 | N87: 13 | O87: 13 | P87: 9 | Q87: 24 | R87: 20 | S87: 25 | T87: 8 | U87: 11 | V87: 20 | W87: 18 | X87: 6 | Y87: 10 | Z87: 10 | AA87: 16 | AB87: 4 | AC87: 8 | AD87: 24 | AE87: 1020785.253 | AG87: ='2015'!AE87 -> 1020785.253
E88: =RANK(E57,E$32:E$60,E$61) -> 2 | F88: 4 | G88: 11 | H88: 1 | I88: 2 | J88: 7 | K88: 4 | L88: 3 | M88: 5 | N88: 5 | O88: 4 | P88: 11 | Q88: 4 | R88: 24 | S88: 13 | T88: 2 | U88: 3 | V88: 4 | W88: 2 | X88: 4 | Y88: 2 | Z88: 16 | AA88: 1 | AB88: 7 | AC88: 5 | AD88: 19 | AE88: 1017356.507 | AG88: ='2015'!AE88 -> 1017356.507
E89: =RANK(E58,E$32:E$60,E$61) -> 6 | F89: 16 | G89: 10 | H89: 10 | I89: 11 | J89: 12 | K89: 12 | L89: 5 | M89: 12 | N89: 17 | O89: 9 | P89: 10 | Q89: 16 | R89: 23 | S89: 17 | T89: 6 | U89: 2 | V89: 13 | W89: 10 | X89: 11 | Y89: 17 | Z89: 9 | AA89: 6 | AB89: 6 | AC89: 10 | AD89: 23 | AE89: 1017824.065 | AG89: ='2015'!AE89 -> 1017824.065
E90: =RANK(E59,E$32:E$60,E$61) -> 7 | F90: 14 | G90: 15 | H90: 12 | I90: 15 | J90: 16 | K90: 16 | L90: 12 | M90: 10 | N90: 16 | O90: 20 | P90: 14 | Q90: 9 | R90: 16 | S90: 14 | T90: 15 | U90: 4 | V90: 17 | W90: 12 | X90: 8 | Y90: 18 | Z90: 12 | AA90: 11 | AB90: 12 | AC90: 15 | AD90: 12 | AE90: 1025311.879 | AG90: ='2015'!AE90 -> 1025311.879
E91: =RANK(E60,E$32:E$60,E$61) -> 9 | F91: 8 | G91: 16 | H91: 8 | I91: 8 | J91: 6 | K91: 6 | L91: 9 | M91: 8 | N91: 8 | O91: 5 | P91: 12 | Q91: 10 | R91: 8 | S91: 10 | T91: 9 | U91: 8 | V91: 12 | W91: 8 | X91: 13 | Y91: 12 | Z91: 8 | AA91: 9 | AB91: 20 | AC91: 6 | AD91: =RANK(AD60,AD$32:AD$60,AD$61) -> 9 | AE91: =(AE60*$AF$62)+$AF$63 -> 1024567.679 | AG91: ='2015'!AE91 -> 1024567.679
A97: Azonosító: | B97: 2248788 | C97: Objektumok: | D97: 29 | E97: Attribútumok: | F97: 26 | G97: Lépcsôk: | H97: 29 | I97: Eltolás: | J97: 0 | K97: Leírás: | L97: COCO STD: 2248788
A99: Rangsor | B99: X(A1) | C99: X(A2) | D99: X(A3) | E99: X(A4) | F99: X(A5) | G99: X(A6) | H99: X(A7) | I99: X(A8) | J99: X(A9) | K99: X(A10) | L99: X(A11) | M99: X(A12) | N99: X(A13) | O99: X(A14) | P99: X(A15) | Q99: X(A16) | R99: X(A17) | S99: X(A18) | T99: X(A19) | U99: X(A20) | V99: X(A21) | W99: X(A22) | X99: X(A23) | Y99: X(A24) | Z99: X(A25) | AA99: X(A26) | AB99: Y(A27)
A100: O1 | B100: 3 | C100: 1 | D100: 13 | E100: 3 | F100: 4 | G100: 1 | H100: 1 | I100: 1 | J100: 2 | K100: 1 | L100: 1 | M100: 5 | N100: 6 | O100: 2 | P100: 3 | Q100: 3 | R100: 5 | S100: 5 | T100: 5 | U100: 5 | V100: 14 | W100: 6 | X100: 2 | Y100: 2 | Z100: 26 | AA100: 2 | AB100: 1006295
A101: O2 | B101: 3 | C101: 1 | D101: 13 | E101: 3 | F101: 4 | G101: 1 | H101: 1 | I101: 1 | J101: 2 | K101: 1 | L101: 1 | M101: 5 | N101: 6 | O101: 2 | P101: 3 | Q101: 3 | R101: 5 | S101: 5 | T101: 5 | U101: 5 | V101: 14 | W101: 6 | X101: 2 | Y101: 2 | Z101: 26 | AA101: 2 | AB101: 1006295
A102: O3 | B102: 22 | C102: 21 | D102: 19 | E102: 16 | F102: 13 | G102: 9 | H102: 19 | I102: 26 | J102: 26 | K102: 11 | L102: 25 | M102: 26 | N102: 8 | O102: 19 | P102: 6 | Q102: 27 | R102: 23 | S102: 25 | T102: 16 | U102: 22 | V102: 10 | W102: 24 | X102: 6 | Y102: 21 | Z102: 1 | AA102: 17 | AB102: 1000946
A103: O4 | B103: 24 | C103: 10 | D103: 25 | E103: 15 | F103: 21 | G103: 21 | H103: 17 | I103: 8 | J103: 19 | K103: 24 | L103: 12 | M103: 28 | N103: 26 | O103: 10 | P103: 27 | Q103: 18 | R103: 21 | S103: 7 | T103: 2 | U103: 26 | V103: 25 | W103: 29 | X103: 11 | Y103: 26 | Z103: 28 | AA103: 24 | AB103: 1000901
A104: O5 | B104: 27 | C104: 17 | D104: 3 | E104: 23 | F104: 24 | G104: 13 | H104: 10 | I104: 24 | J104: 25 | K104: 29 | L104: 16 | M104: 25 | N104: 18 | O104: 7 | P104: 5 | Q104: 11 | R104: 13 | S104: 14 | T104: 10 | U104: 27 | V104: 19 | W104: 15 | X104: 26 | Y104: 29 | Z104: 25 | AA104: 13 | AB104: 1009609
A105: O6 | B105: 25 | C105: 15 | D105: 12 | E105: 18 | F105: 18 | G105: 14 | H105: 15 | I105: 20 | J105: 23 | K105: 23 | L105: 21 | M105: 27 | N105: 20 | O105: 12 | P105: 11 | Q105: 20 | R105: 17 | S105: 13 | T105: 8 | U105: 25 | V105: 17 | W105: 25 | X105: 15 | Y105: 25 | Z105: 18 | AA105: 19 | AB105: 1003757
A106: O7 | B106: 29 | C106: 18 | D106: 5 | E106: 22 | F106: 20 | G106: 27 | H106: 28 | I106: 28 | J106: 28 | K106: 22 | L106: 8 | M106: 20 | N106: 28 | O106: 29 | P106: 22 | Q106: 19 | R106: 29 | S106: 20 | T106: 19 | U106: 1 | V106: 24 | W106: 8 | X106: 14 | Y106: 27 | Z106: 5 | AA106: 25 | AB106: 1001409
A107: O8 | B107: 26 | C107: 20 | D107: 29 | E107: 24 | F107: 26 | G107: 23 | H107: 21 | I107: 25 | J107: 27 | K107: 28 | L107: 19 | M107: 7 | N107: 29 | O107: 6 | P107: 26 | Q107: 29 | R107: 27 | S107: 28 | T107: 26 | U107: 14 | V107: 29 | W107: 19 | X107: 29 | Y107: 20 | Z107: 15 | AA107: 29 | AB107: 1004943
A108: O9 | B108: 23 | C108: 28 | D108: 1 | E108: 26 | F108: 25 | G108: 20 | H108: 9 | I108: 22 | J108: 11 | K108: 3 | L108: 14 | M108: 19 | N108: 23 | O108: 4 | P108: 21 | Q108: 28 | R108: 15 | S108: 19 | T108: 1 | U108: 17 | V108: 20 | W108: 9 | X108: 27 | Y108: 14 | Z108: 22 | AA108: 11 | AB108: 1004731
A109: O10 | B109: 28 | C109: 24 | D109: 9 | E109: 25 | F109: 23 | G109: 24 | H109: 22 | I109: 27 | J109: 24 | K109: 18 | L109: 11 | M109: 16 | N109: 27 | O109: 15 | P109: 23 | Q109: 25 | R109: 26 | S109: 23 | T109: 9 | U109: 4 | V109: 28 | W109: 11 | X109: 23 | Y109: 24 | Z109: 11 | AA109: 26 | AB109: 1003257
A110: O11 | B110: 8 | C110: 6 | D110: 18 | E110: 5 | F110: 1 | G110: 5 | H110: 5 | I110: 4 | J110: 7 | K110: 12 | L110: 3 | M110: 1 | N110: 1 | O110: 9 | P110: 19 | Q110: 1 | R110: 9 | S110: 15 | T110: 18 | U110: 3 | V110: 3 | W110: 3 | X110: 7 | Y110: 4 | Z110: 23 | AA110: 1 | AB110: 1002688
A111: O12 | B111: 18 | C111: 3 | D111: 28 | E111: 19 | F111: 17 | G111: 19 | H111: 11 | I111: 10 | J111: 17 | K111: 7 | L111: 26 | M111: 4 | N111: 25 | O111: 28 | P111: 24 | Q111: 7 | R111: 19 | S111: 26 | T111: 25 | U111: 24 | V111: 12 | W111: 1 | X111: 21 | Y111: 12 | Z111: 3 | AA111: 14 | AB111: 1000688
A112: O13 | B112: 13 | C112: 22 | D112: 7 | E112: 7 | F112: 6 | G112: 10 | H112: 18 | I112: 16 | J112: 14 | K112: 6 | L112: 22 | M112: 18 | N112: 22 | O112: 25 | P112: 7 | Q112: 22 | R112: 20 | S112: 9 | T112: 27 | U112: 23 | V112: 27 | W112: 27 | X112: 24 | Y112: 17 | Z112: 24 | AA112: 9 | AB112: 1001580
A113: O14 | B113: 12 | C113: 7 | D113: 21 | E113: 9 | F113: 3 | G113: 11 | H113: 8 | I113: 7 | J113: 9 | K113: 9 | L113: 10 | M113: 3 | N113: 3 | O113: 18 | P113: 20 | Q113: 5 | R113: 14 | S113: 17 | T113: 23 | U113: 11 | V113: 9 | W113: 5 | X113: 17 | Y113: 8 | Z113: 19 | AA113: 4 | AB113: 1001726
A114: O15 | B114: 20 | C114: 12 | D114: 17 | E114: 17 | F114: 12 | G114: 17 | H114: 14 | I114: 17 | J114: 20 | K114: 15 | L114: 15 | M114: 15 | N114: 21 | O114: 14 | P114: 18 | Q114: 16 | R114: 18 | S114: 18 | T114: 15 | U114: 9 | V114: 18 | W114: 14 | X114: 18 | Y114: 19 | Z114: 14 | AA114: 12 | AB114: 1002966
A115: O16 | B115: 15 | C115: 9 | D115: 22 | E115: 11 | F115: 9 | G115: 22 | H115: 7 | I115: 14 | J115: 4 | K115: 21 | L115: 23 | M115: 17 | N115: 15 | O115: 26 | P115: 9 | Q115: 24 | R115: 2 | S115: 27 | T115: 3 | U115: 19 | V115: 2 | W115: 16 | X115: 19 | Y115: 22 | Z115: 29 | AA115: 20 | AB115: 1004336
A116: O17 | B116: 16 | C116: 13 | D116: 24 | E116: 6 | F116: 28 | G116: 28 | H116: 26 | I116: 29 | J116: 22 | K116: 10 | L116: 28 | M116: 22 | N116: 11 | O116: 13 | P116: 2 | Q116: 10 | R116: 8 | S116: 21 | T116: 29 | U116: 16 | V116: 26 | W116: 23 | X116: 25 | Y116: 18 | Z116: 2 | AA116: 22 | AB116: 1002819
A117: O18 | B117: 21 | C117: 26 | D117: 26 | E117: 29 | F117: 22 | G117: 29 | H117: 24 | I117: 19 | J117: 13 | K117: 25 | L117: 29 | M117: 29 | N117: 17 | O117: 22 | P117: 28 | Q117: 13 | R117: 22 | S117: 22 | T117: 24 | U117: 28 | V117: 22 | W117: 28 | X117: 28 | Y117: 28 | Z117: 8 | AA117: 28 | AB117: 1000730
A118: O19 | B118: 17 | C118: 11 | D118: 23 | E118: 13 | F118: 16 | G118: 26 | H118: 13 | I118: 21 | J118: 6 | K118: 19 | L118: 27 | M118: 21 | N118: 13 | O118: 21 | P118: 12 | Q118: 17 | R118: 7 | S118: 24 | T118: 11 | U118: 21 | V118: 7 | W118: 22 | X118: 22 | Y118: 23 | Z118: 21 | AA118: 21 | AB118: 1003337
A119: O20 | B119: 1 | C119: 5 | D119: 4 | E119: 2 | F119: 7 | G119: 4 | H119: 3 | I119: 13 | J119: 1 | K119: 4 | L119: 7 | M119: 2 | N119: 2 | O119: 11 | P119: 1 | Q119: 12 | R119: 12 | S119: 10 | T119: 7 | U119: 7 | V119: 1 | W119: 4 | X119: 1 | Y119: 5 | Z119: 17 | AA119: 7 | AB119: 1010839
A120: O21 | B120: 14 | C120: 25 | D120: 20 | E120: 27 | F120: 27 | G120: 18 | H120: 29 | I120: 15 | J120: 29 | K120: 27 | L120: 6 | M120: 23 | N120: 14 | O120: 1 | P120: 29 | Q120: 23 | R120: 1 | S120: 29 | T120: 21 | U120: 29 | V120: 23 | W120: 20 | X120: 20 | Y120: 10 | Z120: 10 | AA120: 23 | AB120: 1002586
A121: O22 | B121: 10 | C121: 29 | D121: 6 | E121: 28 | F121: 10 | G121: 15 | H121: 27 | I121: 23 | J121: 18 | K121: 20 | L121: 24 | M121: 24 | N121: 12 | O121: 17 | P121: 16 | Q121: 26 | R121: 3 | S121: 12 | T121: 28 | U121: 13 | V121: 16 | W121: 21 | X121: 13 | Y121: 15 | Z121: 16 | AA121: 27 | AB121: 1004040
A122: O23 | B122: 5 | C122: 19 | D122: 8 | E122: 14 | F122: 14 | G122: 8 | H122: 20 | I122: 18 | J122: 15 | K122: 14 | L122: 17 | M122: 13 | N122: 5 | O122: 5 | P122: 8 | Q122: 21 | R122: 4 | S122: 16 | T122: 22 | U122: 15 | V122: 5 | W122: 13 | X122: 5 | Y122: 7 | Z122: 13 | AA122: 18 | AB122: 1006136
A123: O24 | B123: 11 | C123: 27 | D123: 2 | E123: 20 | F123: 29 | G123: 25 | H123: 25 | I123: 6 | J123: 21 | K123: 26 | L123: 18 | M123: 8 | N123: 19 | O123: 27 | P123: 15 | Q123: 14 | R123: 28 | S123: 1 | T123: 14 | U123: 20 | V123: 21 | W123: 26 | X123: 4 | Y123: 13 | Z123: 9 | AA123: 16 | AB123: 1000337
A124: O25 | B124: 19 | C124: 23 | D124: 27 | E124: 21 | F124: 19 | G124: 3 | H124: 23 | I124: 11 | J124: 16 | K124: 13 | L124: 13 | M124: 9 | N124: 24 | O124: 20 | P124: 25 | Q124: 8 | R124: 16 | S124: 11 | T124: 20 | U124: 18 | V124: 6 | W124: 10 | X124: 10 | Y124: 16 | Z124: 4 | AA124: 8 | AB124: 1001064
A125: O26 | B125: 2 | C125: 4 | D125: 11 | E125: 1 | F125: 2 | G125: 7 | H125: 4 | I125: 3 | J125: 5 | K125: 5 | L125: 4 | M125: 11 | N125: 4 | O125: 24 | P125: 13 | Q125: 2 | R125: 25 | S125: 3 | T125: 4 | U125: 2 | V125: 4 | W125: 2 | X125: 16 | Y125: 1 | Z125: 7 | AA125: 5 | AB125: 1002267
A126: O27 | B126: 6 | C126: 16 | D126: 10 | E126: 10 | F126: 11 | G126: 12 | H126: 12 | I126: 5 | J126: 12 | K126: 17 | L126: 9 | M126: 10 | N126: 16 | O126: 23 | P126: 17 | Q126: 6 | R126: 24 | S126: 2 | T126: 13 | U126: 10 | V126: 11 | W126: 17 | X126: 9 | Y126: 6 | Z126: 6 | AA126: 10 | AB126: 1001154
A127: O28 | B127: 7 | C127: 14 | D127: 15 | E127: 12 | F127: 15 | G127: 16 | H127: 16 | I127: 12 | J127: 10 | K127: 16 | L127: 20 | M127: 14 | N127: 9 | O127: 16 | P127: 14 | Q127: 15 | R127: 10 | S127: 4 | T127: 17 | U127: 12 | V127: 8 | W127: 18 | X127: 12 | Y127: 11 | Z127: 12 | AA127: 15 | AB127: 1003686
A128: O29 | B128: 9 | C128: 8 | D128: 16 | E128: 8 | F128: 8 | G128: 6 | H128: 6 | I128: 9 | J128: 8 | K128: 8 | L128: 5 | M128: 12 | N128: 10 | O128: 8 | P128: 10 | Q128: 9 | R128: 11 | S128: 8 | T128: 12 | U128: 8 | V128: 13 | W128: 12 | X128: 8 | Y128: 9 | Z128: 20 | AA128: 6 | AB128: 1004260
A130: Lépcsôk(1) | B130: X(A1) | C130: X(A2) | D130: X(A3) | E130: X(A4) | F130: X(A5) | G130: X(A6) | H130: X(A7) | I130: X(A8) | J130: X(A9) | K130: X(A10) | L130: X(A11) | M130: X(A12) | N130: X(A13) | O130: X(A14) | P130: X(A15) | Q130: X(A16) | R130: X(A17) | S130: X(A18) | T130: X(A19) | U130: X(A20) | V130: X(A21) | W130: X(A22) | X130: X(A23) | Y130: X(A24) | Z130: X(A25) | AA130: X(A26)
A131: S1 | B131: (0+0)/(2)=0 | C131: (4682+5453)/(2)=5067.5 | D131: (4013+5607)/(2)=4810 | E131: (0+987269)/(2)=493634.5 | F131: (0+0)/(2)=0 | G131: (0+0)/(2)=0 | H131: (98+1116)/(2)=607 | I131: (0+0)/(2)=0 | J131: (1859+4781)/(2)=3320 | K131: (0+0)/(2)=0 | L131: (0+0)/(2)=0 | M131: (0+0)/(2)=0 | N131: (0+0)/(2)=0 | O131: (5591+5072)/(2)=5331.5 | P131: (0+464)/(2)=232 | Q131: (0+0)/(2)=0 | R131: (1507+5437)/(2)=3472 | S131: (1801+393)/(2)=1097 | T131: (1516+742)/(2)=1129 | U131: (50+1821)/(2)=935.5 | V131: (3020+0)/(2)=1510 | W131: (4972+0)/(2)=2486 | X131: (0+0)/(2)=0 | Y131: (0+0)/(2)=0 | Z131: (1009+2392)/(2)=1700.5 | AA131: (988068+0)/(2)=494034
A132: S2 | B132: (0+0)/(2)=0 | C132: (4682+5453)/(2)=5067.5 | D132: (4013+5607)/(2)=4810 | E132: (0+987269)/(2)=493634.5 | F132: (0+0)/(2)=0 | G132: (0+0)/(2)=0 | H132: (98+1116)/(2)=607 | I132: (0+0)/(2)=0 | J132: (1859+4781)/(2)=3320 | K132: (0+0)/(2)=0 | L132: (0+0)/(2)=0 | M132: (0+0)/(2)=0 | N132: (0+0)/(2)=0 | O132: (5591+5072)/(2)=5331.5 | P132: (0+464)/(2)=232 | Q132: (0+0)/(2)=0 | R132: (1507+5437)/(2)=3472 | S132: (720+393)/(2)=556.5 | T132: (1516+742)/(2)=1129 | U132: (50+1821)/(2)=935.5 | V132: (3020+0)/(2)=1510 | W132: (3587+0)/(2)=1793.5 | X132: (0+0)/(2)=0 | Y132: (0+0)/(2)=0 | Z132: (1009+2392)/(2)=1700.5 | AA132: (988069+0)/(2)=494034.5
A133: S3 | B133: (0+0)/(2)=0 | C133: (4682+5453)/(2)=5067.5 | D133: (4013+5607)/(2)=4810 | E133: (0+987269)/(2)=493634.5 | F133: (0+0)/(2)=0 | G133: (0+0)/(2)=0 | H133: (98+1116)/(2)=607 | I133: (0+0)/(2)=0 | J133: (1859+4781)/(2)=3320 | K133: (0+0)/(2)=0 | L133: (0+0)/(2)=0 | M133: (0+0)/(2)=0 | N133: (0+0)/(2)=0 | O133: (5591+5072)/(2)=5331.5 | P133: (0+464)/(2)=232 | Q133: (0+0)/(2)=0 | R133: (1507+703)/(2)=1105 | S133: (720+189)/(2)=454.5 | T133: (1516+742)/(2)=1129 | U133: (50+1821)/(2)=935.5 | V133: (0+0)/(2)=0 | W133: (3587+0)/(2)=1793.5 | X133: (0+0)/(2)=0 | Y133: (0+0)/(2)=0 | Z133: (1009+2392)/(2)=1700.5 | AA133: (988068+0)/(2)=494034
A134: S4 | B134: (0+0)/(2)=0 | C134: (4682+4219)/(2)=4450.5 | D134: (4013+5607)/(2)=4810 | E134: (0+987269)/(2)=493634.5 | F134: (0+0)/(2)=0 | G134: (0+0)/(2)=0 | H134: (98+1116)/(2)=607 | I134: (0+0)/(2)=0 | J134: (1859+4781)/(2)=3320 | K134: (0+0)/(2)=0 | L134: (0+0)/(2)=0 | M134: (0+0)/(2)=0 | N134: (0+0)/(2)=0 | O134: (5591+5072)/(2)=5331.5 | P134: (0+464)/(2)=232 | Q134: (0+0)/(2)=0 | R134: (512+703)/(2)=607.5 | S134: (720+189)/(2)=454.5 | T134: (1516+742)/(2)=1129 | U134: (50+1821)/(2)=935.5 | V134: (0+0)/(2)=0 | W134: (3587+0)/(2)=1793.5 | X134: (0+0)/(2)=0 | Y134: (0+0)/(2)=0 | Z134: (1009+2392)/(2)=1700.5 | AA134: (988068+0)/(2)=494034
A135: S5 | B135: (0+0)/(2)=0 | C135: (4682+4219)/(2)=4450.5 | D135: (4013+5607)/(2)=4810 | E135: (0+987269)/(2)=493634.5 | F135: (0+0)/(2)=0 | G135: (0+0)/(2)=0 | H135: (98+1116)/(2)=607 | I135: (0+0)/(2)=0 | J135: (1859+4518)/(2)=3188.5 | K135: (0+0)/(2)=0 | L135: (0+0)/(2)=0 | M135: (0+0)/(2)=0 | N135: (0+0)/(2)=0 | O135: (5591+5072)/(2)=5331.5 | P135: (0+464)/(2)=232 | Q135: (0+0)/(2)=0 | R135: (512+703)/(2)=607.5 | S135: (334+189)/(2)=261.5 | T135: (1516+742)/(2)=1129 | U135: (50+504)/(2)=277 | V135: (0+0)/(2)=0 | W135: (3587+0)/(2)=1793.5 | X135: (0+0)/(2)=0 | Y135: (0+0)/(2)=0 | Z135: (1009+2392)/(2)=1700.5 | AA135: (988068+0)/(2)=494034
A136: S6 | B136: (0+0)/(2)=0 | C136: (4682+4219)/(2)=4450.5 | D136: (4013+5607)/(2)=4810 | E136: (0+987269)/(2)=493634.5 | F136: (0+0)/(2)=0 | G136: (0+0)/(2)=0 | H136: (98+1116)/(2)=607 | I136: (0+0)/(2)=0 | J136: (1859+4518)/(2)=3188.5 | K136: (0+0)/(2)=0 | L136: (0+0)/(2)=0 | M136: (0+0)/(2)=0 | N136: (0+0)/(2)=0 | O136: (5591+5072)/(2)=5331.5 | P136: (0+464)/(2)=232 | Q136: (0+0)/(2)=0 | R136: (512+703)/(2)=607.5 | S136: (334+189)/(2)=261.5 | T136: (1516+742)/(2)=1129 | U136: (50+504)/(2)=277 | V136: (0+0)/(2)=0 | W136: (3587+0)/(2)=1793.5 | X136: (0+0)/(2)=0 | Y136: (0+0)/(2)=0 | Z136: (1009+2392)/(2)=1700.5 | AA136: (988068+0)/(2)=494034
A137: S7 | B137: (0+0)/(2)=0 | C137: (4682+4219)/(2)=4450.5 | D137: (4013+5607)/(2)=4810 | E137: (0+987269)/(2)=493634.5 | F137: (0+0)/(2)=0 | G137: (0+0)/(2)=0 | H137: (98+1116)/(2)=607 | I137: (0+0)/(2)=0 | J137: (1859+4518)/(2)=3188.5 | K137: (0+0)/(2)=0 | L137: (0+0)/(2)=0 | M137: (0+0)/(2)=0 | N137: (0+0)/(2)=0 | O137: (5453+5072)/(2)=5262.5 | P137: (0+464)/(2)=232 | Q137: (0+0)/(2)=0 | R137: (145+703)/(2)=424 | S137: (334+189)/(2)=261.5 | T137: (1516+742)/(2)=1129 | U137: (50+504)/(2)=277 | V137: (0+0)/(2)=0 | W137: (3587+0)/(2)=1793.5 | X137: (0+0)/(2)=0 | Y137: (0+0)/(2)=0 | Z137: (1009+2392)/(2)=1700.5 | AA137: (988068+0)/(2)=494034
A138: S8 | B138: (0+0)/(2)=0 | C138: (4682+4219)/(2)=4450.5 | D138: (731+36)/(2)=383.5 | E138: (0+987269)/(2)=493634.5 | F138: (0+0)/(2)=0 | G138: (0+0)/(2)=0 | H138: (98+1116)/(2)=607 | I138: (0+0)/(2)=0 | J138: (1859+4518)/(2)=3188.5 | K138: (0+0)/(2)=0 | L138: (0+0)/(2)=0 | M138: (0+0)/(2)=0 | N138: (0+0)/(2)=0 | O138: (4345+3598)/(2)=3971.5 | P138: (0+464)/(2)=232 | Q138: (0+0)/(2)=0 | R138: (0+703)/(2)=351.5 | S138: (334+189)/(2)=261.5 | T138: (1516+742)/(2)=1129 | U138: (50+504)/(2)=277 | V138: (0+0)/(2)=0 | W138: (3587+0)/(2)=1793.5 | X138: (0+0)/(2)=0 | Y138: (0+0)/(2)=0 | Z138: (1009+2392)/(2)=1700.5 | AA138: (988068+0)/(2)=494034
A139: S9 | B139: (0+0)/(2)=0 | C139: (4682+4219)/(2)=4450.5 | D139: (731+36)/(2)=383.5 | E139: (0+987269)/(2)=493634.5 | F139: (0+0)/(2)=0 | G139: (0+0)/(2)=0 | H139: (98+1116)/(2)=607 | I139: (0+0)/(2)=0 | J139: (1859+4518)/(2)=3188.5 | K139: (0+0)/(2)=0 | L139: (0+0)/(2)=0 | M139: (0+0)/(2)=0 | N139: (0+0)/(2)=0 | O139: (4345+2995)/(2)=3670 | P139: (0+464)/(2)=232 | Q139: (0+0)/(2)=0 | R139: (0+559)/(2)=279.5 | S139: (334+189)/(2)=261.5 | T139: (1516+742)/(2)=1129 | U139: (50+504)/(2)=277 | V139: (0+0)/(2)=0 | W139: (3587+0)/(2)=1793.5 | X139: (0+0)/(2)=0 | Y139: (0+0)/(2)=0 | Z139: (1009+2392)/(2)=1700.5 | AA139: (988068+0)/(2)=494034
A140: S10 | B140: (0+0)/(2)=0 | C140: (4682+4219)/(2)=4450.5 | D140: (0+0)/(2)=0 | E140: (0+987269)/(2)=493634.5 | F140: (0+0)/(2)=0 | G140: (0+0)/(2)=0 | H140: (98+1116)/(2)=607 | I140: (0+0)/(2)=0 | J140: (1859+4518)/(2)=3188.5 | K140: (0+0)/(2)=0 | L140: (0+0)/(2)=0 | M140: (0+0)/(2)=0 | N140: (0+0)/(2)=0 | O140: (4345+2995)/(2)=3670 | P140: (0+464)/(2)=232 | Q140: (0+0)/(2)=0 | R140: (0+559)/(2)=279.5 | S140: (334+189)/(2)=261.5 | T140: (1516+742)/(2)=1129 | U140: (50+504)/(2)=277 | V140: (0+0)/(2)=0 | W140: (3587+0)/(2)=1793.5 | X140: (0+0)/(2)=0 | Y140: (0+0)/(2)=0 | Z140: (1009+2392)/(2)=1700.5 | AA140: (988068+0)/(2)=494034
A141: S11 | B141: (0+0)/(2)=0 | C141: (4682+4219)/(2)=4450.5 | D141: (0+0)/(2)=0 | E141: (0+987269)/(2)=493634.5 | F141: (0+0)/(2)=0 | G141: (0+0)/(2)=0 | H141: (98+1116)/(2)=607 | I141: (0+0)/(2)=0 | J141: (1859+4518)/(2)=3188.5 | K141: (0+0)/(2)=0 | L141: (0+0)/(2)=0 | M141: (0+0)/(2)=0 | N141: (0+0)/(2)=0 | O141: (3614+2995)/(2)=3304.5 | P141: (0+464)/(2)=232 | Q141: (0+0)/(2)=0 | R141: (0+559)/(2)=279.5 | S141: (334+189)/(2)=261.5 | T141: (1516+742)/(2)=1129 | U141: (50+504)/(2)=277 | V141: (0+0)/(2)=0 | W141: (3587+0)/(2)=1793.5 | X141: (0+0)/(2)=0 | Y141: (0+0)/(2)=0 | Z141: (1009+2392)/(2)=1700.5 | AA141: (988069+0)/(2)=494034.5
A142: S12 | B142: (0+0)/(2)=0 | C142: (4682+4219)/(2)=4450.5 | D142: (0+0)/(2)=0 | E142: (0+987269)/(2)=493634.5 | F142: (0+0)/(2)=0 | G142: (0+0)/(2)=0 | H142: (98+1116)/(2)=607 | I142: (0+0)/(2)=0 | J142: (1859+4518)/(2)=3188.5 | K142: (0+0)/(2)=0 | L142: (0+0)/(2)=0 | M142: (0+0)/(2)=0 | N142: (0+0)/(2)=0 | O142: (3614+2995)/(2)=3304.5 | P142: (0+464)/(2)=232 | Q142: (0+0)/(2)=0 | R142: (0+559)/(2)=279.5 | S142: (334+189)/(2)=261.5 | T142: (1238+742)/(2)=990 | U142: (50+504)/(2)=277 | V142: (0+0)/(2)=0 | W142: (3587+0)/(2)=1793.5 | X142: (0+0)/(2)=0 | Y142: (0+0)/(2)=0 | Z142: (1009+2392)/(2)=1700.5 | AA142: (988068+0)/(2)=494034
A143: S13 | B143: (0+0)/(2)=0 | C143: (4682+4219)/(2)=4450.5 | D143: (0+0)/(2)=0 | E143: (0+987269)/(2)=493634.5 | F143: (0+0)/(2)=0 | G143: (0+0)/(2)=0 | H143: (98+1116)/(2)=607 | I143: (0+0)/(2)=0 | J143: (1859+4518)/(2)=3188.5 | K143: (0+0)/(2)=0 | L143: (0+0)/(2)=0 | M143: (0+0)/(2)=0 | N143: (0+0)/(2)=0 | O143: (3614+2995)/(2)=3304.5 | P143: (0+0)/(2)=0 | Q143: (0+0)/(2)=0 | R143: (0+559)/(2)=279.5 | S143: (334+189)/(2)=261.5 | T143: (403+742)/(2)=572.5 | U143: (50+504)/(2)=277 | V143: (0+0)/(2)=0 | W143: (3587+0)/(2)=1793.5 | X143: (0+0)/(2)=0 | Y143: (0+0)/(2)=0 | Z143: (1009+2392)/(2)=1700.5 | AA143: (988068+0)/(2)=494034
A144: S14 | B144: (0+0)/(2)=0 | C144: (4682+4219)/(2)=4450.5 | D144: (0+0)/(2)=0 | E144: (0+987269)/(2)=493634.5 | F144: (0+0)/(2)=0 | G144: (0+0)/(2)=0 | H144: (98+1116)/(2)=607 | I144: (0+0)/(2)=0 | J144: (1859+4518)/(2)=3188.5 | K144: (0+0)/(2)=0 | L144: (0+0)/(2)=0 | M144: (0+0)/(2)=0 | N144: (0+0)/(2)=0 | O144: (3614+2995)/(2)=3304.5 | P144: (0+0)/(2)=0 | Q144: (0+0)/(2)=0 | R144: (0+0)/(2)=0 | S144: (334+189)/(2)=261.5 | T144: (0+0)/(2)=0 | U144: (50+504)/(2)=277 | V144: (0+0)/(2)=0 | W144: (3587+0)/(2)=1793.5 | X144: (0+0)/(2)=0 | Y144: (0+0)/(2)=0 | Z144: (1009+2392)/(2)=1700.5 | AA144: (988068+0)/(2)=494034
A145: S15 | B145: (0+0)/(2)=0 | C145: (4682+4219)/(2)=4450.5 | D145: (0+0)/(2)=0 | E145: (0+987269)/(2)=493634.5 | F145: (0+0)/(2)=0 | G145: (0+0)/(2)=0 | H145: (98+1116)/(2)=607 | I145: (0+0)/(2)=0 | J145: (1859+4457)/(2)=3158 | K145: (0+0)/(2)=0 | L145: (0+0)/(2)=0 | M145: (0+0)/(2)=0 | N145: (0+0)/(2)=0 | O145: (3614+2995)/(2)=3304.5 | P145: (0+0)/(2)=0 | Q145: (0+0)/(2)=0 | R145: (0+0)/(2)=0 | S145: (0+189)/(2)=94.5 | T145: (0+0)/(2)=0 | U145: (0+306)/(2)=153 | V145: (0+0)/(2)=0 | W145: (3587+0)/(2)=1793.5 | X145: (0+0)/(2)=0 | Y145: (0+0)/(2)=0 | Z145: (1009+2392)/(2)=1700.5 | AA145: (988068+0)/(2)=494034
A146: S16 | B146: (0+0)/(2)=0 | C146: (4682+4219)/(2)=4450.5 | D146: (0+0)/(2)=0 | E146: (0+987269)/(2)=493634.5 | F146: (0+0)/(2)=0 | G146: (0+0)/(2)=0 | H146: (98+1116)/(2)=607 | I146: (0+0)/(2)=0 | J146: (1859+4457)/(2)=3158 | K146: (0+0)/(2)=0 | L146: (0+0)/(2)=0 | M146: (0+0)/(2)=0 | N146: (0+0)/(2)=0 | O146: (3614+2919)/(2)=3266.5 | P146: (0+0)/(2)=0 | Q146: (0+0)/(2)=0 | R146: (0+0)/(2)=0 | S146: (0+100)/(2)=50 | T146: (0+0)/(2)=0 | U146: (0+306)/(2)=153 | V146: (0+0)/(2)=0 | W146: (3587+0)/(2)=1793.5 | X146: (0+0)/(2)=0 | Y146: (0+0)/(2)=0 | Z146: (1009+2392)/(2)=1700.5 | AA146: (988068+0)/(2)=494034
A147: S17 | B147: (0+0)/(2)=0 | C147: (4682+4219)/(2)=4450.5 | D147: (0+0)/(2)=0 | E147: (0+987269)/(2)=493634.5 | F147: (0+0)/(2)=0 | G147: (0+0)/(2)=0 | H147: (98+1116)/(2)=607 | I147: (0+0)/(2)=0 | J147: (1859+4457)/(2)=3158 | K147: (0+0)/(2)=0 | L147: (0+0)/(2)=0 | M147: (0+0)/(2)=0 | N147: (0+0)/(2)=0 | O147: (3614+2919)/(2)=3266.5 | P147: (0+0)/(2)=0 | Q147: (0+0)/(2)=0 | R147: (0+0)/(2)=0 | S147: (0+100)/(2)=50 | T147: (0+0)/(2)=0 | U147: (0+306)/(2)=153 | V147: (0+0)/(2)=0 | W147: (3587+0)/(2)=1793.5 | X147: (0+0)/(2)=0 | Y147: (0+0)/(2)=0 | Z147: (0+2392)/(2)=1196 | AA147: (988068+0)/(2)=494034
A148: S18 | B148: (0+0)/(2)=0 | C148: (4682+4219)/(2)=4450.5 | D148: (0+0)/(2)=0 | E148: (0+987269)/(2)=493634.5 | F148: (0+0)/(2)=0 | G148: (0+0)/(2)=0 | H148: (98+1116)/(2)=607 | I148: (0+0)/(2)=0 | J148: (1859+4457)/(2)=3158 | K148: (0+0)/(2)=0 | L148: (0+0)/(2)=0 | M148: (0+0)/(2)=0 | N148: (0+0)/(2)=0 | O148: (3383+2919)/(2)=3151 | P148: (0+0)/(2)=0 | Q148: (0+0)/(2)=0 | R148: (0+0)/(2)=0 | S148: (0+100)/(2)=50 | T148: (0+0)/(2)=0 | U148: (0+306)/(2)=153 | V148: (0+0)/(2)=0 | W148: (3587+0)/(2)=1793.5 | X148: (0+0)/(2)=0 | Y148: (0+0)/(2)=0 | Z148: (0+2392)/(2)=1196 | AA148: (988068+0)/(2)=494034
A149: S19 | B149: (0+0)/(2)=0 | C149: (4682+4219)/(2)=4450.5 | D149: (0+0)/(2)=0 | E149: (0+987269)/(2)=493634.5 | F149: (0+0)/(2)=0 | G149: (0+0)/(2)=0 | H149: (98+1116)/(2)=607 | I149: (0+0)/(2)=0 | J149: (1859+4370)/(2)=3114.5 | K149: (0+0)/(2)=0 | L149: (0+0)/(2)=0 | M149: (0+0)/(2)=0 | N149: (0+0)/(2)=0 | O149: (3383+2919)/(2)=3151 | P149: (0+0)/(2)=0 | Q149: (0+0)/(2)=0 | R149: (0+0)/(2)=0 | S149: (0+100)/(2)=50 | T149: (0+0)/(2)=0 | U149: (0+306)/(2)=153 | V149: (0+0)/(2)=0 | W149: (3587+0)/(2)=1793.5 | X149: (0+0)/(2)=0 | Y149: (0+0)/(2)=0 | Z149: (0+1080)/(2)=540 | AA149: (988068+0)/(2)=494034
A150: S20 | B150: (0+0)/(2)=0 | C150: (4682+4219)/(2)=4450.5 | D150: (0+0)/(2)=0 | E150: (0+987269)/(2)=493634.5 | F150: (0+0)/(2)=0 | G150: (0+0)/(2)=0 | H150: (98+1116)/(2)=607 | I150: (0+0)/(2)=0 | J150: (1859+4370)/(2)=3114.5 | K150: (0+0)/(2)=0 | L150: (0+0)/(2)=0 | M150: (0+0)/(2)=0 | N150: (0+0)/(2)=0 | O150: (3383+2919)/(2)=3151 | P150: (0+0)/(2)=0 | Q150: (0+0)/(2)=0 | R150: (0+0)/(2)=0 | S150: (0+100)/(2)=50 | T150: (0+0)/(2)=0 | U150: (0+306)/(2)=153 | V150: (0+0)/(2)=0 | W150: (3587+0)/(2)=1793.5 | X150: (0+0)/(2)=0 | Y150: (0+0)/(2)=0 | Z150: (0+1080)/(2)=540 | AA150: (988068+0)/(2)=494034
A151: S21 | B151: (0+0)/(2)=0 | C151: (2942+2416)/(2)=2679 | D151: (0+0)/(2)=0 | E151: (0+987269)/(2)=493634.5 | F151: (0+0)/(2)=0 | G151: (0+0)/(2)=0 | H151: (98+1116)/(2)=607 | I151: (0+0)/(2)=0 | J151: (1859+4370)/(2)=3114.5 | K151: (0+0)/(2)=0 | L151: (0+0)/(2)=0 | M151: (0+0)/(2)=0 | N151: (0+0)/(2)=0 | O151: (3383+2919)/(2)=3151 | P151: (0+0)/(2)=0 | Q151: (0+0)/(2)=0 | R151: (0+0)/(2)=0 | S151: (0+100)/(2)=50 | T151: (0+0)/(2)=0 | U151: (0+306)/(2)=153 | V151: (0+0)/(2)=0 | W151: (3587+0)/(2)=1793.5 | X151: (0+0)/(2)=0 | Y151: (0+0)/(2)=0 | Z151: (0+1080)/(2)=540 | AA151: (988068+0)/(2)=494034
A152: S22 | B152: (0+0)/(2)=0 | C152: (2942+2416)/(2)=2679 | D152: (0+0)/(2)=0 | E152: (0+987269)/(2)=493634.5 | F152: (0+0)/(2)=0 | G152: (0+0)/(2)=0 | H152: (0+1116)/(2)=558 | I152: (0+0)/(2)=0 | J152: (1859+4370)/(2)=3114.5 | K152: (0+0)/(2)=0 | L152: (0+0)/(2)=0 | M152: (0+0)/(2)=0 | N152: (0+0)/(2)=0 | O152: (3383+2919)/(2)=3151 | P152: (0+0)/(2)=0 | Q152: (0+0)/(2)=0 | R152: (0+0)/(2)=0 | S152: (0+100)/(2)=50 | T152: (0+0)/(2)=0 | U152: (0+0)/(2)=0 | V152: (0+0)/(2)=0 | W152: (3587+0)/(2)=1793.5 | X152: (0+0)/(2)=0 | Y152: (0+0)/(2)=0 | Z152: (0+0)/(2)=0 | AA152: (988069+0)/(2)=494034.5
A153: S23 | B153: (0+0)/(2)=0 | C153: (2824+2416)/(2)=2620 | D153: (0+0)/(2)=0 | E153: (0+987269)/(2)=493634.5 | F153: (0+0)/(2)=0 | G153: (0+0)/(2)=0 | H153: (0+1116)/(2)=558 | I153: (0+0)/(2)=0 | J153: (1859+4370)/(2)=3114.5 | K153: (0+0)/(2)=0 | L153: (0+0)/(2)=0 | M153: (0+0)/(2)=0 | N153: (0+0)/(2)=0 | O153: (679+0)/(2)=339.5 | P153: (0+0)/(2)=0 | Q153: (0+0)/(2)=0 | R153: (0+0)/(2)=0 | S153: (0+100)/(2)=50 | T153: (0+0)/(2)=0 | U153: (0+0)/(2)=0 | V153: (0+0)/(2)=0 | W153: (3587+0)/(2)=1793.5 | X153: (0+0)/(2)=0 | Y153: (0+0)/(2)=0 | Z153: (0+0)/(2)=0 | AA153: (988069+0)/(2)=494034.5
A154: S24 | B154: (0+0)/(2)=0 | C154: (2824+2416)/(2)=2620 | D154: (0+0)/(2)=0 | E154: (0+987269)/(2)=493634.5 | F154: (0+0)/(2)=0 | G154: (0+0)/(2)=0 | H154: (0+1116)/(2)=558 | I154: (0+0)/(2)=0 | J154: (1859+4370)/(2)=3114.5 | K154: (0+0)/(2)=0 | L154: (0+0)/(2)=0 | M154: (0+0)/(2)=0 | N154: (0+0)/(2)=0 | O154: (679+0)/(2)=339.5 | P154: (0+0)/(2)=0 | Q154: (0+0)/(2)=0 | R154: (0+0)/(2)=0 | S154: (0+0)/(2)=0 | T154: (0+0)/(2)=0 | U154: (0+0)/(2)=0 | V154: (0+0)/(2)=0 | W154: (3587+0)/(2)=1793.5 | X154: (0+0)/(2)=0 | Y154: (0+0)/(2)=0 | Z154: (0+0)/(2)=0 | AA154: (988068+0)/(2)=494034
A155: S25 | B155: (0+0)/(2)=0 | C155: (2824+2416)/(2)=2620 | D155: (0+0)/(2)=0 | E155: (0+987269)/(2)=493634.5 | F155: (0+0)/(2)=0 | G155: (0+0)/(2)=0 | H155: (0+0)/(2)=0 | I155: (0+0)/(2)=0 | J155: (1859+4370)/(2)=3114.5 | K155: (0+0)/(2)=0 | L155: (0+0)/(2)=0 | M155: (0+0)/(2)=0 | N155: (0+0)/(2)=0 | O155: (679+0)/(2)=339.5 | P155: (0+0)/(2)=0 | Q155: (0+0)/(2)=0 | R155: (0+0)/(2)=0 | S155: (0+0)/(2)=0 | T155: (0+0)/(2)=0 | U155: (0+0)/(2)=0 | V155: (0+0)/(2)=0 | W155: (3587+0)/(2)=1793.5 | X155: (0+0)/(2)=0 | Y155: (0+0)/(2)=0 | Z155: (0+0)/(2)=0 | AA155: (988068+0)/(2)=494034
A156: S26 | B156: (0+0)/(2)=0 | C156: (2824+2416)/(2)=2620 | D156: (0+0)/(2)=0 | E156: (0+987269)/(2)=493634.5 | F156: (0+0)/(2)=0 | G156: (0+0)/(2)=0 | H156: (0+0)/(2)=0 | I156: (0+0)/(2)=0 | J156: (1859+4370)/(2)=3114.5 | K156: (0+0)/(2)=0 | L156: (0+0)/(2)=0 | M156: (0+0)/(2)=0 | N156: (0+0)/(2)=0 | O156: (0+0)/(2)=0 | P156: (0+0)/(2)=0 | Q156: (0+0)/(2)=0 | R156: (0+0)/(2)=0 | S156: (0+0)/(2)=0 | T156: (0+0)/(2)=0 | U156: (0+0)/(2)=0 | V156: (0+0)/(2)=0 | W156: (3587+0)/(2)=1793.5 | X156: (0+0)/(2)=0 | Y156: (0+0)/(2)=0 | Z156: (0+0)/(2)=0 | AA156: (988069+0)/(2)=494034.5
A157: S27 | B157: (0+0)/(2)=0 | C157: (0+0)/(2)=0 | D157: (0+0)/(2)=0 | E157: (0+987269)/(2)=493634.5 | F157: (0+0)/(2)=0 | G157: (0+0)/(2)=0 | H157: (0+0)/(2)=0 | I157: (0+0)/(2)=0 | J157: (1859+4370)/(2)=3114.5 | K157: (0+0)/(2)=0 | L157: (0+0)/(2)=0 | M157: (0+0)/(2)=0 | N157: (0+0)/(2)=0 | O157: (0+0)/(2)=0 | P157: (0+0)/(2)=0 | Q157: (0+0)/(2)=0 | R157: (0+0)/(2)=0 | S157: (0+0)/(2)=0 | T157: (0+0)/(2)=0 | U157: (0+0)/(2)=0 | V157: (0+0)/(2)=0 | W157: (3587+0)/(2)=1793.5 | X157: (0+0)/(2)=0 | Y157: (0+0)/(2)=0 | Z157: (0+0)/(2)=0 | AA157: (988068+0)/(2)=494034
A158: S28 | B158: (0+0)/(2)=0 | C158: (0+0)/(2)=0 | D158: (0+0)/(2)=0 | E158: (0+987269)/(2)=493634.5 | F158: (0+0)/(2)=0 | G158: (0+0)/(2)=0 | H158: (0+0)/(2)=0 | I158: (0+0)/(2)=0 | J158: (0+0)/(2)=0 | K158: (0+0)/(2)=0 | L158: (0+0)/(2)=0 | M158: (0+0)/(2)=0 | N158: (0+0)/(2)=0 | O158: (0+0)/(2)=0 | P158: (0+0)/(2)=0 | Q158: (0+0)/(2)=0 | R158: (0+0)/(2)=0 | S158: (0+0)/(2)=0 | T158: (0+0)/(2)=0 | U158: (0+0)/(2)=0 | V158: (0+0)/(2)=0 | W158: (3587+0)/(2)=1793.5 | X158: (0+0)/(2)=0 | Y158: (0+0)/(2)=0 | Z158: (0+0)/(2)=0 | AA158: (988068+0)/(2)=494034
A159: S29 | B159: (0+0)/(2)=0 | C159: (0+0)/(2)=0 | D159: (0+0)/(2)=0 | E159: (0+987269)/(2)=493634.5 | F159: (0+0)/(2)=0 | G159: (0+0)/(2)=0 | H159: (0+0)/(2)=0 | I159: (0+0)/(2)=0 | J159: (0+0)/(2)=0 | K159: (0+0)/(2)=0 | L159: (0+0)/(2)=0 | M159: (0+0)/(2)=0 | N159: (0+0)/(2)=0 | O159: (0+0)/(2)=0 | P159: (0+0)/(2)=0 | Q159: (0+0)/(2)=0 | R159: (0+0)/(2)=0 | S159: (0+0)/(2)=0 | T159: (0+0)/(2)=0 | U159: (0+0)/(2)=0 | V159: (0+0)/(2)=0 | W159: (0+0)/(2)=0 | X159: (0+0)/(2)=0 | Y159: (0+0)/(2)=0 | Z159: (0+0)/(2)=0 | AA159: (988068+0)/(2)=494034
A161: Lépcsôk(2) | B161: X(A1) | C161: X(A2) | D161: X(A3) | E161: X(A4) | F161: X(A5) | G161: X(A6) | H161: X(A7) | I161: X(A8) | J161: X(A9) | K161: X(A10) | L161: X(A11) | M161: X(A12) | N161: X(A13) | O161: X(A14) | P161: X(A15) | Q161: X(A16) | R161: X(A17) | S161: X(A18) | T161: X(A19) | U161: X(A20) | V161: X(A21) | W161: X(A22) | X161: X(A23) | Y161: X(A24) | Z161: X(A25) | AA161: X(A26)
A162: S1 | B162: 0 | C162: 5067.5 | D162: 4810 | E162: 493634.5 | F162: 0 | G162: 0 | H162: 607 | I162: 0 | J162: 3320 | K162: 0 | L162: 0 | M162: 0 | N162: 0 | O162: 5331.5 | P162: 232 | Q162: 0 | R162: 3472 | S162: 1097 | T162: 1129 | U162: 935.5 | V162: 1510 | W162: 2486 | X162: 0 | Y162: 0 | Z162: 1700.5 | AA162: 494034
A163: S2 | B163: 0 | C163: 5067.5 | D163: 4810 | E163: 493634.5 | F163: 0 | G163: 0 | H163: 607 | I163: 0 | J163: 3320 | K163: 0 | L163: 0 | M163: 0 | N163: 0 | O163: 5331.5 | P163: 232 | Q163: 0 | R163: 3472 | S163: 556.5 | T163: 1129 | U163: 935.5 | V163: 1510 | W163: 1793.5 | X163: 0 | Y163: 0 | Z163: 1700.5 | AA163: 494034.5
A164: S3 | B164: 0 | C164: 5067.5 | D164: 4810 | E164: 493634.5 | F164: 0 | G164: 0 | H164: 607 | I164: 0 | J164: 3320 | K164: 0 | L164: 0 | M164: 0 | N164: 0 | O164: 5331.5 | P164: 232 | Q164: 0 | R164: 1105 | S164: 454.5 | T164: 1129 | U164: 935.5 | V164: 0 | W164: 1793.5 | X164: 0 | Y164: 0 | Z164: 1700.5 | AA164: 494034
A165: S4 | B165: 0 | C165: 4450.5 | D165: 4810 | E165: 493634.5 | F165: 0 | G165: 0 | H165: 607 | I165: 0 | J165: 3320 | K165: 0 | L165: 0 | M165: 0 | N165: 0 | O165: 5331.5 | P165: 232 | Q165: 0 | R165: 607.5 | S165: 454.5 | T165: 1129 | U165: 935.5 | V165: 0 | W165: 1793.5 | X165: 0 | Y165: 0 | Z165: 1700.5 | AA165: 494034
A166: S5 | B166: 0 | C166: 4450.5 | D166: 4810 | E166: 493634.5 | F166: 0 | G166: 0 | H166: 607 | I166: 0 | J166: 3188.5 | K166: 0 | L166: 0 | M166: 0 | N166: 0 | O166: 5331.5 | P166: 232 | Q166: 0 | R166: 607.5 | S166: 261.5 | T166: 1129 | U166: 277 | V166: 0 | W166: 1793.5 | X166: 0 | Y166: 0 | Z166: 1700.5 | AA166: 494034
A167: S6 | B167: 0 | C167: 4450.5 | D167: 4810 | E167: 493634.5 | F167: 0 | G167: 0 | H167: 607 | I167: 0 | J167: 3188.5 | K167: 0 | L167: 0 | M167: 0 | N167: 0 | O167: 5331.5 | P167: 232 | Q167: 0 | R167: 607.5 | S167: 261.5 | T167: 1129 | U167: 277 | V167: 0 | W167: 1793.5 | X167: 0 | Y167: 0 | Z167: 1700.5 | AA167: 494034
A168: S7 | B168: 0 | C168: 4450.5 | D168: 4810 | E168: 493634.5 | F168: 0 | G168: 0 | H168: 607 | I168: 0 | J168: 3188.5 | K168: 0 | L168: 0 | M168: 0 | N168: 0 | O168: 5262.5 | P168: 232 | Q168: 0 | R168: 424 | S168: 261.5 | T168: 1129 | U168: 277 | V168: 0 | W168: 1793.5 | X168: 0 | Y168: 0 | Z168: 1700.5 | AA168: 494034
A169: S8 | B169: 0 | C169: 4450.5 | D169: 383.5 | E169: 493634.5 | F169: 0 | G169: 0 | H169: 607 | I169: 0 | J169: 3188.5 | K169: 0 | L169: 0 | M169: 0 | N169: 0 | O169: 3971.5 | P169: 232 | Q169: 0 | R169: 351.5 | S169: 261.5 | T169: 1129 | U169: 277 | V169: 0 | W169: 1793.5 | X169: 0 | Y169: 0 | Z169: 1700.5 | AA169: 494034
A170: S9 | B170: 0 | C170: 4450.5 | D170: 383.5 | E170: 493634.5 | F170: 0 | G170: 0 | H170: 607 | I170: 0 | J170: 3188.5 | K170: 0 | L170: 0 | M170: 0 | N170: 0 | O170: 3670 | P170: 232 | Q170: 0 | R170: 279.5 | S170: 261.5 | T170: 1129 | U170: 277 | V170: 0 | W170: 1793.5 | X170: 0 | Y170: 0 | Z170: 1700.5 | AA170: 494034
A171: S10 | B171: 0 | C171: 4450.5 | D171: 0 | E171: 493634.5 | F171: 0 | G171: 0 | H171: 607 | I171: 0 | J171: 3188.5 | K171: 0 | L171: 0 | M171: 0 | N171: 0 | O171: 3670 | P171: 232 | Q171: 0 | R171: 279.5 | S171: 261.5 | T171: 1129 | U171: 277 | V171: 0 | W171: 1793.5 | X171: 0 | Y171: 0 | Z171: 1700.5 | AA171: 494034
A172: S11 | B172: 0 | C172: 4450.5 | D172: 0 | E172: 493634.5 | F172: 0 | G172: 0 | H172: 607 | I172: 0 | J172: 3188.5 | K172: 0 | L172: 0 | M172: 0 | N172: 0 | O172: 3304.5 | P172: 232 | Q172: 0 | R172: 279.5 | S172: 261.5 | T172: 1129 | U172: 277 | V172: 0 | W172: 1793.5 | X172: 0 | Y172: 0 | Z172: 1700.5 | AA172: 494034.5
A173: S12 | B173: 0 | C173: 4450.5 | D173: 0 | E173: 493634.5 | F173: 0 | G173: 0 | H173: 607 | I173: 0 | J173: 3188.5 | K173: 0 | L173: 0 | M173: 0 | N173: 0 | O173: 3304.5 | P173: 232 | Q173: 0 | R173: 279.5 | S173: 261.5 | T173: 990 | U173: 277 | V173: 0 | W173: 1793.5 | X173: 0 | Y173: 0 | Z173: 1700.5 | AA173: 494034
A174: S13 | B174: 0 | C174: 4450.5 | D174: 0 | E174: 493634.5 | F174: 0 | G174: 0 | H174: 607 | I174: 0 | J174: 3188.5 | K174: 0 | L174: 0 | M174: 0 | N174: 0 | O174: 3304.5 | P174: 0 | Q174: 0 | R174: 279.5 | S174: 261.5 | T174: 572.5 | U174: 277 | V174: 0 | W174: 1793.5 | X174: 0 | Y174: 0 | Z174: 1700.5 | AA174: 494034
A175: S14 | B175: 0 | C175: 4450.5 | D175: 0 | E175: 493634.5 | F175: 0 | G175: 0 | H175: 607 | I175: 0 | J175: 3188.5 | K175: 0 | L175: 0 | M175: 0 | N175: 0 | O175: 3304.5 | P175: 0 | Q175: 0 | R175: 0 | S175: 261.5 | T175: 0 | U175: 277 | V175: 0 | W175: 1793.5 | X175: 0 | Y175: 0 | Z175: 1700.5 | AA175: 494034
A176: S15 | B176: 0 | C176: 4450.5 | D176: 0 | E176: 493634.5 | F176: 0 | G176: 0 | H176: 607 | I176: 0 | J176: 3158 | K176: 0 | L176: 0 | M176: 0 | N176: 0 | O176: 3304.5 | P176: 0 | Q176: 0 | R176: 0 | S176: 94.5 | T176: 0 | U176: 153 | V176: 0 | W176: 1793.5 | X176: 0 | Y176: 0 | Z176: 1700.5 | AA176: 494034
A177: S16 | B177: 0 | C177: 4450.5 | D177: 0 | E177: 493634.5 | F177: 0 | G177: 0 | H177: 607 | I177: 0 | J177: 3158 | K177: 0 | L177: 0 | M177: 0 | N177: 0 | O177: 3266.5 | P177: 0 | Q177: 0 | R177: 0 | S177: 50 | T177: 0 | U177: 153 | V177: 0 | W177: 1793.5 | X177: 0 | Y177: 0 | Z177: 1700.5 | AA177: 494034
A178: S17 | B178: 0 | C178: 4450.5 | D178: 0 | E178: 493634.5 | F178: 0 | G178: 0 | H178: 607 | I178: 0 | J178: 3158 | K178: 0 | L178: 0 | M178: 0 | N178: 0 | O178: 3266.5 | P178: 0 | Q178: 0 | R178: 0 | S178: 50 | T178: 0 | U178: 153 | V178: 0 | W178: 1793.5 | X178: 0 | Y178: 0 | Z178: 1196 | AA178: 494034
A179: S18 | B179: 0 | C179: 4450.5 | D179: 0 | E179: 493634.5 | F179: 0 | G179: 0 | H179: 607 | I179: 0 | J179: 3158 | K179: 0 | L179: 0 | M179: 0 | N179: 0 | O179: 3151 | P179: 0 | Q179: 0 | R179: 0 | S179: 50 | T179: 0 | U179: 153 | V179: 0 | W179: 1793.5 | X179: 0 | Y179: 0 | Z179: 1196 | AA179: 494034
A180: S19 | B180: 0 | C180: 4450.5 | D180: 0 | E180: 493634.5 | F180: 0 | G180: 0 | H180: 607 | I180: 0 | J180: 3114.5 | K180: 0 | L180: 0 | M180: 0 | N180: 0 | O180: 3151 | P180: 0 | Q180: 0 | R180: 0 | S180: 50 | T180: 0 | U180: 153 | V180: 0 | W180: 1793.5 | X180: 0 | Y180: 0 | Z180: 540 | AA180: 494034
A181: S20 | B181: 0 | C181: 4450.5 | D181: 0 | E181: 493634.5 | F181: 0 | G181: 0 | H181: 607 | I181: 0 | J181: 3114.5 | K181: 0 | L181: 0 | M181: 0 | N181: 0 | O181: 3151 | P181: 0 | Q181: 0 | R181: 0 | S181: 50 | T181: 0 | U181: 153 | V181: 0 | W181: 1793.5 | X181: 0 | Y181: 0 | Z181: 540 | AA181: 494034
A182: S21 | B182: 0 | C182: 2679 | D182: 0 | E182: 493634.5 | F182: 0 | G182: 0 | H182: 607 | I182: 0 | J182: 3114.5 | K182: 0 | L182: 0 | M182: 0 | N182: 0 | O182: 3151 | P182: 0 | Q182: 0 | R182: 0 | S182: 50 | T182: 0 | U182: 153 | V182: 0 | W182: 1793.5 | X182: 0 | Y182: 0 | Z182: 540 | AA182: 494034
A183: S22 | B183: 0 | C183: 2679 | D183: 0 | E183: 493634.5 | F183: 0 | G183: 0 | H183: 558 | I183: 0 | J183: 3114.5 | K183: 0 | L183: 0 | M183: 0 | N183: 0 | O183: 3151 | P183: 0 | Q183: 0 | R183: 0 | S183: 50 | T183: 0 | U183: 0 | V183: 0 | W183: 1793.5 | X183: 0 | Y183: 0 | Z183: 0 | AA183: 494034.5
A184: S23 | B184: 0 | C184: 2620 | D184: 0 | E184: 493634.5 | F184: 0 | G184: 0 | H184: 558 | I184: 0 | J184: 3114.5 | K184: 0 | L184: 0 | M184: 0 | N184: 0 | O184: 339.5 | P184: 0 | Q184: 0 | R184: 0 | S184: 50 | T184: 0 | U184: 0 | V184: 0 | W184: 1793.5 | X184: 0 | Y184: 0 | Z184: 0 | AA184: 494034.5
A185: S24 | B185: 0 | C185: 2620 | D185: 0 | E185: 493634.5 | F185: 0 | G185: 0 | H185: 558 | I185: 0 | J185: 3114.5 | K185: 0 | L185: 0 | M185: 0 | N185: 0 | O185: 339.5 | P185: 0 | Q185: 0 | R185: 0 | S185: 0 | T185: 0 | U185: 0 | V185: 0 | W185: 1793.5 | X185: 0 | Y185: 0 | Z185: 0 | AA185: 494034
A186: S25 | B186: 0 | C186: 2620 | D186: 0 | E186: 493634.5 | F186: 0 | G186: 0 | H186: 0 | I186: 0 | J186: 3114.5 | K186: 0 | L186: 0 | M186: 0 | N186: 0 | O186: 339.5 | P186: 0 | Q186: 0 | R186: 0 | S186: 0 | T186: 0 | U186: 0 | V186: 0 | W186: 1793.5 | X186: 0 | Y186: 0 | Z186: 0 | AA186: 494034
A187: S26 | B187: 0 | C187: 2620 | D187: 0 | E187: 493634.5 | F187: 0 | G187: 0 | H187: 0 | I187: 0 | J187: 3114.5 | K187: 0 | L187: 0 | M187: 0 | N187: 0 | O187: 0 | P187: 0 | Q187: 0 | R187: 0 | S187: 0 | T187: 0 | U187: 0 | V187: 0 | W187: 1793.5 | X187: 0 | Y187: 0 | Z187: 0 | AA187: 494034.5
A188: S27 | B188: 0 | C188: 0 | D188: 0 | E188: 493634.5 | F188: 0 | G188: 0 | H188: 0 | I188: 0 | J188: 3114.5 | K188: 0 | L188: 0 | M188: 0 | N188: 0 | O188: 0 | P188: 0 | Q188: 0 | R188: 0 | S188: 0 | T188: 0 | U188: 0 | V188: 0 | W188: 1793.5 | X188: 0 | Y188: 0 | Z188: 0 | AA188: 494034
A189: S28 | B189: 0 | C189: 0 | D189: 0 | E189: 493634.5 | F189: 0 | G189: 0 | H189: 0 | I189: 0 | J189: 0 | K189: 0 | L189: 0 | M189: 0 | N189: 0 | O189: 0 | P189: 0 | Q189: 0 | R189: 0 | S189: 0 | T189: 0 | U189: 0 | V189: 0 | W189: 1793.5 | X189: 0 | Y189: 0 | Z189: 0 | AA189: 494034
A190: S29 | B190: 0 | C190: 0 | D190: 0 | E190: 493634.5 | F190: 0 | G190: 0 | H190: 0 | I190: 0 | J190: 0 | K190: 0 | L190: 0 | M190: 0 | N190: 0 | O190: 0 | P190: 0 | Q190: 0 | R190: 0 | S190: 0 | T190: 0 | U190: 0 | V190: 0 | W190: 0 | X190: 0 | Y190: 0 | Z190: 0 | AA190: 494034
A192: COCO:STD | B192: X(A1) | C192: X(A2) | D192: X(A3) | E192: X(A4) | F192: X(A5) | G192: X(A6) | H192: X(A7) | I192: X(A8) | J192: X(A9) | K192: X(A10) | L192: X(A11) | M192: X(A12) | N192: X(A13) | O192: X(A14) | P192: X(A15) | Q192: X(A16) | R192: X(A17) | S192: X(A18) | T192: X(A19) | U192: X(A20) | V192: X(A21) | W192: X(A22) | X192: X(A23) | Y192: X(A24) | Z192: X(A25) | AA192: X(A26) | AB192: Becslés | AC192: Tény+0 | AD192: Delta | AE192: Delta/Tény
A193: O1 | B193: 0 | C193: 5067.5 | D193: 0 | E193: 493634.5 | F193: 0 | G193: 0 | H193: 607 | I193: 0 | J193: 3320 | K193: 0 | L193: 0 | M193: 0 | N193: 0 | O193: 5331.5 | P193: 232 | Q193: 0 | R193: 607.5 | S193: 261.5 | T193: 1129 | U193: 277 | V193: 0 | W193: 1793.5 | X193: 0 | Y193: 0 | Z193: 0 | AA193: 494034.5 | AB193: 1006295.5 | AC193: 1006295 | AD193: -0.5 | AE193: 0
A194: O2 | B194: 0 | C194: 5067.5 | D194: 0 | E194: 493634.5 | F194: 0 | G194: 0 | H194: 607 | I194: 0 | J194: 3320 | K194: 0 | L194: 0 | M194: 0 | N194: 0 | O194: 5331.5 | P194: 232 | Q194: 0 | R194: 607.5 | S194: 261.5 | T194: 1129 | U194: 277 | V194: 0 | W194: 1793.5 | X194: 0 | Y194: 0 | Z194: 0 | AA194: 494034.5 | AB194: 1006295.5 | AC194: 1006295 | AD194: -0.5 | AE194: 0
A195: O3 | B195: 0 | C195: 2679 | D195: 0 | E195: 493634.5 | F195: 0 | G195: 0 | H195: 607 | I195: 0 | J195: 3114.5 | K195: 0 | L195: 0 | M195: 0 | N195: 0 | O195: 3151 | P195: 232 | Q195: 0 | R195: 0 | S195: 0 | T195: 0 | U195: 0 | V195: 0 | W195: 1793.5 | X195: 0 | Y195: 0 | Z195: 1700.5 | AA195: 494034 | AB195: 1000946 | AC195: 1000946 | AD195: 0 | AE195: 0
A196: O4 | B196: 0 | C196: 4450.5 | D196: 0 | E196: 493634.5 | F196: 0 | G196: 0 | H196: 607 | I196: 0 | J196: 3114.5 | K196: 0 | L196: 0 | M196: 0 | N196: 0 | O196: 3670 | P196: 0 | Q196: 0 | R196: 0 | S196: 261.5 | T196: 1129 | U196: 0 | V196: 0 | W196: 0 | X196: 0 | Y196: 0 | Z196: 0 | AA196: 494034 | AB196: 1000901 | AC196: 1000901 | AD196: 0 | AE196: 0
A197: O5 | B197: 0 | C197: 4450.5 | D197: 4810 | E197: 493634.5 | F197: 0 | G197: 0 | H197: 607 | I197: 0 | J197: 3114.5 | K197: 0 | L197: 0 | M197: 0 | N197: 0 | O197: 5262.5 | P197: 232 | Q197: 0 | R197: 279.5 | S197: 261.5 | T197: 1129 | U197: 0 | V197: 0 | W197: 1793.5 | X197: 0 | Y197: 0 | Z197: 0 | AA197: 494034 | AB197: 1009608.5 | AC197: 1009609 | AD197: 0.5 | AE197: 0
A198: O6 | B198: 0 | C198: 4450.5 | D198: 0 | E198: 493634.5 | F198: 0 | G198: 0 | H198: 607 | I198: 0 | J198: 3114.5 | K198: 0 | L198: 0 | M198: 0 | N198: 0 | O198: 3304.5 | P198: 232 | Q198: 0 | R198: 0 | S198: 261.5 | T198: 1129 | U198: 0 | V198: 0 | W198: 1793.5 | X198: 0 | Y198: 0 | Z198: 1196 | AA198: 494034 | AB198: 1003757 | AC198: 1003757 | AD198: 0 | AE198: 0
A199: O7 | B199: 0 | C199: 4450.5 | D199: 4810 | E199: 493634.5 | F199: 0 | G199: 0 | H199: 0 | I199: 0 | J199: 0 | K199: 0 | L199: 0 | M199: 0 | N199: 0 | O199: 0 | P199: 0 | Q199: 0 | R199: 0 | S199: 50 | T199: 0 | U199: 935.5 | V199: 0 | W199: 1793.5 | X199: 0 | Y199: 0 | Z199: 1700.5 | AA199: 494034 | AB199: 1001408.5 | AC199: 1001409 | AD199: 0.5 | AE199: 0
A200: O8 | B200: 0 | C200: 4450.5 | D200: 0 | E200: 493634.5 | F200: 0 | G200: 0 | H200: 607 | I200: 0 | J200: 3114.5 | K200: 0 | L200: 0 | M200: 0 | N200: 0 | O200: 5331.5 | P200: 0 | Q200: 0 | R200: 0 | S200: 0 | T200: 0 | U200: 277 | V200: 0 | W200: 1793.5 | X200: 0 | Y200: 0 | Z200: 1700.5 | AA200: 494034 | AB200: 1004943 | AC200: 1004943 | AD200: 0 | AE200: 0
A201: O9 | B201: 0 | C201: 0 | D201: 4810 | E201: 493634.5 | F201: 0 | G201: 0 | H201: 607 | I201: 0 | J201: 3188.5 | K201: 0 | L201: 0 | M201: 0 | N201: 0 | O201: 5331.5 | P201: 0 | Q201: 0 | R201: 0 | S201: 50 | T201: 1129 | U201: 153 | V201: 0 | W201: 1793.5 | X201: 0 | Y201: 0 | Z201: 0 | AA201: 494034.5 | AB201: 1004731.5 | AC201: 1004731 | AD201: -0.5 | AE201: 0
A202: O10 | B202: 0 | C202: 2620 | D202: 383.5 | E202: 493634.5 | F202: 0 | G202: 0 | H202: 558 | I202: 0 | J202: 3114.5 | K202: 0 | L202: 0 | M202: 0 | N202: 0 | O202: 3304.5 | P202: 0 | Q202: 0 | R202: 0 | S202: 50 | T202: 1129 | U202: 935.5 | V202: 0 | W202: 1793.5 | X202: 0 | Y202: 0 | Z202: 1700.5 | AA202: 494034.5 | AB202: 1003258 | AC202: 1003257 | AD202: -1 | AE202: 0
A203: O11 | B203: 0 | C203: 4450.5 | D203: 0 | E203: 493634.5 | F203: 0 | G203: 0 | H203: 607 | I203: 0 | J203: 3188.5 | K203: 0 | L203: 0 | M203: 0 | N203: 0 | O203: 3670 | P203: 0 | Q203: 0 | R203: 279.5 | S203: 94.5 | T203: 0 | U203: 935.5 | V203: 0 | W203: 1793.5 | X203: 0 | Y203: 0 | Z203: 0 | AA203: 494034 | AB203: 1002687.5 | AC203: 1002688 | AD203: 0.5 | AE203: 0
A204: O12 | B204: 0 | C204: 5067.5 | D204: 0 | E204: 493634.5 | F204: 0 | G204: 0 | H204: 607 | I204: 0 | J204: 3158 | K204: 0 | L204: 0 | M204: 0 | N204: 0 | O204: 0 | P204: 0 | Q204: 0 | R204: 0 | S204: 0 | T204: 0 | U204: 0 | V204: 0 | W204: 2486 | X204: 0 | Y204: 0 | Z204: 1700.5 | AA204: 494034 | AB204: 1000687.5 | AC204: 1000688 | AD204: 0.5 | AE204: 0
A205: O13 | B205: 0 | C205: 2679 | D205: 4810 | E205: 493634.5 | F205: 0 | G205: 0 | H205: 607 | I205: 0 | J205: 3188.5 | K205: 0 | L205: 0 | M205: 0 | N205: 0 | O205: 339.5 | P205: 232 | Q205: 0 | R205: 0 | S205: 261.5 | T205: 0 | U205: 0 | V205: 0 | W205: 1793.5 | X205: 0 | Y205: 0 | Z205: 0 | AA205: 494034 | AB205: 1001579.5 | AC205: 1001580 | AD205: 0.5 | AE205: 0
A206: O14 | B206: 0 | C206: 4450.5 | D206: 0 | E206: 493634.5 | F206: 0 | G206: 0 | H206: 607 | I206: 0 | J206: 3188.5 | K206: 0 | L206: 0 | M206: 0 | N206: 0 | O206: 3151 | P206: 0 | Q206: 0 | R206: 0 | S206: 50 | T206: 0 | U206: 277 | V206: 0 | W206: 1793.5 | X206: 0 | Y206: 0 | Z206: 540 | AA206: 494034 | AB206: 1001726 | AC206: 1001726 | AD206: 0 | AE206: 0
A207: O15 | B207: 0 | C207: 4450.5 | D207: 0 | E207: 493634.5 | F207: 0 | G207: 0 | H207: 607 | I207: 0 | J207: 3114.5 | K207: 0 | L207: 0 | M207: 0 | N207: 0 | O207: 3304.5 | P207: 0 | Q207: 0 | R207: 0 | S207: 50 | T207: 0 | U207: 277 | V207: 0 | W207: 1793.5 | X207: 0 | Y207: 0 | Z207: 1700.5 | AA207: 494034 | AB207: 1002966 | AC207: 1002966 | AD207: 0 | AE207: 0
A208: O16 | B208: 0 | C208: 4450.5 | D208: 0 | E208: 493634.5 | F208: 0 | G208: 0 | H208: 607 | I208: 0 | J208: 3320 | K208: 0 | L208: 0 | M208: 0 | N208: 0 | O208: 0 | P208: 232 | Q208: 0 | R208: 3472 | S208: 0 | T208: 1129 | U208: 153 | V208: 1510 | W208: 1793.5 | X208: 0 | Y208: 0 | Z208: 0 | AA208: 494034 | AB208: 1004335.5 | AC208: 1004336 | AD208: 0.5 | AE208: 0
A209: O17 | B209: 0 | C209: 4450.5 | D209: 0 | E209: 493634.5 | F209: 0 | G209: 0 | H209: 0 | I209: 0 | J209: 3114.5 | K209: 0 | L209: 0 | M209: 0 | N209: 0 | O209: 3304.5 | P209: 232 | Q209: 0 | R209: 351.5 | S209: 50 | T209: 0 | U209: 153 | V209: 0 | W209: 1793.5 | X209: 0 | Y209: 0 | Z209: 1700.5 | AA209: 494034.5 | AB209: 1002819 | AC209: 1002819 | AD209: 0 | AE209: 0
A210: O18 | B210: 0 | C210: 2620 | D210: 0 | E210: 493634.5 | F210: 0 | G210: 0 | H210: 558 | I210: 0 | J210: 3188.5 | K210: 0 | L210: 0 | M210: 0 | N210: 0 | O210: 3151 | P210: 0 | Q210: 0 | R210: 0 | S210: 50 | T210: 0 | U210: 0 | V210: 0 | W210: 1793.5 | X210: 0 | Y210: 0 | Z210: 1700.5 | AA210: 494034 | AB210: 1000730 | AC210: 1000730 | AD210: 0 | AE210: 0
... 23 more rows

Sheet 2015
A1: Területi egység neve | B1: Területi egység szintje | C1: Év | D1: Lakosság | E1: Belgyógyászat | F1: Sebészet | G1: Baleseti sebészet | H1: Szülészet és nőgyógyászat | I1: Csecsemő- és gyermek-gyógyászat | J1: Fül-orr-gégészet | K1: Szemészet | L1: Bőrgyógyászat és nemibeteg-ellátás | M1: Neurológia | N1: Ortopédia | O1: Urológia | P1: Onkológia | Q1: Fogászat | R1: Reumatológia | S1: Aneszteziológiai és intenzív betegellátás | T1: Pszichiátria | U1: Nukleáris medicina (izotóp-diagnosztika és -terápia) | V1: Fizioterápia | W1: Patológia és kórszövettan | X1: Ultrahang-diagnosztika és -terápia | Y1: Tomográfia | Z1: Röntgen-diagnosztika és -terápia | AA1: Laboratóriumi diagnosztika | AB1: Sürgősségi betegellátás, oxyológia | AC1: Kardiológia | AD1: Orvosi rehabilitáció | AE1: Tüdő-gyógyászat
A2: Budapest + Pest | B2: főváros, régió + megye, régió | C2: 2015 | D2: 2983733 | E2: 1450020 | F2: 1082978 | G2: 507859 | H2: 1067648 | I2: 580747 | J2: 877184 | K2: 932252 | L2: 777293 | M2: 458157 | N2: 450467 | O2: 592805 | P2: 364592 | Q2: 2277599 | R2: 1193040 | S2: 115044 | T2: 840021 | U2: 75220 | V2: 2377062 | W2: 377570 | X2: 631520 | Y2: 266503 | Z2: 1301912 | AA2: 5634850 | AB2: 236332 | AC2: 854074 | AD2: 187816 | AE2: 850059
A3: Közép-Magyarország | B3: nagyrégió | C3: 2015 | D3: 2983733 | E3: 1450020 | F3: 1082978 | G3: 507859 | H3: 1067648 | I3: 580747 | J3: 877184 | K3: 932252 | L3: 777293 | M3: 458157 | N3: 450467 | O3: 592805 | P3: 364592 | Q3: 2277599 | R3: 1193040 | S3: 115044 | T3: 840021 | U3: 75220 | V3: 2377062 | W3: 377570 | X3: 631520 | Y3: 266503 | Z3: 1301912 | AA3: 5634850 | AB3: 236332 | AC3: 854074 | AD3: 187816 | AE3: 850059
A4: Fejér | B4: megye | C4: 2015 | D4: 417651 | E4: 132981 | F4: 85280 | G4: 66207 | H4: 114687 | I4: 55903 | J4: 87168 | K4: 82020 | L4: 48480 | M4: 42849 | N4: 38893 | O4: 39824 | P4: 23715 | Q4: 305841 | R4: 91512 | S4: 15595 | T4: 59382 | U4: 2780 | V4: 283759 | W4: 38200 | X4: 93170 | Y4: 27226 | Z4: 171945 | AA4: 491099 | AB4: 76534 | AC4: 56241 | AD4: 3949 | AE4: 75649
A5: Komárom-Esztergom | B5: megye | C5: 2015 | D5: 299110 | E5: 94376 | F5: 77843 | G5: 40451 | H5: 83260 | I5: 32636 | J5: 52187 | K5: 59931 | L5: 57522 | M5: 34038 | N5: 18170 | O5: 39174 | P5: 13464 | Q5: 174687 | R5: 83211 | S5: 6408 | T5: 52397 | U5: 6872 | V5: 279466 | W5: 25865 | X5: 50900 | Y5: 12958 | Z5: 116594 | AA5: 285110 | AB5: 21054 | AC5: 33780 | AD5: 2696 | AE5: 55034
A6: Veszprém | B6: megye | C6: 2015 | D6: 346647 | E6: 98344 | F6: 75133 | G6: 76607 | H6: 86158 | I6: 33382 | J6: 70424 | K6: 73805 | L6: 41633 | M6: 35646 | N6: 12264 | O6: 43937 | P6: 19842 | Q6: 234783 | R6: 100689 | S6: 13310 | T6: 73811 | U6: 3849 | V6: 249122 | W6: 28687 | X6: 63837 | Y6: 26772 | Z6: 116375 | AA6: 303367 | AB6: 27950 | AC6: 49327 | AD6: 33310 | AE6: 80698
A7: Közép-Dunántúl | B7: régió | C7: 2015 | D7: 1063408 | E7: 325701 | F7: 238256 | G7: 183265 | H7: 284105 | I7: 121921 | J7: 209779 | K7: 215756 | L7: 147635 | M7: 112533 | N7: 69327 | O7: 122935 | P7: 57021 | Q7: 715311 | R7: 275412 | S7: 35313 | T7: 185590 | U7: 13501 | V7: 812347 | W7: 92752 | X7: 207907 | Y7: 66956 | Z7: 404914 | AA7: 1079576 | AB7: 125538 | AC7: 139348 | AD7: 39955 | AE7: 211381
A8: Győr-Moson-Sopron | B8: megye | C8: 2015 | D8: 452638 | E8: 108316 | F8: 96452 | G8: 89881 | H8: 112753 | I8: 50444 | J8: 65810 | K8: 74184 | L8: 44490 | M8: 40197 | N8: 30036 | O8: 63061 | P8: 35983 | Q8: 246390 | R8: 69679 | S8: 11609 | T8: 79205 | U8: 3790 | V8: 279066 | W8: 81727 | X8: 77344 | Y8: 38245 | Z8: 174996 | AA8: 426304 | AB8: 73743 | AC8: 49229 | AD8: 6377 | AE8: 66126
A9: Vas | B9: megye | C9: 2015 | D9: 253997 | E9: 73943 | F9: 52107 | G9: 23755 | H9: 62474 | I9: 19633 | J9: 41129 | K9: 48222 | L9: 29887 | M9: 25530 | N9: 10810 | O9: 30609 | P9: 28277 | Q9: 132193 | R9: 76423 | S9: 5745 | T9: 31074 | U9: 1191 | V9: 126238 | W9: 25108 | X9: 21640 | Y9: 19200 | Z9: 74795 | AA9: 300301 | AB9: 30228 | AC9: 14480 | AD9: 12554 | AE9: 43117
A10: Zala | B10: megye | C10: 2015 | D10: 277290 | E10: 87999 | F10: 44303 | G10: 64629 | H10: 65648 | I10: 26406 | J10: 49058 | K10: 59198 | L10: 35181 | M10: 35667 | N10: 31790 | O10: 35801 | P10: 22759 | Q10: 174779 | R10: 89866 | S10: 7460 | T10: 34944 | U10: 2405 | V10: 315907 | W10: 26873 | X10: 51036 | Y10: 22958 | Z10: 91342 | AA10: 373036 | AB10: 28105 | AC10: 42109 | AD10: 13119 | AE10: 58002
A11: Nyugat-Dunántúl | B11: régió | C11: 2015 | D11: 983925 | E11: 270258 | F11: 192862 | G11: 178265 | H11: 240875 | I11: 96483 | J11: 155997 | K11: 181604 | L11: 109558 | M11: 101394 | N11: 72636 | O11: 129471 | P11: 87019 | Q11: 553362 | R11: 235968 | S11: 24814 | T11: 145223 | U11: 7386 | V11: 721211 | W11: 133708 | X11: 150020 | Y11: 80403 | Z11: 341133 | AA11: 1099641 | AB11: 132076 | AC11: 105818 | AD11: 32050 | AE11: 167245
A12: Baranya | B12: megye | C12: 2015 | D12: 371110 | E12: 160025 | F12: 111824 | G12: 62087 | H12: 125519 | I12: 101520 | J12: 83457 | K12: 94033 | L12: 85978 | M12: 50578 | N12: 32810 | O12: 69853 | P12: 66574 | Q12: 359612 | R12: 103940 | S12: 10800 | T12: 112949 | U12: 4063 | V12: 236184 | W12: 51310 | X12: 108305 | Y12: 36562 | Z12: 148242 | AA12: 687087 | AB12: 31761 | AC12: 109661 | AD12: 9974 | AE12: 99943
A13: Somogy | B13: megye | C13: 2015 | D13: 312084 | E13: 106200 | F13: 107711 | G13: 31306 | H13: 81172 | I13: 36626 | J13: 56729 | K13: 65106 | L13: 56850 | M13: 38855 | N13: 31714 | O13: 29444 | P13: 39154 | Q13: 190734 | R13: 55227 | S13: 7410 | T13: 70725 | U13: 2013 | V13: 165211 | W13: 27390 | X13: 68371 | Y13: 34015 | Z13: 109454 | AA13: 426173 | AB13: 54368 | AC13: 44316 | AD13: 2148 | AE13: 59292
A14: Tolna | B14: megye | C14: 2015 | D14: 225936 | E14: 86968 | F14: 45793 | G14: 42564 | H14: 70262 | I14: 40972 | J14: 46804 | K14: 44509 | L14: 33118 | M14: 28551 | N14: 23432 | O14: 25477 | P14: 18628 | Q14: 145730 | R14: 41591 | S14: 8150 | T14: 36388 | U14: 3476 | V14: 105977 | W14: 20601 | X14: 35961 | Y14: 11709 | Z14: 76679 | AA14: 275892 | AB14: 18344 | AC14: 40315 | AD14: 3570 | AE14: 42310
A15: Dél-Dunántúl | B15: régió | C15: 2015 | D15: 909130 | E15: 353193 | F15: 265328 | G15: 135957 | H15: 276953 | I15: 179118 | J15: 186990 | K15: 203648 | L15: 175946 | M15: 117984 | N15: 87956 | O15: 124774 | P15: 124356 | Q15: 696076 | R15: 200758 | S15: 26360 | T15: 220062 | U15: 9552 | V15: 507372 | W15: 99301 | X15: 212637 | Y15: 82286 | Z15: 334375 | AA15: 1389152 | AB15: 104473 | AC15: 194292 | AD15: 15692 | AE15: 201545
A16: Dunántúl | B16: nagyrégió | C16: 2015 | D16: 2956463 | E16: 949152 | F16: 696446 | G16: 497487 | H16: 801933 | I16: 397522 | J16: 552766 | K16: 601008 | L16: 433139 | M16: 331911 | N16: 229919 | O16: 377180 | P16: 268396 | Q16: 1964749 | R16: 712138 | S16: 86487 | T16: 550875 | U16: 30439 | V16: 2040930 | W16: 325761 | X16: 570564 | Y16: 229645 | Z16: 1080422 | AA16: 3568369 | AB16: 362087 | AC16: 439458 | AD16: 87697 | AE16: 580171
A17: Borsod-Abaúj-Zemplén | B17: megye | C17: 2015 | D17: 667594 | E17: 247805 | F17: 176648 | G17: 94757 | H17: 195881 | I17: 98004 | J17: 113578 | K17: 152256 | L17: 104569 | M17: 101590 | N17: 45932 | O17: 69339 | P17: 56758 | Q17: 464136 | R17: 121199 | S17: 22541 | T17: 99978 | U17: 4295 | V17: 614190 | W17: 62958 | X17: 198499 | Y17: 51217 | Z17: 241376 | AA17: 760183 | AB17: 35201 | AC17: 84607 | AD17: 28948 | AE17: 211607
A18: Heves | B18: megye | C18: 2015 | D18: 301296 | E18: 110610 | F18: 70096 | G18: 41270 | H18: 98686 | I18: 18981 | J18: 39567 | K18: 52583 | L18: 25887 | M18: 32746 | N18: 28058 | O18: 27403 | P18: 21926 | Q18: 215834 | R18: 75068 | S18: 12404 | T18: 65328 | U18: 2436 | V18: 111782 | W18: 29343 | X18: 48316 | Y18: 20890 | Z18: 102091 | AA18: 364410 | AB18: 54935 | AC18: 34544 | AD18: 8495 | AE18: 81680
A19: Nógrád | B19: megye | C19: 2015 | D19: 195923 | E19: 62658 | F19: 37874 | G19: 26038 | H19: 41260 | I19: 20056 | J19: 25725 | K19: 35778 | L19: 27374 | M19: 24814 | N19: 11700 | O19: 11751 | P19: 8069 | Q19: 135021 | R19: 38747 | S19: 3667 | T19: 40476 | U19: 1562 | V19: 107851 | W19: 15388 | X19: 34425 | Y19: 8860 | Z19: 62613 | AA19: 177633 | AB19: 30887 | AC19: 15189 | AD19: 1431 | AE19: 35962
A20: Észak-Magyarország | B20: régió | C20: 2015 | D20: 1164813 | E20: 421073 | F20: 284618 | G20: 162065 | H20: 335827 | I20: 137041 | J20: 178870 | K20: 240617 | L20: 157830 | M20: 159150 | N20: 85690 | O20: 108493 | P20: 86753 | Q20: 814991 | R20: 235014 | S20: 38612 | T20: 205782 | U20: 8293 | V20: 833823 | W20: 107689 | X20: 281240 | Y20: 80967 | Z20: 406080 | AA20: 1302226 | AB20: 121023 | AC20: 134340 | AD20: 38874 | AE20: 329249
A21: Hajdú-Bihar | B21: megye | C21: 2015 | D21: 537268 | E21: 333594 | F21: 163233 | G21: 107348 | H21: 207814 | I21: 85353 | J21: 131279 | K21: 140787 | L21: 85197 | M21: 90628 | N21: 57811 | O21: 75103 | P21: 91697 | Q21: 470855 | R21: 145526 | S21: 25954 | T21: 112430 | U21: 7842 | V21: 415602 | W21: 63248 | X21: 186788 | Y21: 48905 | Z21: 258037 | AA21: 992020 | AB21: 63666 | AC21: 97846 | AD21: 58235 | AE21: 129635
A22: Jász-Nagykun-Szolnok | B22: megye | C22: 2015 | D22: 379897 | E22: 145437 | F22: 73756 | G22: 57864 | H22: 86719 | I22: 26645 | J22: 70072 | K22: 47058 | L22: 57558 | M22: 28071 | N22: 17693 | O22: 54129 | P22: 22841 | Q22: 264627 | R22: 172112 | S22: 6942 | T22: 57517 | U22: 256 | V22: 227791 | W22: 26368 | X22: 65651 | Y22: 28485 | Z22: 134369 | AA22: 543464 | AB22: 57508 | AC22: 43308 | AD22: 9824 | AE22: 128675
A23: Szabolcs-Szatmár-Bereg | B23: megye | C23: 2015 | D23: 562357 | E23: 233215 | F23: 73136 | G23: 110579 | H23: 123665 | I23: 80688 | J23: 107775 | K23: 96157 | L23: 68317 | M23: 66950 | N23: 41092 | O23: 56038 | P23: 33228 | Q23: 395971 | R23: 132875 | S23: 17179 | T23: 82955 | U23: 7482 | V23: 225453 | W23: 56250 | X23: 115132 | Y23: 41122 | Z23: 218076 | AA23: 739801 | AB23: 66745 | AC23: 53170 | AD23: 22722 | AE23: 176945
A24: Észak-Alföld | B24: régió | C24: 2015 | D24: 1479522 | E24: 712246 | F24: 310125 | G24: 275791 | H24: 418198 | I24: 192686 | J24: 309126 | K24: 284002 | L24: 211072 | M24: 185649 | N24: 116596 | O24: 185270 | P24: 147766 | Q24: 1131453 | R24: 450513 | S24: 50075 | T24: 252902 | U24: 15580 | V24: 868846 | W24: 145866 | X24: 367571 | Y24: 118512 | Z24: 610482 | AA24: 2275285 | AB24: 187919 | AC24: 194324 | AD24: 90781 | AE24: 435255
A25: Bács-Kiskun | B25: megye | C25: 2015 | D25: 513687 | E25: 199932 | F25: 87898 | G25: 115084 | H25: 131674 | I25: 31937 | J25: 81334 | K25: 92386 | L25: 102500 | M25: 57213 | N25: 26655 | O25: 61988 | P25: 53327 | Q25: 346617 | R25: 92963 | S25: 16615 | T25: 100312 | U25: 55330 | V25: 360500 | W25: 48335 | X25: 91348 | Y25: 27082 | Z25: 212488 | AA25: 697361 | AB25: 78426 | AC25: 69972 | AD25: 1730 | AE25: 83061
A26: Békés | B26: megye | C26: 2015 | D26: 351148 | E26: 117889 | F26: 70237 | G26: 40217 | H26: 87865 | I26: 39538 | J26: 94312 | K26: 64490 | L26: 61569 | M26: 44059 | N26: 27678 | O26: 45821 | P26: 36208 | Q26: 219060 | R26: 76811 | S26: 8143 | T26: 79406 | U26: 4968 | V26: 214407 | W26: 33430 | X26: 86121 | Y26: 28926 | Z26: 136995 | AA26: 458144 | AB26: 59832 | AC26: 63679 | AD26: 3737 | AE26: 72987
A27: Csongrád-Csanád | B27: megye | C27: 2015 | D27: 406205 | E27: 240477 | F27: 125930 | G27: 70504 | H27: 162956 | I27: 104407 | J27: 85582 | K27: 106357 | L27: 98464 | M27: 61317 | N27: 42872 | O27: 68526 | P27: 41517 | Q27: 310787 | R27: 76104 | S27: 13284 | T27: 119245 | U27: 20422 | V27: 329304 | W27: 57737 | X27: 104089 | Y27: 41087 | Z27: 153045 | AA27: 861467 | AB27: 64666 | AC27: 77967 | AD27: 9207 | AE27: 70503
A28: Dél-Alföld | B28: régió | C28: 2015 | D28: 1271040 | E28: 558298 | F28: 284065 | G28: 225805 | H28: 382495 | I28: 175882 | J28: 261228 | K28: 263233 | L28: 262533 | M28: 162589 | N28: 97205 | O28: 176335 | P28: 131052 | Q28: 876464 | R28: 245878 | S28: 38042 | T28: 298963 | U28: 80720 | V28: 904211 | W28: 139502 | X28: 281558 | Y28: 97095 | Z28: 502528 | AA28: 2016972 | AB28: 202924 | AC28: 211618 | AD28: 14674 | AE28: 226551
A29: Alföld és Észak | B29: nagyrégió | C29: 2015 | D29: 3915375 | E29: 1691617 | F29: 878808 | G29: 663661 | H29: 1136520 | I29: 505609 | J29: 749224 | K29: 787852 | L29: 631435 | M29: 507388 | N29: 299491 | O29: 470098 | P29: 365571 | Q29: 2822908 | R29: 931405 | S29: 126729 | T29: 757647 | U29: 104593 | V29: 2606880 | W29: 393057 | X29: 930369 | Y29: 296574 | Z29: 1519090 | AA29: 5594483 | AB29: 511866 | AC29: 540282 | AD29: 144329 | AE29: 991055
A30: Ország összesen | B30: ország | C30: 2015 | D30: 9855571 | E30: 4090789 | F30: 2658232 | G30: 1669007 | H30: 3006101 | I30: 1483878 | J30: 2179174 | K30: 2321112 | L30: 1841867 | M30: 1297456 | N30: 979877 | O30: 1440083 | P30: 998559 | Q30: 7065256 | R30: 2836583 | S30: 328260 | T30: 2148543 | U30: 210252 | V30: 7024872 | W30: 1096388 | X30: 2132453 | Y30: 792722 | Z30: 3901424 | AA30: 14797702 | AB30: 1110285 | AC30: 1833814 | AD30: 419842 | AE30: 2421285
E32: =E2/$D2 -> 0.4859751191 | F32: =F2/$D2 -> 0.3629607609 | G32: 0.1702092647 | H32: 0.3578229017 | I32: 0.194637724 | J32: 0.2939887718 | K32: 0.3124448468 | L32: 0.26051024 | M32: 0.153551608 | N32: 0.1509742996 | O32: 0.1986789703 | P32: 0.1221932391 | Q32: 0.7633387438 | R32: 0.3998481097 | S32: 0.03855706928 | T32: 0.2815335689 | U32: 0.02521003052 | V32: 0.7966738311 | W32: 0.126542824 | X32: 0.211654327 | Y32: 0.08931864882 | Z32: 0.4363366293 | AA32: 1.888523537 | AB32: 0.07920681911 | AC32: 0.2862434407 | AD32: 0.06294665106 | AE32: 0.2848978109
E33: =E3/$D3 -> 0.4859751191 | F33: 0.3629607609 | G33: 0.1702092647 | H33: 0.3578229017 | I33: 0.194637724 | J33: 0.2939887718 | K33: 0.3124448468 | L33: 0.26051024 | M33: 0.153551608 | N33: 0.1509742996 | O33: 0.1986789703 | P33: 0.1221932391 | Q33: 0.7633387438 | R33: 0.3998481097 | S33: 0.03855706928 | T33: 0.2815335689 | U33: 0.02521003052 | V33: 0.7966738311 | W33: 0.126542824 | X33: 0.211654327 | Y33: 0.08931864882 | Z33: 0.4363366293 | AA33: 1.888523537 | AB33: 0.07920681911 | AC33: 0.2862434407 | AD33: 0.06294665106 | AE33: 0.2848978109
E34: =E4/$D4 -> 0.3184022066 | F34: 0.2041896224 | G34: 0.1585223069 | H34: 0.2746000848 | I34: 0.1338509904 | J34: 0.2087101432 | K34: 0.1963840623 | L34: 0.1160777779 | M34: 0.102595229 | N34: 0.09312320574 | O34: 0.09535233963 | P34: 0.05678185854 | Q34: 0.7322884418 | R34: 0.2191111718 | S34: 0.03733978848 | T34: 0.1421809118 | U34: 0.006656275215 | V34: 0.6794165464 | W34: 0.09146392562 | X34: 0.2230809935 | Y34: 0.06518839893 | Z34: 0.4116954108 | AA34: 1.175859749 | AB34: 0.1832486933 | AC34: 0.1346602786 | AD34: 0.009455262887 | AE34: 0.1811296992
E35: =E5/$D5 -> 0.3155227174 | F35: 0.2602487379 | G35: 0.1352378724 | H35: 0.2783591321 | I35: 0.1091103607 | J35: 0.1744742737 | K35: 0.2003644144 | L35: 0.1923105212 | M35: 0.1137975995 | N35: 0.06074688242 | O35: 0.13096854 | P35: 0.04501354017 | Q35: 0.5840226004 | R35: 0.2781953128 | S35: 0.02142355655 | T35: 0.1751763565 | U35: 0.02297482532 | V35: 0.9343251647 | W35: 0.08647320384 | X35: 0.1701715088 | Y35: 0.04332185484 | Z35: 0.3898030825 | AA35: 0.9531944769 | AB35: 0.07038882017 | AC35: 0.1129350406 | AD35: 0.009013406439 | AE35: 0.1839925111
E36: =E6/$D6 -> 0.2837007099 | F36: 0.2167421036 | G36: 0.2209942679 | H36: 0.2485467926 | I36: 0.09629969392 | J36: 0.2031576791 | K36: 0.2129111171 | L36: 0.1201020058 | M36: 0.1028308337 | N36: 0.03537893015 | O36: 0.1267485367 | P36: 0.05723978572 | Q36: 0.6772970774 | R36: 0.2904655168 | S36: 0.03839640903 | T36: 0.2129284257 | U36: 0.01110351453 | V36: 0.7186619241 | W36: 0.08275565633 | X36: 0.1841556396 | Y36: 0.07723130447 | Z36: 0.3357161608 | AA36: 0.8751467631 | AB36: 0.08062957418 | AC36: 0.1422974957 | AD36: 0.09609198983 | AE36: 0.232795899
E37: =E7/$D7 -> 0.306280374 | F37: 0.2240494711 | G37: 0.1723374283 | H37: 0.2671646254 | I37: 0.1146511969 | J37: 0.1972704738 | K37: 0.2028910823 | L37: 0.1388319441 | M37: 0.1058229767 | N37: 0.06519322781 | O37: 0.115604735 | P37: 0.05362099965 | Q37: 0.6726590359 | R37: 0.2589899643 | S37: 0.03320738606 | T37: 0.1745237952 | U37: 0.0126959737 | V37: 0.7639090547 | W37: 0.08722146157 | X37: 0.1955100958 | Y37: 0.06296360381 | Z37: 0.3807701277 | AA37: 1.015203948 | AB37: 0.1180525255 | AC37: 0.1310390744 | AD37: 0.03757259678 | AE37: 0.1987769511
E38: =E8/$D8 -> 0.239299396 | F38: 0.213088605 | G38: 0.1985714854 | H38: 0.2491019313 | I38: 0.1114444656 | J38: 0.1453921235 | K38: 0.1638925587 | L38: 0.09829046611 | M38: 0.08880606577 | N38: 0.0663576633 | O38: 0.1393188376 | P38: 0.07949619784 | Q38: 0.5443422779 | R38: 0.1539397929 | S38: 0.02564742686 | T38: 0.1749853083 | U38: 0.008373137032 | V38: 0.6165324166 | W38: 0.1805570898 | X38: 0.170873855 | Y38: 0.08449356881 | Z38: 0.3866135852 | AA38: 0.9418210579 | AB38: 0.1629182702 | AC38: 0.1087602013 | AD38: 0.01408852107 | AE38: 0.1460902531
E39: =E9/$D9 -> 0.2911176116 | F39: 0.2051480923 | G39: 0.09352472667 | H39: 0.245963535 | I39: 0.07729618854 | J39: 0.1619271094 | K39: 0.1898526361 | L39: 0.1176667441 | M39: 0.1005129982 | N39: 0.04255955779 | O39: 0.1205092974 | P39: 0.1113280866 | Q39: 0.5204510289 | R39: 0.3008815065 | S39: 0.02261837738 | T39: 0.1223400276 | U39: 0.00468903176 | V39: 0.4970058701 | W39: 0.09885156124 | X39: 0.08519785667 | Y39: 0.07559144399 | Z39: 0.294471982 | AA39: 1.182301366 | AB39: 0.1190092796 | AC39: 0.05700854735 | AD39: 0.04942578062 | AE39: 0.1697539735
E40: =E10/$D10 -> 0.317353673 | F40: 0.1597713585 | G40: 0.2330736774 | H40: 0.2367485304 | I40: 0.09522882181 | J40: 0.1769194706 | K40: 0.2134876844 | L40: 0.1268743914 | M40: 0.1286270691 | N40: 0.1146453172 | O40: 0.1291103177 | P40: 0.08207652638 | Q40: 0.6303112265 | R40: 0.3240866962 | S40: 0.02690324209 | T40: 0.1260196906 | U40: 0.008673230192 | V40: 1.139265751 | W40: 0.09691297919 | X40: 0.1840527967 | Y40: 0.08279418659 | Z40: 0.3294096433 | AA40: 1.345291933 | AB40: 0.1013559811 | AC40: 0.1518590645 | AD40: 0.04731147896 | AE40: 0.2091745104
E41: =E11/$D11 -> 0.2746733745 | F41: 0.1960129075 | G41: 0.1811774271 | H41: 0.244810326 | I41: 0.0980593033 | J41: 0.1585456209 | K41: 0.1845709785 | L41: 0.1113479178 | M41: 0.1030505374 | N41: 0.0738226999 | O41: 0.131586249 | P41: 0.088440684 | Q41: 0.5624026222 | R41: 0.2398231573 | S41: 0.02521940189 | T41: 0.1475955993 | U41: 0.007506669716 | V41: 0.7329938766 | W41: 0.1358924715 | X41: 0.1524709709 | Y41: 0.08171659425 | Z41: 0.3467063038 | AA41: 1.117606525 | AB41: 0.1342338085 | AC41: 0.1075468151 | AD41: 0.03257362096 | AE41: 0.1699773865
E42: =E12/$D12 -> 0.4312063809 | F42: 0.3013230579 | G42: 0.1673008003 | H42: 0.338225863 | I42: 0.2735577053 | J42: 0.224884805 | K42: 0.253383094 | L42: 0.2316779392 | M42: 0.136288432 | N42: 0.08841044434 | O42: 0.1882272103 | P42: 0.1793915551 | Q42: 0.9690172725 | R42: 0.2800786829 | S42: 0.02910188354 | T42: 0.3043545041 | U42: 0.01094823637 | V42: 0.6364258576 | W42: 0.138260893 | X42: 0.2918406941 | Y42: 0.09852065425 | Z42: 0.399455687 | AA42: 1.851437579 | AB42: 0.08558378917 | AC42: 0.2954945973 | AD42: 0.02687612837 | AE42: 0.2693082913
E43: =E13/$D13 -> 0.340292998 | F43: 0.3451346432 | G43: 0.1003127363 | H43: 0.2600966406 | I43: 0.1173594289 | J43: 0.1817747786 | K43: 0.2086169108 | L43: 0.1821624947 | M43: 0.1245017367 | N43: 0.1016200766 | O43: 0.09434639392 | P43: 0.1254598121 | Q43: 0.6111623794 | R43: 0.1769619718 | S43: 0.02374360749 | T43: 0.2266216788 | U43: 0.006450186488 | V43: 0.5293799105 | W43: 0.08776483255 | X43: 0.2190788377 | Y43: 0.1089930916 | Z43: 0.350719678 | AA43: 1.365571449 | AB43: 0.1742095077 | AC43: 0.1420002307 | AD43: 0.006882762333 | AE43: 0.1899873111
E44: =E14/$D14 -> 0.3849231641 | F44: 0.2026812903 | G44: 0.1883896325 | H44: 0.310981871 | I44: 0.1813433893 | J44: 0.2071560088 | K44: 0.196998265 | L44: 0.1465813328 | M44: 0.1263676439 | N44: 0.1037107854 | O44: 0.1127620211 | P44: 0.0824481269 | Q44: 0.6450056653 | R44: 0.1840831032 | S44: 0.03607216203 | T44: 0.1610544579 | U44: 0.01538488776 | V44: 0.4690576092 | W44: 0.09118068834 | X44: 0.1591645422 | Y44: 0.05182441045 | Z44: 0.3393837193 | AA44: 1.221106862 | AB44: 0.08119113377 | AC44: 0.1784354862 | AD44: 0.01580093478 | AE44: 0.1872654203
E45: =E15/$D15 -> 0.3884955947 | F45: 0.2918482505 | G45: 0.1495462695 | H45: 0.3046352007 | I45: 0.1970213281 | J45: 0.2056801558 | K45: 0.2240031679 | L45: 0.1935322781 | M45: 0.1297768196 | N45: 0.09674743986 | O45: 0.1372454984 | P45: 0.1367857182 | Q45: 0.765650677 | R45: 0.2208243046 | S45: 0.02899475323 | T45: 0.2420577915 | U45: 0.01050674821 | V45: 0.5580852023 | W45: 0.1092264033 | X45: 0.2338906427 | Y45: 0.09051070804 | Z45: 0.3677966847 | AA45: 1.528001496 | AB45: 0.1149153586 | AC45: 0.2137120104 | AD45: 0.0172604578 | AE45: 0.2216899673
E46: =E16/$D16 -> 0.3210430843 | F46: 0.2355672978 | G46: 0.1682710049 | H46: 0.2712474332 | I46: 0.134458642 | J46: 0.1869686852 | K46: 0.2032861565 | L46: 0.1465058078 | M46: 0.1122662452 | N46: 0.07776826566 | O46: 0.1275781229 | P46: 0.09078280364 | Q46: 0.6645606591 | R46: 0.2408749915 | S46: 0.02925353708 | T46: 0.1863290696 | U46: 0.01029574867 | V46: 0.690328274 | W46: 0.1101860568 | X46: 0.1929887166 | Y46: 0.07767558735 | Z46: 0.3654441135 | AA46: 1.206972318 | AB46: 0.1224730362 | AC46: 0.1486431591 | AD46: 0.02966280992 | AE46: 0.1962382076
E47: =E17/$D17 -> 0.3711911731 | F47: 0.2646039359 | G47: 0.1419380642 | H47: 0.293413362 | I47: 0.1468017987 | J47: 0.1701303487 | K47: 0.2280667591 | L47: 0.1566356199 | M47: 0.1521733269 | N47: 0.06880229601 | O47: 0.1038640251 | P47: 0.08501873893 | Q47: 0.6952369254 | R47: 0.1815459696 | S47: 0.03376453353 | T47: 0.1497586857 | U47: 0.006433550931 | V47: 0.9200052727 | W47: 0.0943058206 | X47: 0.2973349071 | Y47: 0.07671878417 | Z47: 0.3615610686 | AA47: 1.138690581 | AB47: 0.05272815514 | AC47: 0.1267342127 | AD47: 0.0433616839 | AE47: 0.3169695953
E48: =E18/$D18 -> 0.3671140672 | F48: 0.2326482927 | G48: 0.1369749349 | H48: 0.3275383676 | I48: 0.06299784929 | J48: 0.131322686 | K48: 0.1745227285 | L48: 0.08591883065 | M48: 0.1086838192 | N48: 0.09312436939 | O48: 0.09095042749 | P48: 0.07277229037 | Q48: 0.7163520259 | R48: 0.2491503372 | S48: 0.04116881738 | T48: 0.2168233232 | U48: 0.008085072487 | V48: 0.3710039297 | W48: 0.09738927832 | X48: 0.1603605756 | Y48: 0.06933381127 | Z48: 0.3388395465 | AA48: 1.209475068 | AB48: 0.1823290054 | AC48: 0.1146513727 | AD48: 0.02819486485 | AE48: 0.271095534
E49: =E19/$D19 -> 0.3198093128 | F49: 0.1933106373 | G49: 0.1328991492 | H49: 0.210592937 | I49: 0.1023667461 | J49: 0.1313015828 | K49: 0.182612557 | L49: 0.1397181546 | M49: 0.1266517969 | N49: 0.05971733793 | O49: 0.05997764428 | P49: 0.04118454699 | Q49: 0.6891533919 | R49: 0.1977664695 | S49: 0.0187165366 | T49: 0.206591365 | U49: 0.007972519816 | V49: 0.5504764627 | W49: 0.0785410595 | X49: 0.1757067828 | Y49: 0.04522184736 | Z49: 0.3195796308 | AA49: 0.9066469991 | AB49: 0.1576486681 | AC49: 0.07752535435 | AD49: 0.007303889793 | AE49: 0.1835517014
E50: =E20/$D20 -> 0.3614940767 | F50: 0.2443465174 | G50: 0.1391339211 | H50: 0.2883097974 | I50: 0.1176506444 | J50: 0.1535611296 | K50: 0.2065713552 | L50: 0.1354981443 | M50: 0.1366313734 | N50: 0.07356545643 | O50: 0.09314198932 | P50: 0.07447804927 | Q50: 0.6996753985 | R50: 0.2017611411 | S50: 0.0331486685 | T50: 0.1766652673 | U50: 0.007119597738 | V50: 0.7158428005 | W50: 0.09245174977 | X50: 0.2414464811 | Y50: 0.06951072833 | Z50: 0.3486224828 | AA50: 1.117970009 | AB50: 0.1038990808 | AC50: 0.1153318172 | AD50: 0.03337359731 | AE50: 0.282662539
E51: =E21/$D21 -> 0.6209080012 | F51: 0.3038204397 | G51: 0.19980345 | H51: 0.3867976503 | I51: 0.1588648496 | J51: 0.2443454663 | K51: 0.2620424071 | L51: 0.1585744917 | M51: 0.1686830409 | N51: 0.1076017928 | O51: 0.1397868475 | P51: 0.1706727369 | Q51: 0.8763875757 | R51: 0.2708629585 | S51: 0.04830736243 | T51: 0.2092624165 | U51: 0.01459606751 | V51: 0.7735469077 | W51: 0.1177215096 | X51: 0.347662619 | Y51: 0.09102533559 | Z51: 0.4802761378 | AA51: 1.846415569 | AB51: 0.1184995198 | AC51: 0.1821176768 | AD51: 0.1083909706 | AE51: 0.2412855409
E52: =E22/$D22 -> 0.3828327152 | F52: 0.194147361 | G52: 0.1523149696 | H52: 0.2282697679 | I52: 0.07013743199 | J52: 0.1844499957 | K52: 0.1238704175 | L52: 0.1515094881 | M52: 0.073891081 | N52: 0.04657315009 | O52: 0.1424833573 | P52: 0.06012419156 | Q52: 0.6965756508 | R52: 0.4530491159 | S52: 0.0182733741 | T52: 0.1514015641 | U52: 0.0006738668639 | V52: 0.5996125266 | W52: 0.06940828698 | X52: 0.1728126308 | Y52: 0.07498085007 | Z52: 0.3536985025 | AA52: 1.430556177 | AB52: 0.1513778735 | AC52: 0.1139993209 | AD52: 0.0258596409 | AE52: 0.3387102294
E53: =E23/$D23 -> 0.4147098729 | F53: 0.1300526178 | G53: 0.1966348778 | H53: 0.2199047936 | I53: 0.1434818096 | J53: 0.1916487214 | K53: 0.170989247 | L53: 0.1214833282 | M53: 0.119052488 | N53: 0.07307102072 | O53: 0.09964844396 | P53: 0.05908702123 | Q53: 0.7041274493 | R53: 0.2362822904 | S53: 0.03054821048 | T53: 0.1475130567 | U53: 0.01330471569 | V53: 0.4009072529 | W53: 0.1000254287 | X53: 0.2047311583 | Y53: 0.07312436762 | Z53: 0.3877892513 | AA53: 1.315536216 | AB53: 0.1186879509 | AC53: 0.09454848077 | AD53: 0.0404049385 | AE53: 0.3146488796
E54: =E24/$D24 -> 0.4814027774 | F54: 0.2096116178 | G54: 0.1864054742 | H54: 0.282657507 | I54: 0.1302353057 | J54: 0.2089363997 | K54: 0.1919552396 | L54: 0.1426622923 | M54: 0.1254790399 | N54: 0.07880653346 | O54: 0.125222876 | P54: 0.09987414854 | Q54: 0.7647422614 | R54: 0.3044990206 | S54: 0.03384539061 | T54: 0.1709349371 | U54: 0.01053042807 | V54: 0.5872477733 | W54: 0.09858995 | X54: 0.2484390229 | Y54: 0.08010154631 | Z54: 0.4126211033 | AA54: 1.537851414 | AB54: 0.1270133192 | AC54: 0.1313424201 | AD54: 0.0613583306 | AE54: 0.2941862304
E55: =E25/$D25 -> 0.3892097717 | F55: 0.1711119806 | G55: 0.2240352588 | H55: 0.25633119 | I55: 0.06217210091 | J55: 0.1583337713 | K55: 0.1798488184 | L55: 0.1995378509 | M55: 0.1113771616 | N55: 0.05188957478 | O55: 0.1206727054 | P55: 0.1038122436 | Q55: 0.6747630366 | R55: 0.1809720705 | S55: 0.03234459895 | T55: 0.1952784478 | U55: 0.1077115053 | V55: 0.7017892218 | W55: 0.09409426363 | X55: 0.1778281327 | Y55: 0.05272082027 | Z55: 0.4136526718 | AA55: 1.357560148 | AB55: 0.1526727365 | AC55: 0.1362152439 | AD55: 0.003367809581 | AE55: 0.1616957408
E56: =E26/$D26 -> 0.3357245378 | F56: 0.2000210737 | G56: 0.1145300557 | H56: 0.2502221286 | I56: 0.1125963981 | J56: 0.2685819085 | K56: 0.1836547553 | L56: 0.1753363254 | M56: 0.1254713112 | N56: 0.07882146559 | O56: 0.1304891385 | P56: 0.1031132172 | Q56: 0.6238395207 | R56: 0.2187425245 | S56: 0.02318965223 | T56: 0.2261325709 | U56: 0.01414788067 | V56: 0.6105886976 | W56: 0.09520202308 | X56: 0.2452555618 | Y56: 0.08237552257 | Z56: 0.3901346441 | AA56: 1.30470343 | AB56: 0.1703896932 | AC56: 0.1813451878 | AD56: 0.01064223632 | AE56: 0.2078525294
E57: =E27/$D27 -> 0.592008961 | F57: 0.3100158787 | G57: 0.1735675336 | H57: 0.4011668985 | I57: 0.2570303172 | J57: 0.2106867222 | K57: 0.261830849 | L57: 0.2423997735 | M57: 0.1509508746 | N57: 0.1055427678 | O57: 0.1686980712 | P57: 0.1022070137 | Q57: 0.7650989033 | R57: 0.1873536761 | S57: 0.03270269938 | T57: 0.2935586711 | U57: 0.0502751074 | V57: 0.8106842604 | W57: 0.1421375906 | X57: 0.2562474613 | Y57: 0.1011484349 | Z57: 0.3767678881 | AA57: 2.12076907 | AB57: 0.1591954801 | AC57: 0.1919400303 | AD57: 0.0226658953 | AE57: 0.1735650718
E58: =E28/$D28 -> 0.4392450277 | F58: 0.2234902127 | G58: 0.1776537324 | H58: 0.3009307339 | I58: 0.1383764476 | J58: 0.2055230363 | K58: 0.2071004846 | L58: 0.2065497545 | M58: 0.1279180828 | N58: 0.07647674345 | O58: 0.1387328487 | P58: 0.1031061178 | Q58: 0.6895644512 | R58: 0.1934463117 | S58: 0.02992982125 | T58: 0.235211323 | U58: 0.06350704935 | V58: 0.711394606 | W58: 0.109754217 | X58: 0.2215178122 | Y58: 0.07639020015 | Z58: 0.395367573 | AA58: 1.586867447 | AB58: 0.1596519386 | AC58: 0.1664920065 | AD58: 0.01154487664 | AE58: 0.1782406533
E59: =E29/$D29 -> 0.4320446956 | F59: 0.2244505316 | G59: 0.1695012611 | H59: 0.2902710468 | I59: 0.1291342464 | J59: 0.1913543403 | K59: 0.2012200619 | L59: 0.1612706318 | M59: 0.129588609 | N59: 0.07649101299 | O59: 0.1200646171 | P59: 0.09336806819 | Q59: 0.7209802382 | R59: 0.237883983 | S59: 0.03236701465 | T59: 0.1935056029 | U59: 0.02671340548 | V59: 0.6658059573 | W59: 0.1003880854 | X59: 0.2376193851 | Y59: 0.07574600134 | Z59: 0.387980717 | AA59: 1.428849855 | AB59: 0.1307323053 | AC59: 0.1379898477 | AD59: 0.0368621141 | AE59: 0.2531187945
E60: =E30/$D30 -> 0.4150737689 | F60: 0.2697187205 | G60: 0.1693465554 | H60: 0.305015407 | I60: 0.1505623571 | J60: 0.2211108824 | K60: 0.2355126862 | L60: 0.186885874 | M60: 0.1316469639 | N60: 0.09942366607 | O60: 0.1461186774 | P60: 0.1013192437 | Q60: 0.7168794177 | R60: 0.2878151859 | S60: 0.0333070504 | T60: 0.218002894 | U60: 0.02133331493 | V60: 0.7127818368 | W60: 0.1112455077 | X60: 0.2163703148 | Y60: 0.08043389876 | Z60: 0.395859763 | AA60: 1.501455573 | AB60: 0.1126555732 | AC60: 0.1860687727 | AD60: 0.04259945974 | AE60: 0.2456767852
AE62: y | AF62: 100000
E63: =RANK(E32,E$32:E$60,0) -> 3 | F63: =RANK(F32,F$32:F$60,0) -> 1 | G63: 13 | H63: 3 | I63: 4 | J63: 1 | K63: 1 | L63: 1 | M63: 2 | N63: 1 | O63: 1 | P63: 5 | Q63: 6 | R63: 2 | S63: 3 | T63: 3 | U63: 5 | V63: 5 | W63: 5 | X63: 14 | Y63: 6 | Z63: 2 | AA63: 2 | AB63: 26 | AC63: 2 | AD63: 3 | AE63: =AE32*$AF$62+$AF$63 -> 1028489.781 | AF63: 1000000
E64: =RANK(E33,E$32:E$60,0) -> 3 | F64: 1 | G64: 13 | H64: 3 | I64: 4 | J64: 1 | K64: 1 | L64: 1 | M64: 2 | N64: 1 | O64: 1 | P64: 5 | Q64: 6 | R64: 2 | S64: 3 | T64: 3 | U64: 5 | V64: 5 | W64: 5 | X64: 14 | Y64: 6 | Z64: 2 | AA64: 2 | AB64: 26 | AC64: 2 | AD64: 3 | AE64: =AE33*$AF$62+$AF$63 -> 1028489.781
E65: =RANK(E34,E$32:E$60,0) -> 22 | F65: 21 | G65: 19 | H65: 16 | I65: 13 | J65: 9 | K65: 19 | L65: 26 | M65: 26 | N65: 11 | O65: 25 | P65: 26 | Q65: 8 | R65: 19 | S65: 6 | T65: 27 | U65: 25 | V65: 16 | W65: 22 | X65: 10 | Y65: 24 | Z65: 6 | AA65: 21 | AB65: 1 | AC65: 17 | AD65: 25 | AE65: 1018112.97
E66: =RANK(E35,E$32:E$60,0) -> 24 | F66: 10 | G66: 25 | H66: 15 | I66: 21 | J66: 21 | K66: 17 | L66: 8 | M66: 19 | N66: 24 | O66: 12 | P66: 28 | Q66: 26 | R66: 10 | S66: 27 | T66: 18 | U66: 7 | V66: 2 | W66: 26 | X66: 25 | Y66: 29 | Z66: 11 | AA66: 26 | AB66: 28 | AC66: 24 | AD66: 26 | AE66: 1018399.251
E67: =RANK(E36,E$32:E$60,0) -> 27 | F67: 17 | G67: 3 | H67: 23 | I67: 24 | J67: 13 | K67: 10 | L67: 24 | M67: 25 | N67: 29 | O67: 16 | P67: 25 | Q67: 18 | R67: 7 | S67: 5 | T67: 11 | U67: 14 | V67: 10 | W67: 27 | X67: 19 | Y67: 15 | Z67: 26 | AA67: 29 | AB67: 25 | AC67: 13 | AD67: 2 | AE67: 1023279.59
E68: =RANK(E37,E$32:E$60,0) -> 25 | F68: 15 | G68: 12 | H68: 18 | I68: 18 | J68: 14 | K68: 15 | L68: 20 | M68: 23 | N68: 23 | O68: 21 | P68: 27 | Q68: 20 | R68: 12 | S68: 11 | T68: 20 | U68: 13 | V68: 8 | W68: 25 | X68: 17 | Y68: 25 | Z68: 15 | AA68: 25 | AB68: 18 | AC68: 19 | AD68: 11 | AE68: 1019877.695
E69: =RANK(E38,E$32:E$60,0) -> 29 | F69: 18 | G69: 5 | H69: 22 | I69: 20 | J69: 27 | K69: 28 | L69: 28 | M69: 28 | N69: 22 | O69: 8 | P69: 20 | Q69: 28 | R69: 29 | S69: 22 | T69: 19 | U69: 20 | V69: 19 | W69: 1 | X69: 24 | Y69: 8 | Z69: 14 | AA69: 27 | AB69: 5 | AC69: 25 | AD69: 22 | AE69: 1014609.025
E70: =RANK(E39,E$32:E$60,0) -> 26 | F70: 20 | G70: 29 | H70: 24 | I70: 26 | J70: 23 | K70: 21 | L70: 25 | M70: 27 | N70: 28 | O70: 19 | P70: 7 | Q70: 29 | R70: 6 | S70: 26 | T70: 29 | U70: 28 | V70: 26 | W70: 14 | X70: 29 | Y70: 19 | Z70: 29 | AA70: 20 | AB70: 15 | AC70: 29 | AD70: 6 | AE70: 1016975.397
E71: =RANK(E40,E$32:E$60,0) -> 23 | F71: 28 | G71: 1 | H71: 26 | I71: 25 | J71: 20 | K71: 9 | L71: 22 | M71: 11 | N71: 3 | O71: 14 | P71: 19 | Q71: 23 | R71: 4 | S71: 21 | T71: 28 | U71: 19 | V71: 1 | W71: 17 | X71: 20 | Y71: 9 | Z71: 27 | AA71: 14 | AB71: 22 | AC71: 11 | AD71: 7 | AE71: 1020917.451
E72: =RANK(E41,E$32:E$60,0) -> 28 | F72: 24 | G72: 9 | H72: 25 | I72: 23 | J72: 24 | K72: 22 | L72: 27 | M72: 24 | N72: 18 | O72: 11 | P72: 16 | Q72: 27 | R72: 15 | S72: 23 | T72: 25 | U72: 23 | V72: 9 | W72: 4 | X72: 28 | Y72: 11 | Z72: 23 | AA72: 24 | AB72: 11 | AC72: 26 | AD72: 14 | AE72: 1016997.739
E73: =RANK(E42,E$32:E$60,0) -> 8 | F73: 6 | G73: 18 | H73: 5 | I73: 1 | J73: 5 | K73: 5 | L73: 4 | M73: 7 | N73: 12 | O73: 3 | P73: 1 | Q73: 1 | R73: 9 | S73: 19 | T73: 1 | U73: 15 | V73: 18 | W73: 3 | X73: 3 | Y73: 3 | Z73: 7 | AA73: 4 | AB73: 23 | AC73: 1 | AD73: 17 | AE73: 1026930.829
E74: =RANK(E43,E$32:E$60,0) -> 18 | F74: 3 | G74: 28 | H74: 19 | I74: 17 | J74: 19 | K74: 11 | L74: 10 | M74: 17 | N74: 7 | O74: 26 | P74: 4 | Q74: 25 | R74: 28 | S74: 24 | T74: 7 | U74: 26 | V74: 25 | W74: 24 | X74: 12 | Y74: 1 | Z74: 21 | AA74: 12 | AB74: 3 | AC74: 14 | AD74: 28 | AE74: 1018998.731
E75: =RANK(E44,E$32:E$60,0) -> 13 | F75: 22 | G75: 7 | H75: 7 | I75: 6 | J75: 10 | K75: 18 | L75: 16 | M75: 14 | N75: 6 | O75: 22 | P75: 18 | Q75: 22 | R75: 25 | S75: 7 | T75: 22 | U75: 9 | V75: 27 | W75: 23 | X75: 27 | Y75: 27 | Z75: 24 | AA75: 17 | AB75: 24 | AC75: 9 | AD75: 21 | AE75: 1018726.542
E76: =RANK(E45,E$32:E$60,0) -> 12 | F76: 7 | G76: 21 | H76: 9 | I76: 3 | J76: 11 | K76: 8 | L76: 7 | M76: 9 | N76: 9 | O76: 10 | P76: 3 | Q76: 3 | R76: 18 | S76: 20 | T76: 5 | U76: 17 | V76: 23 | W76: 11 | X76: 9 | Y76: 5 | Z76: 17 | AA76: 8 | AB76: 19 | AC76: 4 | AD76: 20 | AE76: 1022168.997
E77: =RANK(E46,E$32:E$60,0) -> 20 | F77: 12 | G77: 17 | H77: 17 | I77: 12 | J77: 17 | K77: 14 | L77: 17 | M77: 20 | N77: 15 | O77: 15 | P77: 15 | Q77: 21 | R77: 14 | S77: 18 | T77: 16 | U77: 18 | V77: 15 | W77: 9 | X77: 18 | Y77: 14 | Z77: 18 | AA77: 19 | AB77: 14 | AC77: 12 | AD77: 15 | AE77: 1019623.821
E78: =RANK(E47,E$32:E$60,0) -> 15 | F78: 9 | G78: 22 | H78: 11 | I78: 9 | J78: 22 | K78: 7 | L78: 14 | M78: 4 | N78: 21 | O78: 23 | P78: 17 | Q78: 15 | R78: 26 | S78: 9 | T78: 24 | U78: 27 | V78: 3 | W78: 19 | X78: 2 | Y78: 16 | Z78: 19 | AA78: 22 | AB78: 29 | AC78: 20 | AD78: 8 | AE78: 1031696.96
E79: =RANK(E48,E$32:E$60,0) -> 16 | F79: 13 | G79: 24 | H79: 6 | I79: 28 | J79: 28 | K79: 26 | L79: 29 | M79: 22 | N79: 10 | O79: 28 | P79: 22 | Q79: 11 | R79: 13 | S79: 2 | T79: 10 | U79: 21 | V79: 29 | W79: 16 | X79: 26 | Y79: 23 | Z79: 25 | AA79: 18 | AB79: 2 | AC79: 22 | AD79: 16 | AE79: 1027109.553
E80: =RANK(E49,E$32:E$60,0) -> 21 | F80: 26 | G80: 26 | H80: 29 | I80: 22 | J80: 29 | K80: 24 | L80: 19 | M80: 13 | N80: 25 | O80: 29 | P80: 29 | Q80: 17 | R80: 22 | S80: 28 | T80: 13 | U80: 22 | V80: 24 | W80: 28 | X80: 22 | Y80: 28 | Z80: 28 | AA80: 28 | AB80: 8 | AC80: 28 | AD80: 27 | AE80: 1018355.17
E81: =RANK(E50,E$32:E$60,0) -> 17 | F81: 11 | G81: 23 | H81: 13 | I81: 16 | J81: 26 | K81: 13 | L81: 21 | M81: 6 | N81: 19 | O81: 27 | P81: 21 | Q81: 13 | R81: 21 | S81: 12 | T81: 17 | U81: 24 | V81: 11 | W81: 21 | X81: 7 | Y81: 22 | Z81: 22 | AA81: 23 | AB81: 21 | AC81: 21 | AD81: 13 | AE81: 1028266.254
E82: =RANK(E51,E$32:E$60,0) -> 1 | F82: 5 | G82: 4 | H82: 2 | I82: 7 | J82: 4 | K82: 3 | L82: 13 | M82: 1 | N82: 4 | O82: 7 | P82: 2 | Q82: 2 | R82: 11 | S82: 1 | T82: 12 | U82: 10 | V82: 7 | W82: 7 | X82: 1 | Y82: 4 | Z82: 1 | AA82: 5 | AB82: 17 | AC82: 7 | AD82: 1 | AE82: 1024128.554
E83: =RANK(E52,E$32:E$60,0) -> 14 | F83: 25 | G83: 20 | H83: 27 | I83: 27 | J83: 18 | K83: 29 | L83: 15 | M83: 29 | N83: 27 | O83: 6 | P83: 23 | Q83: 14 | R83: 1 | S83: 29 | T83: 23 | U83: 29 | V83: 21 | W83: 29 | X83: 23 | Y83: 20 | Z83: 20 | AA83: 10 | AB83: 10 | AC83: 23 | AD83: 18 | AE83: 1033871.023
E84: =RANK(E53,E$32:E$60,0) -> 10 | F84: 29 | G84: 6 | H84: 28 | I84: 10 | J84: 15 | K84: 27 | L84: 23 | M84: 18 | N84: 20 | O84: 24 | P84: 24 | Q84: 12 | R84: 17 | S84: 16 | T84: 26 | U84: 12 | V84: 28 | W84: 13 | X84: 16 | Y84: 21 | Z84: 13 | AA84: 15 | AB84: 16 | AC84: 27 | AD84: 10 | AE84: 1031464.888
E85: =RANK(E54,E$32:E$60,0) -> 5 | F85: 19 | G85: 8 | H85: 14 | I85: 14 | J85: 8 | K85: 20 | L85: 18 | M85: 15 | N85: 14 | O85: 17 | P85: 13 | Q85: 5 | R85: 5 | S85: 8 | T85: 21 | U85: 16 | V85: 22 | W85: 15 | X85: 5 | Y85: 13 | Z85: 5 | AA85: 7 | AB85: 13 | AC85: 18 | AD85: 5 | AE85: 1029418.623
E86: =RANK(E55,E$32:E$60,0) -> 11 | F86: 27 | G86: 2 | H86: 20 | I86: 29 | J86: 25 | K86: 25 | L86: 6 | M86: 21 | N86: 26 | O86: 18 | P86: 8 | Q86: 19 | R86: 27 | S86: 15 | T86: 14 | U86: 1 | V86: 14 | W86: 20 | X86: 21 | Y86: 26 | Z86: 4 | AA86: 13 | AB86: 9 | AC86: 16 | AD86: 29 | AE86: 1016169.574
E87: =RANK(E56,E$32:E$60,0) -> 19 | F87: 23 | G87: 27 | H87: 21 | I87: 19 | J87: 3 | K87: 23 | L87: 11 | M87: 16 | N87: 13 | O87: 13 | P87: 9 | Q87: 24 | R87: 20 | S87: 25 | T87: 8 | U87: 11 | V87: 20 | W87: 18 | X87: 6 | Y87: 10 | Z87: 10 | AA87: 16 | AB87: 4 | AC87: 8 | AD87: 24 | AE87: 1020785.253
E88: =RANK(E57,E$32:E$60,0) -> 2 | F88: 4 | G88: 11 | H88: 1 | I88: 2 | J88: 7 | K88: 4 | L88: 3 | M88: 5 | N88: 5 | O88: 4 | P88: 11 | Q88: 4 | R88: 24 | S88: 13 | T88: 2 | U88: 3 | V88: 4 | W88: 2 | X88: 4 | Y88: 2 | Z88: 16 | AA88: 1 | AB88: 7 | AC88: 5 | AD88: 19 | AE88: 1017356.507
E89: =RANK(E58,E$32:E$60,0) -> 6 | F89: 16 | G89: 10 | H89: 10 | I89: 11 | J89: 12 | K89: 12 | L89: 5 | M89: 12 | N89: 17 | O89: 9 | P89: 10 | Q89: 16 | R89: 23 | S89: 17 | T89: 6 | U89: 2 | V89: 13 | W89: 10 | X89: 11 | Y89: 17 | Z89: 9 | AA89: 6 | AB89: 6 | AC89: 10 | AD89: 23 | AE89: 1017824.065
E90: =RANK(E59,E$32:E$60,0) -> 7 | F90: 14 | G90: 15 | H90: 12 | I90: 15 | J90: 16 | K90: 16 | L90: 12 | M90: 10 | N90: 16 | O90: 20 | P90: 14 | Q90: 9 | R90: 16 | S90: 14 | T90: 15 | U90: 4 | V90: 17 | W90: 12 | X90: 8 | Y90: 18 | Z90: 12 | AA90: 11 | AB90: 12 | AC90: 15 | AD90: 12 | AE90: 1025311.879
E91: =RANK(E60,E$32:E$60,0) -> 9 | F91: 8 | G91: 16 | H91: 8 | I91: 8 | J91: 6 | K91: 6 | L91: 9 | M91: 8 | N91: 8 | O91: 5 | P91: 12 | Q91: 10 | R91: 8 | S91: 10 | T91: 9 | U91: 8 | V91: 12 | W91: 8 | X91: 13 | Y91: 12 | Z91: 8 | AA91: 9 | AB91: 20 | AC91: 6 | AD91: 9 | AE91: 1024567.679
A98: Azonosító: | B98: 3498570 | C98: Objektumok: | D98: 29 | E98: Attribútumok: | F98: 26 | G98: Lépcsôk: | H98: 29 | I98: Eltolás: | J98: 0 | K98: Leírás: | L98: COCO STD: 3498570
A100: Rangsor | B100: X(A1) | C100: X(A2) | D100: X(A3) | E100: X(A4) | F100: X(A5) | G100: X(A6) | H100: X(A7) | I100: X(A8) | J100: X(A9) | K100: X(A10) | L100: X(A11) | M100: X(A12) | N100: X(A13) | O100: X(A14) | P100: X(A15) | Q100: X(A16) | R100: X(A17) | S100: X(A18) | T100: X(A19) | U100: X(A20) | V100: X(A21) | W100: X(A22) | X100: X(A23) | Y100: X(A24) | Z100: X(A25) | AA100: X(A26) | AB100: Y(A27)
A101: O1 | B101: 3 | C101: 1 | D101: 13 | E101: 3 | F101: 4 | G101: 1 | H101: 1 | I101: 1 | J101: 2 | K101: 1 | L101: 1 | M101: 5 | N101: 6 | O101: 2 | P101: 3 | Q101: 3 | R101: 5 | S101: 5 | T101: 5 | U101: 14 | V101: 6 | W101: 2 | X101: 2 | Y101: 26 | Z101: 2 | AA101: 3 | AB101: 1028490
A102: O2 | B102: 3 | C102: 1 | D102: 13 | E102: 3 | F102: 4 | G102: 1 | H102: 1 | I102: 1 | J102: 2 | K102: 1 | L102: 1 | M102: 5 | N102: 6 | O102: 2 | P102: 3 | Q102: 3 | R102: 5 | S102: 5 | T102: 5 | U102: 14 | V102: 6 | W102: 2 | X102: 2 | Y102: 26 | Z102: 2 | AA102: 3 | AB102: 1028490
A103: O3 | B103: 22 | C103: 21 | D103: 19 | E103: 16 | F103: 13 | G103: 9 | H103: 19 | I103: 26 | J103: 26 | K103: 11 | L103: 25 | M103: 26 | N103: 8 | O103: 19 | P103: 6 | Q103: 27 | R103: 25 | S103: 16 | T103: 22 | U103: 10 | V103: 24 | W103: 6 | X103: 21 | Y103: 1 | Z103: 17 | AA103: 25 | AB103: 1018113
A104: O4 | B104: 24 | C104: 10 | D104: 25 | E104: 15 | F104: 21 | G104: 21 | H104: 17 | I104: 8 | J104: 19 | K104: 24 | L104: 12 | M104: 28 | N104: 26 | O104: 10 | P104: 27 | Q104: 18 | R104: 7 | S104: 2 | T104: 26 | U104: 25 | V104: 29 | W104: 11 | X104: 26 | Y104: 28 | Z104: 24 | AA104: 26 | AB104: 1018399
A105: O5 | B105: 27 | C105: 17 | D105: 3 | E105: 23 | F105: 24 | G105: 13 | H105: 10 | I105: 24 | J105: 25 | K105: 29 | L105: 16 | M105: 25 | N105: 18 | O105: 7 | P105: 5 | Q105: 11 | R105: 14 | S105: 10 | T105: 27 | U105: 19 | V105: 15 | W105: 26 | X105: 29 | Y105: 25 | Z105: 13 | AA105: 2 | AB105: 1023280
A106: O6 | B106: 25 | C106: 15 | D106: 12 | E106: 18 | F106: 18 | G106: 14 | H106: 15 | I106: 20 | J106: 23 | K106: 23 | L106: 21 | M106: 27 | N106: 20 | O106: 12 | P106: 11 | Q106: 20 | R106: 13 | S106: 8 | T106: 25 | U106: 17 | V106: 25 | W106: 15 | X106: 25 | Y106: 18 | Z106: 19 | AA106: 11 | AB106: 1019878
A107: O7 | B107: 29 | C107: 18 | D107: 5 | E107: 22 | F107: 20 | G107: 27 | H107: 28 | I107: 28 | J107: 28 | K107: 22 | L107: 8 | M107: 20 | N107: 28 | O107: 29 | P107: 22 | Q107: 19 | R107: 20 | S107: 19 | T107: 1 | U107: 24 | V107: 8 | W107: 14 | X107: 27 | Y107: 5 | Z107: 25 | AA107: 22 | AB107: 1014609
A108: O8 | B108: 26 | C108: 20 | D108: 29 | E108: 24 | F108: 26 | G108: 23 | H108: 21 | I108: 25 | J108: 27 | K108: 28 | L108: 19 | M108: 7 | N108: 29 | O108: 6 | P108: 26 | Q108: 29 | R108: 28 | S108: 26 | T108: 14 | U108: 29 | V108: 19 | W108: 29 | X108: 20 | Y108: 15 | Z108: 29 | AA108: 6 | AB108: 1016975
A109: O9 | B109: 23 | C109: 28 | D109: 1 | E109: 26 | F109: 25 | G109: 20 | H109: 9 | I109: 22 | J109: 11 | K109: 3 | L109: 14 | M109: 19 | N109: 23 | O109: 4 | P109: 21 | Q109: 28 | R109: 19 | S109: 1 | T109: 17 | U109: 20 | V109: 9 | W109: 27 | X109: 14 | Y109: 22 | Z109: 11 | AA109: 7 | AB109: 1020917
A110: O10 | B110: 28 | C110: 24 | D110: 9 | E110: 25 | F110: 23 | G110: 24 | H110: 22 | I110: 27 | J110: 24 | K110: 18 | L110: 11 | M110: 16 | N110: 27 | O110: 15 | P110: 23 | Q110: 25 | R110: 23 | S110: 9 | T110: 4 | U110: 28 | V110: 11 | W110: 23 | X110: 24 | Y110: 11 | Z110: 26 | AA110: 14 | AB110: 1016998
A111: O11 | B111: 8 | C111: 6 | D111: 18 | E111: 5 | F111: 1 | G111: 5 | H111: 5 | I111: 4 | J111: 7 | K111: 12 | L111: 3 | M111: 1 | N111: 1 | O111: 9 | P111: 19 | Q111: 1 | R111: 15 | S111: 18 | T111: 3 | U111: 3 | V111: 3 | W111: 7 | X111: 4 | Y111: 23 | Z111: 1 | AA111: 17 | AB111: 1026931
A112: O12 | B112: 18 | C112: 3 | D112: 28 | E112: 19 | F112: 17 | G112: 19 | H112: 11 | I112: 10 | J112: 17 | K112: 7 | L112: 26 | M112: 4 | N112: 25 | O112: 28 | P112: 24 | Q112: 7 | R112: 26 | S112: 25 | T112: 24 | U112: 12 | V112: 1 | W112: 21 | X112: 12 | Y112: 3 | Z112: 14 | AA112: 28 | AB112: 1018999
A113: O13 | B113: 13 | C113: 22 | D113: 7 | E113: 7 | F113: 6 | G113: 10 | H113: 18 | I113: 16 | J113: 14 | K113: 6 | L113: 22 | M113: 18 | N113: 22 | O113: 25 | P113: 7 | Q113: 22 | R113: 9 | S113: 27 | T113: 23 | U113: 27 | V113: 27 | W113: 24 | X113: 17 | Y113: 24 | Z113: 9 | AA113: 21 | AB113: 1018727
A114: O14 | B114: 12 | C114: 7 | D114: 21 | E114: 9 | F114: 3 | G114: 11 | H114: 8 | I114: 7 | J114: 9 | K114: 9 | L114: 10 | M114: 3 | N114: 3 | O114: 18 | P114: 20 | Q114: 5 | R114: 17 | S114: 23 | T114: 11 | U114: 9 | V114: 5 | W114: 17 | X114: 8 | Y114: 19 | Z114: 4 | AA114: 20 | AB114: 1022169
A115: O15 | B115: 20 | C115: 12 | D115: 17 | E115: 17 | F115: 12 | G115: 17 | H115: 14 | I115: 17 | J115: 20 | K115: 15 | L115: 15 | M115: 15 | N115: 21 | O115: 14 | P115: 18 | Q115: 16 | R115: 18 | S115: 15 | T115: 9 | U115: 18 | V115: 14 | W115: 18 | X115: 19 | Y115: 14 | Z115: 12 | AA115: 15 | AB115: 1019624
A116: O16 | B116: 15 | C116: 9 | D116: 22 | E116: 11 | F116: 9 | G116: 22 | H116: 7 | I116: 14 | J116: 4 | K116: 21 | L116: 23 | M116: 17 | N116: 15 | O116: 26 | P116: 9 | Q116: 24 | R116: 27 | S116: 3 | T116: 19 | U116: 2 | V116: 16 | W116: 19 | X116: 22 | Y116: 29 | Z116: 20 | AA116: 8 | AB116: 1031697
A117: O17 | B117: 16 | C117: 13 | D117: 24 | E117: 6 | F117: 28 | G117: 28 | H117: 26 | I117: 29 | J117: 22 | K117: 10 | L117: 28 | M117: 22 | N117: 11 | O117: 13 | P117: 2 | Q117: 10 | R117: 21 | S117: 29 | T117: 16 | U117: 26 | V117: 23 | W117: 25 | X117: 18 | Y117: 2 | Z117: 22 | AA117: 16 | AB117: 1027110
A118: O18 | B118: 21 | C118: 26 | D118: 26 | E118: 29 | F118: 22 | G118: 29 | H118: 24 | I118: 19 | J118: 13 | K118: 25 | L118: 29 | M118: 29 | N118: 17 | O118: 22 | P118: 28 | Q118: 13 | R118: 22 | S118: 24 | T118: 28 | U118: 22 | V118: 28 | W118: 28 | X118: 28 | Y118: 8 | Z118: 28 | AA118: 27 | AB118: 1018355
A119: O19 | B119: 17 | C119: 11 | D119: 23 | E119: 13 | F119: 16 | G119: 26 | H119: 13 | I119: 21 | J119: 6 | K119: 19 | L119: 27 | M119: 21 | N119: 13 | O119: 21 | P119: 12 | Q119: 17 | R119: 24 | S119: 11 | T119: 21 | U119: 7 | V119: 22 | W119: 22 | X119: 23 | Y119: 21 | Z119: 21 | AA119: 13 | AB119: 1028266
A120: O20 | B120: 1 | C120: 5 | D120: 4 | E120: 2 | F120: 7 | G120: 4 | H120: 3 | I120: 13 | J120: 1 | K120: 4 | L120: 7 | M120: 2 | N120: 2 | O120: 11 | P120: 1 | Q120: 12 | R120: 10 | S120: 7 | T120: 7 | U120: 1 | V120: 4 | W120: 1 | X120: 5 | Y120: 17 | Z120: 7 | AA120: 1 | AB120: 1024129
A121: O21 | B121: 14 | C121: 25 | D121: 20 | E121: 27 | F121: 27 | G121: 18 | H121: 29 | I121: 15 | J121: 29 | K121: 27 | L121: 6 | M121: 23 | N121: 14 | O121: 1 | P121: 29 | Q121: 23 | R121: 29 | S121: 21 | T121: 29 | U121: 23 | V121: 20 | W121: 20 | X121: 10 | Y121: 10 | Z121: 23 | AA121: 18 | AB121: 1033871
A122: O22 | B122: 10 | C122: 29 | D122: 6 | E122: 28 | F122: 10 | G122: 15 | H122: 27 | I122: 23 | J122: 18 | K122: 20 | L122: 24 | M122: 24 | N122: 12 | O122: 17 | P122: 16 | Q122: 26 | R122: 12 | S122: 28 | T122: 13 | U122: 16 | V122: 21 | W122: 13 | X122: 15 | Y122: 16 | Z122: 27 | AA122: 10 | AB122: 1031465
A123: O23 | B123: 5 | C123: 19 | D123: 8 | E123: 14 | F123: 14 | G123: 8 | H123: 20 | I123: 18 | J123: 15 | K123: 14 | L123: 17 | M123: 13 | N123: 5 | O123: 5 | P123: 8 | Q123: 21 | R123: 16 | S123: 22 | T123: 15 | U123: 5 | V123: 13 | W123: 5 | X123: 7 | Y123: 13 | Z123: 18 | AA123: 5 | AB123: 1029419
A124: O24 | B124: 11 | C124: 27 | D124: 2 | E124: 20 | F124: 29 | G124: 25 | H124: 25 | I124: 6 | J124: 21 | K124: 26 | L124: 18 | M124: 8 | N124: 19 | O124: 27 | P124: 15 | Q124: 14 | R124: 1 | S124: 14 | T124: 20 | U124: 21 | V124: 26 | W124: 4 | X124: 13 | Y124: 9 | Z124: 16 | AA124: 29 | AB124: 1016170
A125: O25 | B125: 19 | C125: 23 | D125: 27 | E125: 21 | F125: 19 | G125: 3 | H125: 23 | I125: 11 | J125: 16 | K125: 13 | L125: 13 | M125: 9 | N125: 24 | O125: 20 | P125: 25 | Q125: 8 | R125: 11 | S125: 20 | T125: 18 | U125: 6 | V125: 10 | W125: 10 | X125: 16 | Y125: 4 | Z125: 8 | AA125: 24 | AB125: 1020785
A126: O26 | B126: 2 | C126: 4 | D126: 11 | E126: 1 | F126: 2 | G126: 7 | H126: 4 | I126: 3 | J126: 5 | K126: 5 | L126: 4 | M126: 11 | N126: 4 | O126: 24 | P126: 13 | Q126: 2 | R126: 3 | S126: 4 | T126: 2 | U126: 4 | V126: 2 | W126: 16 | X126: 1 | Y126: 7 | Z126: 5 | AA126: 19 | AB126: 1017357
A127: O27 | B127: 6 | C127: 16 | D127: 10 | E127: 10 | F127: 11 | G127: 12 | H127: 12 | I127: 5 | J127: 12 | K127: 17 | L127: 9 | M127: 10 | N127: 16 | O127: 23 | P127: 17 | Q127: 6 | R127: 2 | S127: 13 | T127: 10 | U127: 11 | V127: 17 | W127: 9 | X127: 6 | Y127: 6 | Z127: 10 | AA127: 23 | AB127: 1017824
A128: O28 | B128: 7 | C128: 14 | D128: 15 | E128: 12 | F128: 15 | G128: 16 | H128: 16 | I128: 12 | J128: 10 | K128: 16 | L128: 20 | M128: 14 | N128: 9 | O128: 16 | P128: 14 | Q128: 15 | R128: 4 | S128: 17 | T128: 12 | U128: 8 | V128: 18 | W128: 12 | X128: 11 | Y128: 12 | Z128: 15 | AA128: 12 | AB128: 1025312
A129: O29 | B129: 9 | C129: 8 | D129: 16 | E129: 8 | F129: 8 | G129: 6 | H129: 6 | I129: 9 | J129: 8 | K129: 8 | L129: 5 | M129: 12 | N129: 10 | O129: 8 | P129: 10 | Q129: 9 | R129: 8 | S129: 12 | T129: 8 | U129: 13 | V129: 12 | W129: 8 | X129: 9 | Y129: 20 | Z129: 6 | AA129: 9 | AB129: 1024568
A131: Lépcsôk(1) | B131: X(A1) | C131: X(A2) | D131: X(A3) | E131: X(A4) | F131: X(A5) | G131: X(A6) | H131: X(A7) | I131: X(A8) | J131: X(A9) | K131: X(A10) | L131: X(A11) | M131: X(A12) | N131: X(A13) | O131: X(A14) | P131: X(A15) | Q131: X(A16) | R131: X(A17) | S131: X(A18) | T131: X(A19) | U131: X(A20) | V131: X(A21) | W131: X(A22) | X131: X(A23) | Y131: X(A24) | Z131: X(A25) | AA131: X(A26)
A132: S1 | B132: (2626+4514)/(2)=3570 | C132: (0+0)/(2)=0 | D132: (0+4750)/(2)=2375 | E132: (0+0)/(2)=0 | F132: (6950+3582)/(2)=5265.95 | G132: (0+0)/(2)=0 | H132: (0+0)/(2)=0 | I132: (0+0)/(2)=0 | J132: (0+4171)/(2)=2085.5 | K132: (0+0)/(2)=0 | L132: (0+0)/(2)=0 | M132: (2116+823)/(2)=1469.5 | N132: (847+274)/(2)=560.5 | O132: (16995.9+19223.9)/(2)=18109.9 | P132: (3668+0)/(2)=1834 | Q132: (6641+5775)/(2)=6207.95 | R132: (142+0)/(2)=71 | S132: (8792.9+8286.9)/(2)=8539.95 | T132: (46+0)/(2)=23 | U132: (0+2704)/(2)=1352 | V132: (1763+992710.9)/(2)=497236.95 | W132: (0+0)/(2)=0 | X132: (0+0)/(2)=0 | Y132: (8869.9+12209.9)/(2)=10539.95 | Z132: (1001943.8+3629)/(2)=502786.4 | AA132: (4841+13255.9)/(2)=9048.45
A133: S2 | B133: (2626+4514)/(2)=3570 | C133: (0+0)/(2)=0 | D133: (0+4750)/(2)=2375 | E133: (0+0)/(2)=0 | F133: (0+0)/(2)=0 | G133: (0+0)/(2)=0 | H133: (0+0)/(2)=0 | I133: (0+0)/(2)=0 | J133: (0+4171)/(2)=2085.5 | K133: (0+0)/(2)=0 | L133: (0+0)/(2)=0 | M133: (2116+823)/(2)=1469.5 | N133: (847+274)/(2)=560.5 | O133: (4035+2039)/(2)=3037 | P133: (3668+0)/(2)=1834 | Q133: (6641+5775)/(2)=6207.95 | R133: (142+0)/(2)=71 | S133: (8792.9+8286.9)/(2)=8539.95 | T133: (0+0)/(2)=0 | U133: (0+2704)/(2)=1352 | V133: (1763+992710.9)/(2)=497236.95 | W133: (0+0)/(2)=0 | X133: (0+0)/(2)=0 | Y133: (7822+12209.9)/(2)=10015.95 | Z133: (1001943.8+3629)/(2)=502786.4 | AA133: (4841+13255.9)/(2)=9048.45
A134: S3 | B134: (2626+4514)/(2)=3570 | C134: (0+0)/(2)=0 | D134: (0+4750)/(2)=2375 | E134: (0+0)/(2)=0 | F134: (0+0)/(2)=0 | G134: (0+0)/(2)=0 | H134: (0+0)/(2)=0 | I134: (0+0)/(2)=0 | J134: (0+4171)/(2)=2085.5 | K134: (0+0)/(2)=0 | L134: (0+0)/(2)=0 | M134: (2116+823)/(2)=1469.5 | N134: (847+274)/(2)=560.5 | O134: (4035+2039)/(2)=3037 | P134: (3668+0)/(2)=1834 | Q134: (6641+5775)/(2)=6207.95 | R134: (0+0)/(2)=0 | S134: (8792.9+8286.9)/(2)=8539.95 | T134: (0+0)/(2)=0 | U134: (0+2704)/(2)=1352 | V134: (1763+992710.9)/(2)=497236.95 | W134: (0+0)/(2)=0 | X134: (0+0)/(2)=0 | Y134: (7822+12209.9)/(2)=10015.95 | Z134: (1001943.8+3629)/(2)=502786.4 | AA134: (4841+13255.9)/(2)=9048.45
A135: S4 | B135: (2626+4514)/(2)=3570 | C135: (0+0)/(2)=0 | D135: (0+4750)/(2)=2375 | E135: (0+0)/(2)=0 | F135: (0+0)/(2)=0 | G135: (0+0)/(2)=0 | H135: (0+0)/(2)=0 | I135: (0+0)/(2)=0 | J135: (0+4171)/(2)=2085.5 | K135: (0+0)/(2)=0 | L135: (0+0)/(2)=0 | M135: (2116+823)/(2)=1469.5 | N135: (847+274)/(2)=560.5 | O135: (4035+2039)/(2)=3037 | P135: (3668+0)/(2)=1834 | Q135: (6641+5775)/(2)=6207.95 | R135: (0+0)/(2)=0 | S135: (0+1292)/(2)=646 | T135: (0+0)/(2)=0 | U135: (0+2704)/(2)=1352 | V135: (1763+992710.9)/(2)=497236.95 | W135: (0+0)/(2)=0 | X135: (0+0)/(2)=0 | Y135: (6012+3671)/(2)=4841.45 | Z135: (1001943.8+3629)/(2)=502786.4 | AA135: (4841+13255.9)/(2)=9048.45
A136: S5 | B136: (2626+4514)/(2)=3570 | C136: (0+0)/(2)=0 | D136: (0+4750)/(2)=2375 | E136: (0+0)/(2)=0 | F136: (0+0)/(2)=0 | G136: (0+0)/(2)=0 | H136: (0+0)/(2)=0 | I136: (0+0)/(2)=0 | J136: (0+4171)/(2)=2085.5 | K136: (0+0)/(2)=0 | L136: (0+0)/(2)=0 | M136: (2116+823)/(2)=1469.5 | N136: (847+274)/(2)=560.5 | O136: (4035+2039)/(2)=3037 | P136: (3668+0)/(2)=1834 | Q136: (6641+5775)/(2)=6207.95 | R136: (0+0)/(2)=0 | S136: (0+1292)/(2)=646 | T136: (0+0)/(2)=0 | U136: (0+2704)/(2)=1352 | V136: (1763+992710.9)/(2)=497236.95 | W136: (0+0)/(2)=0 | X136: (0+0)/(2)=0 | Y136: (6012+3671)/(2)=4841.45 | Z136: (998024.9+0)/(2)=499012.45 | AA136: (4841+13255.9)/(2)=9048.45
A137: S6 | B137: (2626+4514)/(2)=3570 | C137: (0+0)/(2)=0 | D137: (0+4750)/(2)=2375 | E137: (0+0)/(2)=0 | F137: (0+0)/(2)=0 | G137: (0+0)/(2)=0 | H137: (0+0)/(2)=0 | I137: (0+0)/(2)=0 | J137: (0+4171)/(2)=2085.5 | K137: (0+0)/(2)=0 | L137: (0+0)/(2)=0 | M137: (2116+823)/(2)=1469.5 | N137: (847+274)/(2)=560.5 | O137: (4035+2039)/(2)=3037 | P137: (3668+0)/(2)=1834 | Q137: (6641+5775)/(2)=6207.95 | R137: (0+0)/(2)=0 | S137: (0+1292)/(2)=646 | T137: (0+0)/(2)=0 | U137: (0+2704)/(2)=1352 | V137: (1763+992710.9)/(2)=497236.95 | W137: (0+0)/(2)=0 | X137: (0+0)/(2)=0 | Y137: (4851+3671)/(2)=4260.95 | Z137: (998024.9+0)/(2)=499012.45 | AA137: (4841+13255.9)/(2)=9048.45
A138: S7 | B138: (2626+4514)/(2)=3570 | C138: (0+0)/(2)=0 | D138: (0+4750)/(2)=2375 | E138: (0+0)/(2)=0 | F138: (0+0)/(2)=0 | G138: (0+0)/(2)=0 | H138: (0+0)/(2)=0 | I138: (0+0)/(2)=0 | J138: (0+3177)/(2)=1588.5 | K138: (0+0)/(2)=0 | L138: (0+0)/(2)=0 | M138: (2116+823)/(2)=1469.5 | N138: (847+274)/(2)=560.5 | O138: (4035+2039)/(2)=3037 | P138: (3668+0)/(2)=1834 | Q138: (6641+5775)/(2)=6207.95 | R138: (0+0)/(2)=0 | S138: (0+1292)/(2)=646 | T138: (0+0)/(2)=0 | U138: (0+2704)/(2)=1352 | V138: (1763+992710.9)/(2)=497236.95 | W138: (0+0)/(2)=0 | X138: (0+0)/(2)=0 | Y138: (4851+3671)/(2)=4260.95 | Z138: (998024.9+0)/(2)=499012.45 | AA138: (4841+13255.9)/(2)=9048.45
A139: S8 | B139: (2626+4514)/(2)=3570 | C139: (0+0)/(2)=0 | D139: (0+0)/(2)=0 | E139: (0+0)/(2)=0 | F139: (0+0)/(2)=0 | G139: (0+0)/(2)=0 | H139: (0+0)/(2)=0 | I139: (0+0)/(2)=0 | J139: (0+3177)/(2)=1588.5 | K139: (0+0)/(2)=0 | L139: (0+0)/(2)=0 | M139: (2116+0)/(2)=1058 | N139: (847+274)/(2)=560.5 | O139: (4035+2039)/(2)=3037 | P139: (3668+0)/(2)=1834 | Q139: (6641+5775)/(2)=6207.95 | R139: (0+0)/(2)=0 | S139: (0+1292)/(2)=646 | T139: (0+0)/(2)=0 | U139: (0+0)/(2)=0 | V139: (1763+992710.9)/(2)=497236.95 | W139: (0+0)/(2)=0 | X139: (0+0)/(2)=0 | Y139: (4851+3671)/(2)=4260.95 | Z139: (998024.9+0)/(2)=499012.45 | AA139: (4841+13255.9)/(2)=9048.45
A140: S9 | B140: (2626+4514)/(2)=3570 | C140: (0+0)/(2)=0 | D140: (0+0)/(2)=0 | E140: (0+0)/(2)=0 | F140: (0+0)/(2)=0 | G140: (0+0)/(2)=0 | H140: (0+0)/(2)=0 | I140: (0+0)/(2)=0 | J140: (0+3177)/(2)=1588.5 | K140: (0+0)/(2)=0 | L140: (0+0)/(2)=0 | M140: (2116+0)/(2)=1058 | N140: (847+274)/(2)=560.5 | O140: (4035+2039)/(2)=3037 | P140: (3668+0)/(2)=1834 | Q140: (6641+5775)/(2)=6207.95 | R140: (0+0)/(2)=0 | S140: (0+1292)/(2)=646 | T140: (0+0)/(2)=0 | U140: (0+0)/(2)=0 | V140: (1763+992710.9)/(2)=497236.95 | W140: (0+0)/(2)=0 | X140: (0+0)/(2)=0 | Y140: (4851+3671)/(2)=4260.95 | Z140: (998024.9+0)/(2)=499012.45 | AA140: (4841+13255.9)/(2)=9048.45
A141: S10 | B141: (2626+4514)/(2)=3570 | C141: (0+0)/(2)=0 | D141: (0+0)/(2)=0 | E141: (0+0)/(2)=0 | F141: (0+0)/(2)=0 | G141: (0+0)/(2)=0 | H141: (0+0)/(2)=0 | I141: (0+0)/(2)=0 | J141: (0+3177)/(2)=1588.5 | K141: (0+0)/(2)=0 | L141: (0+0)/(2)=0 | M141: (2116+0)/(2)=1058 | N141: (847+274)/(2)=560.5 | O141: (3596+2039)/(2)=2817.5 | P141: (3668+0)/(2)=1834 | Q141: (6641+5775)/(2)=6207.95 | R141: (0+0)/(2)=0 | S141: (0+1292)/(2)=646 | T141: (0+0)/(2)=0 | U141: (0+0)/(2)=0 | V141: (1763+992710.9)/(2)=497236.95 | W141: (0+0)/(2)=0 | X141: (0+0)/(2)=0 | Y141: (4851+3671)/(2)=4260.95 | Z141: (998024.9+0)/(2)=499012.45 | AA141: (4841+13255.9)/(2)=9048.45
A142: S11 | B142: (2626+4514)/(2)=3570 | C142: (0+0)/(2)=0 | D142: (0+0)/(2)=0 | E142: (0+0)/(2)=0 | F142: (0+0)/(2)=0 | G142: (0+0)/(2)=0 | H142: (0+0)/(2)=0 | I142: (0+0)/(2)=0 | J142: (0+3177)/(2)=1588.5 | K142: (0+0)/(2)=0 | L142: (0+0)/(2)=0 | M142: (2116+0)/(2)=1058 | N142: (847+274)/(2)=560.5 | O142: (3596+2039)/(2)=2817.5 | P142: (3668+0)/(2)=1834 | Q142: (6641+5775)/(2)=6207.95 | R142: (0+0)/(2)=0 | S142: (0+1292)/(2)=646 | T142: (0+0)/(2)=0 | U142: (0+0)/(2)=0 | V142: (1763+992710.9)/(2)=497236.95 | W142: (0+0)/(2)=0 | X142: (0+0)/(2)=0 | Y142: (4851+3671)/(2)=4260.95 | Z142: (998024.9+0)/(2)=499012.45 | AA142: (4841+13255.9)/(2)=9048.45
A143: S12 | B143: (2626+4514)/(2)=3570 | C143: (0+0)/(2)=0 | D143: (0+0)/(2)=0 | E143: (0+0)/(2)=0 | F143: (0+0)/(2)=0 | G143: (0+0)/(2)=0 | H143: (0+0)/(2)=0 | I143: (0+0)/(2)=0 | J143: (0+3177)/(2)=1588.5 | K143: (0+0)/(2)=0 | L143: (0+0)/(2)=0 | M143: (2116+0)/(2)=1058 | N143: (847+274)/(2)=560.5 | O143: (3596+2039)/(2)=2817.5 | P143: (3668+0)/(2)=1834 | Q143: (6641+5775)/(2)=6207.95 | R143: (0+0)/(2)=0 | S143: (0+1292)/(2)=646 | T143: (0+0)/(2)=0 | U143: (0+0)/(2)=0 | V143: (1763+992710.9)/(2)=497236.95 | W143: (0+0)/(2)=0 | X143: (0+0)/(2)=0 | Y143: (4851+3671)/(2)=4260.95 | Z143: (998024.9+0)/(2)=499012.45 | AA143: (4841+13255.9)/(2)=9048.45
A144: S13 | B144: (2626+4514)/(2)=3570 | C144: (0+0)/(2)=0 | D144: (0+0)/(2)=0 | E144: (0+0)/(2)=0 | F144: (0+0)/(2)=0 | G144: (0+0)/(2)=0 | H144: (0+0)/(2)=0 | I144: (0+0)/(2)=0 | J144: (0+3177)/(2)=1588.5 | K144: (0+0)/(2)=0 | L144: (0+0)/(2)=0 | M144: (2116+0)/(2)=1058 | N144: (847+274)/(2)=560.5 | O144: (3596+2039)/(2)=2817.5 | P144: (0+0)/(2)=0 | Q144: (6641+5775)/(2)=6207.95 | R144: (0+0)/(2)=0 | S144: (0+1292)/(2)=646 | T144: (0+0)/(2)=0 | U144: (0+0)/(2)=0 | V144: (1763+992710.9)/(2)=497236.95 | W144: (0+0)/(2)=0 | X144: (0+0)/(2)=0 | Y144: (4851+3671)/(2)=4260.95 | Z144: (998024.9+0)/(2)=499012.45 | AA144: (4841+13255.9)/(2)=9048.45
A145: S14 | B145: (2626+4514)/(2)=3570 | C145: (0+0)/(2)=0 | D145: (0+0)/(2)=0 | E145: (0+0)/(2)=0 | F145: (0+0)/(2)=0 | G145: (0+0)/(2)=0 | H145: (0+0)/(2)=0 | I145: (0+0)/(2)=0 | J145: (0+3177)/(2)=1588.5 | K145: (0+0)/(2)=0 | L145: (0+0)/(2)=0 | M145: (2116+0)/(2)=1058 | N145: (847+274)/(2)=560.5 | O145: (3596+2039)/(2)=2817.5 | P145: (0+0)/(2)=0 | Q145: (6641+5775)/(2)=6207.95 | R145: (0+0)/(2)=0 | S145: (0+1292)/(2)=646 | T145: (0+0)/(2)=0 | U145: (0+0)/(2)=0 | V145: (1763+992710.9)/(2)=497236.95 | W145: (0+0)/(2)=0 | X145: (0+0)/(2)=0 | Y145: (4851+3671)/(2)=4260.95 | Z145: (998024.9+0)/(2)=499012.45 | AA145: (0+8326.9)/(2)=4163.45
A146: S15 | B146: (2626+4514)/(2)=3570 | C146: (0+0)/(2)=0 | D146: (0+0)/(2)=0 | E146: (0+0)/(2)=0 | F146: (0+0)/(2)=0 | G146: (0+0)/(2)=0 | H146: (0+0)/(2)=0 | I146: (0+0)/(2)=0 | J146: (0+3177)/(2)=1588.5 | K146: (0+0)/(2)=0 | L146: (0+0)/(2)=0 | M146: (2116+0)/(2)=1058 | N146: (847+274)/(2)=560.5 | O146: (3596+2039)/(2)=2817.5 | P146: (0+0)/(2)=0 | Q146: (6641+5775)/(2)=6207.95 | R146: (0+0)/(2)=0 | S146: (0+1292)/(2)=646 | T146: (0+0)/(2)=0 | U146: (0+0)/(2)=0 | V146: (1763+992710.9)/(2)=497236.95 | W146: (0+0)/(2)=0 | X146: (0+0)/(2)=0 | Y146: (4851+3671)/(2)=4260.95 | Z146: (998024.9+0)/(2)=499012.45 | AA146: (0+7849)/(2)=3924.5
A147: S16 | B147: (2626+4514)/(2)=3570 | C147: (0+0)/(2)=0 | D147: (0+0)/(2)=0 | E147: (0+0)/(2)=0 | F147: (0+0)/(2)=0 | G147: (0+0)/(2)=0 | H147: (0+0)/(2)=0 | I147: (0+0)/(2)=0 | J147: (0+3177)/(2)=1588.5 | K147: (0+0)/(2)=0 | L147: (0+0)/(2)=0 | M147: (2116+0)/(2)=1058 | N147: (847+274)/(2)=560.5 | O147: (3596+2039)/(2)=2817.5 | P147: (0+0)/(2)=0 | Q147: (6641+5775)/(2)=6207.95 | R147: (0+0)/(2)=0 | S147: (0+1292)/(2)=646 | T147: (0+0)/(2)=0 | U147: (0+0)/(2)=0 | V147: (1763+992710.9)/(2)=497236.95 | W147: (0+0)/(2)=0 | X147: (0+0)/(2)=0 | Y147: (4851+3671)/(2)=4260.95 | Z147: (998024.9+0)/(2)=499012.45 | AA147: (0+6404)/(2)=3202
A148: S17 | B148: (2626+4514)/(2)=3570 | C148: (0+0)/(2)=0 | D148: (0+0)/(2)=0 | E148: (0+0)/(2)=0 | F148: (0+0)/(2)=0 | G148: (0+0)/(2)=0 | H148: (0+0)/(2)=0 | I148: (0+0)/(2)=0 | J148: (0+3177)/(2)=1588.5 | K148: (0+0)/(2)=0 | L148: (0+0)/(2)=0 | M148: (2116+0)/(2)=1058 | N148: (847+274)/(2)=560.5 | O148: (3596+2039)/(2)=2817.5 | P148: (0+0)/(2)=0 | Q148: (6641+5775)/(2)=6207.95 | R148: (0+0)/(2)=0 | S148: (0+1292)/(2)=646 | T148: (0+0)/(2)=0 | U148: (0+0)/(2)=0 | V148: (1763+992710.9)/(2)=497236.95 | W148: (0+0)/(2)=0 | X148: (0+0)/(2)=0 | Y148: (0+1524)/(2)=762 | Z148: (998024.9+0)/(2)=499012.45 | AA148: (0+6404)/(2)=3202
A149: S18 | B149: (2626+3005)/(2)=2815.5 | C149: (0+0)/(2)=0 | D149: (0+0)/(2)=0 | E149: (0+0)/(2)=0 | F149: (0+0)/(2)=0 | G149: (0+0)/(2)=0 | H149: (0+0)/(2)=0 | I149: (0+0)/(2)=0 | J149: (0+3177)/(2)=1588.5 | K149: (0+0)/(2)=0 | L149: (0+0)/(2)=0 | M149: (2116+0)/(2)=1058 | N149: (847+274)/(2)=560.5 | O149: (3596+2039)/(2)=2817.5 | P149: (0+0)/(2)=0 | Q149: (6641+5775)/(2)=6207.95 | R149: (0+0)/(2)=0 | S149: (0+1292)/(2)=646 | T149: (0+0)/(2)=0 | U149: (0+0)/(2)=0 | V149: (1763+992710.9)/(2)=497236.95 | W149: (0+0)/(2)=0 | X149: (0+0)/(2)=0 | Y149: (0+1524)/(2)=762 | Z149: (998024.9+0)/(2)=499012.45 | AA149: (0+6404)/(2)=3202
A150: S19 | B150: (2626+3005)/(2)=2815.5 | C150: (0+0)/(2)=0 | D150: (0+0)/(2)=0 | E150: (0+0)/(2)=0 | F150: (0+0)/(2)=0 | G150: (0+0)/(2)=0 | H150: (0+0)/(2)=0 | I150: (0+0)/(2)=0 | J150: (0+3177)/(2)=1588.5 | K150: (0+0)/(2)=0 | L150: (0+0)/(2)=0 | M150: (2116+0)/(2)=1058 | N150: (0+274)/(2)=137 | O150: (3596+2039)/(2)=2817.5 | P150: (0+0)/(2)=0 | Q150: (6641+5775)/(2)=6207.95 | R150: (0+0)/(2)=0 | S150: (0+1292)/(2)=646 | T150: (0+0)/(2)=0 | U150: (0+0)/(2)=0 | V150: (1763+992710.9)/(2)=497236.95 | W150: (0+0)/(2)=0 | X150: (0+0)/(2)=0 | Y150: (0+1524)/(2)=762 | Z150: (998024.9+0)/(2)=499012.45 | AA150: (0+6404)/(2)=3202
A151: S20 | B151: (2626+3005)/(2)=2815.5 | C151: (0+0)/(2)=0 | D151: (0+0)/(2)=0 | E151: (0+0)/(2)=0 | F151: (0+0)/(2)=0 | G151: (0+0)/(2)=0 | H151: (0+0)/(2)=0 | I151: (0+0)/(2)=0 | J151: (0+3177)/(2)=1588.5 | K151: (0+0)/(2)=0 | L151: (0+0)/(2)=0 | M151: (2116+0)/(2)=1058 | N151: (0+98)/(2)=49 | O151: (3596+2039)/(2)=2817.5 | P151: (0+0)/(2)=0 | Q151: (6641+5775)/(2)=6207.95 | R151: (0+0)/(2)=0 | S151: (0+1292)/(2)=646 | T151: (0+0)/(2)=0 | U151: (0+0)/(2)=0 | V151: (1763+992710.9)/(2)=497236.95 | W151: (0+0)/(2)=0 | X151: (0+0)/(2)=0 | Y151: (0+1524)/(2)=762 | Z151: (998024.9+0)/(2)=499012.45 | AA151: (0+6404)/(2)=3202
A152: S21 | B152: (2626+3005)/(2)=2815.5 | C152: (0+0)/(2)=0 | D152: (0+0)/(2)=0 | E152: (0+0)/(2)=0 | F152: (0+0)/(2)=0 | G152: (0+0)/(2)=0 | H152: (0+0)/(2)=0 | I152: (0+0)/(2)=0 | J152: (0+3177)/(2)=1588.5 | K152: (0+0)/(2)=0 | L152: (0+0)/(2)=0 | M152: (2116+0)/(2)=1058 | N152: (0+98)/(2)=49 | O152: (3596+2039)/(2)=2817.5 | P152: (0+0)/(2)=0 | Q152: (6641+5775)/(2)=6207.95 | R152: (0+0)/(2)=0 | S152: (0+1292)/(2)=646 | T152: (0+0)/(2)=0 | U152: (0+0)/(2)=0 | V152: (1763+992710.9)/(2)=497236.95 | W152: (0+0)/(2)=0 | X152: (0+0)/(2)=0 | Y152: (0+1524)/(2)=762 | Z152: (998024.9+0)/(2)=499012.45 | AA152: (0+6404)/(2)=3202
A153: S22 | B153: (1338+0)/(2)=669 | C153: (0+0)/(2)=0 | D153: (0+0)/(2)=0 | E153: (0+0)/(2)=0 | F153: (0+0)/(2)=0 | G153: (0+0)/(2)=0 | H153: (0+0)/(2)=0 | I153: (0+0)/(2)=0 | J153: (0+3177)/(2)=1588.5 | K153: (0+0)/(2)=0 | L153: (0+0)/(2)=0 | M153: (2116+0)/(2)=1058 | N153: (0+98)/(2)=49 | O153: (3596+2039)/(2)=2817.5 | P153: (0+0)/(2)=0 | Q153: (6641+5775)/(2)=6207.95 | R153: (0+0)/(2)=0 | S153: (0+1292)/(2)=646 | T153: (0+0)/(2)=0 | U153: (0+0)/(2)=0 | V153: (1763+992710.9)/(2)=497236.95 | W153: (0+0)/(2)=0 | X153: (0+0)/(2)=0 | Y153: (0+0)/(2)=0 | Z153: (998024.9+0)/(2)=499012.45 | AA153: (0+6404)/(2)=3202
A154: S23 | B154: (1338+0)/(2)=669 | C154: (0+0)/(2)=0 | D154: (0+0)/(2)=0 | E154: (0+0)/(2)=0 | F154: (0+0)/(2)=0 | G154: (0+0)/(2)=0 | H154: (0+0)/(2)=0 | I154: (0+0)/(2)=0 | J154: (0+3177)/(2)=1588.5 | K154: (0+0)/(2)=0 | L154: (0+0)/(2)=0 | M154: (2116+0)/(2)=1058 | N154: (0+0)/(2)=0 | O154: (807+0)/(2)=403.5 | P154: (0+0)/(2)=0 | Q154: (6641+5775)/(2)=6207.95 | R154: (0+0)/(2)=0 | S154: (0+1292)/(2)=646 | T154: (0+0)/(2)=0 | U154: (0+0)/(2)=0 | V154: (1763+992710.9)/(2)=497236.95 | W154: (0+0)/(2)=0 | X154: (0+0)/(2)=0 | Y154: (0+0)/(2)=0 | Z154: (998024.9+0)/(2)=499012.45 | AA154: (0+6404)/(2)=3202
A155: S24 | B155: (1338+0)/(2)=669 | C155: (0+0)/(2)=0 | D155: (0+0)/(2)=0 | E155: (0+0)/(2)=0 | F155: (0+0)/(2)=0 | G155: (0+0)/(2)=0 | H155: (0+0)/(2)=0 | I155: (0+0)/(2)=0 | J155: (0+3177)/(2)=1588.5 | K155: (0+0)/(2)=0 | L155: (0+0)/(2)=0 | M155: (2116+0)/(2)=1058 | N155: (0+0)/(2)=0 | O155: (482+0)/(2)=241 | P155: (0+0)/(2)=0 | Q155: (6641+5775)/(2)=6207.95 | R155: (0+0)/(2)=0 | S155: (0+1292)/(2)=646 | T155: (0+0)/(2)=0 | U155: (0+0)/(2)=0 | V155: (1763+992710.9)/(2)=497236.95 | W155: (0+0)/(2)=0 | X155: (0+0)/(2)=0 | Y155: (0+0)/(2)=0 | Z155: (998024.9+0)/(2)=499012.45 | AA155: (0+6404)/(2)=3202
A156: S25 | B156: (1338+0)/(2)=669 | C156: (0+0)/(2)=0 | D156: (0+0)/(2)=0 | E156: (0+0)/(2)=0 | F156: (0+0)/(2)=0 | G156: (0+0)/(2)=0 | H156: (0+0)/(2)=0 | I156: (0+0)/(2)=0 | J156: (0+3177)/(2)=1588.5 | K156: (0+0)/(2)=0 | L156: (0+0)/(2)=0 | M156: (2116+0)/(2)=1058 | N156: (0+0)/(2)=0 | O156: (482+0)/(2)=241 | P156: (0+0)/(2)=0 | Q156: (6641+5775)/(2)=6207.95 | R156: (0+0)/(2)=0 | S156: (0+1292)/(2)=646 | T156: (0+0)/(2)=0 | U156: (0+0)/(2)=0 | V156: (1763+992710.9)/(2)=497236.95 | W156: (0+0)/(2)=0 | X156: (0+0)/(2)=0 | Y156: (0+0)/(2)=0 | Z156: (998024.9+0)/(2)=499012.45 | AA156: (0+6404)/(2)=3202
A157: S26 | B157: (1338+0)/(2)=669 | C157: (0+0)/(2)=0 | D157: (0+0)/(2)=0 | E157: (0+0)/(2)=0 | F157: (0+0)/(2)=0 | G157: (0+0)/(2)=0 | H157: (0+0)/(2)=0 | I157: (0+0)/(2)=0 | J157: (0+3177)/(2)=1588.5 | K157: (0+0)/(2)=0 | L157: (0+0)/(2)=0 | M157: (0+0)/(2)=0 | N157: (0+0)/(2)=0 | O157: (482+0)/(2)=241 | P157: (0+0)/(2)=0 | Q157: (6641+5775)/(2)=6207.95 | R157: (0+0)/(2)=0 | S157: (0+1292)/(2)=646 | T157: (0+0)/(2)=0 | U157: (0+0)/(2)=0 | V157: (1763+992710.9)/(2)=497236.95 | W157: (0+0)/(2)=0 | X157: (0+0)/(2)=0 | Y157: (0+0)/(2)=0 | Z157: (998024.9+0)/(2)=499012.45 | AA157: (0+6404)/(2)=3202
A158: S27 | B158: (1338+0)/(2)=669 | C158: (0+0)/(2)=0 | D158: (0+0)/(2)=0 | E158: (0+0)/(2)=0 | F158: (0+0)/(2)=0 | G158: (0+0)/(2)=0 | H158: (0+0)/(2)=0 | I158: (0+0)/(2)=0 | J158: (0+3177)/(2)=1588.5 | K158: (0+0)/(2)=0 | L158: (0+0)/(2)=0 | M158: (0+0)/(2)=0 | N158: (0+0)/(2)=0 | O158: (0+0)/(2)=0 | P158: (0+0)/(2)=0 | Q158: (0+0)/(2)=0 | R158: (0+0)/(2)=0 | S158: (0+1292)/(2)=646 | T158: (0+0)/(2)=0 | U158: (0+0)/(2)=0 | V158: (1763+992710.9)/(2)=497236.95 | W158: (0+0)/(2)=0 | X158: (0+0)/(2)=0 | Y158: (0+0)/(2)=0 | Z158: (998024.9+0)/(2)=499012.45 | AA158: (0+6404)/(2)=3202
A159: S28 | B159: (0+0)/(2)=0 | C159: (0+0)/(2)=0 | D159: (0+0)/(2)=0 | E159: (0+0)/(2)=0 | F159: (0+0)/(2)=0 | G159: (0+0)/(2)=0 | H159: (0+0)/(2)=0 | I159: (0+0)/(2)=0 | J159: (0+0)/(2)=0 | K159: (0+0)/(2)=0 | L159: (0+0)/(2)=0 | M159: (0+0)/(2)=0 | N159: (0+0)/(2)=0 | O159: (0+0)/(2)=0 | P159: (0+0)/(2)=0 | Q159: (0+0)/(2)=0 | R159: (0+0)/(2)=0 | S159: (0+1292)/(2)=646 | T159: (0+0)/(2)=0 | U159: (0+0)/(2)=0 | V159: (1763+992710.9)/(2)=497236.95 | W159: (0+0)/(2)=0 | X159: (0+0)/(2)=0 | Y159: (0+0)/(2)=0 | Z159: (998024.9+0)/(2)=499012.45 | AA159: (0+0)/(2)=0
A160: S29 | B160: (0+0)/(2)=0 | C160: (0+0)/(2)=0 | D160: (0+0)/(2)=0 | E160: (0+0)/(2)=0 | F160: (0+0)/(2)=0 | G160: (0+0)/(2)=0 | H160: (0+0)/(2)=0 | I160: (0+0)/(2)=0 | J160: (0+0)/(2)=0 | K160: (0+0)/(2)=0 | L160: (0+0)/(2)=0 | M160: (0+0)/(2)=0 | N160: (0+0)/(2)=0 | O160: (0+0)/(2)=0 | P160: (0+0)/(2)=0 | Q160: (0+0)/(2)=0 | R160: (0+0)/(2)=0 | S160: (0+0)/(2)=0 | T160: (0+0)/(2)=0 | U160: (0+0)/(2)=0 | V160: (0+992710.9)/(2)=496355.45 | W160: (0+0)/(2)=0 | X160: (0+0)/(2)=0 | Y160: (0+0)/(2)=0 | Z160: (998024.9+0)/(2)=499012.45 | AA160: (0+0)/(2)=0
A162: Lépcsôk(2) | B162: X(A1) | C162: X(A2) | D162: X(A3) | E162: X(A4) | F162: X(A5) | G162: X(A6) | H162: X(A7) | I162: X(A8) | J162: X(A9) | K162: X(A10) | L162: X(A11) | M162: X(A12) | N162: X(A13) | O162: X(A14) | P162: X(A15) | Q162: X(A16) | R162: X(A17) | S162: X(A18) | T162: X(A19) | U162: X(A20) | V162: X(A21) | W162: X(A22) | X162: X(A23) | Y162: X(A24) | Z162: X(A25) | AA162: X(A26)
A163: S1 | B163: 3570 | C163: 0 | D163: 2375 | E163: 0 | F163: 5266 | G163: 0 | H163: 0 | I163: 0 | J163: 2085.5 | K163: 0 | L163: 0 | M163: 1469.5 | N163: 560.5 | O163: 18109.9 | P163: 1834 | Q163: 6208 | R163: 71 | S163: 8539.9 | T163: 23 | U163: 1352 | V163: 497236.9 | W163: 0 | X163: 0 | Y163: 10539.9 | Z163: 502786.4 | AA163: 9048.4
A164: S2 | B164: 3570 | C164: 0 | D164: 2375 | E164: 0 | F164: 0 | G164: 0 | H164: 0 | I164: 0 | J164: 2085.5 | K164: 0 | L164: 0 | M164: 1469.5 | N164: 560.5 | O164: 3037 | P164: 1834 | Q164: 6208 | R164: 71 | S164: 8539.9 | T164: 0 | U164: 1352 | V164: 497236.9 | W164: 0 | X164: 0 | Y164: 10015.9 | Z164: 502786.4 | AA164: 9048.4
A165: S3 | B165: 3570 | C165: 0 | D165: 2375 | E165: 0 | F165: 0 | G165: 0 | H165: 0 | I165: 0 | J165: 2085.5 | K165: 0 | L165: 0 | M165: 1469.5 | N165: 560.5 | O165: 3037 | P165: 1834 | Q165: 6208 | R165: 0 | S165: 8539.9 | T165: 0 | U165: 1352 | V165: 497236.9 | W165: 0 | X165: 0 | Y165: 10015.9 | Z165: 502786.4 | AA165: 9048.4
A166: S4 | B166: 3570 | C166: 0 | D166: 2375 | E166: 0 | F166: 0 | G166: 0 | H166: 0 | I166: 0 | J166: 2085.5 | K166: 0 | L166: 0 | M166: 1469.5 | N166: 560.5 | O166: 3037 | P166: 1834 | Q166: 6208 | R166: 0 | S166: 646 | T166: 0 | U166: 1352 | V166: 497236.9 | W166: 0 | X166: 0 | Y166: 4841.5 | Z166: 502786.4 | AA166: 9048.4
A167: S5 | B167: 3570 | C167: 0 | D167: 2375 | E167: 0 | F167: 0 | G167: 0 | H167: 0 | I167: 0 | J167: 2085.5 | K167: 0 | L167: 0 | M167: 1469.5 | N167: 560.5 | O167: 3037 | P167: 1834 | Q167: 6208 | R167: 0 | S167: 646 | T167: 0 | U167: 1352 | V167: 497236.9 | W167: 0 | X167: 0 | Y167: 4841.5 | Z167: 499012.4 | AA167: 9048.4
A168: S6 | B168: 3570 | C168: 0 | D168: 2375 | E168: 0 | F168: 0 | G168: 0 | H168: 0 | I168: 0 | J168: 2085.5 | K168: 0 | L168: 0 | M168: 1469.5 | N168: 560.5 | O168: 3037 | P168: 1834 | Q168: 6208 | R168: 0 | S168: 646 | T168: 0 | U168: 1352 | V168: 497236.9 | W168: 0 | X168: 0 | Y168: 4261 | Z168: 499012.4 | AA168: 9048.4
A169: S7 | B169: 3570 | C169: 0 | D169: 2375 | E169: 0 | F169: 0 | G169: 0 | H169: 0 | I169: 0 | J169: 1588.5 | K169: 0 | L169: 0 | M169: 1469.5 | N169: 560.5 | O169: 3037 | P169: 1834 | Q169: 6208 | R169: 0 | S169: 646 | T169: 0 | U169: 1352 | V169: 497236.9 | W169: 0 | X169: 0 | Y169: 4261 | Z169: 499012.4 | AA169: 9048.4
A170: S8 | B170: 3570 | C170: 0 | D170: 0 | E170: 0 | F170: 0 | G170: 0 | H170: 0 | I170: 0 | J170: 1588.5 | K170: 0 | L170: 0 | M170: 1058 | N170: 560.5 | O170: 3037 | P170: 1834 | Q170: 6208 | R170: 0 | S170: 646 | T170: 0 | U170: 0 | V170: 497236.9 | W170: 0 | X170: 0 | Y170: 4261 | Z170: 499012.4 | AA170: 9048.4
A171: S9 | B171: 3570 | C171: 0 | D171: 0 | E171: 0 | F171: 0 | G171: 0 | H171: 0 | I171: 0 | J171: 1588.5 | K171: 0 | L171: 0 | M171: 1058 | N171: 560.5 | O171: 3037 | P171: 1834 | Q171: 6208 | R171: 0 | S171: 646 | T171: 0 | U171: 0 | V171: 497236.9 | W171: 0 | X171: 0 | Y171: 4261 | Z171: 499012.4 | AA171: 9048.4
A172: S10 | B172: 3570 | C172: 0 | D172: 0 | E172: 0 | F172: 0 | G172: 0 | H172: 0 | I172: 0 | J172: 1588.5 | K172: 0 | L172: 0 | M172: 1058 | N172: 560.5 | O172: 2817.5 | P172: 1834 | Q172: 6208 | R172: 0 | S172: 646 | T172: 0 | U172: 0 | V172: 497236.9 | W172: 0 | X172: 0 | Y172: 4261 | Z172: 499012.4 | AA172: 9048.4
A173: S11 | B173: 3570 | C173: 0 | D173: 0 | E173: 0 | F173: 0 | G173: 0 | H173: 0 | I173: 0 | J173: 1588.5 | K173: 0 | L173: 0 | M173: 1058 | N173: 560.5 | O173: 2817.5 | P173: 1834 | Q173: 6208 | R173: 0 | S173: 646 | T173: 0 | U173: 0 | V173: 497236.9 | W173: 0 | X173: 0 | Y173: 4261 | Z173: 499012.4 | AA173: 9048.4
A174: S12 | B174: 3570 | C174: 0 | D174: 0 | E174: 0 | F174: 0 | G174: 0 | H174: 0 | I174: 0 | J174: 1588.5 | K174: 0 | L174: 0 | M174: 1058 | N174: 560.5 | O174: 2817.5 | P174: 1834 | Q174: 6208 | R174: 0 | S174: 646 | T174: 0 | U174: 0 | V174: 497236.9 | W174: 0 | X174: 0 | Y174: 4261 | Z174: 499012.4 | AA174: 9048.4
A175: S13 | B175: 3570 | C175: 0 | D175: 0 | E175: 0 | F175: 0 | G175: 0 | H175: 0 | I175: 0 | J175: 1588.5 | K175: 0 | L175: 0 | M175: 1058 | N175: 560.5 | O175: 2817.5 | P175: 0 | Q175: 6208 | R175: 0 | S175: 646 | T175: 0 | U175: 0 | V175: 497236.9 | W175: 0 | X175: 0 | Y175: 4261 | Z175: 499012.4 | AA175: 9048.4
